Workbook

Sheet Intro
C1: HOME Investment Partnerships Program ("HOME")
C2: Multi-Family Underwriting Template
C4: U.S. Department of Housing and Urban Development
C5: Office of Community Planning and Development
B8: Project Information
C9: Project Name:
C10: Address:
C11: Developer:
C12: Date of Analysis:
C13: City:
C14: State:
C15: Development Type:
B17: NOTES ON KEY HOME REQUIREMENTS AND THIS TEMPLATE
C19: This HOME Multi-Family Underwriting Template is intended to assist in planning multi-family affordable rental housing, not single-family affordable housing.
C20: Typical users will be Participating Jurisdiction (PJ) underwriters, Community Housing Development Organization (CHDO) underwriters, and underwriters for other developers of HOME-assisted affordable rental housing projects. This template supports normal underwriting tasks such as review of development costs and review of operating revenues and expenses, but also includes features that help the user determine the appropriate amount of HOME assistance as well as the appropriate number and mix of HOME-assisted units.
C21: Users may find it helpful to review the HOME Underwriting and Subsidy Layering Notice, CPD 15-11. This template does not cover all elements of the Notice requirements.
C22: The U.S. Department of Housing and Urban Development and ICF International assume no liability for the use, functionality, or content of this template. This template is for draft calculations only. All inputs, outcomes, and calculations should be independently verified.
C23: This template does not automatically cap rents at HOME levels. Each user must do this, as applicable, on the Rents and Income tab.
C24: This template does not include cost allocation which must be completed separately by the PJ to allocate costs and designate the number of HOME units. Users should refer to the guidance provided in CPD Notice 16-15 and utilize the HOME cost allocation tool available at the following links: https://www.hudexchange.info/resources/documents/Notice-CPD-16-15-Allocating-Eligible-Costs-and-Identifying-HOME-Assisted-Units-in-Multi-Unit-HOME-Rental-and-Homeownership-Development-Projects.pdf, and https://www.hudexchange.info/resource/5190/home-cost-allocation-tool/ for guidance on allocating costs and determining maximum investment and minimum HOME units.”
C25: HOME PJs must conduct a subsidy layering analysis prior to commitment of HOME funds.
C27: 407 | D27: Cells with light green background are data entry cells
C28: =IF(C27=0,"",ROUND(C27*100,0)) -> 40700 | D28: Cells with white background are formulas
C29: Do not change formulas (many of them track to other formulas)
B31: ? | C31: Blue boxes like this contain guidance (place the mouse pointer over the question mark)
C32: If the guidance text is too small for the user to read, increase the zoom setting on the tab.
B34: The Role of HOME Funds in a Development Project
C36: In rental housing development projects, HOME funds typically serve as “gap financing” – funds provided when the contributions of private lenders and other funding resources are not sufficient to cover the cost of developing and leasing-up the project. PJ and non-profit staff are often called upon to determine the appropriate amount of HOME funds required to “fill the gap” in order to make the project feasible, while ensuring the project is not over-subsidized and that HOME funds are used only for HOME-eligible expenses.
C37: While HOME funds are an indispensable resource for many affordable housing projects, they come with requirements that can also influence a project’s finances. To ensure that a portion of the housing units created when HOME funds are invested will remain available to low-income and very-low-income households, rents for these units are limited for a specified period to affordable levels appropriate to the project's geographic area. These HOME rent limits may impact the amount of income generated by the property, which in turn can influence the amount and availability of private and other public funding resources for the project.
B39: Multi-Family Underwriting
C41: Underwriting is the process of determining the financial feasibility and the terms of a project. The objective of underwriting is to determine whether the ongoing revenues from a property will be sufficient to cover construction and operating costs to ensure that property will be sustainable for the specific period of affordability. There is no one “right” way to do underwriting. However, across all approaches, there are some common elements: • Review of costs for constructing the project in order to determine both reasonableness and eligibility. • Review of the sources of financing for the project. • Review the projected profitability and financial health of the project. • Establish the financing and operating terms.
B43: Introduction to this Template
C45: The HOME Multi-Family Underwriting Template is composed of several interrelated Excel tabs, which are accessible by tabs found at the bottom of the Excel screen. Open the Template in Excel and look along the bottom of the screen. You will see a set of tabs reading: • Intro • Requirements • Rents and Income • Development Costs • Repl Reserve • Const Schedule • LIHTC Basis • Operating Expenses • First Mortgage Sizing • Sources and Uses • Pro Forma Assumptions • Operating Pro-Forma • Administrative Record • Summary
B47: Microsoft Excel and This Template
C49: This template is provided in Excel 2007 format. Two versions are available. One is macro-enabled (an .xlsm file); this version includes radio buttons that will allow the user to hide and reveal columns and rows used for supporting calculations, and helpful features such as automatically providing the appropriate number of columns on the Operating Pro-Forma tab. If you are using the .xlsm format, be sure to always save the file in .xlsm format (if you save it in .xlsx format, you will lose all of the macros). In the .xlsm format, if you click on a radio button labeled 'Hide Columns' or 'Hide Rows', the template will hide the rows or columns that hold supporting calculations. A radio button labeled 'Reveal columns' or 'Reveal rows' will reveal (un-hide) the supporting calculations. For users whose information technology policies do not allow enabled macros, this template is also available in a non-macro-enabled format (an .xlsx file). This template also contains two forms of protection. The first is worksheet (tab) protection (formula cells are locked to prevent accidental damage to formulas). The second is workbook protection (which prevents accidental deletion of tabs). However, if you need to make custom modifications to this template, you can do so by entering the password (the password is a single blank character).
B51: Upon completing this tab, proceed to the Requirements tab.

Sheet Controls (hidden)
A1: Controls (Normally Hidden) | B1: Don't insert rows or columns in A1:B24
A3: Macro Controls
A4: Requirements tab hide-reveal starting column | B4: =COLUMN(Requirements!$K$1) -> 11
A5: Requirements tab hide-reveal ending column | B5: =COLUMN(Requirements!$R$1) -> 18
A7: LIHTC Basis tab hide-reveal starting column | B7: =COLUMN('LIHTC Basis'!$K$1) -> 11
A8: LIHTC Basis tab hide-reveal ending column | B8: =COLUMN('LIHTC Basis'!$M$1) -> 13
A10: First Mortgage Sizing tab hide-reveal starting column | B10: =COLUMN('First Mortgage Sizing'!$J$1) -> 10
A11: First Mortgage Sizing tab hide-reveal ending column | B11: =COLUMN('First Mortgage Sizing'!K$1) -> 11
A13: Sources and Uses tab hide-reveal starting column | B13: =COLUMN('Sources and Uses'!$H$1) -> 8
A14: Sources and Uses tab hide-reveal ending column | B14: =COLUMN('Sources and Uses'!$Q$1) -> 17
A16: Cost Allocation tab hide-reveal starting column | B16: =COLUMN(#REF!) -> 
A17: Cost Allocation tab hide-reveal ending column | B17: =COLUMN(#REF!) -> 
A19: Operating Pro Forma tab hide-reveal starting column | B19: =COLUMN('Operating Pro Forma'!$D$1) -> 4
A20: Operating Pro Forma tab reveal 30-year ending column | B20: =COLUMN('Operating Pro Forma'!AG$1) -> 33
A21: Operating Pro Forma hide beyond sale year starting column | B21: =B19+30-(30-'Pro Forma Assumptions'!D24) -> 4 | C21: =IF(B21>B20,"Not Applicable; Sale Year 30","") -> 
A22: Operating Pro Forma tab hide-reveal starting row | B22: =ROW('Operating Pro Forma'!A62) -> 62
A23: Operating Pro Forma tab reveal 30-year ending row | B23: =ROW('Operating Pro Forma'!A102) -> 102
A25: Requirements drop-down #1
A26: Rehabilitation or Acquisition of Existing Housing
A27: Refinance of Rehabilitation Project
A28: New Construction or Acquisition of New Housing
A30: Requirements drop-down #2
A31: Less than $15,000
A32: $15,000-$40,000
A33: More than $40,000
A35: Rent and Income drop-down #1
A36: Low HOME
A37: High HOME
A38: Market
A39: =Requirements!K20 -> LIHTC 50 AMI
A40: =Requirements!K21 -> LIHTC 60 AMI
A41: =Requirements!K22 -> LIHTC 40 AMI
A42: =Requirements!K23 -> LIHTC 30 AMI
A43: =Requirements!K24 -> Other 1
A44: =Requirements!K25 -> Other 2
A45: =Requirements!K26 -> Other 3
A46: =Requirements!K27 -> Other 4
A48: Rent and Income drop-down #2
A49: HOME
A50: Market
A51: =Requirements!K37 -> LIHTC 50 AMI
A52: =Requirements!K38 -> LIHTC 60 AMI
A53: =Requirements!K39 -> LIHTC 40 AMI
A54: =Requirements!K40 -> LIHTC 30 AMI
A55: =Requirements!K41 -> Other 1
A56: =Requirements!K42 -> Other 2
A57: =Requirements!K43 -> Other 3
A58: =Requirements!K44 -> Other 4
A60: Yes or No drop-down
A61: Yes
A62: No
A64: Drop-Down for Development Type
A65: Single Story Garden Apartments
A66: Walkup Garden Apartments (2-4 Stories)
A67: Townhouses
A68: Elevator Buildings 2-5 Stories
A69: Elevator Buildings 6+ Stories
A70: Multiple Building Types

Sheet Requirements
C1: HOME and Other Affordable Housing Requirements | I1: Enter data in green cells only
C3: The HOME Program, as well as other affordable housing programs (e.g., Low-Income Housing Tax Credits or the Community Development Block Grant), are designed to provide effective resources for housing development, while ensuring that use of public funds results in increased availability of affordable housing. To meet the latter objective, the HOME Program and other affordable housing programs impose requirements and restrictions, such as maximum subsidies, maximum rents for units reserved for affordable housing, and affordability periods during which units must remain affordable. Note that some individual units may be subsidized using both HOME funds and funds from another affordable housing program. For the purposes of this Template, consider those units to be HOME-assisted units. Use this worksheet to enter (or change) the following: Area Median Incomes, rents, utility allowances, the HOME period of affordability, and HOME per-unit investment limits.
C4: ="Project Name - "&Intro!$D$9&" : "&'Rents and Income'!$E$31&" Units" -> Project Name - : 0 Units
C6: 4 Person AMI | D6: 100600 | E6: at 100% AMI
A10: ? | C10: HOME Investment Limits
C11: HOME per Unit Limit - 0 Bedroom | E11: 149868
C12: HOME per Unit Limit - 1 Bedroom | E12: 171801.6 | L12: =+'Sources and Uses'!$D$25 -> 0 | M12: total HOME | N12: =+'Rents and Income'!$M$31+'Rents and Income'!$N$31 -> 0 | O12: total HOME units | P12: =IF(N12=0,0,L12/N12) -> 0 | Q12: per HOME unit
C13: HOME per Unit Limit - 2 Bedroom | E13: 208912.8
C14: HOME per Unit Limit - 3 Bedroom | E14: 270266.4 | K14: The table of gross rents below is automatically created based on your entries on this tab. This table is used on the Rents and Income tab.
C15: HOME per Unit Limit - 4 Bedroom | E15: 296666.4
C16: HOME per Unit Limit - 5 Bedroom | E16: =+E15 -> 296666.4 | F16: (same as 4BR limit) | K16: Gross Rent Table | L16: 0BR Gross Rent | M16: 1BR Gross Rent | N16: 2BR Gross Rent | O16: 3BR Gross Rent | P16: 4BR Gross Rent | Q16: 5BR Gross Rent
K17: Low HOME | L17: =+C$22 -> 881 | M17: =+D$22 -> 943 | N17: =+E$22 -> 1132 | O17: =+F$22 -> 1308 | P17: =+G$22 -> 1458 | Q17: =+H$22 -> 1610
K18: High HOME | L18: =+C$24 -> 1042 | M18: =+D$24 -> 1188 | N18: =+E$24 -> 1447 | O18: =+F$24 -> 1728 | P18: =+G$24 -> 1908 | Q18: =+H$24 -> 2087
K19: Market | L19: =+C$47 -> 0 | M19: =+D$47 -> 0 | N19: =+E$47 -> 0 | O19: =+F$47 -> 0 | P19: =+G$47 -> 0 | Q19: =+H$47 -> 0
A20: ? | C20: HOME Rent Limits (monthly, including rent and tenant-paid utilities) | K20: =+F55 -> LIHTC 50 AMI | L20: =+C$59 -> 880 | M20: =+D$59 -> 943 | N20: =+E$59 -> 1132 | O20: =+F$59 -> 1308 | P20: =+G$59 -> 1459 | Q20: =+H$59 -> 1610
C21: Low 0 BR | D21: Low 1 BR | E21: Low 2 BR | F21: Low 3 BR | G21: Low 4 BR | H21: Low 5 BR | K21: =+F69 -> LIHTC 60 AMI | L21: =+C$73 -> 1056 | M21: =+D$73 -> 1132 | N21: =+E$73 -> 1358 | O21: =+F$73 -> 1570 | P21: =+G$73 -> 1751 | Q21: =+H$73 -> 1932
C22: 881 | D22: 943 | E22: 1132 | F22: 1308 | G22: 1458 | H22: 1610 | K22: =+F83 -> LIHTC 40 AMI | L22: =+C$87 -> 704 | M22: =+D$87 -> 754 | N22: =+E$87 -> 905 | O22: =+F$87 -> 1046 | P22: =+G$87 -> 1167 | Q22: =+H$87 -> 1288
C23: High 0 BR | D23: High 1 BR | E23: High 2 BR | F23: High 3 BR | G23: High 4 BR | H23: High 5 BR | K23: =+F97 -> LIHTC 30 AMI | L23: =+C$101 -> 528 | M23: =+D$101 -> 565 | N23: =+E$101 -> 679 | O23: =+F$101 -> 784 | P23: =+G$101 -> 875 | Q23: =+H$101 -> 965
C24: 1042 | D24: 1188 | E24: 1447 | F24: 1728 | G24: 1908 | H24: 2087 | K24: =+F111 -> Other 1 | L24: =+C$115 -> 352 | M24: =+D$115 -> 377 | N24: 452 | O24: 523 | P24: 583 | Q24: 643
K25: =+F125 -> Other 2 | L25: =+C$129 -> 440 | M25: =+D$129 -> 471 | N25: 565 | O25: 653 | P25: 729 | Q25: 804
A26: ? | C26: HOME Utility Allowances (monthly) | K26: =+F139 -> Other 3 | L26: =+C$143 -> 616 | M26: =+D$143 -> 660 | N26: 792 | O26: 915 | P26: 1021 | Q26: 1126
C27: 0 BR | D27: 1 BR | E27: 2 BR | F27: 3 BR | G27: 4 BR | H27: 5 BR | K27: =+F153 -> Other 4 | L27: =+C$157 -> 1408 | M27: =+D$157 -> 1509 | N27: 1810 | O27: 2092 | P27: 2333 | Q27: 2575
K32: The table of utility allowances below is automatically created based on your entries on this tab. This table is used on the Rents and Income tab.
A34: ? | C34: HOME Affordability Period | K34: Utility Allowance Table | L34: 0BR UA | M34: 1BR UA | N34: 2BR UA | O34: 3BR UA | P34: 4BR UA | Q34: 5BR UA
C35: HOME-Eligible Rental Activity (select one) | K35: HOME | L35: =+C$28 -> 0 | M35: =+D$28 -> 0 | N35: =+E$28 -> 0 | O35: =+F$28 -> 0 | P35: =+G$28 -> 0 | Q35: =+H$28 -> 0
C36: Average Per-Unit HOME Subsidy (select one) | I36: See the Note below | K36: Market | L36: 0 | M36: 0 | N36: 0 | O36: 0 | P36: 0 | Q36: 0
E37: =IF($F$35=Controls!$A$26,1,IF($F$35=Controls!$A$27,2,3)) -> 3 | F37: =IF(F36=Controls!$A$31,1,IF(F36=Controls!$A$32,2,3)) -> 3 | K37: =+K20 -> LIHTC 50 AMI | L37: =+C$63 -> 0 | M37: =+D$63 -> 0 | N37: =+E$63 -> 0 | O37: =+F$63 -> 0 | P37: =+G$63 -> 0 | Q37: =+H$63 -> 0
C38: HOME Required Affordability Period (in years) | G38: =IF(E37=2,15,IF(E37=3,20,IF(F37=1,5,IF(F37=2,10,15)))) -> 20 | H38: (Advisory information only.) | K38: LIHTC 60 AMI | L38: =+C$77 -> 0 | M38: =+D$77 -> 0 | N38: =+E$77 -> 0 | O38: =+F$77 -> 0 | P38: =+G$77 -> 0 | Q38: =+H$77 -> 0
A39: ? | C39: PJ's Required Affordability Period (in years) | H39: (Must be at least as long as HOME requirement.) | K39: LIHTC 40 AMI | L39: =+C$91 -> 0 | M39: =+D$91 -> 0 | N39: =+E$91 -> 0 | O39: =+F$91 -> 0 | P39: =+G$91 -> 0 | Q39: =+H$91 -> 0
A40: ? | C40: PJ's Affordability Period in Compliance with HOME Program? | G40: =IF(G39=0,"Entry Missing",IF(G39<G38,"No","Yes")) -> Entry Missing | H40: =IF(OR(G39=0,G39=""),"Enter PJ's Affordability Period","") -> Enter PJ's Affordability Period | K40: LIHTC 30 AMI | L40: =+C$105 -> 0 | M40: =+D$105 -> 0 | N40: =+E$105 -> 0 | O40: =+F$105 -> 0 | P40: =+G$105 -> 0 | Q40: =+H$105 -> 0
C41: ="Note: the Template indicates underwritten HOME subsidy of "&TEXT($P$12,"$#,##0")&" per unit. See the Sources and Uses and Rents and Income tabs." -> Note: the Template indicates underwritten HOME subsidy of $0 per unit. See the Sources and Uses and Rents and Income tabs. | K41: Other 1 | L41: =+C$119 -> 0 | M41: =+D$119 -> 0 | N41: 0 | O41: 0 | P41: 0 | Q41: 0
K42: Other 2 | L42: =+C$133 -> 0 | M42: =+D$133 -> 0 | N42: 0 | O42: 0 | P42: 0 | Q42: 0
A43: ? | C43: Market Rents (the rents that these units could achieve without rent or income restrictions) | K43: Other 3 | L43: =+C$147 -> 0 | M43: =+D$147 -> 0 | N43: 0 | O43: 0 | P43: 0 | Q43: 0
K44: Other 4 | L44: =+C$161 -> 0 | M44: =+D$161 -> 0 | N44: 0 | O44: 0 | P44: 0 | Q44: 0
C45: Market Rents (monthly, rent only, do not add tenant-paid utilities)
C46: 0 BR | D46: 1 BR | E46: 2 BR | F46: 3 BR | G46: 4 BR | H46: 5 BR
C51: On the Rents and Income tab, for each unit type you will be able to select the most restrictive rent limit (for example, High HOME or Market or Project Based Section 8) and a set of utility allowances. You will also be able to underwrite, for each unit type, less than 100% of the applicable rent limit (for example, you can underwrite 95% of the High HOME rent instead of 100% if you choose). Below are several sections in which you can enter the gross rents (rent plus tenant-paid utilities) and utility allowances for affordable housing programs other than HOME. Examples might include Low Income Housing Tax Credit (LIHTC) units restricted at 60% AMI rents, LIHTC units restricted at 50% AMI rents, CDBG units, and project-based Section 8 units. If multiple programs use the same utility allowances (for example, LIHTC 60% and 50% and 40% AMI), you might choose to enter the utility allowances only once in the sections below.
C53: Gross Rents and Utility Allowances for Other Affordable Housing Program #1
C55: Other Affordable Housing Program Name | F55: LIHTC 50 AMI | H55: 0.5 | I55: of AMI (if AMI rents are applicable)
C57: ="Gross Rent Limits for "&TRIM(F55)&" (monthly)" -> Gross Rent Limits for LIHTC 50 AMI (monthly) | L57: 3 | M57: =+L57+1 -> 4 | N57: =+M57+1 -> 5 | O57: =+N57+1 -> 6 | P57: =+O57+1 -> 7 | Q57: =+P57+1 -> 8
C58: 0 BR | D58: 1 BR | E58: 2 BR | F58: 3 BR | G58: 4 BR | H58: 5 BR | L58: 0 BR | M58: 1 BR | N58: 2 BR | O58: 3 BR | P58: 4 BR | Q58: 5 BR
C59: 880 | D59: 943 | E59: 1132 | F59: 1308 | G59: 1459 | H59: 1610 | L59: =VLOOKUP($H55,$A$173:$H$185,L57,FALSE) -> 880 | M59: 943 | N59: 1131 | O59: 1307 | P59: 1458 | Q59: 1609
C61: ="Utility Allowances for "&TRIM(F55)&" (monthly)" -> Utility Allowances for LIHTC 50 AMI (monthly)
C62: 0 BR | D62: 1 BR | E62: 2 BR | F62: 3 BR | G62: 4 BR | H62: 5 BR
C67: Gross Rents and Utility Allowances for Other Affordable Housing Program #2
C69: Other Affordable Housing Program Name | F69: LIHTC 60 AMI | H69: 0.6 | I69: of AMI (if AMI rents are applicable)
C71: ="Gross Rent Limits for "&TRIM(F69)&" (monthly)" -> Gross Rent Limits for LIHTC 60 AMI (monthly) | L71: 3 | M71: =+L71+1 -> 4 | N71: =+M71+1 -> 5 | O71: =+N71+1 -> 6 | P71: =+O71+1 -> 7 | Q71: =+P71+1 -> 8
C72: 0 BR | D72: 1 BR | E72: 2 BR | F72: 3 BR | G72: 4 BR | H72: 5 BR | L72: 0 BR | M72: 1 BR | N72: 2 BR | O72: 3 BR | P72: 4 BR | Q72: 5 BR
C73: 1056 | D73: 1132 | E73: 1358 | F73: 1570 | G73: 1751 | H73: 1932 | L73: =VLOOKUP($H69,$A$173:$H$185,L71,FALSE) -> 1056 | M73: 1131 | N73: 1358 | O73: 1569 | P73: 1750 | Q73: 1931
C75: ="Utility Allowances for "&TRIM(F69)&" (monthly)" -> Utility Allowances for LIHTC 60 AMI (monthly)
C76: 0 BR | D76: 1 BR | E76: 2 BR | F76: 3 BR | G76: 4 BR | H76: 5 BR
C81: Gross Rents and Utility Allowances for Other Affordable Housing Program #3
C83: Other Affordable Housing Program Name | F83: LIHTC 40 AMI | H83: 0.4 | I83: of AMI (if AMI rents are applicable)
C85: ="Gross Rent Limits for "&TRIM(F83)&" (monthly)" -> Gross Rent Limits for LIHTC 40 AMI (monthly) | L85: 3 | M85: =+L85+1 -> 4 | N85: =+M85+1 -> 5 | O85: =+N85+1 -> 6 | P85: =+O85+1 -> 7 | Q85: =+P85+1 -> 8
C86: 0 BR | D86: 1 BR | E86: 2 BR | F86: 3 BR | G86: 4 BR | H86: 5 BR | L86: 0 BR | M86: 1 BR | N86: 2 BR | O86: 3 BR | P86: 4 BR | Q86: 5 BR
C87: 704 | D87: 754 | E87: 905 | F87: 1046 | G87: 1167 | H87: 1288 | L87: =VLOOKUP($H83,$A$173:$H$185,L85,FALSE) -> 704 | M87: 754 | N87: 905 | O87: 1046 | P87: 1166 | Q87: 1287
C89: ="Utility Allowances for "&TRIM(F83)&" (monthly)" -> Utility Allowances for LIHTC 40 AMI (monthly)
C90: 0 BR | D90: 1 BR | E90: 2 BR | F90: 3 BR | G90: 4 BR | H90: 5 BR
C95: Gross Rents and Utility Allowances for Other Affordable Housing Program #4
C97: Other Affordable Housing Program Name | F97: LIHTC 30 AMI | H97: 0.3 | I97: of AMI (if AMI rents are applicable)
C99: ="Gross Rent Limits for "&TRIM(F97)&" (monthly)" -> Gross Rent Limits for LIHTC 30 AMI (monthly) | L99: 3 | M99: =+L99+1 -> 4 | N99: =+M99+1 -> 5 | O99: =+N99+1 -> 6 | P99: =+O99+1 -> 7 | Q99: =+P99+1 -> 8
C100: 0 BR | D100: 1 BR | E100: 2 BR | F100: 3 BR | G100: 4 BR | H100: 5 BR | L100: 0 BR | M100: 1 BR | N100: 2 BR | O100: 3 BR | P100: 4 BR | Q100: 5 BR
C101: 528 | D101: 565 | E101: 679 | F101: 784 | G101: 875 | H101: 965 | L101: =VLOOKUP($H97,$A$173:$H$185,L99,FALSE) -> 528 | M101: 565 | N101: 679 | O101: 784 | P101: 875 | Q101: 965
C103: ="Utility Allowances for "&TRIM(F97)&" (monthly)" -> Utility Allowances for LIHTC 30 AMI (monthly)
C104: 0 BR | D104: 1 BR | E104: 2 BR | F104: 3 BR | G104: 4 BR | H104: 5 BR
C109: Gross Rents and Utility Allowances for Other Affordable Housing Program #5
C111: Other Affordable Housing Program Name | F111: Other 1 | H111: 0.2 | I111: of AMI (if AMI rents are applicable)
C113: ="Gross Rent Limits for "&TRIM(F111)&" (monthly)" -> Gross Rent Limits for Other 1 (monthly) | L113: 3 | M113: =+L113+1 -> 4 | N113: =+M113+1 -> 5 | O113: =+N113+1 -> 6 | P113: =+O113+1 -> 7 | Q113: =+P113+1 -> 8
C114: 0 BR | D114: 1 BR | E114: 2 BR | F114: 3 BR | G114: 4 BR | H114: 5 BR | L114: 0 BR | M114: 1 BR | N114: 2 BR | O114: 3 BR | P114: 4 BR | Q114: 5 BR
C115: 352 | D115: 377 | E115: 452 | F115: 523 | G115: 583 | H115: 643 | L115: =VLOOKUP($H111,$A$173:$H$185,L113,FALSE) -> 352 | M115: 377 | N115: 452 | O115: 523 | P115: 583 | Q115: 643
C117: ="Utility Allowances for "&TRIM(F111)&" (monthly)" -> Utility Allowances for Other 1 (monthly)
C118: 0 BR | D118: 1 BR | E118: 2 BR | F118: 3 BR | G118: 4 BR | H118: 5 BR
C123: Gross Rents and Utility Allowances for Other Affordable Housing Program #6
C125: Other Affordable Housing Program Name | F125: Other 2 | H125: 0.25 | I125: of AMI (if AMI rents are applicable)
C127: ="Gross Rent Limits for "&TRIM(F125)&" (monthly)" -> Gross Rent Limits for Other 2 (monthly) | L127: 3 | M127: =+L127+1 -> 4 | N127: =+M127+1 -> 5 | O127: =+N127+1 -> 6 | P127: =+O127+1 -> 7 | Q127: =+P127+1 -> 8
C128: 0 BR | D128: 1 BR | E128: 2 BR | F128: 3 BR | G128: 4 BR | H128: 5 BR | L128: 0 BR | M128: 1 BR | N128: 2 BR | O128: 3 BR | P128: 4 BR | Q128: 5 BR
C129: 440 | D129: 471 | E129: 565 | F129: 653 | G129: 729 | H129: 804 | L129: =VLOOKUP($H125,$A$173:$H$185,L127,FALSE) -> 440 | M129: 471 | N129: 565 | O129: 653 | P129: 729 | Q129: 804
C131: ="Utility Allowances for "&TRIM(F125)&" (monthly)" -> Utility Allowances for Other 2 (monthly)
C132: 0 BR | D132: 1 BR | E132: 2 BR | F132: 3 BR | G132: 4 BR | H132: 5 BR
C137: Gross Rents and Utility Allowances for Other Affordable Housing Program #7
C139: Other Affordable Housing Program Name | F139: Other 3 | H139: 0.35 | I139: of AMI (if AMI rents are applicable)
C141: ="Gross Rent Limits for "&TRIM(F139)&" (monthly)" -> Gross Rent Limits for Other 3 (monthly) | L141: 3 | M141: =+L141+1 -> 4 | N141: =+M141+1 -> 5 | O141: =+N141+1 -> 6 | P141: =+O141+1 -> 7 | Q141: =+P141+1 -> 8
C142: 0 BR | D142: 1 BR | E142: 2 BR | F142: 3 BR | G142: 4 BR | H142: 5 BR | L142: 0 BR | M142: 1 BR | N142: 2 BR | O142: 3 BR | P142: 4 BR | Q142: 5 BR
C143: 616 | D143: 660 | E143: 792 | F143: 915 | G143: 1021 | H143: 1126 | L143: =VLOOKUP($H139,$A$173:$H$185,L141,FALSE) -> 616 | M143: 660 | N143: 792 | O143: 915 | P143: 1021 | Q143: 1126
C145: ="Utility Allowances for "&TRIM(F139)&" (monthly)" -> Utility Allowances for Other 3 (monthly)
C146: 0 BR | D146: 1 BR | E146: 2 BR | F146: 3 BR | G146: 4 BR | H146: 5 BR
C151: Gross Rents and Utility Allowances for Other Affordable Housing Program #8
C153: Other Affordable Housing Program Name | F153: Other 4 | H153: 0.8 | I153: of AMI (if AMI rents are applicable)
C155: ="Gross Rent Limits for "&TRIM(F153)&" (monthly)" -> Gross Rent Limits for Other 4 (monthly) | L155: 3 | M155: =+L155+1 -> 4 | N155: =+M155+1 -> 5 | O155: =+N155+1 -> 6 | P155: =+O155+1 -> 7 | Q155: =+P155+1 -> 8
C156: 0 BR | D156: 1 BR | E156: 2 BR | F156: 3 BR | G156: 4 BR | H156: 5 BR | L156: 0 BR | M156: 1 BR | N156: 2 BR | O156: 3 BR | P156: 4 BR | Q156: 5 BR
C157: 1408 | D157: 1509 | E157: 1810 | F157: 2092 | G157: 2333 | H157: 2575 | L157: =VLOOKUP($H153,$A$173:$H$185,L155,FALSE) -> 1408 | M157: 1509 | N157: 1810 | O157: 2092 | P157: 2333 | Q157: 2575
C159: ="Utility Allowances for "&TRIM(F153)&" (monthly)" -> Utility Allowances for Other 4 (monthly)
C160: 0 BR | D160: 1 BR | E160: 2 BR | F160: 3 BR | G160: 4 BR | H160: 5 BR
C165: Upon completing this tab, proceed to the Rents and Income tab.
C169: The rows below are working computations for AMI rents
L171: 0.7 | M171: 0.8 | N171: 0.9 | O171: 1 | P171: 1.08 | Q171: 1.16 | R171: 1.24 | S171: 1.32
C172: 0 BR | D172: 1 BR | E172: 2 BR | F172: 3 BR | G172: 4 BR | H172: 5 BR | I172: Percentage of AMI | L172: 1 Person | M172: 2 Person | N172: 3 Person | O172: 4 Person | P172: 5 Person | Q172: 6 Person | R172: 7 Person | S172: 8 Person
A173: =+I173 -> 0.2 | C173: =ROUNDDOWN(L173*0.3/12,0) -> 352 | D173: =ROUNDDOWN((L173+M173)/2*0.3/12,0) -> 377 | E173: =ROUNDDOWN(N173*0.3/12,0) -> 452 | F173: =ROUNDDOWN((P173+O173)/2*0.3/12,0) -> 523 | G173: =ROUNDDOWN(Q173*0.3/12,0) -> 583 | H173: =ROUNDDOWN((R173+S173)/2*0.3/12,0) -> 643 | I173: 0.2 | L173: =+$O173*L$171 -> 14084 | M173: 16096 | N173: 18108 | O173: =+$D$6*I173 -> 20120 | P173: =+$O173*P$171 -> 21729.6 | Q173: 23339.2 | R173: 24948.8 | S173: 26558.4
A174: =+I174 -> 0.25 | C174: 440 | D174: 471 | E174: 565 | F174: 653 | G174: 729 | H174: 804 | I174: =+I173+5% -> 0.25 | L174: 17605 | M174: 20120 | N174: 22635 | O174: 25150 | P174: 27162 | Q174: 29174 | R174: 31186 | S174: 33198
A175: 0.3 | C175: 528 | D175: 565 | E175: 679 | F175: 784 | G175: 875 | H175: 965 | I175: 0.3 | L175: 21126 | M175: 24144 | N175: 27162 | O175: 30180 | P175: 32594.4 | Q175: 35008.8 | R175: 37423.2 | S175: 39837.6
A176: 0.35 | C176: 616 | D176: 660 | E176: 792 | F176: 915 | G176: 1021 | H176: 1126 | I176: 0.35 | L176: 24647 | M176: 28168 | N176: 31689 | O176: 35210 | P176: 38026.8 | Q176: 40843.6 | R176: 43660.4 | S176: 46477.2
A177: 0.4 | C177: 704 | D177: 754 | E177: 905 | F177: 1046 | G177: 1166 | H177: 1287 | I177: 0.4 | L177: 28168 | M177: 32192 | N177: 36216 | O177: 40240 | P177: 43459.2 | Q177: 46678.4 | R177: 49897.6 | S177: 53116.8
A178: 0.45 | C178: 792 | D178: 848 | E178: 1018 | F178: 1177 | G178: 1312 | H178: 1448 | I178: 0.45 | L178: 31689 | M178: 36216 | N178: 40743 | O178: 45270 | P178: 48891.6 | Q178: 52513.2 | R178: 56134.8 | S178: 59756.4
A179: 0.5 | C179: 880 | D179: 943 | E179: 1131 | F179: 1307 | G179: 1458 | H179: 1609 | I179: 0.5 | L179: 35210 | M179: 40240 | N179: 45270 | O179: 50300 | P179: 54324 | Q179: 58348 | R179: 62372 | S179: 66396
A180: 0.55 | C180: 968 | D180: 1037 | E180: 1244 | F180: 1438 | G180: 1604 | H180: 1770 | I180: 0.55 | L180: 38731 | M180: 44264 | N180: 49797 | O180: 55330 | P180: 59756.4 | Q180: 64182.8 | R180: 68609.2 | S180: 73035.6
A181: 0.6 | C181: 1056 | D181: 1131 | E181: 1358 | F181: 1569 | G181: 1750 | H181: 1931 | I181: 0.6 | L181: 42252 | M181: 48288 | N181: 54324 | O181: 60360 | P181: 65188.8 | Q181: 70017.6 | R181: 74846.4 | S181: 79675.2
A182: 0.8 | C182: 1408 | D182: 1509 | E182: 1810 | F182: 2092 | G182: 2333 | H182: 2575 | I182: 0.8 | L182: 56336 | M182: 64384 | N182: 72432 | O182: 80480 | P182: 86918.4 | Q182: 93356.8 | R182: 99795.2 | S182: 106233.6
A183: 1 | C183: 1760 | D183: 1886 | E183: 2263 | F183: 2615 | G183: 2917 | H183: 3219 | I183: 1 | L183: 70420 | M183: 80480 | N183: 90540 | O183: 100600 | P183: 108648 | Q183: 116696 | R183: 124744 | S183: 132792
A184: 1.2 | C184: 2112 | D184: 2263 | E184: 2716 | F184: 3138 | G184: 3500 | H184: 3863 | I184: 1.2 | L184: 84504 | M184: 96576 | N184: 108648 | O184: 120720 | P184: 130377.6 | Q184: 140035.2 | R184: 149692.8 | S184: 159350.4
A185: N/A | I185: N/A

Sheet Rents and Income
A1: ? | C1: Rents and Income | F1: Enter data in green cells only | L1: =Requirements!C4 -> Project Name - : 0 Units
C3: Use this worksheet to enter (or to modify) the unit mix, the mix of Low and High HOME units, the mix of LIHTC and CDBG and market rate units, and square footage for each unit type. Also use this worksheet to select the maximum rents that will be underwritten for each unit type, and to select utility allowances. Also use this worksheet to enter any 'other revenue' such as commercial revenue or tenant late fees. Information for number of units, Low HOME units, High HOME units, LIHTC units, CDBG units, market rate units, square footage, underwritten rents, underwritten utility allowances, and underwritten other revenue will carry forward from this worksheet into the rest of the underwriting template.
C5: ? | D5: ? | E5: ? | F5: ? | G5: ? | H5: ? | J5: ? | M5: Are these units: | R5: ? | T5: ? | U5: ?
A6: ? | C6: Unit Type | D6: Underwritten Rent Level | E6: Number of Units | F6: Square Footage per Unit | G6: Gross Rent, per unit, per month | H6: Monthly Utility Allowance | I6: Net Rent After Utilities, per unit, per month | J6: Within Rent Limit? | L6: # of BRs? | M6: Low HOME? | N6: High HOME? | O6: Market Rate (no rent limits)? | P6: LIHTC? | Q6: CDBG? | R6: Which Rent Should Be Underwritten (which limit is most restrictive)? | S6: Gross Rent | T6: Underwrite What % of the Maximum Rents? | U6: Use Which Utility Allowance? | V6: Utility Allowance | X6: Restricted Rents for HOME Units | Y6: Restricted Rents for Other Affordable Units | Z6: Rents for Market Units | AA6: Market Rents for HOME Units | AB6: Market Rents for Other Affordable Units | AC6: Square Feet for LIHTC Units | AD6: Square Feet for HOME Units | AE6: HOME Funding Limit (per unit) | AF6: HOME Funding Limit (HOME Assisted Units)
S7: =IF(OR(L7="",L7<0,L7>5),"",VLOOKUP(R7,Requirements!$K$17:$Q$27,L7+2,FALSE)) ->  | T7: 1 | V7: =IF(OR(L7="",L7<0,L7>5),"",VLOOKUP(U7,Requirements!$K$35:$Q$44,L7+2,FALSE)) ->  | X7: =IF(OR(M7="Yes",N7="Yes"),I7,0) -> 0 | Y7: =IF(E7=0,0,I7-X7-Z7) -> 0 | Z7: =IF(O7="Yes",I7,0) -> 0 | AA7: =IF(OR(E7=0,X7=0),0,INDEX(Requirements!$L$19:$Q$19,'Rents and Income'!L7+1)) -> 0 | AB7: =IF(OR(E7=0,Y7=0),0,INDEX(Requirements!$L$19:$Q$19,'Rents and Income'!L7+1)) -> 0 | AC7: =IF(P7="Yes",E7*F7,0) -> 0 | AD7: =IF(OR(M7="Yes",N7="Yes"),E7*F7,0) -> 0 | AE7: =IF(OR($M7="Yes",$N7="Yes"),INDEX(Requirements!$E$11:$E$16,L7+1),0) -> 0 | AF7: =IF(OR($M7="Yes",$N7="Yes"),AE7*E7,0) -> 0 | AH7: =IF(AND(M7="Yes",N7="Yes"),"ERROR: Units cannot be both Low HOME AND High HOME","") ->  | AI7: =IF(OR($R7=0,$S7=0,$T7=0,$T7=""),"",TEXT($T7,"0%")&" of "&TRIM($R7)) -> 
S8: =IF(OR(L8="",L8<0,L8>5),"",VLOOKUP(R8,Requirements!$K$17:$Q$27,L8+2,FALSE)) ->  | T8: 1 | V8: =IF(OR(L8="",L8<0,L8>5),"",VLOOKUP(U8,Requirements!$K$35:$Q$44,L8+2,FALSE)) ->  | X8: 0 | Y8: 0 | Z8: =IF(O8="Yes",I8,0) -> 0 | AA8: =IF(OR(E8=0,X8=0),0,INDEX(Requirements!$L$19:$Q$19,'Rents and Income'!L8+1)) -> 0 | AB8: =IF(OR(E8=0,Y8=0),0,INDEX(Requirements!$L$19:$Q$19,'Rents and Income'!L8+1)) -> 0 | AC8: =IF(P8="Yes",E8*F8,0) -> 0 | AD8: =IF(OR(M8="Yes",N8="Yes"),E8*F8,0) -> 0 | AE8: =IF(OR(M8="Yes",N8="Yes"),INDEX(Requirements!$E$11:$E$16,L8+1),0) -> 0 | AF8: =IF(OR($M8="Yes",$N8="Yes"),AE8*E8,0) -> 0 | AI8: =IF(OR($R8=0,$S8=0,$T8=0,$T8=""),"",TEXT($T8,"0%")&" of "&TRIM($R8)) -> 
S9: =IF(OR(L9="",L9<0,L9>5),"",VLOOKUP(R9,Requirements!$K$17:$Q$27,L9+2,FALSE)) ->  | T9: 1 | V9: =IF(OR(L9="",L9<0,L9>5),"",VLOOKUP(U9,Requirements!$K$35:$Q$44,L9+2,FALSE)) ->  | X9: 0 | Y9: 0 | Z9: 0 | AA9: =IF(OR(E9=0,X9=0),0,INDEX(Requirements!$L$19:$Q$19,'Rents and Income'!L9+1)) -> 0 | AB9: =IF(OR(E9=0,Y9=0),0,INDEX(Requirements!$L$19:$Q$19,'Rents and Income'!L9+1)) -> 0 | AC9: 0 | AD9: 0 | AE9: =IF(OR(M9="Yes",N9="Yes"),INDEX(Requirements!$E$11:$E$16,L9+1),0) -> 0 | AF9: 0
C10: =IF(OR(E10=0,E10=""),"",L10&" BR "&IF(M10="Yes","Low HOME ","")&IF(N10="Yes","High HOME ","")&IF(O10="Yes","Market ","")&IF(P10="Yes","LIHTC ","")&IF(Q10="Yes","CDBG ","")) ->  | D10: =+AI10 ->  | G10: =IF(E10=0,"",ROUND(S10*T10,0)) ->  | H10: =IF(E10=0,"",V10) ->  | I10: =IF(E10=0,"",G10-H10) ->  | J10: =IF(E10=0,"",IF(G10>S10,"No","Yes")) ->  | S10: =IF(OR(L10="",L10<0,L10>5),"",VLOOKUP(R10,Requirements!$K$17:$Q$27,L10+2,FALSE)) ->  | T10: 1 | V10: =IF(OR(L10="",L10<0,L10>5),"",VLOOKUP(U10,Requirements!$K$35:$Q$44,L10+2,FALSE)) ->  | X10: 0 | Y10: 0 | Z10: 0 | AA10: =IF(OR(E10=0,X10=0),0,INDEX(Requirements!$L$19:$Q$19,'Rents and Income'!L10+1)) -> 0 | AB10: =IF(OR(E10=0,Y10=0),0,INDEX(Requirements!$L$19:$Q$19,'Rents and Income'!L10+1)) -> 0 | AC10: 0 | AD10: 0 | AE10: =IF(OR(M10="Yes",N10="Yes"),INDEX(Requirements!$E$11:$E$16,L10+1),0) -> 0 | AF10: 0
S11: =IF(OR(L11="",L11<0,L11>5),"",VLOOKUP(R11,Requirements!$K$17:$Q$27,L11+2,FALSE)) ->  | T11: 1 | V11: =IF(OR(L11="",L11<0,L11>5),"",VLOOKUP(U11,Requirements!$K$35:$Q$44,L11+2,FALSE)) ->  | X11: 0 | Y11: 0 | Z11: 0 | AA11: =IF(OR(E11=0,X11=0),0,INDEX(Requirements!$L$19:$Q$19,'Rents and Income'!L11+1)) -> 0 | AB11: =IF(OR(E11=0,Y11=0),0,INDEX(Requirements!$L$19:$Q$19,'Rents and Income'!L11+1)) -> 0 | AC11: 0 | AD11: 0 | AE11: =IF(OR(M11="Yes",N11="Yes"),INDEX(Requirements!$E$11:$E$16,L11+1),0) -> 0 | AF11: 0
S12: =IF(OR(L12="",L12<0,L12>5),"",VLOOKUP(R12,Requirements!$K$17:$Q$27,L12+2,FALSE)) ->  | T12: 1 | V12: =IF(OR(L12="",L12<0,L12>5),"",VLOOKUP(U12,Requirements!$K$35:$Q$44,L12+2,FALSE)) ->  | X12: 0 | Y12: 0 | Z12: 0 | AA12: =IF(OR(E12=0,X12=0),0,INDEX(Requirements!$L$19:$Q$19,'Rents and Income'!L12+1)) -> 0 | AB12: =IF(OR(E12=0,Y12=0),0,INDEX(Requirements!$L$19:$Q$19,'Rents and Income'!L12+1)) -> 0 | AC12: 0 | AD12: 0 | AE12: =IF(OR(M12="Yes",N12="Yes"),INDEX(Requirements!$E$11:$E$16,L12+1),0) -> 0 | AF12: 0
S13: =IF(OR(L13="",L13<0,L13>5),"",VLOOKUP(R13,Requirements!$K$17:$Q$27,L13+2,FALSE)) ->  | T13: 1 | V13: =IF(OR(L13="",L13<0,L13>5),"",VLOOKUP(U13,Requirements!$K$35:$Q$44,L13+2,FALSE)) ->  | X13: 0 | Y13: 0 | Z13: 0 | AA13: =IF(OR(E13=0,X13=0),0,INDEX(Requirements!$L$19:$Q$19,'Rents and Income'!L13+1)) -> 0 | AB13: =IF(OR(E13=0,Y13=0),0,INDEX(Requirements!$L$19:$Q$19,'Rents and Income'!L13+1)) -> 0 | AC13: 0 | AD13: 0 | AE13: =IF(OR(M13="Yes",N13="Yes"),INDEX(Requirements!$E$11:$E$16,L13+1),0) -> 0 | AF13: 0
S14: =IF(OR(L14="",L14<0,L14>5),"",VLOOKUP(R14,Requirements!$K$17:$Q$27,L14+2,FALSE)) ->  | T14: 1 | V14: =IF(OR(L14="",L14<0,L14>5),"",VLOOKUP(U14,Requirements!$K$35:$Q$44,L14+2,FALSE)) ->  | X14: 0 | Y14: 0 | Z14: 0 | AA14: =IF(OR(E14=0,X14=0),0,INDEX(Requirements!$L$19:$Q$19,'Rents and Income'!L14+1)) -> 0 | AB14: =IF(OR(E14=0,Y14=0),0,INDEX(Requirements!$L$19:$Q$19,'Rents and Income'!L14+1)) -> 0 | AC14: 0 | AD14: 0 | AE14: =IF(OR(M14="Yes",N14="Yes"),INDEX(Requirements!$E$11:$E$16,L14+1),0) -> 0 | AF14: 0
S15: =IF(OR(L15="",L15<0,L15>5),"",VLOOKUP(R15,Requirements!$K$17:$Q$27,L15+2,FALSE)) ->  | T15: 1 | V15: =IF(OR(L15="",L15<0,L15>5),"",VLOOKUP(U15,Requirements!$K$35:$Q$44,L15+2,FALSE)) ->  | X15: 0 | Y15: 0 | Z15: 0 | AA15: =IF(OR(E15=0,X15=0),0,INDEX(Requirements!$L$19:$Q$19,'Rents and Income'!L15+1)) -> 0 | AB15: =IF(OR(E15=0,Y15=0),0,INDEX(Requirements!$L$19:$Q$19,'Rents and Income'!L15+1)) -> 0 | AC15: 0 | AD15: 0 | AE15: =IF(OR(M15="Yes",N15="Yes"),INDEX(Requirements!$E$11:$E$16,L15+1),0) -> 0 | AF15: 0
S16: =IF(OR(L16="",L16<0,L16>5),"",VLOOKUP(R16,Requirements!$K$17:$Q$27,L16+2,FALSE)) ->  | T16: 1 | V16: =IF(OR(L16="",L16<0,L16>5),"",VLOOKUP(U16,Requirements!$K$35:$Q$44,L16+2,FALSE)) ->  | X16: 0 | Y16: 0 | Z16: 0 | AA16: =IF(OR(E16=0,X16=0),0,INDEX(Requirements!$L$19:$Q$19,'Rents and Income'!L16+1)) -> 0 | AB16: =IF(OR(E16=0,Y16=0),0,INDEX(Requirements!$L$19:$Q$19,'Rents and Income'!L16+1)) -> 0 | AC16: 0 | AD16: 0 | AE16: =IF(OR(M16="Yes",N16="Yes"),INDEX(Requirements!$E$11:$E$16,L16+1),0) -> 0 | AF16: 0
S17: =IF(OR(L17="",L17<0,L17>5),"",VLOOKUP(R17,Requirements!$K$17:$Q$27,L17+2,FALSE)) ->  | T17: 1 | V17: =IF(OR(L17="",L17<0,L17>5),"",VLOOKUP(U17,Requirements!$K$35:$Q$44,L17+2,FALSE)) ->  | X17: 0 | Y17: 0 | Z17: 0 | AA17: =IF(OR(E17=0,X17=0),0,INDEX(Requirements!$L$19:$Q$19,'Rents and Income'!L17+1)) -> 0 | AB17: =IF(OR(E17=0,Y17=0),0,INDEX(Requirements!$L$19:$Q$19,'Rents and Income'!L17+1)) -> 0 | AC17: 0 | AD17: 0 | AE17: =IF(OR(M17="Yes",N17="Yes"),INDEX(Requirements!$E$11:$E$16,L17+1),0) -> 0 | AF17: 0
S18: =IF(OR(L18="",L18<0,L18>5),"",VLOOKUP(R18,Requirements!$K$17:$Q$27,L18+2,FALSE)) ->  | T18: 1 | V18: =IF(OR(L18="",L18<0,L18>5),"",VLOOKUP(U18,Requirements!$K$35:$Q$44,L18+2,FALSE)) ->  | X18: 0 | Y18: 0 | Z18: 0 | AA18: =IF(OR(E18=0,X18=0),0,INDEX(Requirements!$L$19:$Q$19,'Rents and Income'!L18+1)) -> 0 | AB18: =IF(OR(E18=0,Y18=0),0,INDEX(Requirements!$L$19:$Q$19,'Rents and Income'!L18+1)) -> 0 | AC18: 0 | AD18: 0 | AE18: =IF(OR(M18="Yes",N18="Yes"),INDEX(Requirements!$E$11:$E$16,L18+1),0) -> 0 | AF18: 0
S19: =IF(OR(L19="",L19<0,L19>5),"",VLOOKUP(R19,Requirements!$K$17:$Q$27,L19+2,FALSE)) ->  | T19: 1 | V19: =IF(OR(L19="",L19<0,L19>5),"",VLOOKUP(U19,Requirements!$K$35:$Q$44,L19+2,FALSE)) ->  | X19: 0 | Y19: 0 | Z19: 0 | AA19: =IF(OR(E19=0,X19=0),0,INDEX(Requirements!$L$19:$Q$19,'Rents and Income'!L19+1)) -> 0 | AB19: =IF(OR(E19=0,Y19=0),0,INDEX(Requirements!$L$19:$Q$19,'Rents and Income'!L19+1)) -> 0 | AC19: 0 | AD19: 0 | AE19: =IF(OR(M19="Yes",N19="Yes"),INDEX(Requirements!$E$11:$E$16,L19+1),0) -> 0 | AF19: 0
S20: =IF(OR(L20="",L20<0,L20>5),"",VLOOKUP(R20,Requirements!$K$17:$Q$27,L20+2,FALSE)) ->  | T20: 1 | V20: =IF(OR(L20="",L20<0,L20>5),"",VLOOKUP(U20,Requirements!$K$35:$Q$44,L20+2,FALSE)) ->  | X20: 0 | Y20: 0 | Z20: 0 | AA20: =IF(OR(E20=0,X20=0),0,INDEX(Requirements!$L$19:$Q$19,'Rents and Income'!L20+1)) -> 0 | AB20: =IF(OR(E20=0,Y20=0),0,INDEX(Requirements!$L$19:$Q$19,'Rents and Income'!L20+1)) -> 0 | AC20: 0 | AD20: 0 | AE20: =IF(OR(M20="Yes",N20="Yes"),INDEX(Requirements!$E$11:$E$16,L20+1),0) -> 0 | AF20: 0
S21: =IF(OR(L21="",L21<0,L21>5),"",VLOOKUP(R21,Requirements!$K$17:$Q$27,L21+2,FALSE)) ->  | T21: 1 | V21: =IF(OR(L21="",L21<0,L21>5),"",VLOOKUP(U21,Requirements!$K$35:$Q$44,L21+2,FALSE)) ->  | X21: 0 | Y21: 0 | Z21: 0 | AA21: =IF(OR(E21=0,X21=0),0,INDEX(Requirements!$L$19:$Q$19,'Rents and Income'!L21+1)) -> 0 | AB21: =IF(OR(E21=0,Y21=0),0,INDEX(Requirements!$L$19:$Q$19,'Rents and Income'!L21+1)) -> 0 | AC21: 0 | AD21: 0 | AE21: =IF(OR(M21="Yes",N21="Yes"),INDEX(Requirements!$E$11:$E$16,L21+1),0) -> 0 | AF21: 0
S22: =IF(OR(L22="",L22<0,L22>5),"",VLOOKUP(R22,Requirements!$K$17:$Q$27,L22+2,FALSE)) ->  | T22: 1 | V22: =IF(OR(L22="",L22<0,L22>5),"",VLOOKUP(U22,Requirements!$K$35:$Q$44,L22+2,FALSE)) ->  | X22: 0 | Y22: 0 | Z22: 0 | AA22: =IF(OR(E22=0,X22=0),0,INDEX(Requirements!$L$19:$Q$19,'Rents and Income'!L22+1)) -> 0 | AB22: =IF(OR(E22=0,Y22=0),0,INDEX(Requirements!$L$19:$Q$19,'Rents and Income'!L22+1)) -> 0 | AC22: 0 | AD22: 0 | AE22: =IF(OR(M22="Yes",N22="Yes"),INDEX(Requirements!$E$11:$E$16,L22+1),0) -> 0 | AF22: 0
S23: =IF(OR(L23="",L23<0,L23>5),"",VLOOKUP(R23,Requirements!$K$17:$Q$27,L23+2,FALSE)) ->  | T23: 1 | V23: =IF(OR(L23="",L23<0,L23>5),"",VLOOKUP(U23,Requirements!$K$35:$Q$44,L23+2,FALSE)) ->  | X23: 0 | Y23: 0 | Z23: 0 | AA23: =IF(OR(E23=0,X23=0),0,INDEX(Requirements!$L$19:$Q$19,'Rents and Income'!L23+1)) -> 0 | AB23: =IF(OR(E23=0,Y23=0),0,INDEX(Requirements!$L$19:$Q$19,'Rents and Income'!L23+1)) -> 0 | AC23: 0 | AD23: 0 | AE23: =IF(OR(M23="Yes",N23="Yes"),INDEX(Requirements!$E$11:$E$16,L23+1),0) -> 0 | AF23: 0
S24: =IF(OR(L24="",L24<0,L24>5),"",VLOOKUP(R24,Requirements!$K$17:$Q$27,L24+2,FALSE)) ->  | T24: 1 | V24: =IF(OR(L24="",L24<0,L24>5),"",VLOOKUP(U24,Requirements!$K$35:$Q$44,L24+2,FALSE)) ->  | X24: 0 | Y24: 0 | Z24: 0 | AA24: =IF(OR(E24=0,X24=0),0,INDEX(Requirements!$L$19:$Q$19,'Rents and Income'!L24+1)) -> 0 | AB24: =IF(OR(E24=0,Y24=0),0,INDEX(Requirements!$L$19:$Q$19,'Rents and Income'!L24+1)) -> 0 | AC24: 0 | AD24: 0 | AE24: =IF(OR(M24="Yes",N24="Yes"),INDEX(Requirements!$E$11:$E$16,L24+1),0) -> 0 | AF24: 0
S25: =IF(OR(L25="",L25<0,L25>5),"",VLOOKUP(R25,Requirements!$K$17:$Q$27,L25+2,FALSE)) ->  | T25: 1 | V25: =IF(OR(L25="",L25<0,L25>5),"",VLOOKUP(U25,Requirements!$K$35:$Q$44,L25+2,FALSE)) ->  | X25: 0 | Y25: 0 | Z25: 0 | AA25: =IF(OR(E25=0,X25=0),0,INDEX(Requirements!$L$19:$Q$19,'Rents and Income'!L25+1)) -> 0 | AB25: =IF(OR(E25=0,Y25=0),0,INDEX(Requirements!$L$19:$Q$19,'Rents and Income'!L25+1)) -> 0 | AC25: 0 | AD25: 0 | AE25: =IF(OR(M25="Yes",N25="Yes"),INDEX(Requirements!$E$11:$E$16,L25+1),0) -> 0 | AF25: 0
S26: =IF(OR(L26="",L26<0,L26>5),"",VLOOKUP(R26,Requirements!$K$17:$Q$27,L26+2,FALSE)) ->  | T26: 1 | V26: =IF(OR(L26="",L26<0,L26>5),"",VLOOKUP(U26,Requirements!$K$35:$Q$44,L26+2,FALSE)) ->  | X26: 0 | Y26: 0 | Z26: 0 | AA26: =IF(OR(E26=0,X26=0),0,INDEX(Requirements!$L$19:$Q$19,'Rents and Income'!L26+1)) -> 0 | AB26: =IF(OR(E26=0,Y26=0),0,INDEX(Requirements!$L$19:$Q$19,'Rents and Income'!L26+1)) -> 0 | AC26: 0 | AD26: 0 | AE26: =IF(OR(M26="Yes",N26="Yes"),INDEX(Requirements!$E$11:$E$16,L26+1),0) -> 0 | AF26: 0
S27: =IF(OR(L27="",L27<0,L27>5),"",VLOOKUP(R27,Requirements!$K$17:$Q$27,L27+2,FALSE)) ->  | T27: 1 | V27: =IF(OR(L27="",L27<0,L27>5),"",VLOOKUP(U27,Requirements!$K$35:$Q$44,L27+2,FALSE)) ->  | X27: 0 | Y27: 0 | Z27: 0 | AA27: =IF(OR(E27=0,X27=0),0,INDEX(Requirements!$L$19:$Q$19,'Rents and Income'!L27+1)) -> 0 | AB27: =IF(OR(E27=0,Y27=0),0,INDEX(Requirements!$L$19:$Q$19,'Rents and Income'!L27+1)) -> 0 | AC27: 0 | AD27: 0 | AE27: =IF(OR(M27="Yes",N27="Yes"),INDEX(Requirements!$E$11:$E$16,L27+1),0) -> 0 | AF27: 0
S28: =IF(OR(L28="",L28<0,L28>5),"",VLOOKUP(R28,Requirements!$K$17:$Q$27,L28+2,FALSE)) ->  | T28: 1 | V28: =IF(OR(L28="",L28<0,L28>5),"",VLOOKUP(U28,Requirements!$K$35:$Q$44,L28+2,FALSE)) ->  | X28: 0 | Y28: 0 | Z28: 0 | AA28: =IF(OR(E28=0,X28=0),0,INDEX(Requirements!$L$19:$Q$19,'Rents and Income'!L28+1)) -> 0 | AB28: =IF(OR(E28=0,Y28=0),0,INDEX(Requirements!$L$19:$Q$19,'Rents and Income'!L28+1)) -> 0 | AC28: 0 | AD28: 0 | AE28: =IF(OR(M28="Yes",N28="Yes"),INDEX(Requirements!$E$11:$E$16,L28+1),0) -> 0 | AF28: 0
S29: =IF(OR(L29="",L29<0,L29>5),"",VLOOKUP(R29,Requirements!$K$17:$Q$27,L29+2,FALSE)) ->  | T29: =IF(E29=0,"",IF(OR($T$7="",$T$7=100%),100%,$T$7)) ->  | V29: =IF(OR(L29="",L29<0,L29>5),"",VLOOKUP(U29,Requirements!$K$35:$Q$44,L29+2,FALSE)) ->  | X29: 0 | Y29: 0 | Z29: 0 | AA29: =IF(OR(E29=0,X29=0),0,INDEX(Requirements!$L$19:$Q$19,'Rents and Income'!L29+1)) -> 0 | AB29: =IF(OR(E29=0,Y29=0),0,INDEX(Requirements!$L$19:$Q$19,'Rents and Income'!L29+1)) -> 0 | AC29: 0 | AD29: 0 | AE29: =IF(OR(M29="Yes",N29="Yes"),INDEX(Requirements!$E$11:$E$16,L29+1),0) -> 0 | AF29: 0
S30: =IF(OR(L30="",L30<0,L30>5),"",VLOOKUP(R30,Requirements!$K$17:$Q$27,L30+2,FALSE)) ->  | V30: =IF(OR(L30="",L30<0,L30>5),"",VLOOKUP(U30,Requirements!$K$35:$Q$44,L30+2,FALSE)) ->  | X30: 0 | Y30: 0 | Z30: 0 | AA30: =IF(OR(E30=0,X30=0),0,INDEX(Requirements!$L$19:$Q$19,'Rents and Income'!L30+1)) -> 0 | AB30: =IF(OR(E30=0,Y30=0),0,INDEX(Requirements!$L$19:$Q$19,'Rents and Income'!L30+1)) -> 0 | AC30: 0 | AD30: 0 | AE30: =IF(OR(M30="Yes",N30="Yes"),INDEX(Requirements!$E$11:$E$16,L30+1),0) -> 0 | AF30: 0
C31: Total | E31: =SUM(E7:E30) -> 0 | F31: =SUMPRODUCT($E$7:$E$30,F7:F30) -> 0 | G31: NA | I31: =SUMPRODUCT($E$7:$E$30,I7:I30) -> 0 | M31: =SUMIF(M7:M30,"Yes",$E$7:$E$30) -> 0 | N31: =SUMIF(N7:N30,"Yes",$E$7:$E$30) -> 0 | O31: =SUMIF(O7:O30,"Yes",$E$7:$E$30) -> 0 | P31: =SUMIF(P7:P30,"Yes",$E$7:$E$30) -> 0 | Q31: =SUMIF(Q7:Q30,"Yes",$E$7:$E$30) -> 0 | R31: Unit count | X31: =SUMPRODUCT($E$7:$E$30,X7:X30) -> 0 | Y31: =SUMPRODUCT($E$7:$E$30,Y7:Y30) -> 0 | Z31: =SUMPRODUCT($E$7:$E$30,Z7:Z30) -> 0 | AA31: =SUMPRODUCT($E$7:$E$30,AA7:AA30) -> 0 | AB31: =SUMPRODUCT($E$7:$E$30,AB7:AB30) -> 0 | AC31: =SUM(AC7:AC30) -> 0 | AD31: =SUM(AD7:AD30) -> 0 | AF31: =SUM(AF7:AF30) -> 0
C32: Annual Gross Potential Rent | I32: =+I31*12 -> 0 | M32: ? | N32: ? | P32: ? | AF32: =IF((M31+N31)=0,0,AF31/(M31+N31)) -> 0
C36: Rent Loss (Vacancy + Bad Debt + Concessions)
C37: Rent Loss Rates (As % of GPR) | E37: HOME Units | F37: Market Rate Units | G37: Other Affordable Units
A38: ? | C38: Rent Loss Year 1 (Lease-Up) | E38: 0.2
A39: ? | C39: Stabilized Rent Loss Rate (after Year 1) | E39: 0.07
A41: ? | C41: Other Revenue
C42: Laundry and Other | F42: per month
C43: Parking | F43: per month
C44: Other - Describe | F44: per month
C45: Other - Describe | F45: per month
C46: Other - Describe | F46: per month
F47: per month
C48: Total Other Revenue | E48: =SUM(E41:E47) -> 0 | F48: per month
C53: Upon completing this tab, proceed to the Development Costs tab.

Sheet Development Costs
C1: Development Costs | D1: Enter data in green cells only
C2: =Requirements!C4 -> Project Name - : 0 Units
A3: ? | C3: Cost | D3: Amount | E3: Cost Per Unit | F3: Cost Per Square Foot | G3: Comment | I3: LIHTC Acquisition Basis | J3: LIHTC Construction Basis | K3: Costs Outside Basis
A4: ? | C4: Acquisition Costs
C5: Land | E5: =IF(D5=0,"need data",IF('Rents and Income'!$E$31=0,0,D5/'Rents and Income'!$E$31)) -> need data | F5: =IF(ISERROR(IF(D5=0,"need data",D5/SUMPRODUCT('Rents and Income'!$E$7:$E$30*'Rents and Income'!$F$7:$F$30))),0,IF(D5=0,"need data",D5/SUMPRODUCT('Rents and Income'!$E$7:$E$30*'Rents and Income'!$F$7:$F$30))) -> need data | I5: 0 | J5: 0 | K5: =+D5-I5-J5 -> 0 | M5: ?
C6: Existing Structures | E6: =IF(D6=0,"need data",IF('Rents and Income'!$E$31=0,0,D6/'Rents and Income'!$E$31)) -> need data | F6: =IF(ISERROR(IF(D6=0,"need data",D6/SUMPRODUCT('Rents and Income'!$E$7:$E$30*'Rents and Income'!$F$7:$F$30))),0,IF(D6=0,"need data",D6/SUMPRODUCT('Rents and Income'!$E$7:$E$30*'Rents and Income'!$F$7:$F$30))) -> need data | I6: =+D6 -> 0 | J6: 0 | K6: =+D6-I6-J6 -> 0 | M6: ?
A7: ? | E7: =IF(D7=0,"need data",IF('Rents and Income'!$E$31=0,0,D7/'Rents and Income'!$E$31)) -> need data | F7: =IF(ISERROR(IF(D7=0,"need data",D7/SUMPRODUCT('Rents and Income'!$E$7:$E$30*'Rents and Income'!$F$7:$F$30))),0,IF(D7=0,"need data",D7/SUMPRODUCT('Rents and Income'!$E$7:$E$30*'Rents and Income'!$F$7:$F$30))) -> need data | I7: =+D7 -> 0 | J7: 0 | K7: =+D7-I7-J7 -> 0
A8: ? | C8: Site Work Costs (not included in construction contract)
A9: ? | C9: Demolition/Clearance | E9: =IF(D9=0,"need data",IF('Rents and Income'!$E$31=0,0,D9/'Rents and Income'!$E$31)) -> need data | F9: =IF(ISERROR(IF(D9=0,"need data",D9/SUMPRODUCT('Rents and Income'!$E$7:$E$30*'Rents and Income'!$F$7:$F$30))),0,IF(D9=0,"need data",D9/SUMPRODUCT('Rents and Income'!$E$7:$E$30*'Rents and Income'!$F$7:$F$30))) -> need data | I9: 0 | J9: 0 | K9: =+D9-I9-J9 -> 0 | M9: ?
C10: Site Remediation | E10: =IF(D10=0,"need data",IF('Rents and Income'!$E$31=0,0,D10/'Rents and Income'!$E$31)) -> need data | F10: =IF(ISERROR(IF(D10=0,"need data",D10/SUMPRODUCT('Rents and Income'!$E$7:$E$30*'Rents and Income'!$F$7:$F$30))),0,IF(D10=0,"need data",D10/SUMPRODUCT('Rents and Income'!$E$7:$E$30*'Rents and Income'!$F$7:$F$30))) -> need data | I10: 0 | J10: =+D10 -> 0 | K10: 0
A11: ? | C11: Off-Site Costs (these are not HOME eligible) | I11: 0 | J11: 0 | K11: 0
A12: ? | C12: Improvements | E12: =IF(D12=0,"need data",IF('Rents and Income'!$E$31=0,0,D12/'Rents and Income'!$E$31)) -> need data | F12: =IF(ISERROR(IF(D12=0,"need data",D12/SUMPRODUCT('Rents and Income'!$E$7:$E$30*'Rents and Income'!$F$7:$F$30))),0,IF(D12=0,"need data",D12/SUMPRODUCT('Rents and Income'!$E$7:$E$30*'Rents and Income'!$F$7:$F$30))) -> need data | I12: 0 | J12: 0 | K12: 0 | M12: ?
A13: ? | C13: Construction Equipment (HOME eligible portion) | E13: =IF(D13=0,"need data",IF('Rents and Income'!$E$31=0,0,D13/'Rents and Income'!$E$31)) -> need data | F13: =IF(ISERROR(IF(D13=0,"need data",D13/SUMPRODUCT('Rents and Income'!$E$7:$E$30*'Rents and Income'!$F$7:$F$30))),0,IF(D13=0,"need data",D13/SUMPRODUCT('Rents and Income'!$E$7:$E$30*'Rents and Income'!$F$7:$F$30))) -> need data | I13: 0 | J13: 0 | K13: 0
C14: Construction Equipment (non-HOME eligible portion) | E14: =IF(D14=0,"need data",IF('Rents and Income'!$E$31=0,0,D14/'Rents and Income'!$E$31)) -> need data | F14: =IF(ISERROR(IF(D14=0,"need data",D14/SUMPRODUCT('Rents and Income'!$E$7:$E$30*'Rents and Income'!$F$7:$F$30))),0,IF(D14=0,"need data",D14/SUMPRODUCT('Rents and Income'!$E$7:$E$30*'Rents and Income'!$F$7:$F$30))) -> need data | I14: 0 | J14: 0 | K14: 0
A15: ? | E15: =IF(D15=0,"need data",IF('Rents and Income'!$E$31=0,0,D15/'Rents and Income'!$E$31)) -> need data | F15: =IF(ISERROR(IF(D15=0,"need data",D15/SUMPRODUCT('Rents and Income'!$E$7:$E$30*'Rents and Income'!$F$7:$F$30))),0,IF(D15=0,"need data",D15/SUMPRODUCT('Rents and Income'!$E$7:$E$30*'Rents and Income'!$F$7:$F$30))) -> need data | I15: 0 | J15: 0 | K15: 0
A16: ? | E16: =IF(D16=0,"need data",IF('Rents and Income'!$E$31=0,0,D16/'Rents and Income'!$E$31)) -> need data | F16: =IF(ISERROR(IF(D16=0,"need data",D16/SUMPRODUCT('Rents and Income'!$E$7:$E$30*'Rents and Income'!$F$7:$F$30))),0,IF(D16=0,"need data",D16/SUMPRODUCT('Rents and Income'!$E$7:$E$30*'Rents and Income'!$F$7:$F$30))) -> need data | I16: 0 | J16: 0 | K16: 0
A17: ? | C17: Construction / Rehabilitation Costs (construction contract costs)
A18: ? | C18: Site Work Included in Construction Contract | E18: =IF(D18=0,"need data",IF('Rents and Income'!$E$31=0,0,D18/'Rents and Income'!$E$31)) -> need data | F18: =IF(ISERROR(IF(D18=0,"need data",D18/SUMPRODUCT('Rents and Income'!$E$7:$E$30*'Rents and Income'!$F$7:$F$30))),0,IF(D18=0,"need data",D18/SUMPRODUCT('Rents and Income'!$E$7:$E$30*'Rents and Income'!$F$7:$F$30))) -> need data | I18: 0 | J18: =+D18 -> 0 | K18: =+D18-I18-J18 -> 0
A19: ? | C19: Construction Equipment (HOME eligible portion) | E19: =IF(D19=0,"need data",IF('Rents and Income'!$E$31=0,0,D19/'Rents and Income'!$E$31)) -> need data | F19: =IF(ISERROR(IF(D19=0,"need data",D19/SUMPRODUCT('Rents and Income'!$E$7:$E$30*'Rents and Income'!$F$7:$F$30))),0,IF(D19=0,"need data",D19/SUMPRODUCT('Rents and Income'!$E$7:$E$30*'Rents and Income'!$F$7:$F$30))) -> need data | I19: 0 | J19: =+D19 -> 0 | K19: =+D19-I19-J19 -> 0
C20: Construction Equipment (non-HOME eligible portion) | E20: =IF(D20=0,"need data",IF('Rents and Income'!$E$31=0,0,D20/'Rents and Income'!$E$31)) -> need data | F20: =IF(ISERROR(IF(D20=0,"need data",D20/SUMPRODUCT('Rents and Income'!$E$7:$E$30*'Rents and Income'!$F$7:$F$30))),0,IF(D20=0,"need data",D20/SUMPRODUCT('Rents and Income'!$E$7:$E$30*'Rents and Income'!$F$7:$F$30))) -> need data | I20: 0 | J20: =+D20 -> 0 | K20: =+D20-I20-J20 -> 0
A21: ? | C21: New Construction | E21: =IF(D21=0,"need data",IF('Rents and Income'!$E$31=0,0,D21/'Rents and Income'!$E$31)) -> need data | F21: =IF(ISERROR(IF(D21=0,"need data",D21/SUMPRODUCT('Rents and Income'!$E$7:$E$30*'Rents and Income'!$F$7:$F$30))),0,IF(D21=0,"need data",D21/SUMPRODUCT('Rents and Income'!$E$7:$E$30*'Rents and Income'!$F$7:$F$30))) -> need data | I21: 0 | J21: 0 | K21: 0
A22: ? | C22: Rehabilitation | E22: =IF(D22=0,"need data",IF('Rents and Income'!$E$31=0,0,D22/'Rents and Income'!$E$31)) -> need data | F22: =IF(ISERROR(IF(D22=0,"need data",D22/SUMPRODUCT('Rents and Income'!$E$7:$E$30*'Rents and Income'!$F$7:$F$30))),0,IF(D22=0,"need data",D22/SUMPRODUCT('Rents and Income'!$E$7:$E$30*'Rents and Income'!$F$7:$F$30))) -> need data | I22: 0 | J22: 0 | K22: 0
A23: ? | C23: General Requirements | E23: =IF(D23=0,"need data",IF('Rents and Income'!$E$31=0,0,D23/'Rents and Income'!$E$31)) -> need data | F23: =IF(ISERROR(IF(D23=0,"need data",D23/SUMPRODUCT('Rents and Income'!$E$7:$E$30*'Rents and Income'!$F$7:$F$30))),0,IF(D23=0,"need data",D23/SUMPRODUCT('Rents and Income'!$E$7:$E$30*'Rents and Income'!$F$7:$F$30))) -> need data | I23: 0 | J23: 0 | K23: 0
A24: ? | C24: Builder’s Overhead | E24: =IF(D24=0,"need data",IF('Rents and Income'!$E$31=0,0,D24/'Rents and Income'!$E$31)) -> need data | F24: =IF(ISERROR(IF(D24=0,"need data",D24/SUMPRODUCT('Rents and Income'!$E$7:$E$30*'Rents and Income'!$F$7:$F$30))),0,IF(D24=0,"need data",D24/SUMPRODUCT('Rents and Income'!$E$7:$E$30*'Rents and Income'!$F$7:$F$30))) -> need data | I24: 0 | J24: 0 | K24: 0
A25: ? | C25: Builder Profit | E25: =IF(D25=0,"need data",IF('Rents and Income'!$E$31=0,0,D25/'Rents and Income'!$E$31)) -> need data | F25: =IF(ISERROR(IF(D25=0,"need data",D25/SUMPRODUCT('Rents and Income'!$E$7:$E$30*'Rents and Income'!$F$7:$F$30))),0,IF(D25=0,"need data",D25/SUMPRODUCT('Rents and Income'!$E$7:$E$30*'Rents and Income'!$F$7:$F$30))) -> need data | I25: 0 | J25: 0 | K25: 0
A26: ? | C26: Performance Bond Premium | E26: =IF(D26=0,"need data",IF('Rents and Income'!$E$31=0,0,D26/'Rents and Income'!$E$31)) -> need data | F26: =IF(ISERROR(IF(D26=0,"need data",D26/SUMPRODUCT('Rents and Income'!$E$7:$E$30*'Rents and Income'!$F$7:$F$30))),0,IF(D26=0,"need data",D26/SUMPRODUCT('Rents and Income'!$E$7:$E$30*'Rents and Income'!$F$7:$F$30))) -> need data | I26: 0 | J26: 0 | K26: 0
A27: ? | C27: Construction Contingency | E27: =IF(D27=0,"need data",IF('Rents and Income'!$E$31=0,0,D27/'Rents and Income'!$E$31)) -> need data | F27: =IF(ISERROR(IF(D27=0,"need data",D27/SUMPRODUCT('Rents and Income'!$E$7:$E$30*'Rents and Income'!$F$7:$F$30))),0,IF(D27=0,"need data",D27/SUMPRODUCT('Rents and Income'!$E$7:$E$30*'Rents and Income'!$F$7:$F$30))) -> need data | I27: 0 | J27: 0 | K27: 0
A28: ? | E28: =IF(D28=0,"need data",IF('Rents and Income'!$E$31=0,0,D28/'Rents and Income'!$E$31)) -> need data | F28: =IF(ISERROR(IF(D28=0,"need data",D28/SUMPRODUCT('Rents and Income'!$E$7:$E$30*'Rents and Income'!$F$7:$F$30))),0,IF(D28=0,"need data",D28/SUMPRODUCT('Rents and Income'!$E$7:$E$30*'Rents and Income'!$F$7:$F$30))) -> need data | I28: 0 | J28: =+D28 -> 0 | K28: 0
E29: =IF(D29=0,"need data",IF('Rents and Income'!$E$31=0,0,D29/'Rents and Income'!$E$31)) -> need data | F29: =IF(ISERROR(IF(D29=0,"need data",D29/SUMPRODUCT('Rents and Income'!$E$7:$E$30*'Rents and Income'!$F$7:$F$30))),0,IF(D29=0,"need data",D29/SUMPRODUCT('Rents and Income'!$E$7:$E$30*'Rents and Income'!$F$7:$F$30))) -> need data | I29: 0 | J29: 0 | K29: 0
A30: ? | C30: Architectural and Engineering Fees
A31: ? | C31: Architect Fee -- Design | E31: =IF(D31=0,"need data",IF('Rents and Income'!$E$31=0,0,D31/'Rents and Income'!$E$31)) -> need data | F31: =IF(ISERROR(IF(D31=0,"need data",D31/SUMPRODUCT('Rents and Income'!$E$7:$E$30*'Rents and Income'!$F$7:$F$30))),0,IF(D31=0,"need data",D31/SUMPRODUCT('Rents and Income'!$E$7:$E$30*'Rents and Income'!$F$7:$F$30))) -> need data | I31: 0 | J31: =+D31 -> 0 | K31: =+D31-I31-J31 -> 0
C32: Architect Fee -- Construction Supervision | E32: =IF(D32=0,"need data",IF('Rents and Income'!$E$31=0,0,D32/'Rents and Income'!$E$31)) -> need data | F32: =IF(ISERROR(IF(D32=0,"need data",D32/SUMPRODUCT('Rents and Income'!$E$7:$E$30*'Rents and Income'!$F$7:$F$30))),0,IF(D32=0,"need data",D32/SUMPRODUCT('Rents and Income'!$E$7:$E$30*'Rents and Income'!$F$7:$F$30))) -> need data | I32: 0 | J32: =+D32 -> 0 | K32: =+D32-I32-J32 -> 0
A33: ? | C33: Engineering Fees | E33: =IF(D33=0,"need data",IF('Rents and Income'!$E$31=0,0,D33/'Rents and Income'!$E$31)) -> need data | F33: =IF(ISERROR(IF(D33=0,"need data",D33/SUMPRODUCT('Rents and Income'!$E$7:$E$30*'Rents and Income'!$F$7:$F$30))),0,IF(D33=0,"need data",D33/SUMPRODUCT('Rents and Income'!$E$7:$E$30*'Rents and Income'!$F$7:$F$30))) -> need data | I33: 0 | J33: =+D33 -> 0 | K33: =+D33-I33-J33 -> 0
A34: ? | E34: =IF(D34=0,"need data",IF('Rents and Income'!$E$31=0,0,D34/'Rents and Income'!$E$31)) -> need data | F34: =IF(ISERROR(IF(D34=0,"need data",D34/SUMPRODUCT('Rents and Income'!$E$7:$E$30*'Rents and Income'!$F$7:$F$30))),0,IF(D34=0,"need data",D34/SUMPRODUCT('Rents and Income'!$E$7:$E$30*'Rents and Income'!$F$7:$F$30))) -> need data | I34: 0 | J34: =+D34 -> 0 | K34: =+D34-I34-J34 -> 0
A35: ? | C35: Other Owner Costs
A36: ? | C36: Project Consultant Fees | E36: =IF(D36=0,"need data",IF('Rents and Income'!$E$31=0,0,D36/'Rents and Income'!$E$31)) -> need data | F36: =IF(ISERROR(IF(D36=0,"need data",D36/SUMPRODUCT('Rents and Income'!$E$7:$E$30*'Rents and Income'!$F$7:$F$30))),0,IF(D36=0,"need data",D36/SUMPRODUCT('Rents and Income'!$E$7:$E$30*'Rents and Income'!$F$7:$F$30))) -> need data | I36: 0 | J36: =+D36 -> 0 | K36: =+D36-I36-J36 -> 0
A37: ? | C37: Owner Attorney Fees (initial closing) | E37: =IF(D37=0,"need data",IF('Rents and Income'!$E$31=0,0,D37/'Rents and Income'!$E$31)) -> need data | F37: =IF(ISERROR(IF(D37=0,"need data",D37/SUMPRODUCT('Rents and Income'!$E$7:$E$30*'Rents and Income'!$F$7:$F$30))),0,IF(D37=0,"need data",D37/SUMPRODUCT('Rents and Income'!$E$7:$E$30*'Rents and Income'!$F$7:$F$30))) -> need data | I37: 0 | J37: =+D37 -> 0 | K37: 0
C38: Owner Attorney Fees (final closing) | E38: =IF(D38=0,"need data",IF('Rents and Income'!$E$31=0,0,D38/'Rents and Income'!$E$31)) -> need data | F38: =IF(ISERROR(IF(D38=0,"need data",D38/SUMPRODUCT('Rents and Income'!$E$7:$E$30*'Rents and Income'!$F$7:$F$30))),0,IF(D38=0,"need data",D38/SUMPRODUCT('Rents and Income'!$E$7:$E$30*'Rents and Income'!$F$7:$F$30))) -> need data | I38: 0 | J38: =+D38 -> 0 | K38: 0
A39: ? | C39: Syndication Costs | E39: =IF(D39=0,"need data",IF('Rents and Income'!$E$31=0,0,D39/'Rents and Income'!$E$31)) -> need data | F39: =IF(ISERROR(IF(D39=0,"need data",D39/SUMPRODUCT('Rents and Income'!$E$7:$E$30*'Rents and Income'!$F$7:$F$30))),0,IF(D39=0,"need data",D39/SUMPRODUCT('Rents and Income'!$E$7:$E$30*'Rents and Income'!$F$7:$F$30))) -> need data | I39: 0 | J39: 0 | K39: 0 | M39: ?
C40: Other Owner Organizational Expenses | E40: =IF(D40=0,"need data",IF('Rents and Income'!$E$31=0,0,D40/'Rents and Income'!$E$31)) -> need data | F40: =IF(ISERROR(IF(D40=0,"need data",D40/SUMPRODUCT('Rents and Income'!$E$7:$E$30*'Rents and Income'!$F$7:$F$30))),0,IF(D40=0,"need data",D40/SUMPRODUCT('Rents and Income'!$E$7:$E$30*'Rents and Income'!$F$7:$F$30))) -> need data | I40: 0 | J40: 0 | K40: 0 | M40: ?
A41: ? | C41: Market Study | E41: =IF(D41=0,"need data",IF('Rents and Income'!$E$31=0,0,D41/'Rents and Income'!$E$31)) -> need data | F41: =IF(ISERROR(IF(D41=0,"need data",D41/SUMPRODUCT('Rents and Income'!$E$7:$E$30*'Rents and Income'!$F$7:$F$30))),0,IF(D41=0,"need data",D41/SUMPRODUCT('Rents and Income'!$E$7:$E$30*'Rents and Income'!$F$7:$F$30))) -> need data | I41: 0 | J41: =+D41 -> 0 | K41: 0
C42: Survey | E42: =IF(D42=0,"need data",IF('Rents and Income'!$E$31=0,0,D42/'Rents and Income'!$E$31)) -> need data | F42: =IF(ISERROR(IF(D42=0,"need data",D42/SUMPRODUCT('Rents and Income'!$E$7:$E$30*'Rents and Income'!$F$7:$F$30))),0,IF(D42=0,"need data",D42/SUMPRODUCT('Rents and Income'!$E$7:$E$30*'Rents and Income'!$F$7:$F$30))) -> need data | I42: 0 | J42: 0 | K42: 0
A43: ? | C43: Appraisal Fees | E43: =IF(D43=0,"need data",IF('Rents and Income'!$E$31=0,0,D43/'Rents and Income'!$E$31)) -> need data | F43: =IF(ISERROR(IF(D43=0,"need data",D43/SUMPRODUCT('Rents and Income'!$E$7:$E$30*'Rents and Income'!$F$7:$F$30))),0,IF(D43=0,"need data",D43/SUMPRODUCT('Rents and Income'!$E$7:$E$30*'Rents and Income'!$F$7:$F$30))) -> need data | I43: 0 | J43: 0 | K43: 0
A44: ? | C44: Environmental Studies | E44: =IF(D44=0,"need data",IF('Rents and Income'!$E$31=0,0,D44/'Rents and Income'!$E$31)) -> need data | F44: =IF(ISERROR(IF(D44=0,"need data",D44/SUMPRODUCT('Rents and Income'!$E$7:$E$30*'Rents and Income'!$F$7:$F$30))),0,IF(D44=0,"need data",D44/SUMPRODUCT('Rents and Income'!$E$7:$E$30*'Rents and Income'!$F$7:$F$30))) -> need data | I44: 0 | J44: 0 | K44: 0
A45: ? | C45: Capital Needs Assessment | E45: =IF(D45=0,"need data",IF('Rents and Income'!$E$31=0,0,D45/'Rents and Income'!$E$31)) -> need data | F45: =IF(ISERROR(IF(D45=0,"need data",D45/SUMPRODUCT('Rents and Income'!$E$7:$E$30*'Rents and Income'!$F$7:$F$30))),0,IF(D45=0,"need data",D45/SUMPRODUCT('Rents and Income'!$E$7:$E$30*'Rents and Income'!$F$7:$F$30))) -> need data | I45: 0 | J45: 0 | K45: 0
A46: ? | E46: =IF(D46=0,"need data",IF('Rents and Income'!$E$31=0,0,D46/'Rents and Income'!$E$31)) -> need data | F46: =IF(ISERROR(IF(D46=0,"need data",D46/SUMPRODUCT('Rents and Income'!$E$7:$E$30*'Rents and Income'!$F$7:$F$30))),0,IF(D46=0,"need data",D46/SUMPRODUCT('Rents and Income'!$E$7:$E$30*'Rents and Income'!$F$7:$F$30))) -> need data | I46: 0 | J46: 0 | K46: 0
A47: ? | C47: Tap Fees and Impact Fees | E47: =IF(D47=0,"need data",IF('Rents and Income'!$E$31=0,0,D47/'Rents and Income'!$E$31)) -> need data | F47: =IF(ISERROR(IF(D47=0,"need data",D47/SUMPRODUCT('Rents and Income'!$E$7:$E$30*'Rents and Income'!$F$7:$F$30))),0,IF(D47=0,"need data",D47/SUMPRODUCT('Rents and Income'!$E$7:$E$30*'Rents and Income'!$F$7:$F$30))) -> need data | I47: 0 | J47: 0 | K47: 0
A48: ? | C48: Building Permits and Fees | E48: =IF(D48=0,"need data",IF('Rents and Income'!$E$31=0,0,D48/'Rents and Income'!$E$31)) -> need data | F48: =IF(ISERROR(IF(D48=0,"need data",D48/SUMPRODUCT('Rents and Income'!$E$7:$E$30*'Rents and Income'!$F$7:$F$30))),0,IF(D48=0,"need data",D48/SUMPRODUCT('Rents and Income'!$E$7:$E$30*'Rents and Income'!$F$7:$F$30))) -> need data | I48: 0 | J48: 0 | K48: 0
A49: ? | C49: Tax Credit Fees | E49: =IF(D49=0,"need data",IF('Rents and Income'!$E$31=0,0,D49/'Rents and Income'!$E$31)) -> need data | F49: =IF(ISERROR(IF(D49=0,"need data",D49/SUMPRODUCT('Rents and Income'!$E$7:$E$30*'Rents and Income'!$F$7:$F$30))),0,IF(D49=0,"need data",D49/SUMPRODUCT('Rents and Income'!$E$7:$E$30*'Rents and Income'!$F$7:$F$30))) -> need data | I49: 0 | J49: 0 | K49: 0 | M49: ?
A50: ? | C50: Accounting / Cost Certification / Audit | E50: =IF(D50=0,"need data",IF('Rents and Income'!$E$31=0,0,D50/'Rents and Income'!$E$31)) -> need data | F50: =IF(ISERROR(IF(D50=0,"need data",D50/SUMPRODUCT('Rents and Income'!$E$7:$E$30*'Rents and Income'!$F$7:$F$30))),0,IF(D50=0,"need data",D50/SUMPRODUCT('Rents and Income'!$E$7:$E$30*'Rents and Income'!$F$7:$F$30))) -> need data | I50: 0 | J50: =+D50 -> 0 | K50: =+D50-I50-J50 -> 0
A51: ? | C51: Soft Cost Contingency | E51: =IF(D51=0,"need data",IF('Rents and Income'!$E$31=0,0,D51/'Rents and Income'!$E$31)) -> need data | F51: =IF(ISERROR(IF(D51=0,"need data",D51/SUMPRODUCT('Rents and Income'!$E$7:$E$30*'Rents and Income'!$F$7:$F$30))),0,IF(D51=0,"need data",D51/SUMPRODUCT('Rents and Income'!$E$7:$E$30*'Rents and Income'!$F$7:$F$30))) -> need data | I51: 0 | J51: =+D51 -> 0 | K51: 0
A52: ? | E52: =IF(D52=0,"need data",IF('Rents and Income'!$E$31=0,0,D52/'Rents and Income'!$E$31)) -> need data | F52: =IF(ISERROR(IF(D52=0,"need data",D52/SUMPRODUCT('Rents and Income'!$E$7:$E$30*'Rents and Income'!$F$7:$F$30))),0,IF(D52=0,"need data",D52/SUMPRODUCT('Rents and Income'!$E$7:$E$30*'Rents and Income'!$F$7:$F$30))) -> need data | I52: 0 | J52: =+D52 -> 0 | K52: 0
E53: =IF(D53=0,"need data",IF('Rents and Income'!$E$31=0,0,D53/'Rents and Income'!$E$31)) -> need data | F53: =IF(ISERROR(IF(D53=0,"need data",D53/SUMPRODUCT('Rents and Income'!$E$7:$E$30*'Rents and Income'!$F$7:$F$30))),0,IF(D53=0,"need data",D53/SUMPRODUCT('Rents and Income'!$E$7:$E$30*'Rents and Income'!$F$7:$F$30))) -> need data | I53: 0 | J53: =+D53 -> 0 | K53: 0
A54: ? | C54: Interim Financing Costs
A55: ? | C55: Construction Period Insurance | E55: =IF(D55=0,"need data",IF('Rents and Income'!$E$31=0,0,D55/'Rents and Income'!$E$31)) -> need data | F55: =IF(ISERROR(IF(D55=0,"need data",D55/SUMPRODUCT('Rents and Income'!$E$7:$E$30*'Rents and Income'!$F$7:$F$30))),0,IF(D55=0,"need data",D55/SUMPRODUCT('Rents and Income'!$E$7:$E$30*'Rents and Income'!$F$7:$F$30))) -> need data | I55: 0 | J55: =+D55 -> 0 | K55: =+D55-I55-J55 -> 0
A56: ? | C56: Construction Period Taxes | E56: =IF(D56=0,"need data",IF('Rents and Income'!$E$31=0,0,D56/'Rents and Income'!$E$31)) -> need data | F56: =IF(ISERROR(IF(D56=0,"need data",D56/SUMPRODUCT('Rents and Income'!$E$7:$E$30*'Rents and Income'!$F$7:$F$30))),0,IF(D56=0,"need data",D56/SUMPRODUCT('Rents and Income'!$E$7:$E$30*'Rents and Income'!$F$7:$F$30))) -> need data | I56: 0 | J56: =+D56 -> 0 | K56: 0
A57: ? | C57: Construction Interest (see calculation below) | E57: =IF(D57=0,"need data",IF('Rents and Income'!$E$31=0,0,D57/'Rents and Income'!$E$31)) -> need data | F57: =IF(ISERROR(IF(D57=0,"need data",D57/SUMPRODUCT('Rents and Income'!$E$7:$E$30*'Rents and Income'!$F$7:$F$30))),0,IF(D57=0,"need data",D57/SUMPRODUCT('Rents and Income'!$E$7:$E$30*'Rents and Income'!$F$7:$F$30))) -> need data | I57: 0 | J57: =+D108+D109 -> 0 | K57: 0 | M57: ?
A58: ? | C58: Construction Loan Origination Fee | E58: =IF(D58=0,"need data",IF('Rents and Income'!$E$31=0,0,D58/'Rents and Income'!$E$31)) -> need data | F58: =IF(ISERROR(IF(D58=0,"need data",D58/SUMPRODUCT('Rents and Income'!$E$7:$E$30*'Rents and Income'!$F$7:$F$30))),0,IF(D58=0,"need data",D58/SUMPRODUCT('Rents and Income'!$E$7:$E$30*'Rents and Income'!$F$7:$F$30))) -> need data | I58: 0 | J58: =+D58 -> 0 | K58: 0
A59: ? | C59: Construction Loan Legal Fees | E59: =IF(D59=0,"need data",IF('Rents and Income'!$E$31=0,0,D59/'Rents and Income'!$E$31)) -> need data | F59: =IF(ISERROR(IF(D59=0,"need data",D59/SUMPRODUCT('Rents and Income'!$E$7:$E$30*'Rents and Income'!$F$7:$F$30))),0,IF(D59=0,"need data",D59/SUMPRODUCT('Rents and Income'!$E$7:$E$30*'Rents and Income'!$F$7:$F$30))) -> need data | I59: 0 | J59: =+D59 -> 0 | K59: 0
A60: ? | C60: Other Construction Loan Fees | E60: =IF(D60=0,"need data",IF('Rents and Income'!$E$31=0,0,D60/'Rents and Income'!$E$31)) -> need data | F60: =IF(ISERROR(IF(D60=0,"need data",D60/SUMPRODUCT('Rents and Income'!$E$7:$E$30*'Rents and Income'!$F$7:$F$30))),0,IF(D60=0,"need data",D60/SUMPRODUCT('Rents and Income'!$E$7:$E$30*'Rents and Income'!$F$7:$F$30))) -> need data | I60: 0 | J60: =+D60 -> 0 | K60: 0
A61: ? | C61: Bond Costs of Issuance | E61: =IF(D61=0,"need data",IF('Rents and Income'!$E$31=0,0,D61/'Rents and Income'!$E$31)) -> need data | F61: =IF(ISERROR(IF(D61=0,"need data",D61/SUMPRODUCT('Rents and Income'!$E$7:$E$30*'Rents and Income'!$F$7:$F$30))),0,IF(D61=0,"need data",D61/SUMPRODUCT('Rents and Income'!$E$7:$E$30*'Rents and Income'!$F$7:$F$30))) -> need data | K61: 0
A62: ? | C62: Title and Recording Costs (for the construction loan) | E62: =IF(D62=0,"need data",IF('Rents and Income'!$E$31=0,0,D62/'Rents and Income'!$E$31)) -> need data | F62: =IF(ISERROR(IF(D62=0,"need data",D62/SUMPRODUCT('Rents and Income'!$E$7:$E$30*'Rents and Income'!$F$7:$F$30))),0,IF(D62=0,"need data",D62/SUMPRODUCT('Rents and Income'!$E$7:$E$30*'Rents and Income'!$F$7:$F$30))) -> need data | I62: 0 | J62: =+D62 -> 0 | K62: 0
A63: ? | E63: =IF(D63=0,"need data",IF('Rents and Income'!$E$31=0,0,D63/'Rents and Income'!$E$31)) -> need data | F63: =IF(ISERROR(IF(D63=0,"need data",D63/SUMPRODUCT('Rents and Income'!$E$7:$E$30*'Rents and Income'!$F$7:$F$30))),0,IF(D63=0,"need data",D63/SUMPRODUCT('Rents and Income'!$E$7:$E$30*'Rents and Income'!$F$7:$F$30))) -> need data | I63: 0 | J63: =+D63 -> 0 | K63: 0
E64: =IF(D64=0,"need data",IF('Rents and Income'!$E$31=0,0,D64/'Rents and Income'!$E$31)) -> need data | F64: =IF(ISERROR(IF(D64=0,"need data",D64/SUMPRODUCT('Rents and Income'!$E$7:$E$30*'Rents and Income'!$F$7:$F$30))),0,IF(D64=0,"need data",D64/SUMPRODUCT('Rents and Income'!$E$7:$E$30*'Rents and Income'!$F$7:$F$30))) -> need data | I64: 0 | J64: =+D64 -> 0 | K64: 0
A65: ? | C65: Permanent Financing Costs
A66: ? | C66: Credit Report | E66: =IF(D66=0,"need data",IF('Rents and Income'!$E$31=0,0,D66/'Rents and Income'!$E$31)) -> need data | F66: =IF(ISERROR(IF(D66=0,"need data",D66/SUMPRODUCT('Rents and Income'!$E$7:$E$30*'Rents and Income'!$F$7:$F$30))),0,IF(D66=0,"need data",D66/SUMPRODUCT('Rents and Income'!$E$7:$E$30*'Rents and Income'!$F$7:$F$30))) -> need data | I66: 0 | J66: =+D66 -> 0 | K66: =+D66-I66-J66 -> 0
A67: ? | C67: Lender Origination / Financing Fee | E67: =IF(D67=0,"need data",IF('Rents and Income'!$E$31=0,0,D67/'Rents and Income'!$E$31)) -> need data | F67: =IF(ISERROR(IF(D67=0,"need data",D67/SUMPRODUCT('Rents and Income'!$E$7:$E$30*'Rents and Income'!$F$7:$F$30))),0,IF(D67=0,"need data",D67/SUMPRODUCT('Rents and Income'!$E$7:$E$30*'Rents and Income'!$F$7:$F$30))) -> need data | I67: 0 | J67: 0 | K67: 0 | M67: ?
A68: ? | C68: Lender’s Counsel Fee | E68: =IF(D68=0,"need data",IF('Rents and Income'!$E$31=0,0,D68/'Rents and Income'!$E$31)) -> need data | F68: =IF(ISERROR(IF(D68=0,"need data",D68/SUMPRODUCT('Rents and Income'!$E$7:$E$30*'Rents and Income'!$F$7:$F$30))),0,IF(D68=0,"need data",D68/SUMPRODUCT('Rents and Income'!$E$7:$E$30*'Rents and Income'!$F$7:$F$30))) -> need data | I68: 0 | J68: 0 | K68: 0
A69: ? | C69: Other Lender Fees | E69: =IF(D69=0,"need data",IF('Rents and Income'!$E$31=0,0,D69/'Rents and Income'!$E$31)) -> need data | F69: =IF(ISERROR(IF(D69=0,"need data",D69/SUMPRODUCT('Rents and Income'!$E$7:$E$30*'Rents and Income'!$F$7:$F$30))),0,IF(D69=0,"need data",D69/SUMPRODUCT('Rents and Income'!$E$7:$E$30*'Rents and Income'!$F$7:$F$30))) -> need data | J69: 0 | K69: 0
A70: ? | C70: Title and Recording Costs (for permanent financing) | E70: =IF(D70=0,"need data",IF('Rents and Income'!$E$31=0,0,D70/'Rents and Income'!$E$31)) -> need data | F70: =IF(ISERROR(IF(D70=0,"need data",D70/SUMPRODUCT('Rents and Income'!$E$7:$E$30*'Rents and Income'!$F$7:$F$30))),0,IF(D70=0,"need data",D70/SUMPRODUCT('Rents and Income'!$E$7:$E$30*'Rents and Income'!$F$7:$F$30))) -> need data | I70: 0 | J70: 0 | K70: 0 | M70: ?
A71: ? | C71: Establish Tax and Insurance Escrows | E71: =IF(D71=0,"need data",IF('Rents and Income'!$E$31=0,0,D71/'Rents and Income'!$E$31)) -> need data | F71: =IF(ISERROR(IF(D71=0,"need data",D71/SUMPRODUCT('Rents and Income'!$E$7:$E$30*'Rents and Income'!$F$7:$F$30))),0,IF(D71=0,"need data",D71/SUMPRODUCT('Rents and Income'!$E$7:$E$30*'Rents and Income'!$F$7:$F$30))) -> need data | J71: 0 | K71: 0 | M71: ?
A72: ? | E72: =IF(D72=0,"need data",IF('Rents and Income'!$E$31=0,0,D72/'Rents and Income'!$E$31)) -> need data | F72: =IF(ISERROR(IF(D72=0,"need data",D72/SUMPRODUCT('Rents and Income'!$E$7:$E$30*'Rents and Income'!$F$7:$F$30))),0,IF(D72=0,"need data",D72/SUMPRODUCT('Rents and Income'!$E$7:$E$30*'Rents and Income'!$F$7:$F$30))) -> need data | I72: 0 | J72: =+D72 -> 0 | K72: 0
E73: =IF(D73=0,"need data",IF('Rents and Income'!$E$31=0,0,D73/'Rents and Income'!$E$31)) -> need data | F73: =IF(ISERROR(IF(D73=0,"need data",D73/SUMPRODUCT('Rents and Income'!$E$7:$E$30*'Rents and Income'!$F$7:$F$30))),0,IF(D73=0,"need data",D73/SUMPRODUCT('Rents and Income'!$E$7:$E$30*'Rents and Income'!$F$7:$F$30))) -> need data | I73: 0 | J73: =+D73 -> 0 | K73: 0
A74: ? | C74: Developer's Fee | E74: =IF(D74=0,"need data",IF('Rents and Income'!$E$31=0,0,D74/'Rents and Income'!$E$31)) -> need data | F74: =IF(ISERROR(IF(D74=0,"need data",D74/SUMPRODUCT('Rents and Income'!$E$7:$E$30*'Rents and Income'!$F$7:$F$30))),0,IF(D74=0,"need data",D74/SUMPRODUCT('Rents and Income'!$E$7:$E$30*'Rents and Income'!$F$7:$F$30))) -> need data | I74: 0 | J74: =+D74 -> 0 | K74: 0
A75: ? | C75: Initial Project Reserves | M75: ?
A76: ? | C76: Initial Rent-Up Reserve (not HOME eligible) | E76: =IF(D76=0,"need data",IF('Rents and Income'!$E$31=0,0,D76/'Rents and Income'!$E$31)) -> need data | F76: =IF(ISERROR(IF(D76=0,"need data",D76/SUMPRODUCT('Rents and Income'!$E$7:$E$30*'Rents and Income'!$F$7:$F$30))),0,IF(D76=0,"need data",D76/SUMPRODUCT('Rents and Income'!$E$7:$E$30*'Rents and Income'!$F$7:$F$30))) -> need data | I76: 0 | J76: 0 | K76: =+D76-I76-J76 -> 0
A77: ? | C77: Initial Operating Reserve (HOME-eligible portion) | E77: =IF(D77=0,"need data",IF('Rents and Income'!$E$31=0,0,D77/'Rents and Income'!$E$31)) -> need data | F77: =IF(ISERROR(IF(D77=0,"need data",D77/SUMPRODUCT('Rents and Income'!$E$7:$E$30*'Rents and Income'!$F$7:$F$30))),0,IF(D77=0,"need data",D77/SUMPRODUCT('Rents and Income'!$E$7:$E$30*'Rents and Income'!$F$7:$F$30))) -> need data | I77: 0 | J77: 0 | K77: 0
A78: ? | C78: Initial Operating Reserve (non-HOME-eligible portion)
A79: ? | C79: Initial Debt Service Reserve (not HOME eligible) | E79: =IF(D79=0,"need data",IF('Rents and Income'!$E$31=0,0,D79/'Rents and Income'!$E$31)) -> need data | F79: =IF(ISERROR(IF(D79=0,"need data",D79/SUMPRODUCT('Rents and Income'!$E$7:$E$30*'Rents and Income'!$F$7:$F$30))),0,IF(D79=0,"need data",D79/SUMPRODUCT('Rents and Income'!$E$7:$E$30*'Rents and Income'!$F$7:$F$30))) -> need data | I79: 0 | J79: 0 | K79: 0
A80: ? | C80: Initial Replacement Reserve (not HOME eligible) | E80: =IF(D80=0,"need data",IF('Rents and Income'!$E$31=0,0,D80/'Rents and Income'!$E$31)) -> need data | F80: =IF(ISERROR(IF(D80=0,"need data",D80/SUMPRODUCT('Rents and Income'!$E$7:$E$30*'Rents and Income'!$F$7:$F$30))),0,IF(D80=0,"need data",D80/SUMPRODUCT('Rents and Income'!$E$7:$E$30*'Rents and Income'!$F$7:$F$30))) -> need data | I80: 0 | J80: 0 | K80: 0
A81: ? | E81: =IF(D81=0,"need data",IF('Rents and Income'!$E$31=0,0,D81/'Rents and Income'!$E$31)) -> need data | F81: =IF(ISERROR(IF(D81=0,"need data",D81/SUMPRODUCT('Rents and Income'!$E$7:$E$30*'Rents and Income'!$F$7:$F$30))),0,IF(D81=0,"need data",D81/SUMPRODUCT('Rents and Income'!$E$7:$E$30*'Rents and Income'!$F$7:$F$30))) -> need data | I81: 0 | J81: 0 | K81: 0
E82: =IF(D82=0,"need data",IF('Rents and Income'!$E$31=0,0,D82/'Rents and Income'!$E$31)) -> need data | F82: =IF(ISERROR(IF(D82=0,"need data",D82/SUMPRODUCT('Rents and Income'!$E$7:$E$30*'Rents and Income'!$F$7:$F$30))),0,IF(D82=0,"need data",D82/SUMPRODUCT('Rents and Income'!$E$7:$E$30*'Rents and Income'!$F$7:$F$30))) -> need data | I82: 0 | J82: 0 | K82: 0
A83: ? | C83: Project Administration and Management Costs (during construction only)
A84: ? | C84: Marketing/Management | E84: =IF(D84=0,"need data",IF('Rents and Income'!$E$31=0,0,D84/'Rents and Income'!$E$31)) -> need data | F84: =IF(ISERROR(IF(D84=0,"need data",D84/SUMPRODUCT('Rents and Income'!$E$7:$E$30*'Rents and Income'!$F$7:$F$30))),0,IF(D84=0,"need data",D84/SUMPRODUCT('Rents and Income'!$E$7:$E$30*'Rents and Income'!$F$7:$F$30))) -> need data | I84: 0 | J84: =+D84 -> 0 | K84: =+D84-I84-J84 -> 0
A85: ? | C85: Operating Expenses | E85: =IF(D85=0,"need data",IF('Rents and Income'!$E$31=0,0,D85/'Rents and Income'!$E$31)) -> need data | F85: =IF(ISERROR(IF(D85=0,"need data",D85/SUMPRODUCT('Rents and Income'!$E$7:$E$30*'Rents and Income'!$F$7:$F$30))),0,IF(D85=0,"need data",D85/SUMPRODUCT('Rents and Income'!$E$7:$E$30*'Rents and Income'!$F$7:$F$30))) -> need data | I85: 0 | J85: =+D85 -> 0 | K85: 0
A86: ? | C86: Furniture, Fixtures & Equipment | E86: =IF(D86=0,"need data",IF('Rents and Income'!$E$31=0,0,D86/'Rents and Income'!$E$31)) -> need data | F86: =IF(ISERROR(IF(D86=0,"need data",D86/SUMPRODUCT('Rents and Income'!$E$7:$E$30*'Rents and Income'!$F$7:$F$30))),0,IF(D86=0,"need data",D86/SUMPRODUCT('Rents and Income'!$E$7:$E$30*'Rents and Income'!$F$7:$F$30))) -> need data | I86: 0 | J86: =D86 -> 0 | K86: 0 | M86: ?
A87: ? | C87: Tenant Relocation Costs | E87: =IF(D87=0,"need data",IF('Rents and Income'!$E$31=0,0,D87/'Rents and Income'!$E$31)) -> need data | F87: =IF(ISERROR(IF(D87=0,"need data",D87/SUMPRODUCT('Rents and Income'!$E$7:$E$30*'Rents and Income'!$F$7:$F$30))),0,IF(D87=0,"need data",D87/SUMPRODUCT('Rents and Income'!$E$7:$E$30*'Rents and Income'!$F$7:$F$30))) -> need data | I87: 0 | J87: 0 | K87: 0
A88: ? | E88: =IF(D88=0,"need data",IF('Rents and Income'!$E$31=0,0,D88/'Rents and Income'!$E$31)) -> need data | F88: =IF(ISERROR(IF(D88=0,"need data",D88/SUMPRODUCT('Rents and Income'!$E$7:$E$30*'Rents and Income'!$F$7:$F$30))),0,IF(D88=0,"need data",D88/SUMPRODUCT('Rents and Income'!$E$7:$E$30*'Rents and Income'!$F$7:$F$30))) -> need data | I88: 0 | J88: =+D88 -> 0 | K88: 0
E89: =IF(D89=0,"need data",IF('Rents and Income'!$E$31=0,0,D89/'Rents and Income'!$E$31)) -> need data | F89: =IF(ISERROR(IF(D89=0,"need data",D89/SUMPRODUCT('Rents and Income'!$E$7:$E$30*'Rents and Income'!$F$7:$F$30))),0,IF(D89=0,"need data",D89/SUMPRODUCT('Rents and Income'!$E$7:$E$30*'Rents and Income'!$F$7:$F$30))) -> need data | I89: 0 | J89: =+D89 -> 0 | K89: 0
A90: ? | C90: Other Development Costs
E91: =IF(D91=0,"need data",IF('Rents and Income'!$E$31=0,0,D91/'Rents and Income'!$E$31)) -> need data | F91: =IF(ISERROR(IF(D91=0,"need data",D91/SUMPRODUCT('Rents and Income'!$E$7:$E$30*'Rents and Income'!$F$7:$F$30))),0,IF(D91=0,"need data",D91/SUMPRODUCT('Rents and Income'!$E$7:$E$30*'Rents and Income'!$F$7:$F$30))) -> need data | I91: 0 | J91: =+D91 -> 0 | K91: =+D91-I91-J91 -> 0
E92: =IF(D92=0,"need data",IF('Rents and Income'!$E$31=0,0,D92/'Rents and Income'!$E$31)) -> need data | F92: =IF(ISERROR(IF(D92=0,"need data",D92/SUMPRODUCT('Rents and Income'!$E$7:$E$30*'Rents and Income'!$F$7:$F$30))),0,IF(D92=0,"need data",D92/SUMPRODUCT('Rents and Income'!$E$7:$E$30*'Rents and Income'!$F$7:$F$30))) -> need data | I92: 0 | J92: 0 | K92: 0
E93: =IF(D93=0,"need data",IF('Rents and Income'!$E$31=0,0,D93/'Rents and Income'!$E$31)) -> need data | F93: =IF(ISERROR(IF(D93=0,"need data",D93/SUMPRODUCT('Rents and Income'!$E$7:$E$30*'Rents and Income'!$F$7:$F$30))),0,IF(D93=0,"need data",D93/SUMPRODUCT('Rents and Income'!$E$7:$E$30*'Rents and Income'!$F$7:$F$30))) -> need data | I93: 0 | J93: 0 | K93: 0
E94: =IF(D94=0,"need data",IF('Rents and Income'!$E$31=0,0,D94/'Rents and Income'!$E$31)) -> need data | F94: =IF(ISERROR(IF(D94=0,"need data",D94/SUMPRODUCT('Rents and Income'!$E$7:$E$30*'Rents and Income'!$F$7:$F$30))),0,IF(D94=0,"need data",D94/SUMPRODUCT('Rents and Income'!$E$7:$E$30*'Rents and Income'!$F$7:$F$30))) -> need data | I94: 0 | J94: 0 | K94: 0
E95: =IF(D95=0,"need data",IF('Rents and Income'!$E$31=0,0,D95/'Rents and Income'!$E$31)) -> need data | F95: =IF(ISERROR(IF(D95=0,"need data",D95/SUMPRODUCT('Rents and Income'!$E$7:$E$30*'Rents and Income'!$F$7:$F$30))),0,IF(D95=0,"need data",D95/SUMPRODUCT('Rents and Income'!$E$7:$E$30*'Rents and Income'!$F$7:$F$30))) -> need data | I95: 0 | J95: 0 | K95: 0
E96: =IF(D96=0,"need data",IF('Rents and Income'!$E$31=0,0,D96/'Rents and Income'!$E$31)) -> need data | F96: =IF(ISERROR(IF(D96=0,"need data",D96/SUMPRODUCT('Rents and Income'!$E$7:$E$30*'Rents and Income'!$F$7:$F$30))),0,IF(D96=0,"need data",D96/SUMPRODUCT('Rents and Income'!$E$7:$E$30*'Rents and Income'!$F$7:$F$30))) -> need data | I96: 0 | J96: 0 | K96: 0
C98: Total Development Costs | D98: =SUM(D5:D97) -> 0 | I98: =SUM(I5:I97) -> 0 | J98: =SUM(J5:J97) -> 0 | K98: =SUM(K5:K97) -> 0
C100: Construction Interest Calculation
A101: ? | C101: Construction Loan Amount
C102: Interest Rate
A103: ? | C103: Estimated First Draw Amount
A104: ? | C104: Months of Construction
A105: ? | C105: Months Const. Loan Outstanding After Completion
A106: ? | C106: Average Outstanding Balance
C108: Interest on first draw, during construction period | D108: =ROUND(D103*$D$102/12*$D$104,0) -> 0
C109: Interest on remaining funds, during construction | D109: =ROUND((D101-D103)*D106*$D$102/12*$D$104,0) -> 0
C110: Construction interest after completion | D110: =ROUND(D101*$D$102/12*$D$105,0) -> 0
C111: Total Construction Interest | D111: =SUM(D108:D110) -> 0
C114: Notes: | I114: =+D18+D21+D22+D26+D27+D28+D29 -> 0 | J114: Construction Costs before Contractor Compensation
C115: =J115&" is "&IF((I114-I115)=0,"0%",TEXT(I115/($I$114-I115),"0.0%")) -> Construction Contingency is 0% | I115: =+D27 -> 0 | J115: =+C27 -> Construction Contingency
C116: =J116&" is "&IF(I114=0,"0%",TEXT(I116/$I$114,"0.0%"))&" of construction costs" -> General Requirements is 0% of construction costs | I116: =+D23 -> 0 | J116: =+C23 -> General Requirements
C117: =J117&" is "&IF(I114=0,"0%",TEXT(I117/$I$114,"0.0%"))&" of construction costs" -> Builder’s Overhead is 0% of construction costs | I117: =+D24 -> 0 | J117: =+C24 -> Builder’s Overhead
C118: =J118&" is "&IF(I114=0,"0%",TEXT(I118/$I$114,"0.0%"))&" of construction costs" -> Builder Profit is 0% of construction costs | I118: =+D25 -> 0 | J118: =+C25 -> Builder Profit
I119: =+D98-D74-SUM(D76:D82) -> 0 | J119: Developer Fee Base
C120: =J120&" is "&IF(I119=0,"0%",TEXT(I120/$I$119,"0.0%"))&" of total development cost (excluding developer fee and initial reserves)" -> Developer's Fee is 0% of total development cost (excluding developer fee and initial reserves) | I120: =+D74 -> 0 | J120: =+C74 -> Developer's Fee
C122: Later in this template, you will calculate the maximum allowable HOME investment and the minimum required number of HOME-assisted units. These calculations take place on the Cost Allocation tab. For these calculations, you need to have identified any development costs that are not HOME-eligible. List the ineligible costs here (these costs can be funded from other sources of funds, but cannot be funded by HOME).
A124: ? | C124: Costs that Are Not HOME-Eligible | D124: Amount | E124: Comment
C125: =+C14 -> Construction Equipment (non-HOME eligible portion) | D125: =+D14+D20 -> 0
C126: =+C11 -> Off-Site Costs (these are not HOME eligible) | D126: =+D11 -> 0
C127: =+C76 -> Initial Rent-Up Reserve (not HOME eligible) | D127: =+D76 -> 0
C128: =+C78 -> Initial Operating Reserve (non-HOME-eligible portion) | D128: 0
C129: Initial Debt Service Reserve (not HOME eligible) | D129: 0
C130: Initial Replacement Reserve (not HOME eligible) | D130: 0
C131: Other HOME-Ineligible Cost 1 | D131: 0
C132: Other HOME-Ineligible Cost 2 | D132: 0
C133: Other HOME-Ineligible Cost 3 | D133: 0
C134: Other HOME-Ineligible Cost 4 | D134: 0
C136: Total Non-HOME-Eligible Costs | D136: =SUM(D124:D135) -> 0
C138: Upon completing this tab, proceed to the Repl Reserve tab

Sheet Repl Reserve
C1: Replacement Reserve | D1: Enter data in green cells only
C2: =Requirements!C4 -> Project Name - : 0 Units | J2: =+Requirements!$G$39 -> 0 | K2: Year PJ HOME Affordability Period
C4: For HOME rental projects involving rehabilitation, Section 92.250(b)(1) of the HOME Final Rule requires the PJ to estimate the long term capital needs of the project and to determine a replacement reserve funding approach that will allow 100% of estimated long term capital needs -- over the HOME period of affordability -- to be funded from the replacement reserve. If the project has 26 total units or more, the PJ must require a capital needs assessment. These requirements must be included in the PJ's underwriting standards for rental projects involving rehabilitation. There is no similar requirement for new construction rental projects, but it would be a best practice for PJs to include a similar requirement in the PJ's underwriting standards for new construction rental projects.
C6: This worksheet will allow the user to determine an annual replacement reserve deposit that will satisfy the 92.250(b) requirement, plus a higher annual reserve deposit that will be adequate over the long term (including the years after completion of the HOME period of affordability).
E8: ? | F8: ? | G8: ? | H8: ? | M8: ? | N8: ? | O8: ?
C9: Component | D9: Quantity | E9: Unit of Measure | F9: Replacement Cost (UoM) | G9: RUL (Years) | H9: EUL (Years) | J9: Replacement Cost (Total) | K9: Per Year of RUL | L9: Per Year of EUL | M9: Repl During HOME POA? | N9: Accrual (HOME) | O9: Accrual (All)
C11: Signage | J11: =+F11*D11 -> 0 | K11: =IF(G11=0,0,$J11/G11) -> 0 | L11: =IF(H11=0,0,$J11/H11) -> 0 | M11: =IF(G11<$J$2,"Yes","No") -> No | N11: =IF(M11="Yes",K11,0) -> 0 | O11: =MAX(K11,L11) -> 0
C12: Driveways and Parking Areas (resurfacing) | J12: 0 | K12: =IF(G12=0,0,$J12/G12) -> 0 | L12: =IF(H12=0,0,$J12/H12) -> 0 | M12: No | N12: 0 | O12: 0
C13: Driveways and Parking Areas (sealing) | J13: 0 | K13: 0 | L13: 0 | M13: No | N13: 0 | O13: 0
C14: Other Site 1 | J14: 0 | K14: 0 | L14: 0 | M14: No | N14: 0 | O14: 0
C15: Other Site 2 | J15: 0 | K15: 0 | L15: 0 | M15: No | N15: 0 | O15: 0
C16: Other Site 3 | J16: 0 | K16: 0 | L16: 0 | M16: No | N16: 0 | O16: 0
C17: Windows | J17: 0 | K17: 0 | L17: 0 | M17: No | N17: 0 | O17: 0
C18: Exterior Walls 1 | J18: 0 | K18: 0 | L18: 0 | M18: No | N18: 0 | O18: 0
C19: Exterior Walls 2 | J19: 0 | K19: 0 | L19: 0 | M19: No | N19: 0 | O19: 0
C20: Exterior Painting | J20: 0 | K20: 0 | L20: 0 | M20: No | N20: 0 | O20: 0
C21: Other Exterior 1 | J21: 0 | K21: 0 | L21: 0 | M21: No | N21: 0 | O21: 0
C22: Other Exterior 2 | J22: 0 | K22: =IF(G22=0,0,$J22/G22) -> 0 | L22: =IF(H22=0,0,$J22/H22) -> 0 | M22: No | N22: 0 | O22: 0
C23: Roofing | J23: 0 | K23: =IF(G23=0,0,$J23/G23) -> 0 | L23: =IF(H23=0,0,$J23/H23) -> 0 | M23: No | N23: 0 | O23: 0
C24: Gutters | J24: 0 | K24: =IF(G24=0,0,$J24/G24) -> 0 | L24: =IF(H24=0,0,$J24/H24) -> 0 | M24: No | N24: 0 | O24: 0
C25: Interior Flooring (Tile) | J25: 0 | K25: 0 | L25: 0 | M25: No | N25: 0 | O25: 0
C26: Interior Flooring (Carpet) | J26: 0 | K26: 0 | L26: 0 | M26: No | N26: 0 | O26: 0
C27: Kitchen Cabinets and Bath Vanities | J27: 0 | K27: 0 | L27: 0 | M27: No | N27: 0 | O27: 0
C28: Counter Tops and Sinks (Kitchens and Baths) | J28: 0 | K28: =IF(G28=0,0,$J28/G28) -> 0 | L28: =IF(H28=0,0,$J28/H28) -> 0 | M28: No | N28: 0 | O28: 0
C29: Refrigerators | J29: 0 | K29: =IF(G29=0,0,$J29/G29) -> 0 | L29: =IF(H29=0,0,$J29/H29) -> 0 | M29: No | N29: 0 | O29: 0
C30: Ranges | J30: 0 | K30: 0 | L30: 0 | M30: No | N30: 0 | O30: 0
C31: Exterior Doors | J31: 0 | K31: 0 | L31: 0 | M31: No | N31: 0 | O31: 0
C32: Elevators | J32: 0 | K32: 0 | L32: 0 | M32: No | N32: 0 | O32: 0
C33: Unit Heating System | J33: 0 | K33: 0 | L33: 0 | M33: No | N33: 0 | O33: 0
C34: Unit Cooling System | J34: 0 | K34: 0 | L34: 0 | M34: No | N34: 0 | O34: 0
C35: Unit Hot Water Heating System | J35: 0 | K35: 0 | L35: 0 | M35: No | N35: 0 | O35: 0
C36: Other Interior 1 | J36: 0 | K36: 0 | L36: 0 | M36: No | N36: 0 | O36: 0
C37: Other Interior 2 | J37: 0 | K37: 0 | L37: 0 | M37: No | N37: 0 | O37: 0
C38: Other Interior 3 | J38: 0 | K38: 0 | L38: 0 | M38: No | N38: 0 | O38: 0
J40: =SUM(J10:J39) -> 0 | N40: =SUM(N10:N39) -> 0 | O40: =SUM(O10:O39) -> 0
C41: Comment on capital needs estimate
C43: Reserve Deposit Adequate During the HOME Period of Affordability (but likely to be inadequate thereafter): For a typical rental project, an annual replacement reserve deposit in the amount described below would satisfy the 92.250(b) requirement so long as (1) the annual deposit is increased each year for inflation and (2) there are no high-cost systems that will require replacement early in the HOME period of affordability. If either condition (1) or condition (2) cannot be satisfied, the PJ will need to make a more sophisticated computation, using a capital needs assessment or using a spreadsheet that is similar to those used in preparing capital needs assessments. Similarly, a more sophisticated computation should be used if the PJ intends to utilize a large initial reserve deposit and a smaller annual deposit. PJs should note that minimum compliance with the 92.250(b) requirement will not generally result in a replacement reserve that will be adequately funded over the long term; see the additional discussion in the next section. Over the HOME affordability period:
C44: ="Long term capital needs accrue at a rate of "&TEXT(N44,"$#,##0")&" per year during the HOME period of affordability. This accrual rate is "&TEXT(N44/'Rents and Income'!$E$31,"$#,##0")&" per unit per year. An annual reserve deposit at this rate (increased annually for inflation) should be adequate to fund 100% of capital needs during the HOME period of affordability, for a typical rental project." ->  | N44: =+N40 -> 0
C46: Reserve Deposit Adequate Over The Long Term: For a typical rental project, an annual replacement reserve deposit in the amount described below would be adequate to fund all long-term capital needs so long as (1) the annual deposit is increased each year for inflation and (2) there are no high-cost systems that will require replacement early in the life of the project. If either condition (1) or condition (2) cannot be satisfied, the PJ will need to make a more sophisticated computation, using a capital needs assessment or using a spreadsheet that is similar to those used in preparing capital needs assessments. Over the long term:
C47: ="Long term capital needs accrue at a rate of "&TEXT(N47,"$#,##0")&" per year (when all building systems are considered). This accrual rate is "&TEXT(N47/'Rents and Income'!$E$31,"$#,##0")&" per unit per year. An annual reserve deposit at this rate (increased annually for inflation) should be adequate to fund 100% of capital needs over the long term, for a typical rental project." ->  | N47: =+O40 -> 0
C49: Upon completing this tab, proceed to the Const Schedule tab

Sheet Const Schedule
C1: Construction Schedule | E1: Enter data in green cells only
C2: =Requirements!C4 -> Project Name - : 0 Units
C4: The HOME Final Rule's definition of commitment specifies that if a project includes rehabilitation or new construction, a construction schedule is required at or before the time of the commitment. Additionally, construction must be scheduled to start within twelve months after the commitment date, and construction must be scheduled to be completed within four years after the commitment date. | K4: Total | L4: Per Unit
C6: Intended HOME Commitment Date | K6: =+SUM('Development Costs'!$D$8:$D$17)+SUM('Development Costs'!$D$18:$D$22) -> 0 | L6: =+K6/'Rents and Income'!$E$31 ->  | N6: Hard cost before contingency
K7: =+'Development Costs'!$D$27 -> 0 | L7: =+K7/'Rents and Income'!$E$31 ->  | M7: =+K7/K6 ->  | N7: Hard cost contingency
C8: Initial Closing Date | F8: =IF(E8="","","months after HOME Commitment Date") ->  | K8: =SUM('Development Costs'!$D$23:$D$25) -> 0 | L8: =+K8/'Rents and Income'!$E$31 ->  | M8: =+K8/K6 ->  | N8: GR / BO / BP
C9: Construction Start Date | E9: =IF(OR(D$6=0,D$6="",D9=0,D9=""),"",(D9-D$6)/(365.25/12)) ->  | F9: =IF(E9="","","months after HOME Commitment Date") ->  | K9: =+SUM('Development Costs'!$D$75:$D$83) -> 0 | L9: =+K9/'Rents and Income'!$E$31 ->  | N9: Initial reserves
C10: Other construction milestone #1 | K10: =+'Development Costs'!$D$98-'Development Costs'!$D$74-$K$9-$K$8-$K$7-$K$6-$K$11 -> 0 | L10: =+K10/'Rents and Income'!$E$31 ->  | N10: Soft costs before contingency
C11: Other construction milestone #2 | K11: =+'Development Costs'!$D$51 -> 0 | L11: =+K11/'Rents and Income'!$E$31 ->  | M11: =+K11/K10 ->  | N11: Soft cost contingency
C12: Other construction milestone #3 | K12: =+'Development Costs'!$D$74 -> 0 | L12: =+K12/'Rents and Income'!$E$31 ->  | M12: =+K12/(K10+K6) ->  | N12: Developer fee (gross)
C13: Other construction milestone #4
C14: First Building Completion Date | K14: =SUM(K5:K13) -> 0 | L14: =+K14/'Rents and Income'!$E$31 ->  | N14: Total Uses of Funds
C15: Last Building Completion Date | E15: =IF(OR(D$9=0,D$9="",D15=0,D15=""),"",(D15-D$9)/(365.25/12)) ->  | F15: =IF(E15="","","months construction time") -> 
E16: =IF(OR(D$6=0,D$6="",D15=0,D15=""),"",(D15-D$6)/(365.25/12)) ->  | F16: =IF(E16="","","months after HOME Commitment Date") -> 
C18: Achievement of Sustaining Occupancy | E18: =IF(OR(D$15=0,D$15="",D18=0,D18=""),"",(D18-D$15)/(365.25/12)) ->  | F18: =IF(E18="","","months lease-up time") -> 
C20: Closing of Permanent Financing | E20: =IF(OR(D$15=0,D$15="",D20=0,D20=""),"",(D20-D$15)/(365.25/12)) ->  | F20: =IF(E20="","","months after construction completion") -> 
C22: =IF(OR(E9="",E9<=12),"","Warning: Construction Scheduled to Start More than 12 Months After HOME Commitment Date") -> 
C24: =IF(OR(E16="",E16<=48),"","Warning: Construction Scheduled to Be Completed More than 48 Months After HOME Commitment Date") -> 
C26: Below, please include any comments about the construction schedule
C29: ="Budgeted construction cost is "&TEXT(L6,"$#,##0")&" per unit. Budgeted hard cost contingency is "&TEXT(M7,"0.0%")&" of hard cost." -> 
C30: ="Budgeted soft costs are "&TEXT(L10,"$#,##0")&" per unit. Budgeted soft cost contingency is "&TEXT(M11,"0.0%")&" of soft cost." -> 
C31: ="The budgeted developer fee is "&TEXT(L12,"$#,##0")&" per unit before any deferral. This is "&TEXT(M12,"0.0%")&" of total hard cost + total soft cost." -> 
C32: Adequacy of the Development Budget and Risk of Cost Increases. Experience indicates that the primary risk of delay in starting construction is unanticipated escalation in development costs, to the extent that the sponsor has to seek additional funding. The three lines above present key information about the development budget, about available contingency allowances, and about the developer fee (which -- if not already deferred -- can provide additional ability to absorb cost increases). The risk of cost increases is most significant early in the development process. Once the plans and specifications are completed and there is a firm-fixed-price construction contract, there is a lower risk of increases in hard costs. However, even if there is a performance bond, there is still the risk of hard cost increases due to change orders. The risk of increases in soft costs depends on how many of the soft costs are subject to firm-fixed-price contracts. Construction period interest costs will run over budget whenever construction takes longer than anticipated. Even if there is no construction loan or bridge loan, additional construction time typically results in increased soft costs of some sort.
C33: Below, please discuss the current state of (1) plans and specs and (2) the construction contract. Discuss whether the contractor is bonded.
C36: Below, please discuss the adequacy of the development budget, the risk of cost increases, and why you are confident that even with moderately severe increases in development cost, the project is still likely to go forward on schedule.
C39: Construction to Start Within Twelve Months. The HOME Final Rule definition of commitment specifies that construction must be scheduled to start within twelve months after the date of the written agreement between the PJ and the project sponsor. Experience indicates that the primary risks of delay in starting construction are (1) unanticipated increases in development cost requiring increased sources of funds; (2) unanticipated difficulties in finalizing non-HOME sources of funds; and (3) unanticipated difficulties with zoning, building permits and other entitlements.
C40: Below, please explain why you believe that construction will start within twelve months. Please address each of the primary risks discussed above.
C44: Upon completing this tab, proceed to the LIHTC Basis tab or (if the project will not be utilizing LIHTCs) to the Operating Expenses tab

Sheet LIHTC Basis
C1: LIHTC Basis | G1: Enter data in green cells only
C2: =Requirements!C4 -> Project Name - : 0 Units
C4: This tab is useful for projects that will have Low Income Housing Tax Credits (LIHTCs). The purpose of this tab is to make a rough estimate of LIHTC equity, which you can use to compare to the developer's estimate. If the rough estimate here is materially different from the developer's estimate, you should ask the developer for an explanation. To enter (or change) the number of LIHTC units, use column P of the Rents and Income tab.
A6: ? | C6: LIHTC Eligible Basis | D6: Acquisition | F6: Construction
C7: Estimated LIHTC Eligible Basis From
C8: 'Development Costs' page | D8: =+'Development Costs'!I98 -> 0 | F8: =+'Development Costs'!J98 -> 0
A10: ? | C10: Less any amounts not eligible as a result of a grant or other ineligible source of funds (enter as negative amounts):
C11: Ineligible
C20: LIHTC Eligible basis | D20: =SUM(D7:D19) -> 0 | F20: =SUM(F7:F19) -> 0
C22: Applicable Fraction by Units: | D22: =IF(D24=0,0,D23/D24) -> 0
C23: Total LIHTC Units | D23: =+'Rents and Income'!P31 -> 0 | F23: (from the Rents and Income tab)
C24: Total Units | D24: =+'Rents and Income'!$E$31 -> 0 | F24: (from the Rents and Income tab)
C33: Applicable Fraction by Square Feet: | D33: =IF(D35=0,0,D34/D35) -> 0
C34: Square feet of total LIHTC Units | D34: =+'Rents and Income'!AC31 -> 0 | F34: (from the Rents and Income tab)
C35: Square feet of total Units | D35: =+'Rents and Income'!F31 -> 0 | F35: (from the Rents and Income tab)
A37: ? | C37: Use This Applicable Fraction: | D37: =MIN(D22,D33) -> 0 | F37: (lowest of the two methods)
C39: LIHTC Calculation | D39: Acquisition | F39: Construction
C41: Eligible Basis | D41: =D20 -> 0 | F41: =F20 -> 0
C42: Applicable Fraction | D42: =D41*$G42 -> 0 | F42: =F41*$G42 -> 0 | G42: =+D37 -> 0
A43: ? | C43: Basis Boost Factor | D43: =D42*$G43 -> 0 | F43: =F42*$G43 -> 0 | G43: 1
A45: ? | C45: Credit Factor
C47: Annual Credits | D47: =+D43*D45 -> 0 | F47: =+F43*F45 -> 0
A49: ? | C49: LIHTC Equity Price (per dollar) | D49: =+F49 -> 0
C51: Estimated LIHTC Equity | D51: =ROUND(D47*10*D49,0) -> 0 | F51: =ROUND(F47*10*F49,0) -> 0
C53: Total Estimated LIHTC Equity | D53: =+D51+F51 -> 0
A54: ? | C54: Proposed LIHTC Equity | D54: =+'Sources and Uses'!D18 -> 0 | F54: =IF(OR(D53=0,D54=0),"",IF(OR(K54<90%,K54>110%),"Verify LIHTC equity amount with applicant","")) ->  | K54: =IF(D54=0,0,D53/D54) -> 0 | L54: estimated as % of proposed
C58: Upon completing this tab, proceed to the Operating Expenses tab.

Sheet Operating Expenses
A1: ? | C1: Operating Expenses | E1: Enter data in green cells only
C2: =Requirements!C4 -> Project Name - : 0 Units
C3: Expense | D3: Annual Cost | E3: Monthly Cost | F3: Per Unit Per Year | G3: Comment
C4: Administrative / Management Expenses
A5: ? | C5: Management Fee | E5: =D5/12 -> 0 | F5: =IF('Rents and Income'!$E$31=0,0,IF(D5=0,"",D5/'Rents and Income'!$E$31)) -> 0
A6: ? | C6: Management Administrative Payroll Costs | E6: =D6/12 -> 0 | F6: =IF('Rents and Income'!$E$31=0,0,IF(D6=0,"",D6/'Rents and Income'!$E$31)) -> 0
A7: ? | C7: Renting / Advertising / Marketing Expenses | E7: =D7/12 -> 0 | F7: =IF('Rents and Income'!$E$31=0,0,IF(D7=0,"",D7/'Rents and Income'!$E$31)) -> 0
A8: ? | C8: Legal Fees | E8: 0 | F8: =IF('Rents and Income'!$E$31=0,0,IF(D8=0,"",D8/'Rents and Income'!$E$31)) -> 0
A9: ? | C9: Accounting / Audit Fees | E9: 0 | F9: =IF('Rents and Income'!$E$31=0,0,IF(D9=0,"",D9/'Rents and Income'!$E$31)) -> 0
A10: ? | C10: Telephone | E10: 0 | F10: =IF('Rents and Income'!$E$31=0,0,IF(D10=0,"",D10/'Rents and Income'!$E$31)) -> 0
C11: Office Supplies | E11: 0 | F11: =IF('Rents and Income'!$E$31=0,0,IF(D11=0,"",D11/'Rents and Income'!$E$31)) -> 0
A12: ? | C12: PJ Monitoring Fee (if any) | E12: =D12/12 -> 0 | F12: =IF('Rents and Income'!$E$31=0,0,IF(D12=0,"",D12/'Rents and Income'!$E$31)) -> 0
A13: ? | E13: 0 | F13: =IF('Rents and Income'!$E$31=0,0,IF(D13=0,"",D13/'Rents and Income'!$E$31)) -> 0
E14: 0 | F14: =IF('Rents and Income'!$E$31=0,0,IF(D14=0,"",D14/'Rents and Income'!$E$31)) -> 0
C15: Operations and Maintenance Expenses
A16: ? | C16: Security | E16: =D16/12 -> 0 | F16: =IF('Rents and Income'!$E$31=0,0,IF(D16=0,"",D16/'Rents and Income'!$E$31)) -> 0
A17: ? | C17: Operations and Maintenance Payroll Costs | E17: 0 | F17: =IF('Rents and Income'!$E$31=0,0,IF(D17=0,"",D17/'Rents and Income'!$E$31)) -> 0
A18: ? | C18: Repairs Supplies | E18: =D18/12 -> 0 | F18: =IF('Rents and Income'!$E$31=0,0,IF(D18=0,"",D18/'Rents and Income'!$E$31)) -> 0
C19: Repairs Contracts | E19: =D19/12 -> 0 | F19: =IF('Rents and Income'!$E$31=0,0,IF(D19=0,"",D19/'Rents and Income'!$E$31)) -> 0
A20: ? | C20: Elevator (if any) | E20: 0 | F20: =IF('Rents and Income'!$E$31=0,0,IF(D20=0,"",D20/'Rents and Income'!$E$31)) -> 0
A21: ? | C21: Other Mechanical Equipment | E21: 0 | F21: =IF('Rents and Income'!$E$31=0,0,IF(D21=0,"",D21/'Rents and Income'!$E$31)) -> 0
A22: ? | C22: Interior Painting | E22: 0 | F22: =IF('Rents and Income'!$E$31=0,0,IF(D22=0,"",D22/'Rents and Income'!$E$31)) -> 0
A23: ? | C23: Exterminating | E23: 0 | F23: =IF('Rents and Income'!$E$31=0,0,IF(D23=0,"",D23/'Rents and Income'!$E$31)) -> 0
C24: Lawn and Landscaping | E24: 0 | F24: =IF('Rents and Income'!$E$31=0,0,IF(D24=0,"",D24/'Rents and Income'!$E$31)) -> 0
C25: Garbage Removal | E25: 0 | F25: =IF('Rents and Income'!$E$31=0,0,IF(D25=0,"",D25/'Rents and Income'!$E$31)) -> 0
C26: Snow Removal | E26: 0 | F26: =IF('Rents and Income'!$E$31=0,0,IF(D26=0,"",D26/'Rents and Income'!$E$31)) -> 0
A27: ? | C27: Resident Service Cost | E27: 0 | F27: =IF('Rents and Income'!$E$31=0,0,IF(D27=0,"",D27/'Rents and Income'!$E$31)) -> 0
A28: ? | E28: 0 | F28: =IF('Rents and Income'!$E$31=0,0,IF(D28=0,"",D28/'Rents and Income'!$E$31)) -> 0
E29: 0 | F29: =IF('Rents and Income'!$E$31=0,0,IF(D29=0,"",D29/'Rents and Income'!$E$31)) -> 0
C30: Utilities Paid by the Property
A31: ? | C31: Electricity | E31: =D31/12 -> 0 | F31: =IF('Rents and Income'!$E$31=0,0,IF(D31=0,"",D31/'Rents and Income'!$E$31)) -> 0
C32: Natural Gas, Oil, Other Fuel | E32: =D32/12 -> 0 | F32: =IF('Rents and Income'!$E$31=0,0,IF(D32=0,"",D32/'Rents and Income'!$E$31)) -> 0
C33: Sewer and Water | E33: =D33/12 -> 0 | F33: =IF('Rents and Income'!$E$31=0,0,IF(D33=0,"",D33/'Rents and Income'!$E$31)) -> 0
A34: ? | E34: =D34/12 -> 0 | F34: =IF('Rents and Income'!$E$31=0,0,IF(D34=0,"",D34/'Rents and Income'!$E$31)) -> 0
C35: Taxes / Insurance / Other Expenses
A36: ? | C36: Real Estate Taxes | E36: =D36/12 -> 0 | F36: =IF('Rents and Income'!$E$31=0,0,IF(D36=0,"",D36/'Rents and Income'!$E$31)) -> 0
C37: Payroll Taxes | F37: =IF('Rents and Income'!$E$31=0,0,IF(D37=0,"",D37/'Rents and Income'!$E$31)) -> 0
C38: Other Taxes and Licenses | E38: =D38/12 -> 0 | F38: =IF('Rents and Income'!$E$31=0,0,IF(D38=0,"",D38/'Rents and Income'!$E$31)) -> 0
A39: ? | C39: Property Insurance | E39: =D39/12 -> 0 | F39: =IF('Rents and Income'!$E$31=0,0,IF(D39=0,"",D39/'Rents and Income'!$E$31)) -> 0
A40: ? | C40: Workers Compensation Insurance | F40: =IF('Rents and Income'!$E$31=0,0,IF(D40=0,"",D40/'Rents and Income'!$E$31)) -> 0
C41: Health Insurance / Other Employee Benefits | F41: =IF('Rents and Income'!$E$31=0,0,IF(D41=0,"",D41/'Rents and Income'!$E$31)) -> 0
A42: ? | E42: =D42/12 -> 0 | F42: =IF('Rents and Income'!$E$31=0,0,IF(D42=0,"",D42/'Rents and Income'!$E$31)) -> 0
E43: =D43/12 -> 0 | F43: =IF('Rents and Income'!$E$31=0,0,IF(D43=0,"",D43/'Rents and Income'!$E$31)) -> 0
C45: TOTAL OPERATING EXPENSES | D45: =SUM(D4:D44) -> 0 | E45: =D45/12 -> 0 | F45: =IF('Rents and Income'!$E$31=0,0,IF(D45=0,"",D45/'Rents and Income'!$E$31)) -> 0
A47: ? | C47: Reserve for Replacement Deposit | E47: =D47/12 -> 0 | F47: =IF('Rents and Income'!$E$31=0,0,IF(D47=0,"",D47/'Rents and Income'!$E$31)) -> 0
C49: TOTAL EXPENSES PLUS RESERVE | D49: =+D45+D47 -> 0 | E49: =D49/12 -> 0 | F49: =IF('Rents and Income'!$E$31=0,0,IF(D49=0,"",D49/'Rents and Income'!$E$31)) -> 0
C51: SUBTOTAL ADMINISTRATIVE EXPENSES | D51: =SUM(D4:D15) -> 0 | E51: =SUM(E4:E15) -> 0 | F51: =SUM(F4:F15) -> 0
C52: SUBTOTAL O&M EXPENSES | D52: =SUM(D15:D30) -> 0 | E52: =SUM(E15:E30) -> 0 | F52: =SUM(F15:F30) -> 0
C53: SUBTOTAL OWNER PAID UTILITIES | D53: =SUM(D30:D35) -> 0 | E53: =SUM(E30:E35) -> 0 | F53: =SUM(F30:F35) -> 0
C54: SUBTOTAL TAXES / INSURANCE / OTHER | D54: =SUM(D35:D44) -> 0 | E54: =SUM(E35:E44) -> 0 | F54: =SUM(F35:F44) -> 0
C55: TOTAL OPERATING EXPENSES | D55: =SUM(D50:D54) -> 0 | E55: =SUM(E50:E54) -> 0 | F55: =SUM(F50:F54) -> 0
C59: Upon completing this tab, proceed to the First Mortgage Sizing tab.

Sheet First Mortgage Sizing
A1: ? | C1: First Mortgage Sizing and | D1: Enter data in green cells only
C2: Junior Loan Characteristics | D2: =Requirements!C4 -> Project Name - : 0 Units
A4: ? | C4: Net Operating Income Summary | D4: Annual | E4: HOME Units | F4: Other Affordable | G4: Market Units
C6: Gross Potential Rents | D6: =+'Rents and Income'!I32 -> 0 | E6: =+'Rents and Income'!X31*12 -> 0 | F6: =+'Rents and Income'!Y31*12 -> 0 | G6: =+'Rents and Income'!Z31*12 -> 0
C7: Rent Loss | D7: =SUM(E7:G7) -> 0 | E7: =-ROUND(E6*'Rents and Income'!E39,0) -> 0 | F7: =-ROUND(F6*'Rents and Income'!F39,0) -> 0 | G7: =-ROUND(G6*'Rents and Income'!G39,0) -> 0
C8: Other Income | D8: =+'Rents and Income'!E48*12 -> 0
C10: Effective Gross Income | D10: =SUM(D5:D9) -> 0
C12: Total Operating Expenses | D12: =-'Operating Expenses'!D45 -> 0
C13: Replacement Reserve Deposit | D13: =-'Operating Expenses'!D47 -> 0
C15: Net Operating Income (NOI) | D15: =SUM(D10:D14) -> 0
C17: Capitalization Rate and Value
A18: ? | C18: Capitalization Rate
C19: Calculated Market Value | E19: (NOI ÷ Capitalization Rate)
A20: ? | C20: Lender's Appraised Value for the Project
A21: ? | C21: Value of Project at Sale** | E21: =" (Year of sale is year "&'Pro Forma Assumptions'!$D$24&")" -> (Year of sale is year )
C22: ** If Value of Project at Sale is left blank, the Template will use the Capitalization Rate to determine the project's value when sold.
C26: In this Template: First Mortgage means a fixed-rate, fixed-payment, self-amortizing loan (without balloon payments). Amortizing Second Mortgage means a junior fixed-rate, fixed-payment, self-amortizing loan (without balloon payments). Deferred Payment Loan means a loan that will receive no payments during its term. Custom Loan means any other type of loan (i.e., with some payments but not fixed-payment / self-amortizing).
A28: ? | C28: First Mortgage Characteristics
A29: ? | C29: Minimum Debt Service Coverage
A30: ? | C30: Maximum Loan to Value
C31: Interest Rate | E31: =IF(ISERROR(PMT(D31/12,D33*12,-1)*12),0,PMT(D31/12,D33*12,-1)*12) -> 0 | F31: Annual P+I as % of loan amount
A32: ? | C32: Mortgage Insurance Premium | E32: =+D32 -> 0 | F32: Annual MIP as % of loan amount
A33: ? | C33: Loan Term (years)
A34: ? | C34: First Mortgage Lender
C38: For each loan below, the Template asks 'Is this loan funded by the HOME program?'. The Template uses your answers to calculate the total amount of proposed HOME funding, recognizing that you may be planning multiple types of HOME funding (for example, a first mortgage loan with required monthly payments plus a soft second mortgage loan with payments limited to a share of cash flow). Later, on the Sources and Uses tab, you will verify that the proposed total HOME funding does not exceed the project's funding gap.
C40: First Mortgage Loan Amount
C41: Maximum Loan Amount by LTV | D41: =ROUNDDOWN(D20*D30,-2) -> 0 | E41: (Lender's value x maximum LTV) | J41: Yes | K41: No
C42: Maximum Loan Amount by DSC | D42: =IF(ISERROR(ROUNDDOWN(D15/D29/(E31+E32),-2)),0,ROUNDDOWN(D15/D29/(E31+E32),-2)) -> 0 | E42: (NOI ÷ DSC ÷ [PI factor + MIP factor])
C43: Calculated Maximum Loan Amount | D43: =MIN(D41:D42) -> 0 | E43: (Lesser of the two limitations above)
A44: ? | C44: Lender's Proposed Loan Amount
C45: Is this loan funded by the HOME program? | D45: No
C46: Calculated Monthly P+I+MIP Payment | D46: =IF(OR(D41=0,D33=0),0,D44*(E31+E32)/12) -> 0 | E46: (This total is sometimes referred to as the 'debt service' payment)
C48: Debt Service Coverage (DSC) is the ratio of Net Operating Income to the 1st mortgage debt service payment (P+I+MIP). If the ratio is below 1.0 it means that there is not enough NOI to cover the debt service payment, and the proposed project will not be viable unless the first mortgage debt service payment can be reduced (for example, by utilizing more HOME funds so that the first mortgage loan amount can be reduced). The HOME underwriter will want to consider whether to require DSC that is higher than required by the first mortgage lender. In general, the higher the DSC, the less risk that the project will have negative cash flow because of a future revenue or expense problem. However, a high DSC may indicate that the first mortgage loan amount can be increased (without endangering the finances of the project) which would allow HOME funding to be decreased.
C50: Estimated Debt Service Coverage (DSC) Ratio | D50: =IF(D46=0,0,D15/(D46*12)) -> 0 | E50: =IF(D50=0,"",IF(D50<1,"Warning: Estimated DSC is below 1.0",IF(D50<1.1,"Warning: DSC is between 1.0 and 1.1",""))) -> 
C52: First Mortgage Lender Origination and Financing Fees (Points)
A53: ? | C53: Origination and Financing Fees | D53: 0.02 | E53: of the loan amount
C54: Calculated Origination and Financing Fees | D54: =ROUND(D44*D53,0) -> 0
C55: Amount entered on Development Costs tab | D55: =ROUND('Development Costs'!D67,0) -> 0 | E55: =IF(D54=D55,"","Differs from calculated amount above") -> 
A57: ? | C57: Characteristics of Amortizing Second Mortgage Loan
C58: Amortizing Second Mortgage Loan Amount
C59: Is this loan funded by the HOME program?
C60: Amortizing Second Mortgage Source
C61: Interest Rate
C62: Loan Term (years)
C63: Calculated Monthly P+I Payment | D63: =IF(OR(D58=0,D62=0),0,-PMT(D61/12,D62*12,D58)) -> 0
A65: ? | C65: Final year of Operating Pro Forma | D65: =ROUND('Pro Forma Assumptions'!$D$24,0) -> 0 | E65: (from Pro Forma Assumptions page)
A67: ? | C67: Characteristics of Deferred Payment Loan #1
C68: Name of Deferred Payment Loan #1
C69: ="Loan Amount for "&D68 -> Loan Amount for
C70: Is this loan funded by the HOME program?
C71: ="Lender for "&D68 -> Lender for
C72: ="Interest Rate for "&D68 -> Interest Rate for
C73: ="Loan Term (Maturity) for "&D68 -> Loan Term (Maturity) for | E73: =IF(OR(D73=0,ROUND(D73,0)>=D65),"","Warning: Loan matures prior to sale of the property") -> 
C74: A deferred loan is one with no payments due until maturity
A77: ? | C77: Characteristics of Deferred Payment Loan #2
C78: Name of Deferred Payment Loan #2
C79: ="Loan Amount for "&D78 -> Loan Amount for
C80: Is this loan funded by the HOME program?
C81: ="Lender for "&D78 -> Lender for
C82: ="Interest Rate for "&D78 -> Interest Rate for
C83: ="Loan Term (Maturity) for "&D78 -> Loan Term (Maturity) for | E83: =IF(ROUND(D83,0)>=D75,"","Warning: Loan matures prior to sale of the property") -> 
C84: A deferred loan is one with no payments due until maturity
A87: ? | C87: Characteristics of Custom Loan #1
C88: Name of Custom Loan #1
C89: ="Loan Amount for "&D88 -> Loan Amount for
C90: Is this loan funded by the HOME program?
C91: ="Lender for "&D88 -> Lender for
C92: ="Interest Rate for "&D88 -> Interest Rate for
C93: ="Loan Term (Maturity) for "&D88 -> Loan Term (Maturity) for | E93: =IF(ROUND(D93,0)>=D85,"","Warning: Loan matures prior to sale of the property") -> 
C94: A custom loan has payments prior to maturity but is not a normal fixed rate amortizing loan.
C95: Enter the annual payments for this loan directly on the Operating Pro Forma tab.
A98: ? | C98: Characteristics of Custom Loan #2
C99: Name of Custom Loan #2
C100: Loan Amount (Custom loan 1)
C101: Is this loan funded by the HOME program?
C102: Custom Loan 1 Source
C103: Custom Loan 1 Interest Rate
C104: Custom Loan 1 Year of Maturity | E104: =IF(ROUND(D104,0)>=D96,"","Warning: Loan matures prior to sale of the property") -> 
C105: A custom loan has payments prior to maturity but is not a normal fixed rate amortizing loan.
C106: Enter the annual payments for this loan directly on the Operating Pro Forma tab.
C110: Upon completing this tab, proceed to the Sources and Uses tab.

Sheet Sources and Uses
C1: Sources and Uses of Funds | F1: Enter data in green cells only
C3: =Requirements!C4 -> Project Name - : 0 Units
O4: Amounts Funded by HOME
C5: In this template, the underwriter enters all proposed Sources of Funds (including HOME) on this tab (other than those that were already entered on the First Mortgage Sizing tab). The Uses of Funds are repeated below (from the Development Costs tab). Then the template verifies whether the Sources and Uses are in balance; be sure that Sources and Uses are balanced before moving forward. If there are insufficient Sources, potential solutions include deferring a greater portion of the developer fee, increasing HOME funding, and obtaining increased funding from some other source. If there are excess Sources, the HOME underwriter should consider reducing the proposed HOME funding. PJs must perform cost allocation separately from this tool to verify that the proposed amount of HOME funding is within the allowable maximum HOME investment.
A7: ? | C7: Sources of Funds | D7: Amount | E7: HOME? | F7: Comment
A8: ? | C8: First Mortgage Loan (proposed amount) | D8: ='First Mortgage Sizing'!D44 -> 0 | E8: =+N8 -> No | H8: =+'First Mortgage Sizing'!D43 -> 0 | I8: is estimated on the 1st Mortgage Sizing tab | M8: =+'First Mortgage Sizing'!D34 -> 0 | N8: =+'First Mortgage Sizing'!D45 -> No | O8: =IF(E8="Yes",D8,0) -> 0 | P8: Yes | Q8: No
C9: Amortizing Second Mortgage Loan | D9: =+'First Mortgage Sizing'!D58 -> 0 | E9: 0 | M9: =+'First Mortgage Sizing'!D60 -> 0 | N9: =+'First Mortgage Sizing'!D59 -> 0 | O9: 0
C10: =IF(OR('First Mortgage Sizing'!D68=0,'First Mortgage Sizing'!D68=""),"",'First Mortgage Sizing'!D68) ->  | D10: =+'First Mortgage Sizing'!D69 -> 0 | E10: 0 | M10: =+'First Mortgage Sizing'!D71 -> 0 | N10: =+'First Mortgage Sizing'!D70 -> 0 | O10: 0
C11: =IF(OR('First Mortgage Sizing'!D78=0,'First Mortgage Sizing'!D78=""),"",'First Mortgage Sizing'!D78) ->  | D11: =+'First Mortgage Sizing'!D79 -> 0 | E11: 0 | M11: =+'First Mortgage Sizing'!D81 -> 0 | N11: =+'First Mortgage Sizing'!D80 -> 0 | O11: 0
C12: =IF(OR('First Mortgage Sizing'!D88=0,'First Mortgage Sizing'!D88=""),"",'First Mortgage Sizing'!D88) ->  | D12: =+'First Mortgage Sizing'!D89 -> 0 | E12: 0 | M12: =+'First Mortgage Sizing'!D91 -> 0 | N12: =+'First Mortgage Sizing'!D90 -> 0 | O12: 0
C13: =IF(OR('First Mortgage Sizing'!D99=0,'First Mortgage Sizing'!D99=""),"",'First Mortgage Sizing'!D99) ->  | D13: =+'First Mortgage Sizing'!D100 -> 0 | E13: 0 | M13: =+'First Mortgage Sizing'!D102 -> 0 | N13: =+'First Mortgage Sizing'!D101 -> 0 | O13: 0
A14: ? | C14: Deferred Developer Fee | O14: =IF(E14="Yes",D16,0) -> 0
A15: ? | C15: Developer Cash Investment | O15: =IF(E15="Yes",D17,0) -> 0
A16: ? | C16: Tax Credit Equity (proposed amount) | H16: =+'LIHTC Basis'!D53 -> 0 | I16: is estimated on the LIHTC Basis tab | O16: =IF(E16="Yes",D18,0) -> 0
A17: ? | O17: =IF(E17="Yes",#REF!,0) -> 0
O18: =IF(E18="Yes",#REF!,0) -> 0
O19: 0
O20: 0
O21: 0
O22: 0
C23: Total Sources of Funds | D23: =ROUND(SUM(D7:D22),0) -> 0 | O23: =ROUND(SUM(O7:O22),0) -> 0
A25: ? | C25: Total HOME Funding | D25: =+O23 -> 0
A26: ? | C26: Developer Investment for Financial Analysis | D26: =+D16+D17 -> 0 | F26: (used in Operating Pro Forma for IRR, etc.)
A28: ? | C28: Uses of Funds / Total Development Cost | D28: Amount | E28: Comment
C29: Acquisition Costs | D29: =SUM('Development Costs'!D4:D8) -> 0
C30: Site Work Costs | D30: =SUM('Development Costs'!D8:D17) -> 0
C31: Construction / Rehabilitation Costs | D31: =SUM('Development Costs'!D17:D30) -> 0
C32: Architectural / Engineering Costs | D32: =SUM('Development Costs'!D30:D35) -> 0
C33: Other Owner Costs | D33: =SUM('Development Costs'!D35:D54) -> 0
C34: Construction Interest | D34: =+'Development Costs'!D57 -> 0
C35: Other Interim Financing Costs | D35: =SUM('Development Costs'!D54:D65)-D34 -> 0
C36: Permanent Financing Costs | D36: =SUM('Development Costs'!D65:D75)-D37 -> 0
C37: Developer's Fee | D37: =+'Development Costs'!D74 -> 0
C38: Initial Project Reserves | D38: =SUM('Development Costs'!D75:D83) -> 0
C39: Project Management Costs | D39: =SUM('Development Costs'!D83:D90) -> 0
C40: Other Development Costs | D40: =D41-SUM(D28:D39) -> 0
C41: Total Uses of Funds | D41: =ROUND('Development Costs'!D98,0) -> 0
C43: Subsidy layering gap (before HOME funding) | D43: =+D41-(D23-D25) -> 0 | E43: (Total Uses of Funds minus Total Sources of Funds other than HOME)
C45: =IF(H45=0,"",IF(H45>0,"Inadequate sources of funds; "&TEXT($H$45,"$#,##0")&" of additional sources are needed","Excess sources of funds; sources need to be reduced by "&TEXT(-$H$45,"$#,##0"))) ->  | H45: =+D41-D23 -> 0
C49: Upon completing this tab, proceed to the Sources and Uses By Month tab. The Sources and Uses By Month tab is optional but is highly
C50: recommended, as a way of verifying the construction interest estimate from the Development Costs tab.

Sheet S&U By Month
A1: ? | C1: Sources and Uses by Month | D1: Enter data in green cells only
C2: =Requirements!C4 -> Project Name - : 0 Units
E3: 0 | F3: 1 | G3: =+F3+1 -> 2 | H3: =+G3+1 -> 3 | I3: 4 | J3: 5 | K3: 6 | L3: 7 | M3: 8 | N3: 9 | O3: 10 | P3: 11 | Q3: 12 | R3: =+Q3+1 -> 13 | S3: 14 | T3: 15 | U3: 16 | V3: 17 | W3: 18 | X3: 19 | Y3: 20 | Z3: 21 | AA3: 22 | AB3: 23 | AC3: 24
C4: Months of Construction | D4: =ROUND('Development Costs'!D104,0) -> 0 | F4: =IF(F3=$D$4,"Construction Completion",IF(F3=$D$4+$D$5,"Const. Loan Payoff","")) -> 
C5: Months Const. Loan Outstanding After Completion | D5: =ROUND('Development Costs'!D105,0) -> 0
A7: ? | C7: Development Costs (Uses of Funds) | D7: Total | E7: Initial Closing / First Draw | F7: ="Month "&F3 -> Month 1 | G7: ="Month "&G3 -> Month 2 | H7: Month 3 | I7: Month 4 | J7: Month 5 | K7: Month 6 | L7: Month 7 | M7: Month 8 | N7: Month 9 | O7: Month 10 | P7: Month 11 | Q7: Month 12 | R7: ="Month "&R3 -> Month 13 | S7: Month 14 | T7: Month 15 | U7: Month 16 | V7: Month 17 | W7: Month 18 | X7: Month 19 | Y7: Month 20 | Z7: Month 21 | AA7: Month 22 | AB7: Month 23 | AC7: Month 24 | AE7: Total For All Months
C8: Acquisition Costs
C9: =+'Development Costs'!C5 -> Land | D9: =+'Development Costs'!D5 -> 0 | E9: =+D9 -> 0 | F9: =IF($D$4=0,0,ROUND((D9-E9)/$D$4,0)) -> 0 | G9: =IF(G$3<$D$4,F9,IF(G$3=$D$4,$D9-SUM($E9:F9),0)) -> 0 | H9: =IF(H$3<$D$4,G9,IF(H$3=$D$4,$D9-SUM($E9:G9),0)) -> 0 | I9: =IF(I$3<$D$4,H9,IF(I$3=$D$4,$D9-SUM($E9:H9),0)) -> 0 | J9: =IF(J$3<$D$4,I9,IF(J$3=$D$4,$D9-SUM($E9:I9),0)) -> 0 | K9: =IF(K$3<$D$4,J9,IF(K$3=$D$4,$D9-SUM($E9:J9),0)) -> 0 | L9: =IF(L$3<$D$4,K9,IF(L$3=$D$4,$D9-SUM($E9:K9),0)) -> 0 | M9: =IF(M$3<$D$4,L9,IF(M$3=$D$4,$D9-SUM($E9:L9),0)) -> 0 | N9: =IF(N$3<$D$4,M9,IF(N$3=$D$4,$D9-SUM($E9:M9),0)) -> 0 | O9: =IF(O$3<$D$4,N9,IF(O$3=$D$4,$D9-SUM($E9:N9),0)) -> 0 | P9: =IF(P$3<$D$4,O9,IF(P$3=$D$4,$D9-SUM($E9:O9),0)) -> 0 | Q9: =IF(Q$3<$D$4,P9,IF(Q$3=$D$4,$D9-SUM($E9:P9),0)) -> 0 | R9: =IF(R$3<$D$4,Q9,IF(R$3=$D$4,$D9-SUM($E9:Q9),0)) -> 0 | S9: =IF(S$3<$D$4,R9,IF(S$3=$D$4,$D9-SUM($E9:R9),0)) -> 0 | T9: =IF(T$3<$D$4,S9,IF(T$3=$D$4,$D9-SUM($E9:S9),0)) -> 0 | U9: =IF(U$3<$D$4,T9,IF(U$3=$D$4,$D9-SUM($E9:T9),0)) -> 0 | V9: =IF(V$3<$D$4,U9,IF(V$3=$D$4,$D9-SUM($E9:U9),0)) -> 0 | W9: =IF(W$3<$D$4,V9,IF(W$3=$D$4,$D9-SUM($E9:V9),0)) -> 0 | X9: =IF(X$3<$D$4,W9,IF(X$3=$D$4,$D9-SUM($E9:W9),0)) -> 0 | Y9: =IF(Y$3<$D$4,X9,IF(Y$3=$D$4,$D9-SUM($E9:X9),0)) -> 0 | Z9: =IF(Z$3<$D$4,Y9,IF(Z$3=$D$4,$D9-SUM($E9:Y9),0)) -> 0 | AA9: =IF(AA$3<$D$4,Z9,IF(AA$3=$D$4,$D9-SUM($E9:Z9),0)) -> 0 | AB9: =IF(AB$3<$D$4,AA9,IF(AB$3=$D$4,$D9-SUM($E9:AA9),0)) -> 0 | AC9: =IF(AC$3<$D$4,AB9,IF(AC$3=$D$4,$D9-SUM($E9:AB9),0)) -> 0 | AE9: =SUM(E9:AC9) -> 0 | AF9: =IF(AE9>D9,"ERROR: Total Amount Drawn Exceeds Total Available","") -> 
C10: =+'Development Costs'!C6 -> Existing Structures | D10: =+'Development Costs'!D6 -> 0 | E10: =+D10 -> 0 | F10: =IF($D$4=0,0,ROUND((D10-E10)/$D$4,0)) -> 0 | G10: =IF(G$3<$D$4,F10,IF(G$3=$D$4,$D10-SUM($E10:F10),0)) -> 0 | H10: =IF(H$3<$D$4,G10,IF(H$3=$D$4,$D10-SUM($E10:G10),0)) -> 0 | I10: =IF(I$3<$D$4,H10,IF(I$3=$D$4,$D10-SUM($E10:H10),0)) -> 0 | J10: =IF(J$3<$D$4,I10,IF(J$3=$D$4,$D10-SUM($E10:I10),0)) -> 0 | K10: =IF(K$3<$D$4,J10,IF(K$3=$D$4,$D10-SUM($E10:J10),0)) -> 0 | L10: =IF(L$3<$D$4,K10,IF(L$3=$D$4,$D10-SUM($E10:K10),0)) -> 0 | M10: =IF(M$3<$D$4,L10,IF(M$3=$D$4,$D10-SUM($E10:L10),0)) -> 0 | N10: =IF(N$3<$D$4,M10,IF(N$3=$D$4,$D10-SUM($E10:M10),0)) -> 0 | O10: =IF(O$3<$D$4,N10,IF(O$3=$D$4,$D10-SUM($E10:N10),0)) -> 0 | P10: =IF(P$3<$D$4,O10,IF(P$3=$D$4,$D10-SUM($E10:O10),0)) -> 0 | Q10: =IF(Q$3<$D$4,P10,IF(Q$3=$D$4,$D10-SUM($E10:P10),0)) -> 0 | R10: =IF(R$3<$D$4,Q10,IF(R$3=$D$4,$D10-SUM($E10:Q10),0)) -> 0 | S10: =IF(S$3<$D$4,R10,IF(S$3=$D$4,$D10-SUM($E10:R10),0)) -> 0 | T10: =IF(T$3<$D$4,S10,IF(T$3=$D$4,$D10-SUM($E10:S10),0)) -> 0 | U10: =IF(U$3<$D$4,T10,IF(U$3=$D$4,$D10-SUM($E10:T10),0)) -> 0 | V10: =IF(V$3<$D$4,U10,IF(V$3=$D$4,$D10-SUM($E10:U10),0)) -> 0 | W10: =IF(W$3<$D$4,V10,IF(W$3=$D$4,$D10-SUM($E10:V10),0)) -> 0 | X10: =IF(X$3<$D$4,W10,IF(X$3=$D$4,$D10-SUM($E10:W10),0)) -> 0 | Y10: =IF(Y$3<$D$4,X10,IF(Y$3=$D$4,$D10-SUM($E10:X10),0)) -> 0 | Z10: =IF(Z$3<$D$4,Y10,IF(Z$3=$D$4,$D10-SUM($E10:Y10),0)) -> 0 | AA10: =IF(AA$3<$D$4,Z10,IF(AA$3=$D$4,$D10-SUM($E10:Z10),0)) -> 0 | AB10: =IF(AB$3<$D$4,AA10,IF(AB$3=$D$4,$D10-SUM($E10:AA10),0)) -> 0 | AC10: =IF(AC$3<$D$4,AB10,IF(AC$3=$D$4,$D10-SUM($E10:AB10),0)) -> 0 | AE10: =SUM(E10:AC10) -> 0 | AF10: =IF(AE10>D10,"ERROR: Total Amount Drawn Exceeds Total Available","") -> 
C11: =+'Development Costs'!C7 -> 0 | D11: =+'Development Costs'!D7 -> 0 | E11: =+D11 -> 0 | F11: 0 | G11: =IF(G$3<$D$4,F11,IF(G$3=$D$4,$D11-SUM($E11:F11),0)) -> 0 | H11: =IF(H$3<$D$4,G11,IF(H$3=$D$4,$D11-SUM($E11:G11),0)) -> 0 | I11: =IF(I$3<$D$4,H11,IF(I$3=$D$4,$D11-SUM($E11:H11),0)) -> 0 | J11: =IF(J$3<$D$4,I11,IF(J$3=$D$4,$D11-SUM($E11:I11),0)) -> 0 | K11: =IF(K$3<$D$4,J11,IF(K$3=$D$4,$D11-SUM($E11:J11),0)) -> 0 | L11: =IF(L$3<$D$4,K11,IF(L$3=$D$4,$D11-SUM($E11:K11),0)) -> 0 | M11: =IF(M$3<$D$4,L11,IF(M$3=$D$4,$D11-SUM($E11:L11),0)) -> 0 | N11: =IF(N$3<$D$4,M11,IF(N$3=$D$4,$D11-SUM($E11:M11),0)) -> 0 | O11: =IF(O$3<$D$4,N11,IF(O$3=$D$4,$D11-SUM($E11:N11),0)) -> 0 | P11: =IF(P$3<$D$4,O11,IF(P$3=$D$4,$D11-SUM($E11:O11),0)) -> 0 | Q11: =IF(Q$3<$D$4,P11,IF(Q$3=$D$4,$D11-SUM($E11:P11),0)) -> 0 | R11: =IF(R$3<$D$4,Q11,IF(R$3=$D$4,$D11-SUM($E11:Q11),0)) -> 0 | S11: =IF(S$3<$D$4,R11,IF(S$3=$D$4,$D11-SUM($E11:R11),0)) -> 0 | T11: =IF(T$3<$D$4,S11,IF(T$3=$D$4,$D11-SUM($E11:S11),0)) -> 0 | U11: =IF(U$3<$D$4,T11,IF(U$3=$D$4,$D11-SUM($E11:T11),0)) -> 0 | V11: =IF(V$3<$D$4,U11,IF(V$3=$D$4,$D11-SUM($E11:U11),0)) -> 0 | W11: =IF(W$3<$D$4,V11,IF(W$3=$D$4,$D11-SUM($E11:V11),0)) -> 0 | X11: =IF(X$3<$D$4,W11,IF(X$3=$D$4,$D11-SUM($E11:W11),0)) -> 0 | Y11: =IF(Y$3<$D$4,X11,IF(Y$3=$D$4,$D11-SUM($E11:X11),0)) -> 0 | Z11: =IF(Z$3<$D$4,Y11,IF(Z$3=$D$4,$D11-SUM($E11:Y11),0)) -> 0 | AA11: =IF(AA$3<$D$4,Z11,IF(AA$3=$D$4,$D11-SUM($E11:Z11),0)) -> 0 | AB11: =IF(AB$3<$D$4,AA11,IF(AB$3=$D$4,$D11-SUM($E11:AA11),0)) -> 0 | AC11: =IF(AC$3<$D$4,AB11,IF(AC$3=$D$4,$D11-SUM($E11:AB11),0)) -> 0 | AE11: 0
C12: Site Work Costs (not included in construction contract)
C13: =+'Development Costs'!C9 -> Demolition/Clearance | D13: =+'Development Costs'!D9 -> 0 | E13: =+D13 -> 0 | F13: =IF($D$4=0,0,ROUND((D13-E13)/$D$4,0)) -> 0 | G13: =IF(G$3<$D$4,F13,IF(G$3=$D$4,$D13-SUM($E13:F13),0)) -> 0 | H13: =IF(H$3<$D$4,G13,IF(H$3=$D$4,$D13-SUM($E13:G13),0)) -> 0 | I13: =IF(I$3<$D$4,H13,IF(I$3=$D$4,$D13-SUM($E13:H13),0)) -> 0 | J13: =IF(J$3<$D$4,I13,IF(J$3=$D$4,$D13-SUM($E13:I13),0)) -> 0 | K13: =IF(K$3<$D$4,J13,IF(K$3=$D$4,$D13-SUM($E13:J13),0)) -> 0 | L13: =IF(L$3<$D$4,K13,IF(L$3=$D$4,$D13-SUM($E13:K13),0)) -> 0 | M13: =IF(M$3<$D$4,L13,IF(M$3=$D$4,$D13-SUM($E13:L13),0)) -> 0 | N13: =IF(N$3<$D$4,M13,IF(N$3=$D$4,$D13-SUM($E13:M13),0)) -> 0 | O13: =IF(O$3<$D$4,N13,IF(O$3=$D$4,$D13-SUM($E13:N13),0)) -> 0 | P13: =IF(P$3<$D$4,O13,IF(P$3=$D$4,$D13-SUM($E13:O13),0)) -> 0 | Q13: =IF(Q$3<$D$4,P13,IF(Q$3=$D$4,$D13-SUM($E13:P13),0)) -> 0 | R13: =IF(R$3<$D$4,Q13,IF(R$3=$D$4,$D13-SUM($E13:Q13),0)) -> 0 | S13: =IF(S$3<$D$4,R13,IF(S$3=$D$4,$D13-SUM($E13:R13),0)) -> 0 | T13: =IF(T$3<$D$4,S13,IF(T$3=$D$4,$D13-SUM($E13:S13),0)) -> 0 | U13: =IF(U$3<$D$4,T13,IF(U$3=$D$4,$D13-SUM($E13:T13),0)) -> 0 | V13: =IF(V$3<$D$4,U13,IF(V$3=$D$4,$D13-SUM($E13:U13),0)) -> 0 | W13: =IF(W$3<$D$4,V13,IF(W$3=$D$4,$D13-SUM($E13:V13),0)) -> 0 | X13: =IF(X$3<$D$4,W13,IF(X$3=$D$4,$D13-SUM($E13:W13),0)) -> 0 | Y13: =IF(Y$3<$D$4,X13,IF(Y$3=$D$4,$D13-SUM($E13:X13),0)) -> 0 | Z13: =IF(Z$3<$D$4,Y13,IF(Z$3=$D$4,$D13-SUM($E13:Y13),0)) -> 0 | AA13: =IF(AA$3<$D$4,Z13,IF(AA$3=$D$4,$D13-SUM($E13:Z13),0)) -> 0 | AB13: =IF(AB$3<$D$4,AA13,IF(AB$3=$D$4,$D13-SUM($E13:AA13),0)) -> 0 | AC13: =IF(AC$3<$D$4,AB13,IF(AC$3=$D$4,$D13-SUM($E13:AB13),0)) -> 0 | AE13: =SUM(E13:AC13) -> 0 | AF13: =IF(AE13>D13,"ERROR: Total Amount Drawn Exceeds Total Available","") -> 
C14: =+'Development Costs'!C10 -> Site Remediation | D14: =+'Development Costs'!D10 -> 0 | E14: =+D14 -> 0 | F14: 0 | G14: =IF(G$3<$D$4,F14,IF(G$3=$D$4,$D14-SUM($E14:F14),0)) -> 0 | H14: =IF(H$3<$D$4,G14,IF(H$3=$D$4,$D14-SUM($E14:G14),0)) -> 0 | I14: =IF(I$3<$D$4,H14,IF(I$3=$D$4,$D14-SUM($E14:H14),0)) -> 0 | J14: =IF(J$3<$D$4,I14,IF(J$3=$D$4,$D14-SUM($E14:I14),0)) -> 0 | K14: =IF(K$3<$D$4,J14,IF(K$3=$D$4,$D14-SUM($E14:J14),0)) -> 0 | L14: =IF(L$3<$D$4,K14,IF(L$3=$D$4,$D14-SUM($E14:K14),0)) -> 0 | M14: =IF(M$3<$D$4,L14,IF(M$3=$D$4,$D14-SUM($E14:L14),0)) -> 0 | N14: =IF(N$3<$D$4,M14,IF(N$3=$D$4,$D14-SUM($E14:M14),0)) -> 0 | O14: =IF(O$3<$D$4,N14,IF(O$3=$D$4,$D14-SUM($E14:N14),0)) -> 0 | P14: =IF(P$3<$D$4,O14,IF(P$3=$D$4,$D14-SUM($E14:O14),0)) -> 0 | Q14: =IF(Q$3<$D$4,P14,IF(Q$3=$D$4,$D14-SUM($E14:P14),0)) -> 0 | R14: =IF(R$3<$D$4,Q14,IF(R$3=$D$4,$D14-SUM($E14:Q14),0)) -> 0 | S14: =IF(S$3<$D$4,R14,IF(S$3=$D$4,$D14-SUM($E14:R14),0)) -> 0 | T14: =IF(T$3<$D$4,S14,IF(T$3=$D$4,$D14-SUM($E14:S14),0)) -> 0 | U14: =IF(U$3<$D$4,T14,IF(U$3=$D$4,$D14-SUM($E14:T14),0)) -> 0 | V14: =IF(V$3<$D$4,U14,IF(V$3=$D$4,$D14-SUM($E14:U14),0)) -> 0 | W14: =IF(W$3<$D$4,V14,IF(W$3=$D$4,$D14-SUM($E14:V14),0)) -> 0 | X14: =IF(X$3<$D$4,W14,IF(X$3=$D$4,$D14-SUM($E14:W14),0)) -> 0 | Y14: =IF(Y$3<$D$4,X14,IF(Y$3=$D$4,$D14-SUM($E14:X14),0)) -> 0 | Z14: =IF(Z$3<$D$4,Y14,IF(Z$3=$D$4,$D14-SUM($E14:Y14),0)) -> 0 | AA14: =IF(AA$3<$D$4,Z14,IF(AA$3=$D$4,$D14-SUM($E14:Z14),0)) -> 0 | AB14: =IF(AB$3<$D$4,AA14,IF(AB$3=$D$4,$D14-SUM($E14:AA14),0)) -> 0 | AC14: =IF(AC$3<$D$4,AB14,IF(AC$3=$D$4,$D14-SUM($E14:AB14),0)) -> 0 | AE14: 0
C15: =+'Development Costs'!C12 -> Improvements | D15: =+'Development Costs'!D12 -> 0 | E15: 0 | F15: 0 | G15: =IF(G$3<$D$4,F15,IF(G$3=$D$4,$D15-SUM($E15:F15),0)) -> 0 | H15: =IF(H$3<$D$4,G15,IF(H$3=$D$4,$D15-SUM($E15:G15),0)) -> 0 | I15: =IF(I$3<$D$4,H15,IF(I$3=$D$4,$D15-SUM($E15:H15),0)) -> 0 | J15: =IF(J$3<$D$4,I15,IF(J$3=$D$4,$D15-SUM($E15:I15),0)) -> 0 | K15: =IF(K$3<$D$4,J15,IF(K$3=$D$4,$D15-SUM($E15:J15),0)) -> 0 | L15: =IF(L$3<$D$4,K15,IF(L$3=$D$4,$D15-SUM($E15:K15),0)) -> 0 | M15: =IF(M$3<$D$4,L15,IF(M$3=$D$4,$D15-SUM($E15:L15),0)) -> 0 | N15: =IF(N$3<$D$4,M15,IF(N$3=$D$4,$D15-SUM($E15:M15),0)) -> 0 | O15: =IF(O$3<$D$4,N15,IF(O$3=$D$4,$D15-SUM($E15:N15),0)) -> 0 | P15: =IF(P$3<$D$4,O15,IF(P$3=$D$4,$D15-SUM($E15:O15),0)) -> 0 | Q15: =IF(Q$3<$D$4,P15,IF(Q$3=$D$4,$D15-SUM($E15:P15),0)) -> 0 | R15: =IF(R$3<$D$4,Q15,IF(R$3=$D$4,$D15-SUM($E15:Q15),0)) -> 0 | S15: =IF(S$3<$D$4,R15,IF(S$3=$D$4,$D15-SUM($E15:R15),0)) -> 0 | T15: =IF(T$3<$D$4,S15,IF(T$3=$D$4,$D15-SUM($E15:S15),0)) -> 0 | U15: =IF(U$3<$D$4,T15,IF(U$3=$D$4,$D15-SUM($E15:T15),0)) -> 0 | V15: =IF(V$3<$D$4,U15,IF(V$3=$D$4,$D15-SUM($E15:U15),0)) -> 0 | W15: =IF(W$3<$D$4,V15,IF(W$3=$D$4,$D15-SUM($E15:V15),0)) -> 0 | X15: =IF(X$3<$D$4,W15,IF(X$3=$D$4,$D15-SUM($E15:W15),0)) -> 0 | Y15: =IF(Y$3<$D$4,X15,IF(Y$3=$D$4,$D15-SUM($E15:X15),0)) -> 0 | Z15: =IF(Z$3<$D$4,Y15,IF(Z$3=$D$4,$D15-SUM($E15:Y15),0)) -> 0 | AA15: =IF(AA$3<$D$4,Z15,IF(AA$3=$D$4,$D15-SUM($E15:Z15),0)) -> 0 | AB15: =IF(AB$3<$D$4,AA15,IF(AB$3=$D$4,$D15-SUM($E15:AA15),0)) -> 0 | AC15: =IF(AC$3<$D$4,AB15,IF(AC$3=$D$4,$D15-SUM($E15:AB15),0)) -> 0 | AE15: 0
C16: =+'Development Costs'!C15 -> 0 | D16: =+'Development Costs'!D15 -> 0 | E16: =+D16 -> 0 | F16: 0 | G16: =IF(G$3<$D$4,F16,IF(G$3=$D$4,$D16-SUM($E16:F16),0)) -> 0 | H16: =IF(H$3<$D$4,G16,IF(H$3=$D$4,$D16-SUM($E16:G16),0)) -> 0 | I16: =IF(I$3<$D$4,H16,IF(I$3=$D$4,$D16-SUM($E16:H16),0)) -> 0 | J16: =IF(J$3<$D$4,I16,IF(J$3=$D$4,$D16-SUM($E16:I16),0)) -> 0 | K16: =IF(K$3<$D$4,J16,IF(K$3=$D$4,$D16-SUM($E16:J16),0)) -> 0 | L16: =IF(L$3<$D$4,K16,IF(L$3=$D$4,$D16-SUM($E16:K16),0)) -> 0 | M16: =IF(M$3<$D$4,L16,IF(M$3=$D$4,$D16-SUM($E16:L16),0)) -> 0 | N16: =IF(N$3<$D$4,M16,IF(N$3=$D$4,$D16-SUM($E16:M16),0)) -> 0 | O16: =IF(O$3<$D$4,N16,IF(O$3=$D$4,$D16-SUM($E16:N16),0)) -> 0 | P16: =IF(P$3<$D$4,O16,IF(P$3=$D$4,$D16-SUM($E16:O16),0)) -> 0 | Q16: =IF(Q$3<$D$4,P16,IF(Q$3=$D$4,$D16-SUM($E16:P16),0)) -> 0 | R16: =IF(R$3<$D$4,Q16,IF(R$3=$D$4,$D16-SUM($E16:Q16),0)) -> 0 | S16: =IF(S$3<$D$4,R16,IF(S$3=$D$4,$D16-SUM($E16:R16),0)) -> 0 | T16: =IF(T$3<$D$4,S16,IF(T$3=$D$4,$D16-SUM($E16:S16),0)) -> 0 | U16: =IF(U$3<$D$4,T16,IF(U$3=$D$4,$D16-SUM($E16:T16),0)) -> 0 | V16: =IF(V$3<$D$4,U16,IF(V$3=$D$4,$D16-SUM($E16:U16),0)) -> 0 | W16: =IF(W$3<$D$4,V16,IF(W$3=$D$4,$D16-SUM($E16:V16),0)) -> 0 | X16: =IF(X$3<$D$4,W16,IF(X$3=$D$4,$D16-SUM($E16:W16),0)) -> 0 | Y16: =IF(Y$3<$D$4,X16,IF(Y$3=$D$4,$D16-SUM($E16:X16),0)) -> 0 | Z16: =IF(Z$3<$D$4,Y16,IF(Z$3=$D$4,$D16-SUM($E16:Y16),0)) -> 0 | AA16: =IF(AA$3<$D$4,Z16,IF(AA$3=$D$4,$D16-SUM($E16:Z16),0)) -> 0 | AB16: =IF(AB$3<$D$4,AA16,IF(AB$3=$D$4,$D16-SUM($E16:AA16),0)) -> 0 | AC16: =IF(AC$3<$D$4,AB16,IF(AC$3=$D$4,$D16-SUM($E16:AB16),0)) -> 0 | AE16: 0
C17: Construction / Rehabilitation Costs (construction contract costs)
C18: =+'Development Costs'!C18 -> Site Work Included in Construction Contract | D18: =+'Development Costs'!D18 -> 0 | E18: 0 | F18: =IF($D$4=0,0,ROUND((D18-E18)/$D$4,0)) -> 0 | G18: =IF(G$3<$D$4,F18,IF(G$3=$D$4,$D18-SUM($E18:F18),0)) -> 0 | H18: =IF(H$3<$D$4,G18,IF(H$3=$D$4,$D18-SUM($E18:G18),0)) -> 0 | I18: =IF(I$3<$D$4,H18,IF(I$3=$D$4,$D18-SUM($E18:H18),0)) -> 0 | J18: =IF(J$3<$D$4,I18,IF(J$3=$D$4,$D18-SUM($E18:I18),0)) -> 0 | K18: =IF(K$3<$D$4,J18,IF(K$3=$D$4,$D18-SUM($E18:J18),0)) -> 0 | L18: =IF(L$3<$D$4,K18,IF(L$3=$D$4,$D18-SUM($E18:K18),0)) -> 0 | M18: =IF(M$3<$D$4,L18,IF(M$3=$D$4,$D18-SUM($E18:L18),0)) -> 0 | N18: =IF(N$3<$D$4,M18,IF(N$3=$D$4,$D18-SUM($E18:M18),0)) -> 0 | O18: =IF(O$3<$D$4,N18,IF(O$3=$D$4,$D18-SUM($E18:N18),0)) -> 0 | P18: =IF(P$3<$D$4,O18,IF(P$3=$D$4,$D18-SUM($E18:O18),0)) -> 0 | Q18: =IF(Q$3<$D$4,P18,IF(Q$3=$D$4,$D18-SUM($E18:P18),0)) -> 0 | R18: =IF(R$3<$D$4,Q18,IF(R$3=$D$4,$D18-SUM($E18:Q18),0)) -> 0 | S18: =IF(S$3<$D$4,R18,IF(S$3=$D$4,$D18-SUM($E18:R18),0)) -> 0 | T18: =IF(T$3<$D$4,S18,IF(T$3=$D$4,$D18-SUM($E18:S18),0)) -> 0 | U18: =IF(U$3<$D$4,T18,IF(U$3=$D$4,$D18-SUM($E18:T18),0)) -> 0 | V18: =IF(V$3<$D$4,U18,IF(V$3=$D$4,$D18-SUM($E18:U18),0)) -> 0 | W18: =IF(W$3<$D$4,V18,IF(W$3=$D$4,$D18-SUM($E18:V18),0)) -> 0 | X18: =IF(X$3<$D$4,W18,IF(X$3=$D$4,$D18-SUM($E18:W18),0)) -> 0 | Y18: =IF(Y$3<$D$4,X18,IF(Y$3=$D$4,$D18-SUM($E18:X18),0)) -> 0 | Z18: =IF(Z$3<$D$4,Y18,IF(Z$3=$D$4,$D18-SUM($E18:Y18),0)) -> 0 | AA18: =IF(AA$3<$D$4,Z18,IF(AA$3=$D$4,$D18-SUM($E18:Z18),0)) -> 0 | AB18: =IF(AB$3<$D$4,AA18,IF(AB$3=$D$4,$D18-SUM($E18:AA18),0)) -> 0 | AC18: =IF(AC$3<$D$4,AB18,IF(AC$3=$D$4,$D18-SUM($E18:AB18),0)) -> 0 | AE18: =SUM(E18:AC18) -> 0 | AF18: =IF(AE18>D18,"ERROR: Total Amount Drawn Exceeds Total Available","") -> 
C19: =+'Development Costs'!C21 -> New Construction | D19: =+'Development Costs'!D21 -> 0 | E19: 0 | F19: 0 | G19: =IF(G$3<$D$4,F19,IF(G$3=$D$4,$D19-SUM($E19:F19),0)) -> 0 | H19: =IF(H$3<$D$4,G19,IF(H$3=$D$4,$D19-SUM($E19:G19),0)) -> 0 | I19: =IF(I$3<$D$4,H19,IF(I$3=$D$4,$D19-SUM($E19:H19),0)) -> 0 | J19: =IF(J$3<$D$4,I19,IF(J$3=$D$4,$D19-SUM($E19:I19),0)) -> 0 | K19: =IF(K$3<$D$4,J19,IF(K$3=$D$4,$D19-SUM($E19:J19),0)) -> 0 | L19: =IF(L$3<$D$4,K19,IF(L$3=$D$4,$D19-SUM($E19:K19),0)) -> 0 | M19: =IF(M$3<$D$4,L19,IF(M$3=$D$4,$D19-SUM($E19:L19),0)) -> 0 | N19: =IF(N$3<$D$4,M19,IF(N$3=$D$4,$D19-SUM($E19:M19),0)) -> 0 | O19: =IF(O$3<$D$4,N19,IF(O$3=$D$4,$D19-SUM($E19:N19),0)) -> 0 | P19: =IF(P$3<$D$4,O19,IF(P$3=$D$4,$D19-SUM($E19:O19),0)) -> 0 | Q19: =IF(Q$3<$D$4,P19,IF(Q$3=$D$4,$D19-SUM($E19:P19),0)) -> 0 | R19: =IF(R$3<$D$4,Q19,IF(R$3=$D$4,$D19-SUM($E19:Q19),0)) -> 0 | S19: =IF(S$3<$D$4,R19,IF(S$3=$D$4,$D19-SUM($E19:R19),0)) -> 0 | T19: =IF(T$3<$D$4,S19,IF(T$3=$D$4,$D19-SUM($E19:S19),0)) -> 0 | U19: =IF(U$3<$D$4,T19,IF(U$3=$D$4,$D19-SUM($E19:T19),0)) -> 0 | V19: =IF(V$3<$D$4,U19,IF(V$3=$D$4,$D19-SUM($E19:U19),0)) -> 0 | W19: =IF(W$3<$D$4,V19,IF(W$3=$D$4,$D19-SUM($E19:V19),0)) -> 0 | X19: =IF(X$3<$D$4,W19,IF(X$3=$D$4,$D19-SUM($E19:W19),0)) -> 0 | Y19: =IF(Y$3<$D$4,X19,IF(Y$3=$D$4,$D19-SUM($E19:X19),0)) -> 0 | Z19: =IF(Z$3<$D$4,Y19,IF(Z$3=$D$4,$D19-SUM($E19:Y19),0)) -> 0 | AA19: =IF(AA$3<$D$4,Z19,IF(AA$3=$D$4,$D19-SUM($E19:Z19),0)) -> 0 | AB19: =IF(AB$3<$D$4,AA19,IF(AB$3=$D$4,$D19-SUM($E19:AA19),0)) -> 0 | AC19: =IF(AC$3<$D$4,AB19,IF(AC$3=$D$4,$D19-SUM($E19:AB19),0)) -> 0 | AE19: 0
C20: =+'Development Costs'!C22 -> Rehabilitation | D20: =+'Development Costs'!D22 -> 0 | E20: 0 | F20: 0 | G20: =IF(G$3<$D$4,F20,IF(G$3=$D$4,$D20-SUM($E20:F20),0)) -> 0 | H20: =IF(H$3<$D$4,G20,IF(H$3=$D$4,$D20-SUM($E20:G20),0)) -> 0 | I20: =IF(I$3<$D$4,H20,IF(I$3=$D$4,$D20-SUM($E20:H20),0)) -> 0 | J20: =IF(J$3<$D$4,I20,IF(J$3=$D$4,$D20-SUM($E20:I20),0)) -> 0 | K20: =IF(K$3<$D$4,J20,IF(K$3=$D$4,$D20-SUM($E20:J20),0)) -> 0 | L20: =IF(L$3<$D$4,K20,IF(L$3=$D$4,$D20-SUM($E20:K20),0)) -> 0 | M20: =IF(M$3<$D$4,L20,IF(M$3=$D$4,$D20-SUM($E20:L20),0)) -> 0 | N20: =IF(N$3<$D$4,M20,IF(N$3=$D$4,$D20-SUM($E20:M20),0)) -> 0 | O20: =IF(O$3<$D$4,N20,IF(O$3=$D$4,$D20-SUM($E20:N20),0)) -> 0 | P20: =IF(P$3<$D$4,O20,IF(P$3=$D$4,$D20-SUM($E20:O20),0)) -> 0 | Q20: =IF(Q$3<$D$4,P20,IF(Q$3=$D$4,$D20-SUM($E20:P20),0)) -> 0 | R20: =IF(R$3<$D$4,Q20,IF(R$3=$D$4,$D20-SUM($E20:Q20),0)) -> 0 | S20: =IF(S$3<$D$4,R20,IF(S$3=$D$4,$D20-SUM($E20:R20),0)) -> 0 | T20: =IF(T$3<$D$4,S20,IF(T$3=$D$4,$D20-SUM($E20:S20),0)) -> 0 | U20: =IF(U$3<$D$4,T20,IF(U$3=$D$4,$D20-SUM($E20:T20),0)) -> 0 | V20: =IF(V$3<$D$4,U20,IF(V$3=$D$4,$D20-SUM($E20:U20),0)) -> 0 | W20: =IF(W$3<$D$4,V20,IF(W$3=$D$4,$D20-SUM($E20:V20),0)) -> 0 | X20: =IF(X$3<$D$4,W20,IF(X$3=$D$4,$D20-SUM($E20:W20),0)) -> 0 | Y20: =IF(Y$3<$D$4,X20,IF(Y$3=$D$4,$D20-SUM($E20:X20),0)) -> 0 | Z20: =IF(Z$3<$D$4,Y20,IF(Z$3=$D$4,$D20-SUM($E20:Y20),0)) -> 0 | AA20: =IF(AA$3<$D$4,Z20,IF(AA$3=$D$4,$D20-SUM($E20:Z20),0)) -> 0 | AB20: =IF(AB$3<$D$4,AA20,IF(AB$3=$D$4,$D20-SUM($E20:AA20),0)) -> 0 | AC20: =IF(AC$3<$D$4,AB20,IF(AC$3=$D$4,$D20-SUM($E20:AB20),0)) -> 0 | AE20: 0
C21: =+'Development Costs'!C23 -> General Requirements | D21: =+'Development Costs'!D23 -> 0 | E21: 0 | F21: 0 | G21: =IF(G$3<$D$4,F21,IF(G$3=$D$4,$D21-SUM($E21:F21),0)) -> 0 | H21: =IF(H$3<$D$4,G21,IF(H$3=$D$4,$D21-SUM($E21:G21),0)) -> 0 | I21: =IF(I$3<$D$4,H21,IF(I$3=$D$4,$D21-SUM($E21:H21),0)) -> 0 | J21: =IF(J$3<$D$4,I21,IF(J$3=$D$4,$D21-SUM($E21:I21),0)) -> 0 | K21: =IF(K$3<$D$4,J21,IF(K$3=$D$4,$D21-SUM($E21:J21),0)) -> 0 | L21: =IF(L$3<$D$4,K21,IF(L$3=$D$4,$D21-SUM($E21:K21),0)) -> 0 | M21: =IF(M$3<$D$4,L21,IF(M$3=$D$4,$D21-SUM($E21:L21),0)) -> 0 | N21: =IF(N$3<$D$4,M21,IF(N$3=$D$4,$D21-SUM($E21:M21),0)) -> 0 | O21: =IF(O$3<$D$4,N21,IF(O$3=$D$4,$D21-SUM($E21:N21),0)) -> 0 | P21: =IF(P$3<$D$4,O21,IF(P$3=$D$4,$D21-SUM($E21:O21),0)) -> 0 | Q21: =IF(Q$3<$D$4,P21,IF(Q$3=$D$4,$D21-SUM($E21:P21),0)) -> 0 | R21: =IF(R$3<$D$4,Q21,IF(R$3=$D$4,$D21-SUM($E21:Q21),0)) -> 0 | S21: =IF(S$3<$D$4,R21,IF(S$3=$D$4,$D21-SUM($E21:R21),0)) -> 0 | T21: =IF(T$3<$D$4,S21,IF(T$3=$D$4,$D21-SUM($E21:S21),0)) -> 0 | U21: =IF(U$3<$D$4,T21,IF(U$3=$D$4,$D21-SUM($E21:T21),0)) -> 0 | V21: =IF(V$3<$D$4,U21,IF(V$3=$D$4,$D21-SUM($E21:U21),0)) -> 0 | W21: =IF(W$3<$D$4,V21,IF(W$3=$D$4,$D21-SUM($E21:V21),0)) -> 0 | X21: =IF(X$3<$D$4,W21,IF(X$3=$D$4,$D21-SUM($E21:W21),0)) -> 0 | Y21: =IF(Y$3<$D$4,X21,IF(Y$3=$D$4,$D21-SUM($E21:X21),0)) -> 0 | Z21: =IF(Z$3<$D$4,Y21,IF(Z$3=$D$4,$D21-SUM($E21:Y21),0)) -> 0 | AA21: =IF(AA$3<$D$4,Z21,IF(AA$3=$D$4,$D21-SUM($E21:Z21),0)) -> 0 | AB21: =IF(AB$3<$D$4,AA21,IF(AB$3=$D$4,$D21-SUM($E21:AA21),0)) -> 0 | AC21: =IF(AC$3<$D$4,AB21,IF(AC$3=$D$4,$D21-SUM($E21:AB21),0)) -> 0 | AE21: 0
C22: =+'Development Costs'!C24 -> Builder’s Overhead | D22: =+'Development Costs'!D24 -> 0 | E22: 0 | F22: 0 | G22: =IF(G$3<$D$4,F22,IF(G$3=$D$4,$D22-SUM($E22:F22),0)) -> 0 | H22: =IF(H$3<$D$4,G22,IF(H$3=$D$4,$D22-SUM($E22:G22),0)) -> 0 | I22: =IF(I$3<$D$4,H22,IF(I$3=$D$4,$D22-SUM($E22:H22),0)) -> 0 | J22: =IF(J$3<$D$4,I22,IF(J$3=$D$4,$D22-SUM($E22:I22),0)) -> 0 | K22: =IF(K$3<$D$4,J22,IF(K$3=$D$4,$D22-SUM($E22:J22),0)) -> 0 | L22: =IF(L$3<$D$4,K22,IF(L$3=$D$4,$D22-SUM($E22:K22),0)) -> 0 | M22: =IF(M$3<$D$4,L22,IF(M$3=$D$4,$D22-SUM($E22:L22),0)) -> 0 | N22: =IF(N$3<$D$4,M22,IF(N$3=$D$4,$D22-SUM($E22:M22),0)) -> 0 | O22: =IF(O$3<$D$4,N22,IF(O$3=$D$4,$D22-SUM($E22:N22),0)) -> 0 | P22: =IF(P$3<$D$4,O22,IF(P$3=$D$4,$D22-SUM($E22:O22),0)) -> 0 | Q22: =IF(Q$3<$D$4,P22,IF(Q$3=$D$4,$D22-SUM($E22:P22),0)) -> 0 | R22: =IF(R$3<$D$4,Q22,IF(R$3=$D$4,$D22-SUM($E22:Q22),0)) -> 0 | S22: =IF(S$3<$D$4,R22,IF(S$3=$D$4,$D22-SUM($E22:R22),0)) -> 0 | T22: =IF(T$3<$D$4,S22,IF(T$3=$D$4,$D22-SUM($E22:S22),0)) -> 0 | U22: =IF(U$3<$D$4,T22,IF(U$3=$D$4,$D22-SUM($E22:T22),0)) -> 0 | V22: =IF(V$3<$D$4,U22,IF(V$3=$D$4,$D22-SUM($E22:U22),0)) -> 0 | W22: =IF(W$3<$D$4,V22,IF(W$3=$D$4,$D22-SUM($E22:V22),0)) -> 0 | X22: =IF(X$3<$D$4,W22,IF(X$3=$D$4,$D22-SUM($E22:W22),0)) -> 0 | Y22: =IF(Y$3<$D$4,X22,IF(Y$3=$D$4,$D22-SUM($E22:X22),0)) -> 0 | Z22: =IF(Z$3<$D$4,Y22,IF(Z$3=$D$4,$D22-SUM($E22:Y22),0)) -> 0 | AA22: =IF(AA$3<$D$4,Z22,IF(AA$3=$D$4,$D22-SUM($E22:Z22),0)) -> 0 | AB22: =IF(AB$3<$D$4,AA22,IF(AB$3=$D$4,$D22-SUM($E22:AA22),0)) -> 0 | AC22: =IF(AC$3<$D$4,AB22,IF(AC$3=$D$4,$D22-SUM($E22:AB22),0)) -> 0 | AE22: 0
C23: =+'Development Costs'!C25 -> Builder Profit | D23: =+'Development Costs'!D25 -> 0 | E23: 0 | F23: 0 | G23: =IF(G$3<$D$4,F23,IF(G$3=$D$4,$D23-SUM($E23:F23),0)) -> 0 | H23: =IF(H$3<$D$4,G23,IF(H$3=$D$4,$D23-SUM($E23:G23),0)) -> 0 | I23: =IF(I$3<$D$4,H23,IF(I$3=$D$4,$D23-SUM($E23:H23),0)) -> 0 | J23: =IF(J$3<$D$4,I23,IF(J$3=$D$4,$D23-SUM($E23:I23),0)) -> 0 | K23: =IF(K$3<$D$4,J23,IF(K$3=$D$4,$D23-SUM($E23:J23),0)) -> 0 | L23: =IF(L$3<$D$4,K23,IF(L$3=$D$4,$D23-SUM($E23:K23),0)) -> 0 | M23: =IF(M$3<$D$4,L23,IF(M$3=$D$4,$D23-SUM($E23:L23),0)) -> 0 | N23: =IF(N$3<$D$4,M23,IF(N$3=$D$4,$D23-SUM($E23:M23),0)) -> 0 | O23: =IF(O$3<$D$4,N23,IF(O$3=$D$4,$D23-SUM($E23:N23),0)) -> 0 | P23: =IF(P$3<$D$4,O23,IF(P$3=$D$4,$D23-SUM($E23:O23),0)) -> 0 | Q23: =IF(Q$3<$D$4,P23,IF(Q$3=$D$4,$D23-SUM($E23:P23),0)) -> 0 | R23: =IF(R$3<$D$4,Q23,IF(R$3=$D$4,$D23-SUM($E23:Q23),0)) -> 0 | S23: =IF(S$3<$D$4,R23,IF(S$3=$D$4,$D23-SUM($E23:R23),0)) -> 0 | T23: =IF(T$3<$D$4,S23,IF(T$3=$D$4,$D23-SUM($E23:S23),0)) -> 0 | U23: =IF(U$3<$D$4,T23,IF(U$3=$D$4,$D23-SUM($E23:T23),0)) -> 0 | V23: =IF(V$3<$D$4,U23,IF(V$3=$D$4,$D23-SUM($E23:U23),0)) -> 0 | W23: =IF(W$3<$D$4,V23,IF(W$3=$D$4,$D23-SUM($E23:V23),0)) -> 0 | X23: =IF(X$3<$D$4,W23,IF(X$3=$D$4,$D23-SUM($E23:W23),0)) -> 0 | Y23: =IF(Y$3<$D$4,X23,IF(Y$3=$D$4,$D23-SUM($E23:X23),0)) -> 0 | Z23: =IF(Z$3<$D$4,Y23,IF(Z$3=$D$4,$D23-SUM($E23:Y23),0)) -> 0 | AA23: =IF(AA$3<$D$4,Z23,IF(AA$3=$D$4,$D23-SUM($E23:Z23),0)) -> 0 | AB23: =IF(AB$3<$D$4,AA23,IF(AB$3=$D$4,$D23-SUM($E23:AA23),0)) -> 0 | AC23: =IF(AC$3<$D$4,AB23,IF(AC$3=$D$4,$D23-SUM($E23:AB23),0)) -> 0 | AE23: 0
C24: =+'Development Costs'!C26 -> Performance Bond Premium | D24: =+'Development Costs'!D26 -> 0 | E24: =+D24 -> 0 | F24: 0 | G24: =IF(G$3<$D$4,F24,IF(G$3=$D$4,$D24-SUM($E24:F24),0)) -> 0 | H24: =IF(H$3<$D$4,G24,IF(H$3=$D$4,$D24-SUM($E24:G24),0)) -> 0 | I24: =IF(I$3<$D$4,H24,IF(I$3=$D$4,$D24-SUM($E24:H24),0)) -> 0 | J24: =IF(J$3<$D$4,I24,IF(J$3=$D$4,$D24-SUM($E24:I24),0)) -> 0 | K24: =IF(K$3<$D$4,J24,IF(K$3=$D$4,$D24-SUM($E24:J24),0)) -> 0 | L24: =IF(L$3<$D$4,K24,IF(L$3=$D$4,$D24-SUM($E24:K24),0)) -> 0 | M24: =IF(M$3<$D$4,L24,IF(M$3=$D$4,$D24-SUM($E24:L24),0)) -> 0 | N24: =IF(N$3<$D$4,M24,IF(N$3=$D$4,$D24-SUM($E24:M24),0)) -> 0 | O24: =IF(O$3<$D$4,N24,IF(O$3=$D$4,$D24-SUM($E24:N24),0)) -> 0 | P24: =IF(P$3<$D$4,O24,IF(P$3=$D$4,$D24-SUM($E24:O24),0)) -> 0 | Q24: =IF(Q$3<$D$4,P24,IF(Q$3=$D$4,$D24-SUM($E24:P24),0)) -> 0 | R24: =IF(R$3<$D$4,Q24,IF(R$3=$D$4,$D24-SUM($E24:Q24),0)) -> 0 | S24: =IF(S$3<$D$4,R24,IF(S$3=$D$4,$D24-SUM($E24:R24),0)) -> 0 | T24: =IF(T$3<$D$4,S24,IF(T$3=$D$4,$D24-SUM($E24:S24),0)) -> 0 | U24: =IF(U$3<$D$4,T24,IF(U$3=$D$4,$D24-SUM($E24:T24),0)) -> 0 | V24: =IF(V$3<$D$4,U24,IF(V$3=$D$4,$D24-SUM($E24:U24),0)) -> 0 | W24: =IF(W$3<$D$4,V24,IF(W$3=$D$4,$D24-SUM($E24:V24),0)) -> 0 | X24: =IF(X$3<$D$4,W24,IF(X$3=$D$4,$D24-SUM($E24:W24),0)) -> 0 | Y24: =IF(Y$3<$D$4,X24,IF(Y$3=$D$4,$D24-SUM($E24:X24),0)) -> 0 | Z24: =IF(Z$3<$D$4,Y24,IF(Z$3=$D$4,$D24-SUM($E24:Y24),0)) -> 0 | AA24: =IF(AA$3<$D$4,Z24,IF(AA$3=$D$4,$D24-SUM($E24:Z24),0)) -> 0 | AB24: =IF(AB$3<$D$4,AA24,IF(AB$3=$D$4,$D24-SUM($E24:AA24),0)) -> 0 | AC24: =IF(AC$3<$D$4,AB24,IF(AC$3=$D$4,$D24-SUM($E24:AB24),0)) -> 0 | AE24: 0
C25: =+'Development Costs'!C27 -> Construction Contingency | D25: =+'Development Costs'!D27 -> 0 | E25: 0 | F25: 0 | G25: =IF(G$3<$D$4,F25,IF(G$3=$D$4,$D25-SUM($E25:F25),0)) -> 0 | H25: =IF(H$3<$D$4,G25,IF(H$3=$D$4,$D25-SUM($E25:G25),0)) -> 0 | I25: =IF(I$3<$D$4,H25,IF(I$3=$D$4,$D25-SUM($E25:H25),0)) -> 0 | J25: =IF(J$3<$D$4,I25,IF(J$3=$D$4,$D25-SUM($E25:I25),0)) -> 0 | K25: =IF(K$3<$D$4,J25,IF(K$3=$D$4,$D25-SUM($E25:J25),0)) -> 0 | L25: =IF(L$3<$D$4,K25,IF(L$3=$D$4,$D25-SUM($E25:K25),0)) -> 0 | M25: =IF(M$3<$D$4,L25,IF(M$3=$D$4,$D25-SUM($E25:L25),0)) -> 0 | N25: =IF(N$3<$D$4,M25,IF(N$3=$D$4,$D25-SUM($E25:M25),0)) -> 0 | O25: =IF(O$3<$D$4,N25,IF(O$3=$D$4,$D25-SUM($E25:N25),0)) -> 0 | P25: =IF(P$3<$D$4,O25,IF(P$3=$D$4,$D25-SUM($E25:O25),0)) -> 0 | Q25: =IF(Q$3<$D$4,P25,IF(Q$3=$D$4,$D25-SUM($E25:P25),0)) -> 0 | R25: =IF(R$3<$D$4,Q25,IF(R$3=$D$4,$D25-SUM($E25:Q25),0)) -> 0 | S25: =IF(S$3<$D$4,R25,IF(S$3=$D$4,$D25-SUM($E25:R25),0)) -> 0 | T25: =IF(T$3<$D$4,S25,IF(T$3=$D$4,$D25-SUM($E25:S25),0)) -> 0 | U25: =IF(U$3<$D$4,T25,IF(U$3=$D$4,$D25-SUM($E25:T25),0)) -> 0 | V25: =IF(V$3<$D$4,U25,IF(V$3=$D$4,$D25-SUM($E25:U25),0)) -> 0 | W25: =IF(W$3<$D$4,V25,IF(W$3=$D$4,$D25-SUM($E25:V25),0)) -> 0 | X25: =IF(X$3<$D$4,W25,IF(X$3=$D$4,$D25-SUM($E25:W25),0)) -> 0 | Y25: =IF(Y$3<$D$4,X25,IF(Y$3=$D$4,$D25-SUM($E25:X25),0)) -> 0 | Z25: =IF(Z$3<$D$4,Y25,IF(Z$3=$D$4,$D25-SUM($E25:Y25),0)) -> 0 | AA25: =IF(AA$3<$D$4,Z25,IF(AA$3=$D$4,$D25-SUM($E25:Z25),0)) -> 0 | AB25: =IF(AB$3<$D$4,AA25,IF(AB$3=$D$4,$D25-SUM($E25:AA25),0)) -> 0 | AC25: =IF(AC$3<$D$4,AB25,IF(AC$3=$D$4,$D25-SUM($E25:AB25),0)) -> 0 | AE25: 0
C26: =+'Development Costs'!C28 -> 0 | D26: =+'Development Costs'!D28 -> 0 | E26: 0 | F26: 0 | G26: =IF(G$3<$D$4,F26,IF(G$3=$D$4,$D26-SUM($E26:F26),0)) -> 0 | H26: =IF(H$3<$D$4,G26,IF(H$3=$D$4,$D26-SUM($E26:G26),0)) -> 0 | I26: =IF(I$3<$D$4,H26,IF(I$3=$D$4,$D26-SUM($E26:H26),0)) -> 0 | J26: =IF(J$3<$D$4,I26,IF(J$3=$D$4,$D26-SUM($E26:I26),0)) -> 0 | K26: =IF(K$3<$D$4,J26,IF(K$3=$D$4,$D26-SUM($E26:J26),0)) -> 0 | L26: =IF(L$3<$D$4,K26,IF(L$3=$D$4,$D26-SUM($E26:K26),0)) -> 0 | M26: =IF(M$3<$D$4,L26,IF(M$3=$D$4,$D26-SUM($E26:L26),0)) -> 0 | N26: =IF(N$3<$D$4,M26,IF(N$3=$D$4,$D26-SUM($E26:M26),0)) -> 0 | O26: =IF(O$3<$D$4,N26,IF(O$3=$D$4,$D26-SUM($E26:N26),0)) -> 0 | P26: =IF(P$3<$D$4,O26,IF(P$3=$D$4,$D26-SUM($E26:O26),0)) -> 0 | Q26: =IF(Q$3<$D$4,P26,IF(Q$3=$D$4,$D26-SUM($E26:P26),0)) -> 0 | R26: =IF(R$3<$D$4,Q26,IF(R$3=$D$4,$D26-SUM($E26:Q26),0)) -> 0 | S26: =IF(S$3<$D$4,R26,IF(S$3=$D$4,$D26-SUM($E26:R26),0)) -> 0 | T26: =IF(T$3<$D$4,S26,IF(T$3=$D$4,$D26-SUM($E26:S26),0)) -> 0 | U26: =IF(U$3<$D$4,T26,IF(U$3=$D$4,$D26-SUM($E26:T26),0)) -> 0 | V26: =IF(V$3<$D$4,U26,IF(V$3=$D$4,$D26-SUM($E26:U26),0)) -> 0 | W26: =IF(W$3<$D$4,V26,IF(W$3=$D$4,$D26-SUM($E26:V26),0)) -> 0 | X26: =IF(X$3<$D$4,W26,IF(X$3=$D$4,$D26-SUM($E26:W26),0)) -> 0 | Y26: =IF(Y$3<$D$4,X26,IF(Y$3=$D$4,$D26-SUM($E26:X26),0)) -> 0 | Z26: =IF(Z$3<$D$4,Y26,IF(Z$3=$D$4,$D26-SUM($E26:Y26),0)) -> 0 | AA26: =IF(AA$3<$D$4,Z26,IF(AA$3=$D$4,$D26-SUM($E26:Z26),0)) -> 0 | AB26: =IF(AB$3<$D$4,AA26,IF(AB$3=$D$4,$D26-SUM($E26:AA26),0)) -> 0 | AC26: =IF(AC$3<$D$4,AB26,IF(AC$3=$D$4,$D26-SUM($E26:AB26),0)) -> 0 | AE26: 0
C27: =+'Development Costs'!C29 -> 0 | D27: =+'Development Costs'!D29 -> 0 | E27: 0 | F27: 0 | G27: =IF(G$3<$D$4,F27,IF(G$3=$D$4,$D27-SUM($E27:F27),0)) -> 0 | H27: =IF(H$3<$D$4,G27,IF(H$3=$D$4,$D27-SUM($E27:G27),0)) -> 0 | I27: =IF(I$3<$D$4,H27,IF(I$3=$D$4,$D27-SUM($E27:H27),0)) -> 0 | J27: =IF(J$3<$D$4,I27,IF(J$3=$D$4,$D27-SUM($E27:I27),0)) -> 0 | K27: =IF(K$3<$D$4,J27,IF(K$3=$D$4,$D27-SUM($E27:J27),0)) -> 0 | L27: =IF(L$3<$D$4,K27,IF(L$3=$D$4,$D27-SUM($E27:K27),0)) -> 0 | M27: =IF(M$3<$D$4,L27,IF(M$3=$D$4,$D27-SUM($E27:L27),0)) -> 0 | N27: =IF(N$3<$D$4,M27,IF(N$3=$D$4,$D27-SUM($E27:M27),0)) -> 0 | O27: =IF(O$3<$D$4,N27,IF(O$3=$D$4,$D27-SUM($E27:N27),0)) -> 0 | P27: =IF(P$3<$D$4,O27,IF(P$3=$D$4,$D27-SUM($E27:O27),0)) -> 0 | Q27: =IF(Q$3<$D$4,P27,IF(Q$3=$D$4,$D27-SUM($E27:P27),0)) -> 0 | R27: =IF(R$3<$D$4,Q27,IF(R$3=$D$4,$D27-SUM($E27:Q27),0)) -> 0 | S27: =IF(S$3<$D$4,R27,IF(S$3=$D$4,$D27-SUM($E27:R27),0)) -> 0 | T27: =IF(T$3<$D$4,S27,IF(T$3=$D$4,$D27-SUM($E27:S27),0)) -> 0 | U27: =IF(U$3<$D$4,T27,IF(U$3=$D$4,$D27-SUM($E27:T27),0)) -> 0 | V27: =IF(V$3<$D$4,U27,IF(V$3=$D$4,$D27-SUM($E27:U27),0)) -> 0 | W27: =IF(W$3<$D$4,V27,IF(W$3=$D$4,$D27-SUM($E27:V27),0)) -> 0 | X27: =IF(X$3<$D$4,W27,IF(X$3=$D$4,$D27-SUM($E27:W27),0)) -> 0 | Y27: =IF(Y$3<$D$4,X27,IF(Y$3=$D$4,$D27-SUM($E27:X27),0)) -> 0 | Z27: =IF(Z$3<$D$4,Y27,IF(Z$3=$D$4,$D27-SUM($E27:Y27),0)) -> 0 | AA27: =IF(AA$3<$D$4,Z27,IF(AA$3=$D$4,$D27-SUM($E27:Z27),0)) -> 0 | AB27: =IF(AB$3<$D$4,AA27,IF(AB$3=$D$4,$D27-SUM($E27:AA27),0)) -> 0 | AC27: =IF(AC$3<$D$4,AB27,IF(AC$3=$D$4,$D27-SUM($E27:AB27),0)) -> 0 | AE27: 0
C28: Architectural and Engineering Fees
C29: =+'Development Costs'!C31 -> Architect Fee -- Design | D29: =+'Development Costs'!D31 -> 0 | E29: =+D29 -> 0 | F29: =IF($D$4=0,0,ROUND((D29-E29)/$D$4,0)) -> 0 | G29: =IF(G$3<$D$4,F29,IF(G$3=$D$4,$D29-SUM($E29:F29),0)) -> 0 | H29: =IF(H$3<$D$4,G29,IF(H$3=$D$4,$D29-SUM($E29:G29),0)) -> 0 | I29: =IF(I$3<$D$4,H29,IF(I$3=$D$4,$D29-SUM($E29:H29),0)) -> 0 | J29: =IF(J$3<$D$4,I29,IF(J$3=$D$4,$D29-SUM($E29:I29),0)) -> 0 | K29: =IF(K$3<$D$4,J29,IF(K$3=$D$4,$D29-SUM($E29:J29),0)) -> 0 | L29: =IF(L$3<$D$4,K29,IF(L$3=$D$4,$D29-SUM($E29:K29),0)) -> 0 | M29: =IF(M$3<$D$4,L29,IF(M$3=$D$4,$D29-SUM($E29:L29),0)) -> 0 | N29: =IF(N$3<$D$4,M29,IF(N$3=$D$4,$D29-SUM($E29:M29),0)) -> 0 | O29: =IF(O$3<$D$4,N29,IF(O$3=$D$4,$D29-SUM($E29:N29),0)) -> 0 | P29: =IF(P$3<$D$4,O29,IF(P$3=$D$4,$D29-SUM($E29:O29),0)) -> 0 | Q29: =IF(Q$3<$D$4,P29,IF(Q$3=$D$4,$D29-SUM($E29:P29),0)) -> 0 | R29: =IF(R$3<$D$4,Q29,IF(R$3=$D$4,$D29-SUM($E29:Q29),0)) -> 0 | S29: =IF(S$3<$D$4,R29,IF(S$3=$D$4,$D29-SUM($E29:R29),0)) -> 0 | T29: =IF(T$3<$D$4,S29,IF(T$3=$D$4,$D29-SUM($E29:S29),0)) -> 0 | U29: =IF(U$3<$D$4,T29,IF(U$3=$D$4,$D29-SUM($E29:T29),0)) -> 0 | V29: =IF(V$3<$D$4,U29,IF(V$3=$D$4,$D29-SUM($E29:U29),0)) -> 0 | W29: =IF(W$3<$D$4,V29,IF(W$3=$D$4,$D29-SUM($E29:V29),0)) -> 0 | X29: =IF(X$3<$D$4,W29,IF(X$3=$D$4,$D29-SUM($E29:W29),0)) -> 0 | Y29: =IF(Y$3<$D$4,X29,IF(Y$3=$D$4,$D29-SUM($E29:X29),0)) -> 0 | Z29: =IF(Z$3<$D$4,Y29,IF(Z$3=$D$4,$D29-SUM($E29:Y29),0)) -> 0 | AA29: =IF(AA$3<$D$4,Z29,IF(AA$3=$D$4,$D29-SUM($E29:Z29),0)) -> 0 | AB29: =IF(AB$3<$D$4,AA29,IF(AB$3=$D$4,$D29-SUM($E29:AA29),0)) -> 0 | AC29: =IF(AC$3<$D$4,AB29,IF(AC$3=$D$4,$D29-SUM($E29:AB29),0)) -> 0 | AE29: =SUM(E29:AC29) -> 0 | AF29: =IF(AE29>D29,"ERROR: Total Amount Drawn Exceeds Total Available","") -> 
C30: =+'Development Costs'!C32 -> Architect Fee -- Construction Supervision | D30: =+'Development Costs'!D32 -> 0 | E30: 0 | F30: 0 | G30: =IF(G$3<$D$4,F30,IF(G$3=$D$4,$D30-SUM($E30:F30),0)) -> 0 | H30: =IF(H$3<$D$4,G30,IF(H$3=$D$4,$D30-SUM($E30:G30),0)) -> 0 | I30: =IF(I$3<$D$4,H30,IF(I$3=$D$4,$D30-SUM($E30:H30),0)) -> 0 | J30: =IF(J$3<$D$4,I30,IF(J$3=$D$4,$D30-SUM($E30:I30),0)) -> 0 | K30: =IF(K$3<$D$4,J30,IF(K$3=$D$4,$D30-SUM($E30:J30),0)) -> 0 | L30: =IF(L$3<$D$4,K30,IF(L$3=$D$4,$D30-SUM($E30:K30),0)) -> 0 | M30: =IF(M$3<$D$4,L30,IF(M$3=$D$4,$D30-SUM($E30:L30),0)) -> 0 | N30: =IF(N$3<$D$4,M30,IF(N$3=$D$4,$D30-SUM($E30:M30),0)) -> 0 | O30: =IF(O$3<$D$4,N30,IF(O$3=$D$4,$D30-SUM($E30:N30),0)) -> 0 | P30: =IF(P$3<$D$4,O30,IF(P$3=$D$4,$D30-SUM($E30:O30),0)) -> 0 | Q30: =IF(Q$3<$D$4,P30,IF(Q$3=$D$4,$D30-SUM($E30:P30),0)) -> 0 | R30: =IF(R$3<$D$4,Q30,IF(R$3=$D$4,$D30-SUM($E30:Q30),0)) -> 0 | S30: =IF(S$3<$D$4,R30,IF(S$3=$D$4,$D30-SUM($E30:R30),0)) -> 0 | T30: =IF(T$3<$D$4,S30,IF(T$3=$D$4,$D30-SUM($E30:S30),0)) -> 0 | U30: =IF(U$3<$D$4,T30,IF(U$3=$D$4,$D30-SUM($E30:T30),0)) -> 0 | V30: =IF(V$3<$D$4,U30,IF(V$3=$D$4,$D30-SUM($E30:U30),0)) -> 0 | W30: =IF(W$3<$D$4,V30,IF(W$3=$D$4,$D30-SUM($E30:V30),0)) -> 0 | X30: =IF(X$3<$D$4,W30,IF(X$3=$D$4,$D30-SUM($E30:W30),0)) -> 0 | Y30: =IF(Y$3<$D$4,X30,IF(Y$3=$D$4,$D30-SUM($E30:X30),0)) -> 0 | Z30: =IF(Z$3<$D$4,Y30,IF(Z$3=$D$4,$D30-SUM($E30:Y30),0)) -> 0 | AA30: =IF(AA$3<$D$4,Z30,IF(AA$3=$D$4,$D30-SUM($E30:Z30),0)) -> 0 | AB30: =IF(AB$3<$D$4,AA30,IF(AB$3=$D$4,$D30-SUM($E30:AA30),0)) -> 0 | AC30: =IF(AC$3<$D$4,AB30,IF(AC$3=$D$4,$D30-SUM($E30:AB30),0)) -> 0 | AE30: 0
C31: =+'Development Costs'!C33 -> Engineering Fees | D31: =+'Development Costs'!D33 -> 0 | E31: 0 | F31: 0 | G31: =IF(G$3<$D$4,F31,IF(G$3=$D$4,$D31-SUM($E31:F31),0)) -> 0 | H31: =IF(H$3<$D$4,G31,IF(H$3=$D$4,$D31-SUM($E31:G31),0)) -> 0 | I31: =IF(I$3<$D$4,H31,IF(I$3=$D$4,$D31-SUM($E31:H31),0)) -> 0 | J31: =IF(J$3<$D$4,I31,IF(J$3=$D$4,$D31-SUM($E31:I31),0)) -> 0 | K31: =IF(K$3<$D$4,J31,IF(K$3=$D$4,$D31-SUM($E31:J31),0)) -> 0 | L31: =IF(L$3<$D$4,K31,IF(L$3=$D$4,$D31-SUM($E31:K31),0)) -> 0 | M31: =IF(M$3<$D$4,L31,IF(M$3=$D$4,$D31-SUM($E31:L31),0)) -> 0 | N31: =IF(N$3<$D$4,M31,IF(N$3=$D$4,$D31-SUM($E31:M31),0)) -> 0 | O31: =IF(O$3<$D$4,N31,IF(O$3=$D$4,$D31-SUM($E31:N31),0)) -> 0 | P31: =IF(P$3<$D$4,O31,IF(P$3=$D$4,$D31-SUM($E31:O31),0)) -> 0 | Q31: =IF(Q$3<$D$4,P31,IF(Q$3=$D$4,$D31-SUM($E31:P31),0)) -> 0 | R31: =IF(R$3<$D$4,Q31,IF(R$3=$D$4,$D31-SUM($E31:Q31),0)) -> 0 | S31: =IF(S$3<$D$4,R31,IF(S$3=$D$4,$D31-SUM($E31:R31),0)) -> 0 | T31: =IF(T$3<$D$4,S31,IF(T$3=$D$4,$D31-SUM($E31:S31),0)) -> 0 | U31: =IF(U$3<$D$4,T31,IF(U$3=$D$4,$D31-SUM($E31:T31),0)) -> 0 | V31: =IF(V$3<$D$4,U31,IF(V$3=$D$4,$D31-SUM($E31:U31),0)) -> 0 | W31: =IF(W$3<$D$4,V31,IF(W$3=$D$4,$D31-SUM($E31:V31),0)) -> 0 | X31: =IF(X$3<$D$4,W31,IF(X$3=$D$4,$D31-SUM($E31:W31),0)) -> 0 | Y31: =IF(Y$3<$D$4,X31,IF(Y$3=$D$4,$D31-SUM($E31:X31),0)) -> 0 | Z31: =IF(Z$3<$D$4,Y31,IF(Z$3=$D$4,$D31-SUM($E31:Y31),0)) -> 0 | AA31: =IF(AA$3<$D$4,Z31,IF(AA$3=$D$4,$D31-SUM($E31:Z31),0)) -> 0 | AB31: =IF(AB$3<$D$4,AA31,IF(AB$3=$D$4,$D31-SUM($E31:AA31),0)) -> 0 | AC31: =IF(AC$3<$D$4,AB31,IF(AC$3=$D$4,$D31-SUM($E31:AB31),0)) -> 0 | AE31: 0
C32: =+'Development Costs'!C34 -> 0 | D32: =+'Development Costs'!D34 -> 0 | E32: 0 | F32: 0 | G32: =IF(G$3<$D$4,F32,IF(G$3=$D$4,$D32-SUM($E32:F32),0)) -> 0 | H32: =IF(H$3<$D$4,G32,IF(H$3=$D$4,$D32-SUM($E32:G32),0)) -> 0 | I32: =IF(I$3<$D$4,H32,IF(I$3=$D$4,$D32-SUM($E32:H32),0)) -> 0 | J32: =IF(J$3<$D$4,I32,IF(J$3=$D$4,$D32-SUM($E32:I32),0)) -> 0 | K32: =IF(K$3<$D$4,J32,IF(K$3=$D$4,$D32-SUM($E32:J32),0)) -> 0 | L32: =IF(L$3<$D$4,K32,IF(L$3=$D$4,$D32-SUM($E32:K32),0)) -> 0 | M32: =IF(M$3<$D$4,L32,IF(M$3=$D$4,$D32-SUM($E32:L32),0)) -> 0 | N32: =IF(N$3<$D$4,M32,IF(N$3=$D$4,$D32-SUM($E32:M32),0)) -> 0 | O32: =IF(O$3<$D$4,N32,IF(O$3=$D$4,$D32-SUM($E32:N32),0)) -> 0 | P32: =IF(P$3<$D$4,O32,IF(P$3=$D$4,$D32-SUM($E32:O32),0)) -> 0 | Q32: =IF(Q$3<$D$4,P32,IF(Q$3=$D$4,$D32-SUM($E32:P32),0)) -> 0 | R32: =IF(R$3<$D$4,Q32,IF(R$3=$D$4,$D32-SUM($E32:Q32),0)) -> 0 | S32: =IF(S$3<$D$4,R32,IF(S$3=$D$4,$D32-SUM($E32:R32),0)) -> 0 | T32: =IF(T$3<$D$4,S32,IF(T$3=$D$4,$D32-SUM($E32:S32),0)) -> 0 | U32: =IF(U$3<$D$4,T32,IF(U$3=$D$4,$D32-SUM($E32:T32),0)) -> 0 | V32: =IF(V$3<$D$4,U32,IF(V$3=$D$4,$D32-SUM($E32:U32),0)) -> 0 | W32: =IF(W$3<$D$4,V32,IF(W$3=$D$4,$D32-SUM($E32:V32),0)) -> 0 | X32: =IF(X$3<$D$4,W32,IF(X$3=$D$4,$D32-SUM($E32:W32),0)) -> 0 | Y32: =IF(Y$3<$D$4,X32,IF(Y$3=$D$4,$D32-SUM($E32:X32),0)) -> 0 | Z32: =IF(Z$3<$D$4,Y32,IF(Z$3=$D$4,$D32-SUM($E32:Y32),0)) -> 0 | AA32: =IF(AA$3<$D$4,Z32,IF(AA$3=$D$4,$D32-SUM($E32:Z32),0)) -> 0 | AB32: =IF(AB$3<$D$4,AA32,IF(AB$3=$D$4,$D32-SUM($E32:AA32),0)) -> 0 | AC32: =IF(AC$3<$D$4,AB32,IF(AC$3=$D$4,$D32-SUM($E32:AB32),0)) -> 0 | AE32: 0
C33: Other Owner Costs
C34: =+'Development Costs'!C36 -> Project Consultant Fees | D34: =+'Development Costs'!D36 -> 0 | E34: =+D34 -> 0 | F34: 0 | G34: =IF(G$3=($D$4+$D$5),$D34-SUM($E34:F34),0) -> 0 | H34: =IF(H$3=($D$4+$D$5),$D34-SUM($E34:G34),0) -> 0 | I34: =IF(I$3=($D$4+$D$5),$D34-SUM($E34:H34),0) -> 0 | J34: =IF(J$3=($D$4+$D$5),$D34-SUM($E34:I34),0) -> 0 | K34: =IF(K$3=($D$4+$D$5),$D34-SUM($E34:J34),0) -> 0 | L34: =IF(L$3=($D$4+$D$5),$D34-SUM($E34:K34),0) -> 0 | M34: =IF(M$3=($D$4+$D$5),$D34-SUM($E34:L34),0) -> 0 | N34: =IF(N$3=($D$4+$D$5),$D34-SUM($E34:M34),0) -> 0 | O34: =IF(O$3=($D$4+$D$5),$D34-SUM($E34:N34),0) -> 0 | P34: =IF(P$3=($D$4+$D$5),$D34-SUM($E34:O34),0) -> 0 | Q34: =IF(Q$3=($D$4+$D$5),$D34-SUM($E34:P34),0) -> 0 | R34: =IF(R$3=($D$4+$D$5),$D34-SUM($E34:Q34),0) -> 0 | S34: =IF(S$3=($D$4+$D$5),$D34-SUM($E34:R34),0) -> 0 | T34: =IF(T$3=($D$4+$D$5),$D34-SUM($E34:S34),0) -> 0 | U34: =IF(U$3=($D$4+$D$5),$D34-SUM($E34:T34),0) -> 0 | V34: =IF(V$3=($D$4+$D$5),$D34-SUM($E34:U34),0) -> 0 | W34: =IF(W$3=($D$4+$D$5),$D34-SUM($E34:V34),0) -> 0 | X34: =IF(X$3=($D$4+$D$5),$D34-SUM($E34:W34),0) -> 0 | Y34: =IF(Y$3=($D$4+$D$5),$D34-SUM($E34:X34),0) -> 0 | Z34: =IF(Z$3=($D$4+$D$5),$D34-SUM($E34:Y34),0) -> 0 | AA34: =IF(AA$3=($D$4+$D$5),$D34-SUM($E34:Z34),0) -> 0 | AB34: =IF(AB$3=($D$4+$D$5),$D34-SUM($E34:AA34),0) -> 0 | AC34: =IF(AC$3=($D$4+$D$5),$D34-SUM($E34:AB34),0) -> 0 | AE34: =SUM(E34:AC34) -> 0 | AF34: =IF(AE34>D34,"ERROR: Total Amount Drawn Exceeds Total Available","") -> 
C35: =+'Development Costs'!C37 -> Owner Attorney Fees (initial closing) | D35: =+'Development Costs'!D37 -> 0 | E35: =+D35 -> 0 | F35: 0 | G35: =IF(G$3=($D$4+$D$5),$D35-SUM($E35:F35),0) -> 0 | H35: =IF(H$3=($D$4+$D$5),$D35-SUM($E35:G35),0) -> 0 | I35: =IF(I$3=($D$4+$D$5),$D35-SUM($E35:H35),0) -> 0 | J35: =IF(J$3=($D$4+$D$5),$D35-SUM($E35:I35),0) -> 0 | K35: =IF(K$3=($D$4+$D$5),$D35-SUM($E35:J35),0) -> 0 | L35: =IF(L$3=($D$4+$D$5),$D35-SUM($E35:K35),0) -> 0 | M35: =IF(M$3=($D$4+$D$5),$D35-SUM($E35:L35),0) -> 0 | N35: =IF(N$3=($D$4+$D$5),$D35-SUM($E35:M35),0) -> 0 | O35: =IF(O$3=($D$4+$D$5),$D35-SUM($E35:N35),0) -> 0 | P35: =IF(P$3=($D$4+$D$5),$D35-SUM($E35:O35),0) -> 0 | Q35: =IF(Q$3=($D$4+$D$5),$D35-SUM($E35:P35),0) -> 0 | R35: =IF(R$3=($D$4+$D$5),$D35-SUM($E35:Q35),0) -> 0 | S35: =IF(S$3=($D$4+$D$5),$D35-SUM($E35:R35),0) -> 0 | T35: =IF(T$3=($D$4+$D$5),$D35-SUM($E35:S35),0) -> 0 | U35: =IF(U$3=($D$4+$D$5),$D35-SUM($E35:T35),0) -> 0 | V35: =IF(V$3=($D$4+$D$5),$D35-SUM($E35:U35),0) -> 0 | W35: =IF(W$3=($D$4+$D$5),$D35-SUM($E35:V35),0) -> 0 | X35: =IF(X$3=($D$4+$D$5),$D35-SUM($E35:W35),0) -> 0 | Y35: =IF(Y$3=($D$4+$D$5),$D35-SUM($E35:X35),0) -> 0 | Z35: =IF(Z$3=($D$4+$D$5),$D35-SUM($E35:Y35),0) -> 0 | AA35: =IF(AA$3=($D$4+$D$5),$D35-SUM($E35:Z35),0) -> 0 | AB35: =IF(AB$3=($D$4+$D$5),$D35-SUM($E35:AA35),0) -> 0 | AC35: =IF(AC$3=($D$4+$D$5),$D35-SUM($E35:AB35),0) -> 0 | AE35: 0
C36: =+'Development Costs'!C38 -> Owner Attorney Fees (final closing) | D36: =+'Development Costs'!D38 -> 0 | E36: 0 | F36: 0 | G36: =IF(G$3=($D$4+$D$5),$D36-SUM($E36:F36),0) -> 0 | H36: =IF(H$3=($D$4+$D$5),$D36-SUM($E36:G36),0) -> 0 | I36: =IF(I$3=($D$4+$D$5),$D36-SUM($E36:H36),0) -> 0 | J36: =IF(J$3=($D$4+$D$5),$D36-SUM($E36:I36),0) -> 0 | K36: =IF(K$3=($D$4+$D$5),$D36-SUM($E36:J36),0) -> 0 | L36: =IF(L$3=($D$4+$D$5),$D36-SUM($E36:K36),0) -> 0 | M36: =IF(M$3=($D$4+$D$5),$D36-SUM($E36:L36),0) -> 0 | N36: =IF(N$3=($D$4+$D$5),$D36-SUM($E36:M36),0) -> 0 | O36: =IF(O$3=($D$4+$D$5),$D36-SUM($E36:N36),0) -> 0 | P36: =IF(P$3=($D$4+$D$5),$D36-SUM($E36:O36),0) -> 0 | Q36: =IF(Q$3=($D$4+$D$5),$D36-SUM($E36:P36),0) -> 0 | R36: =IF(R$3=($D$4+$D$5),$D36-SUM($E36:Q36),0) -> 0 | S36: =IF(S$3=($D$4+$D$5),$D36-SUM($E36:R36),0) -> 0 | T36: =IF(T$3=($D$4+$D$5),$D36-SUM($E36:S36),0) -> 0 | U36: =IF(U$3=($D$4+$D$5),$D36-SUM($E36:T36),0) -> 0 | V36: =IF(V$3=($D$4+$D$5),$D36-SUM($E36:U36),0) -> 0 | W36: =IF(W$3=($D$4+$D$5),$D36-SUM($E36:V36),0) -> 0 | X36: =IF(X$3=($D$4+$D$5),$D36-SUM($E36:W36),0) -> 0 | Y36: =IF(Y$3=($D$4+$D$5),$D36-SUM($E36:X36),0) -> 0 | Z36: =IF(Z$3=($D$4+$D$5),$D36-SUM($E36:Y36),0) -> 0 | AA36: =IF(AA$3=($D$4+$D$5),$D36-SUM($E36:Z36),0) -> 0 | AB36: =IF(AB$3=($D$4+$D$5),$D36-SUM($E36:AA36),0) -> 0 | AC36: =IF(AC$3=($D$4+$D$5),$D36-SUM($E36:AB36),0) -> 0 | AE36: 0
C37: =+'Development Costs'!C39 -> Syndication Costs | D37: =+'Development Costs'!D39 -> 0 | E37: =+D37 -> 0 | F37: 0 | G37: =IF(G$3=($D$4+$D$5),$D37-SUM($E37:F37),0) -> 0 | H37: =IF(H$3=($D$4+$D$5),$D37-SUM($E37:G37),0) -> 0 | I37: =IF(I$3=($D$4+$D$5),$D37-SUM($E37:H37),0) -> 0 | J37: =IF(J$3=($D$4+$D$5),$D37-SUM($E37:I37),0) -> 0 | K37: =IF(K$3=($D$4+$D$5),$D37-SUM($E37:J37),0) -> 0 | L37: =IF(L$3=($D$4+$D$5),$D37-SUM($E37:K37),0) -> 0 | M37: =IF(M$3=($D$4+$D$5),$D37-SUM($E37:L37),0) -> 0 | N37: =IF(N$3=($D$4+$D$5),$D37-SUM($E37:M37),0) -> 0 | O37: =IF(O$3=($D$4+$D$5),$D37-SUM($E37:N37),0) -> 0 | P37: =IF(P$3=($D$4+$D$5),$D37-SUM($E37:O37),0) -> 0 | Q37: =IF(Q$3=($D$4+$D$5),$D37-SUM($E37:P37),0) -> 0 | R37: =IF(R$3=($D$4+$D$5),$D37-SUM($E37:Q37),0) -> 0 | S37: =IF(S$3=($D$4+$D$5),$D37-SUM($E37:R37),0) -> 0 | T37: =IF(T$3=($D$4+$D$5),$D37-SUM($E37:S37),0) -> 0 | U37: =IF(U$3=($D$4+$D$5),$D37-SUM($E37:T37),0) -> 0 | V37: =IF(V$3=($D$4+$D$5),$D37-SUM($E37:U37),0) -> 0 | W37: =IF(W$3=($D$4+$D$5),$D37-SUM($E37:V37),0) -> 0 | X37: =IF(X$3=($D$4+$D$5),$D37-SUM($E37:W37),0) -> 0 | Y37: =IF(Y$3=($D$4+$D$5),$D37-SUM($E37:X37),0) -> 0 | Z37: =IF(Z$3=($D$4+$D$5),$D37-SUM($E37:Y37),0) -> 0 | AA37: =IF(AA$3=($D$4+$D$5),$D37-SUM($E37:Z37),0) -> 0 | AB37: =IF(AB$3=($D$4+$D$5),$D37-SUM($E37:AA37),0) -> 0 | AC37: =IF(AC$3=($D$4+$D$5),$D37-SUM($E37:AB37),0) -> 0 | AE37: 0
C38: =+'Development Costs'!C40 -> Other Owner Organizational Expenses | D38: =+'Development Costs'!D40 -> 0 | E38: 0 | F38: 0 | G38: =IF(G$3=($D$4+$D$5),$D38-SUM($E38:F38),0) -> 0 | H38: =IF(H$3=($D$4+$D$5),$D38-SUM($E38:G38),0) -> 0 | I38: =IF(I$3=($D$4+$D$5),$D38-SUM($E38:H38),0) -> 0 | J38: =IF(J$3=($D$4+$D$5),$D38-SUM($E38:I38),0) -> 0 | K38: =IF(K$3=($D$4+$D$5),$D38-SUM($E38:J38),0) -> 0 | L38: =IF(L$3=($D$4+$D$5),$D38-SUM($E38:K38),0) -> 0 | M38: =IF(M$3=($D$4+$D$5),$D38-SUM($E38:L38),0) -> 0 | N38: =IF(N$3=($D$4+$D$5),$D38-SUM($E38:M38),0) -> 0 | O38: =IF(O$3=($D$4+$D$5),$D38-SUM($E38:N38),0) -> 0 | P38: =IF(P$3=($D$4+$D$5),$D38-SUM($E38:O38),0) -> 0 | Q38: =IF(Q$3=($D$4+$D$5),$D38-SUM($E38:P38),0) -> 0 | R38: =IF(R$3=($D$4+$D$5),$D38-SUM($E38:Q38),0) -> 0 | S38: =IF(S$3=($D$4+$D$5),$D38-SUM($E38:R38),0) -> 0 | T38: =IF(T$3=($D$4+$D$5),$D38-SUM($E38:S38),0) -> 0 | U38: =IF(U$3=($D$4+$D$5),$D38-SUM($E38:T38),0) -> 0 | V38: =IF(V$3=($D$4+$D$5),$D38-SUM($E38:U38),0) -> 0 | W38: =IF(W$3=($D$4+$D$5),$D38-SUM($E38:V38),0) -> 0 | X38: =IF(X$3=($D$4+$D$5),$D38-SUM($E38:W38),0) -> 0 | Y38: =IF(Y$3=($D$4+$D$5),$D38-SUM($E38:X38),0) -> 0 | Z38: =IF(Z$3=($D$4+$D$5),$D38-SUM($E38:Y38),0) -> 0 | AA38: =IF(AA$3=($D$4+$D$5),$D38-SUM($E38:Z38),0) -> 0 | AB38: =IF(AB$3=($D$4+$D$5),$D38-SUM($E38:AA38),0) -> 0 | AC38: =IF(AC$3=($D$4+$D$5),$D38-SUM($E38:AB38),0) -> 0 | AE38: 0
C39: =+'Development Costs'!C41 -> Market Study | D39: =+'Development Costs'!D41 -> 0 | E39: 0 | F39: 0 | G39: =IF(G$3=($D$4+$D$5),$D39-SUM($E39:F39),0) -> 0 | H39: =IF(H$3=($D$4+$D$5),$D39-SUM($E39:G39),0) -> 0 | I39: =IF(I$3=($D$4+$D$5),$D39-SUM($E39:H39),0) -> 0 | J39: =IF(J$3=($D$4+$D$5),$D39-SUM($E39:I39),0) -> 0 | K39: =IF(K$3=($D$4+$D$5),$D39-SUM($E39:J39),0) -> 0 | L39: =IF(L$3=($D$4+$D$5),$D39-SUM($E39:K39),0) -> 0 | M39: =IF(M$3=($D$4+$D$5),$D39-SUM($E39:L39),0) -> 0 | N39: =IF(N$3=($D$4+$D$5),$D39-SUM($E39:M39),0) -> 0 | O39: =IF(O$3=($D$4+$D$5),$D39-SUM($E39:N39),0) -> 0 | P39: =IF(P$3=($D$4+$D$5),$D39-SUM($E39:O39),0) -> 0 | Q39: =IF(Q$3=($D$4+$D$5),$D39-SUM($E39:P39),0) -> 0 | R39: =IF(R$3=($D$4+$D$5),$D39-SUM($E39:Q39),0) -> 0 | S39: =IF(S$3=($D$4+$D$5),$D39-SUM($E39:R39),0) -> 0 | T39: =IF(T$3=($D$4+$D$5),$D39-SUM($E39:S39),0) -> 0 | U39: =IF(U$3=($D$4+$D$5),$D39-SUM($E39:T39),0) -> 0 | V39: =IF(V$3=($D$4+$D$5),$D39-SUM($E39:U39),0) -> 0 | W39: =IF(W$3=($D$4+$D$5),$D39-SUM($E39:V39),0) -> 0 | X39: =IF(X$3=($D$4+$D$5),$D39-SUM($E39:W39),0) -> 0 | Y39: =IF(Y$3=($D$4+$D$5),$D39-SUM($E39:X39),0) -> 0 | Z39: =IF(Z$3=($D$4+$D$5),$D39-SUM($E39:Y39),0) -> 0 | AA39: =IF(AA$3=($D$4+$D$5),$D39-SUM($E39:Z39),0) -> 0 | AB39: =IF(AB$3=($D$4+$D$5),$D39-SUM($E39:AA39),0) -> 0 | AC39: =IF(AC$3=($D$4+$D$5),$D39-SUM($E39:AB39),0) -> 0 | AE39: 0
C40: =+'Development Costs'!C42 -> Survey | D40: =+'Development Costs'!D42 -> 0 | E40: 0 | F40: 0 | G40: =IF(G$3=($D$4+$D$5),$D40-SUM($E40:F40),0) -> 0 | H40: =IF(H$3=($D$4+$D$5),$D40-SUM($E40:G40),0) -> 0 | I40: =IF(I$3=($D$4+$D$5),$D40-SUM($E40:H40),0) -> 0 | J40: =IF(J$3=($D$4+$D$5),$D40-SUM($E40:I40),0) -> 0 | K40: =IF(K$3=($D$4+$D$5),$D40-SUM($E40:J40),0) -> 0 | L40: =IF(L$3=($D$4+$D$5),$D40-SUM($E40:K40),0) -> 0 | M40: =IF(M$3=($D$4+$D$5),$D40-SUM($E40:L40),0) -> 0 | N40: =IF(N$3=($D$4+$D$5),$D40-SUM($E40:M40),0) -> 0 | O40: =IF(O$3=($D$4+$D$5),$D40-SUM($E40:N40),0) -> 0 | P40: =IF(P$3=($D$4+$D$5),$D40-SUM($E40:O40),0) -> 0 | Q40: =IF(Q$3=($D$4+$D$5),$D40-SUM($E40:P40),0) -> 0 | R40: =IF(R$3=($D$4+$D$5),$D40-SUM($E40:Q40),0) -> 0 | S40: =IF(S$3=($D$4+$D$5),$D40-SUM($E40:R40),0) -> 0 | T40: =IF(T$3=($D$4+$D$5),$D40-SUM($E40:S40),0) -> 0 | U40: =IF(U$3=($D$4+$D$5),$D40-SUM($E40:T40),0) -> 0 | V40: =IF(V$3=($D$4+$D$5),$D40-SUM($E40:U40),0) -> 0 | W40: =IF(W$3=($D$4+$D$5),$D40-SUM($E40:V40),0) -> 0 | X40: =IF(X$3=($D$4+$D$5),$D40-SUM($E40:W40),0) -> 0 | Y40: =IF(Y$3=($D$4+$D$5),$D40-SUM($E40:X40),0) -> 0 | Z40: =IF(Z$3=($D$4+$D$5),$D40-SUM($E40:Y40),0) -> 0 | AA40: =IF(AA$3=($D$4+$D$5),$D40-SUM($E40:Z40),0) -> 0 | AB40: =IF(AB$3=($D$4+$D$5),$D40-SUM($E40:AA40),0) -> 0 | AC40: =IF(AC$3=($D$4+$D$5),$D40-SUM($E40:AB40),0) -> 0 | AE40: 0
C41: =+'Development Costs'!C43 -> Appraisal Fees | D41: =+'Development Costs'!D43 -> 0 | E41: 0 | F41: 0 | G41: =IF(G$3=($D$4+$D$5),$D41-SUM($E41:F41),0) -> 0 | H41: =IF(H$3=($D$4+$D$5),$D41-SUM($E41:G41),0) -> 0 | I41: =IF(I$3=($D$4+$D$5),$D41-SUM($E41:H41),0) -> 0 | J41: =IF(J$3=($D$4+$D$5),$D41-SUM($E41:I41),0) -> 0 | K41: =IF(K$3=($D$4+$D$5),$D41-SUM($E41:J41),0) -> 0 | L41: =IF(L$3=($D$4+$D$5),$D41-SUM($E41:K41),0) -> 0 | M41: =IF(M$3=($D$4+$D$5),$D41-SUM($E41:L41),0) -> 0 | N41: =IF(N$3=($D$4+$D$5),$D41-SUM($E41:M41),0) -> 0 | O41: =IF(O$3=($D$4+$D$5),$D41-SUM($E41:N41),0) -> 0 | P41: =IF(P$3=($D$4+$D$5),$D41-SUM($E41:O41),0) -> 0 | Q41: =IF(Q$3=($D$4+$D$5),$D41-SUM($E41:P41),0) -> 0 | R41: =IF(R$3=($D$4+$D$5),$D41-SUM($E41:Q41),0) -> 0 | S41: =IF(S$3=($D$4+$D$5),$D41-SUM($E41:R41),0) -> 0 | T41: =IF(T$3=($D$4+$D$5),$D41-SUM($E41:S41),0) -> 0 | U41: =IF(U$3=($D$4+$D$5),$D41-SUM($E41:T41),0) -> 0 | V41: =IF(V$3=($D$4+$D$5),$D41-SUM($E41:U41),0) -> 0 | W41: =IF(W$3=($D$4+$D$5),$D41-SUM($E41:V41),0) -> 0 | X41: =IF(X$3=($D$4+$D$5),$D41-SUM($E41:W41),0) -> 0 | Y41: =IF(Y$3=($D$4+$D$5),$D41-SUM($E41:X41),0) -> 0 | Z41: =IF(Z$3=($D$4+$D$5),$D41-SUM($E41:Y41),0) -> 0 | AA41: =IF(AA$3=($D$4+$D$5),$D41-SUM($E41:Z41),0) -> 0 | AB41: =IF(AB$3=($D$4+$D$5),$D41-SUM($E41:AA41),0) -> 0 | AC41: =IF(AC$3=($D$4+$D$5),$D41-SUM($E41:AB41),0) -> 0 | AE41: 0
C42: =+'Development Costs'!C44 -> Environmental Studies | D42: =+'Development Costs'!D44 -> 0 | E42: 0 | F42: 0 | G42: =IF(G$3=($D$4+$D$5),$D42-SUM($E42:F42),0) -> 0 | H42: =IF(H$3=($D$4+$D$5),$D42-SUM($E42:G42),0) -> 0 | I42: =IF(I$3=($D$4+$D$5),$D42-SUM($E42:H42),0) -> 0 | J42: =IF(J$3=($D$4+$D$5),$D42-SUM($E42:I42),0) -> 0 | K42: =IF(K$3=($D$4+$D$5),$D42-SUM($E42:J42),0) -> 0 | L42: =IF(L$3=($D$4+$D$5),$D42-SUM($E42:K42),0) -> 0 | M42: =IF(M$3=($D$4+$D$5),$D42-SUM($E42:L42),0) -> 0 | N42: =IF(N$3=($D$4+$D$5),$D42-SUM($E42:M42),0) -> 0 | O42: =IF(O$3=($D$4+$D$5),$D42-SUM($E42:N42),0) -> 0 | P42: =IF(P$3=($D$4+$D$5),$D42-SUM($E42:O42),0) -> 0 | Q42: =IF(Q$3=($D$4+$D$5),$D42-SUM($E42:P42),0) -> 0 | R42: =IF(R$3=($D$4+$D$5),$D42-SUM($E42:Q42),0) -> 0 | S42: =IF(S$3=($D$4+$D$5),$D42-SUM($E42:R42),0) -> 0 | T42: =IF(T$3=($D$4+$D$5),$D42-SUM($E42:S42),0) -> 0 | U42: =IF(U$3=($D$4+$D$5),$D42-SUM($E42:T42),0) -> 0 | V42: =IF(V$3=($D$4+$D$5),$D42-SUM($E42:U42),0) -> 0 | W42: =IF(W$3=($D$4+$D$5),$D42-SUM($E42:V42),0) -> 0 | X42: =IF(X$3=($D$4+$D$5),$D42-SUM($E42:W42),0) -> 0 | Y42: =IF(Y$3=($D$4+$D$5),$D42-SUM($E42:X42),0) -> 0 | Z42: =IF(Z$3=($D$4+$D$5),$D42-SUM($E42:Y42),0) -> 0 | AA42: =IF(AA$3=($D$4+$D$5),$D42-SUM($E42:Z42),0) -> 0 | AB42: =IF(AB$3=($D$4+$D$5),$D42-SUM($E42:AA42),0) -> 0 | AC42: =IF(AC$3=($D$4+$D$5),$D42-SUM($E42:AB42),0) -> 0 | AE42: 0
C43: =+'Development Costs'!C45 -> Capital Needs Assessment | D43: =+'Development Costs'!D45 -> 0 | E43: 0 | F43: 0 | G43: =IF(G$3=($D$4+$D$5),$D43-SUM($E43:F43),0) -> 0 | H43: =IF(H$3=($D$4+$D$5),$D43-SUM($E43:G43),0) -> 0 | I43: =IF(I$3=($D$4+$D$5),$D43-SUM($E43:H43),0) -> 0 | J43: =IF(J$3=($D$4+$D$5),$D43-SUM($E43:I43),0) -> 0 | K43: =IF(K$3=($D$4+$D$5),$D43-SUM($E43:J43),0) -> 0 | L43: =IF(L$3=($D$4+$D$5),$D43-SUM($E43:K43),0) -> 0 | M43: =IF(M$3=($D$4+$D$5),$D43-SUM($E43:L43),0) -> 0 | N43: =IF(N$3=($D$4+$D$5),$D43-SUM($E43:M43),0) -> 0 | O43: =IF(O$3=($D$4+$D$5),$D43-SUM($E43:N43),0) -> 0 | P43: =IF(P$3=($D$4+$D$5),$D43-SUM($E43:O43),0) -> 0 | Q43: =IF(Q$3=($D$4+$D$5),$D43-SUM($E43:P43),0) -> 0 | R43: =IF(R$3=($D$4+$D$5),$D43-SUM($E43:Q43),0) -> 0 | S43: =IF(S$3=($D$4+$D$5),$D43-SUM($E43:R43),0) -> 0 | T43: =IF(T$3=($D$4+$D$5),$D43-SUM($E43:S43),0) -> 0 | U43: =IF(U$3=($D$4+$D$5),$D43-SUM($E43:T43),0) -> 0 | V43: =IF(V$3=($D$4+$D$5),$D43-SUM($E43:U43),0) -> 0 | W43: =IF(W$3=($D$4+$D$5),$D43-SUM($E43:V43),0) -> 0 | X43: =IF(X$3=($D$4+$D$5),$D43-SUM($E43:W43),0) -> 0 | Y43: =IF(Y$3=($D$4+$D$5),$D43-SUM($E43:X43),0) -> 0 | Z43: =IF(Z$3=($D$4+$D$5),$D43-SUM($E43:Y43),0) -> 0 | AA43: =IF(AA$3=($D$4+$D$5),$D43-SUM($E43:Z43),0) -> 0 | AB43: =IF(AB$3=($D$4+$D$5),$D43-SUM($E43:AA43),0) -> 0 | AC43: =IF(AC$3=($D$4+$D$5),$D43-SUM($E43:AB43),0) -> 0 | AE43: 0
C44: =+'Development Costs'!C46 -> 0 | D44: =+'Development Costs'!D46 -> 0 | E44: 0 | F44: 0 | G44: =IF(G$3=($D$4+$D$5),$D44-SUM($E44:F44),0) -> 0 | H44: =IF(H$3=($D$4+$D$5),$D44-SUM($E44:G44),0) -> 0 | I44: =IF(I$3=($D$4+$D$5),$D44-SUM($E44:H44),0) -> 0 | J44: =IF(J$3=($D$4+$D$5),$D44-SUM($E44:I44),0) -> 0 | K44: =IF(K$3=($D$4+$D$5),$D44-SUM($E44:J44),0) -> 0 | L44: =IF(L$3=($D$4+$D$5),$D44-SUM($E44:K44),0) -> 0 | M44: =IF(M$3=($D$4+$D$5),$D44-SUM($E44:L44),0) -> 0 | N44: =IF(N$3=($D$4+$D$5),$D44-SUM($E44:M44),0) -> 0 | O44: =IF(O$3=($D$4+$D$5),$D44-SUM($E44:N44),0) -> 0 | P44: =IF(P$3=($D$4+$D$5),$D44-SUM($E44:O44),0) -> 0 | Q44: =IF(Q$3=($D$4+$D$5),$D44-SUM($E44:P44),0) -> 0 | R44: =IF(R$3=($D$4+$D$5),$D44-SUM($E44:Q44),0) -> 0 | S44: =IF(S$3=($D$4+$D$5),$D44-SUM($E44:R44),0) -> 0 | T44: =IF(T$3=($D$4+$D$5),$D44-SUM($E44:S44),0) -> 0 | U44: =IF(U$3=($D$4+$D$5),$D44-SUM($E44:T44),0) -> 0 | V44: =IF(V$3=($D$4+$D$5),$D44-SUM($E44:U44),0) -> 0 | W44: =IF(W$3=($D$4+$D$5),$D44-SUM($E44:V44),0) -> 0 | X44: =IF(X$3=($D$4+$D$5),$D44-SUM($E44:W44),0) -> 0 | Y44: =IF(Y$3=($D$4+$D$5),$D44-SUM($E44:X44),0) -> 0 | Z44: =IF(Z$3=($D$4+$D$5),$D44-SUM($E44:Y44),0) -> 0 | AA44: =IF(AA$3=($D$4+$D$5),$D44-SUM($E44:Z44),0) -> 0 | AB44: =IF(AB$3=($D$4+$D$5),$D44-SUM($E44:AA44),0) -> 0 | AC44: =IF(AC$3=($D$4+$D$5),$D44-SUM($E44:AB44),0) -> 0 | AE44: 0
C45: =+'Development Costs'!C47 -> Tap Fees and Impact Fees | D45: =+'Development Costs'!D47 -> 0 | E45: 0 | F45: 0 | G45: =IF(G$3=($D$4+$D$5),$D45-SUM($E45:F45),0) -> 0 | H45: =IF(H$3=($D$4+$D$5),$D45-SUM($E45:G45),0) -> 0 | I45: =IF(I$3=($D$4+$D$5),$D45-SUM($E45:H45),0) -> 0 | J45: =IF(J$3=($D$4+$D$5),$D45-SUM($E45:I45),0) -> 0 | K45: =IF(K$3=($D$4+$D$5),$D45-SUM($E45:J45),0) -> 0 | L45: =IF(L$3=($D$4+$D$5),$D45-SUM($E45:K45),0) -> 0 | M45: =IF(M$3=($D$4+$D$5),$D45-SUM($E45:L45),0) -> 0 | N45: =IF(N$3=($D$4+$D$5),$D45-SUM($E45:M45),0) -> 0 | O45: =IF(O$3=($D$4+$D$5),$D45-SUM($E45:N45),0) -> 0 | P45: =IF(P$3=($D$4+$D$5),$D45-SUM($E45:O45),0) -> 0 | Q45: =IF(Q$3=($D$4+$D$5),$D45-SUM($E45:P45),0) -> 0 | R45: =IF(R$3=($D$4+$D$5),$D45-SUM($E45:Q45),0) -> 0 | S45: =IF(S$3=($D$4+$D$5),$D45-SUM($E45:R45),0) -> 0 | T45: =IF(T$3=($D$4+$D$5),$D45-SUM($E45:S45),0) -> 0 | U45: =IF(U$3=($D$4+$D$5),$D45-SUM($E45:T45),0) -> 0 | V45: =IF(V$3=($D$4+$D$5),$D45-SUM($E45:U45),0) -> 0 | W45: =IF(W$3=($D$4+$D$5),$D45-SUM($E45:V45),0) -> 0 | X45: =IF(X$3=($D$4+$D$5),$D45-SUM($E45:W45),0) -> 0 | Y45: =IF(Y$3=($D$4+$D$5),$D45-SUM($E45:X45),0) -> 0 | Z45: =IF(Z$3=($D$4+$D$5),$D45-SUM($E45:Y45),0) -> 0 | AA45: =IF(AA$3=($D$4+$D$5),$D45-SUM($E45:Z45),0) -> 0 | AB45: =IF(AB$3=($D$4+$D$5),$D45-SUM($E45:AA45),0) -> 0 | AC45: =IF(AC$3=($D$4+$D$5),$D45-SUM($E45:AB45),0) -> 0 | AE45: 0
C46: =+'Development Costs'!C48 -> Building Permits and Fees | D46: =+'Development Costs'!D48 -> 0 | E46: 0 | F46: 0 | G46: =IF(G$3=($D$4+$D$5),$D46-SUM($E46:F46),0) -> 0 | H46: =IF(H$3=($D$4+$D$5),$D46-SUM($E46:G46),0) -> 0 | I46: =IF(I$3=($D$4+$D$5),$D46-SUM($E46:H46),0) -> 0 | J46: =IF(J$3=($D$4+$D$5),$D46-SUM($E46:I46),0) -> 0 | K46: =IF(K$3=($D$4+$D$5),$D46-SUM($E46:J46),0) -> 0 | L46: =IF(L$3=($D$4+$D$5),$D46-SUM($E46:K46),0) -> 0 | M46: =IF(M$3=($D$4+$D$5),$D46-SUM($E46:L46),0) -> 0 | N46: =IF(N$3=($D$4+$D$5),$D46-SUM($E46:M46),0) -> 0 | O46: =IF(O$3=($D$4+$D$5),$D46-SUM($E46:N46),0) -> 0 | P46: =IF(P$3=($D$4+$D$5),$D46-SUM($E46:O46),0) -> 0 | Q46: =IF(Q$3=($D$4+$D$5),$D46-SUM($E46:P46),0) -> 0 | R46: =IF(R$3=($D$4+$D$5),$D46-SUM($E46:Q46),0) -> 0 | S46: =IF(S$3=($D$4+$D$5),$D46-SUM($E46:R46),0) -> 0 | T46: =IF(T$3=($D$4+$D$5),$D46-SUM($E46:S46),0) -> 0 | U46: =IF(U$3=($D$4+$D$5),$D46-SUM($E46:T46),0) -> 0 | V46: =IF(V$3=($D$4+$D$5),$D46-SUM($E46:U46),0) -> 0 | W46: =IF(W$3=($D$4+$D$5),$D46-SUM($E46:V46),0) -> 0 | X46: =IF(X$3=($D$4+$D$5),$D46-SUM($E46:W46),0) -> 0 | Y46: =IF(Y$3=($D$4+$D$5),$D46-SUM($E46:X46),0) -> 0 | Z46: =IF(Z$3=($D$4+$D$5),$D46-SUM($E46:Y46),0) -> 0 | AA46: =IF(AA$3=($D$4+$D$5),$D46-SUM($E46:Z46),0) -> 0 | AB46: =IF(AB$3=($D$4+$D$5),$D46-SUM($E46:AA46),0) -> 0 | AC46: =IF(AC$3=($D$4+$D$5),$D46-SUM($E46:AB46),0) -> 0 | AE46: 0
C47: =+'Development Costs'!C49 -> Tax Credit Fees | D47: =+'Development Costs'!D49 -> 0 | E47: 0 | F47: 0 | G47: =IF(G$3=($D$4+$D$5),$D47-SUM($E47:F47),0) -> 0 | H47: =IF(H$3=($D$4+$D$5),$D47-SUM($E47:G47),0) -> 0 | I47: =IF(I$3=($D$4+$D$5),$D47-SUM($E47:H47),0) -> 0 | J47: =IF(J$3=($D$4+$D$5),$D47-SUM($E47:I47),0) -> 0 | K47: =IF(K$3=($D$4+$D$5),$D47-SUM($E47:J47),0) -> 0 | L47: =IF(L$3=($D$4+$D$5),$D47-SUM($E47:K47),0) -> 0 | M47: =IF(M$3=($D$4+$D$5),$D47-SUM($E47:L47),0) -> 0 | N47: =IF(N$3=($D$4+$D$5),$D47-SUM($E47:M47),0) -> 0 | O47: =IF(O$3=($D$4+$D$5),$D47-SUM($E47:N47),0) -> 0 | P47: =IF(P$3=($D$4+$D$5),$D47-SUM($E47:O47),0) -> 0 | Q47: =IF(Q$3=($D$4+$D$5),$D47-SUM($E47:P47),0) -> 0 | R47: =IF(R$3=($D$4+$D$5),$D47-SUM($E47:Q47),0) -> 0 | S47: =IF(S$3=($D$4+$D$5),$D47-SUM($E47:R47),0) -> 0 | T47: =IF(T$3=($D$4+$D$5),$D47-SUM($E47:S47),0) -> 0 | U47: =IF(U$3=($D$4+$D$5),$D47-SUM($E47:T47),0) -> 0 | V47: =IF(V$3=($D$4+$D$5),$D47-SUM($E47:U47),0) -> 0 | W47: =IF(W$3=($D$4+$D$5),$D47-SUM($E47:V47),0) -> 0 | X47: =IF(X$3=($D$4+$D$5),$D47-SUM($E47:W47),0) -> 0 | Y47: =IF(Y$3=($D$4+$D$5),$D47-SUM($E47:X47),0) -> 0 | Z47: =IF(Z$3=($D$4+$D$5),$D47-SUM($E47:Y47),0) -> 0 | AA47: =IF(AA$3=($D$4+$D$5),$D47-SUM($E47:Z47),0) -> 0 | AB47: =IF(AB$3=($D$4+$D$5),$D47-SUM($E47:AA47),0) -> 0 | AC47: =IF(AC$3=($D$4+$D$5),$D47-SUM($E47:AB47),0) -> 0 | AE47: 0
C48: =+'Development Costs'!C51 -> Soft Cost Contingency | D48: =+'Development Costs'!D51 -> 0 | E48: 0 | F48: =IF($D$4=0,0,ROUND((D48-E48)/$D$4,0)) -> 0 | G48: =IF(G$3<$D$4,F48,IF(G$3=$D$4,$D48-SUM($E48:F48),0)) -> 0 | H48: =IF(H$3<$D$4,G48,IF(H$3=$D$4,$D48-SUM($E48:G48),0)) -> 0 | I48: =IF(I$3<$D$4,H48,IF(I$3=$D$4,$D48-SUM($E48:H48),0)) -> 0 | J48: =IF(J$3<$D$4,I48,IF(J$3=$D$4,$D48-SUM($E48:I48),0)) -> 0 | K48: =IF(K$3<$D$4,J48,IF(K$3=$D$4,$D48-SUM($E48:J48),0)) -> 0 | L48: =IF(L$3<$D$4,K48,IF(L$3=$D$4,$D48-SUM($E48:K48),0)) -> 0 | M48: =IF(M$3<$D$4,L48,IF(M$3=$D$4,$D48-SUM($E48:L48),0)) -> 0 | N48: =IF(N$3<$D$4,M48,IF(N$3=$D$4,$D48-SUM($E48:M48),0)) -> 0 | O48: =IF(O$3<$D$4,N48,IF(O$3=$D$4,$D48-SUM($E48:N48),0)) -> 0 | P48: =IF(P$3<$D$4,O48,IF(P$3=$D$4,$D48-SUM($E48:O48),0)) -> 0 | Q48: =IF(Q$3<$D$4,P48,IF(Q$3=$D$4,$D48-SUM($E48:P48),0)) -> 0 | R48: =IF(R$3<$D$4,Q48,IF(R$3=$D$4,$D48-SUM($E48:Q48),0)) -> 0 | S48: =IF(S$3<$D$4,R48,IF(S$3=$D$4,$D48-SUM($E48:R48),0)) -> 0 | T48: =IF(T$3<$D$4,S48,IF(T$3=$D$4,$D48-SUM($E48:S48),0)) -> 0 | U48: =IF(U$3<$D$4,T48,IF(U$3=$D$4,$D48-SUM($E48:T48),0)) -> 0 | V48: =IF(V$3<$D$4,U48,IF(V$3=$D$4,$D48-SUM($E48:U48),0)) -> 0 | W48: =IF(W$3<$D$4,V48,IF(W$3=$D$4,$D48-SUM($E48:V48),0)) -> 0 | X48: =IF(X$3<$D$4,W48,IF(X$3=$D$4,$D48-SUM($E48:W48),0)) -> 0 | Y48: =IF(Y$3<$D$4,X48,IF(Y$3=$D$4,$D48-SUM($E48:X48),0)) -> 0 | Z48: =IF(Z$3<$D$4,Y48,IF(Z$3=$D$4,$D48-SUM($E48:Y48),0)) -> 0 | AA48: =IF(AA$3<$D$4,Z48,IF(AA$3=$D$4,$D48-SUM($E48:Z48),0)) -> 0 | AB48: =IF(AB$3<$D$4,AA48,IF(AB$3=$D$4,$D48-SUM($E48:AA48),0)) -> 0 | AC48: =IF(AC$3<$D$4,AB48,IF(AC$3=$D$4,$D48-SUM($E48:AB48),0)) -> 0 | AE48: 0
C49: =+'Development Costs'!C52 -> 0 | D49: =+'Development Costs'!D52 -> 0 | E49: =+D49 -> 0 | F49: 0 | G49: =IF(G$3=($D$4+$D$5),$D49-SUM($E49:F49),0) -> 0 | H49: =IF(H$3=($D$4+$D$5),$D49-SUM($E49:G49),0) -> 0 | I49: =IF(I$3=($D$4+$D$5),$D49-SUM($E49:H49),0) -> 0 | J49: =IF(J$3=($D$4+$D$5),$D49-SUM($E49:I49),0) -> 0 | K49: =IF(K$3=($D$4+$D$5),$D49-SUM($E49:J49),0) -> 0 | L49: =IF(L$3=($D$4+$D$5),$D49-SUM($E49:K49),0) -> 0 | M49: =IF(M$3=($D$4+$D$5),$D49-SUM($E49:L49),0) -> 0 | N49: =IF(N$3=($D$4+$D$5),$D49-SUM($E49:M49),0) -> 0 | O49: =IF(O$3=($D$4+$D$5),$D49-SUM($E49:N49),0) -> 0 | P49: =IF(P$3=($D$4+$D$5),$D49-SUM($E49:O49),0) -> 0 | Q49: =IF(Q$3=($D$4+$D$5),$D49-SUM($E49:P49),0) -> 0 | R49: =IF(R$3=($D$4+$D$5),$D49-SUM($E49:Q49),0) -> 0 | S49: =IF(S$3=($D$4+$D$5),$D49-SUM($E49:R49),0) -> 0 | T49: =IF(T$3=($D$4+$D$5),$D49-SUM($E49:S49),0) -> 0 | U49: =IF(U$3=($D$4+$D$5),$D49-SUM($E49:T49),0) -> 0 | V49: =IF(V$3=($D$4+$D$5),$D49-SUM($E49:U49),0) -> 0 | W49: =IF(W$3=($D$4+$D$5),$D49-SUM($E49:V49),0) -> 0 | X49: =IF(X$3=($D$4+$D$5),$D49-SUM($E49:W49),0) -> 0 | Y49: =IF(Y$3=($D$4+$D$5),$D49-SUM($E49:X49),0) -> 0 | Z49: =IF(Z$3=($D$4+$D$5),$D49-SUM($E49:Y49),0) -> 0 | AA49: =IF(AA$3=($D$4+$D$5),$D49-SUM($E49:Z49),0) -> 0 | AB49: =IF(AB$3=($D$4+$D$5),$D49-SUM($E49:AA49),0) -> 0 | AC49: =IF(AC$3=($D$4+$D$5),$D49-SUM($E49:AB49),0) -> 0 | AE49: 0
C50: =+'Development Costs'!C53 -> 0 | D50: =+'Development Costs'!D53 -> 0 | E50: =+D50 -> 0 | F50: 0 | G50: =IF(G$3=($D$4+$D$5),$D50-SUM($E50:F50),0) -> 0 | H50: =IF(H$3=($D$4+$D$5),$D50-SUM($E50:G50),0) -> 0 | I50: =IF(I$3=($D$4+$D$5),$D50-SUM($E50:H50),0) -> 0 | J50: =IF(J$3=($D$4+$D$5),$D50-SUM($E50:I50),0) -> 0 | K50: =IF(K$3=($D$4+$D$5),$D50-SUM($E50:J50),0) -> 0 | L50: =IF(L$3=($D$4+$D$5),$D50-SUM($E50:K50),0) -> 0 | M50: =IF(M$3=($D$4+$D$5),$D50-SUM($E50:L50),0) -> 0 | N50: =IF(N$3=($D$4+$D$5),$D50-SUM($E50:M50),0) -> 0 | O50: =IF(O$3=($D$4+$D$5),$D50-SUM($E50:N50),0) -> 0 | P50: =IF(P$3=($D$4+$D$5),$D50-SUM($E50:O50),0) -> 0 | Q50: =IF(Q$3=($D$4+$D$5),$D50-SUM($E50:P50),0) -> 0 | R50: =IF(R$3=($D$4+$D$5),$D50-SUM($E50:Q50),0) -> 0 | S50: =IF(S$3=($D$4+$D$5),$D50-SUM($E50:R50),0) -> 0 | T50: =IF(T$3=($D$4+$D$5),$D50-SUM($E50:S50),0) -> 0 | U50: =IF(U$3=($D$4+$D$5),$D50-SUM($E50:T50),0) -> 0 | V50: =IF(V$3=($D$4+$D$5),$D50-SUM($E50:U50),0) -> 0 | W50: =IF(W$3=($D$4+$D$5),$D50-SUM($E50:V50),0) -> 0 | X50: =IF(X$3=($D$4+$D$5),$D50-SUM($E50:W50),0) -> 0 | Y50: =IF(Y$3=($D$4+$D$5),$D50-SUM($E50:X50),0) -> 0 | Z50: =IF(Z$3=($D$4+$D$5),$D50-SUM($E50:Y50),0) -> 0 | AA50: =IF(AA$3=($D$4+$D$5),$D50-SUM($E50:Z50),0) -> 0 | AB50: =IF(AB$3=($D$4+$D$5),$D50-SUM($E50:AA50),0) -> 0 | AC50: =IF(AC$3=($D$4+$D$5),$D50-SUM($E50:AB50),0) -> 0 | AE50: 0
C51: Interim Financing Costs (excluding interest)
C52: =+'Development Costs'!C55 -> Construction Period Insurance | D52: =+'Development Costs'!D55 -> 0 | E52: =+D52 -> 0 | F52: 0 | G52: =IF(G$3=($D$4+$D$5),$D52-SUM($E52:F52),0) -> 0 | H52: =IF(H$3=($D$4+$D$5),$D52-SUM($E52:G52),0) -> 0 | I52: =IF(I$3=($D$4+$D$5),$D52-SUM($E52:H52),0) -> 0 | J52: =IF(J$3=($D$4+$D$5),$D52-SUM($E52:I52),0) -> 0 | K52: =IF(K$3=($D$4+$D$5),$D52-SUM($E52:J52),0) -> 0 | L52: =IF(L$3=($D$4+$D$5),$D52-SUM($E52:K52),0) -> 0 | M52: =IF(M$3=($D$4+$D$5),$D52-SUM($E52:L52),0) -> 0 | N52: =IF(N$3=($D$4+$D$5),$D52-SUM($E52:M52),0) -> 0 | O52: =IF(O$3=($D$4+$D$5),$D52-SUM($E52:N52),0) -> 0 | P52: =IF(P$3=($D$4+$D$5),$D52-SUM($E52:O52),0) -> 0 | Q52: =IF(Q$3=($D$4+$D$5),$D52-SUM($E52:P52),0) -> 0 | R52: =IF(R$3=($D$4+$D$5),$D52-SUM($E52:Q52),0) -> 0 | S52: =IF(S$3=($D$4+$D$5),$D52-SUM($E52:R52),0) -> 0 | T52: =IF(T$3=($D$4+$D$5),$D52-SUM($E52:S52),0) -> 0 | U52: =IF(U$3=($D$4+$D$5),$D52-SUM($E52:T52),0) -> 0 | V52: =IF(V$3=($D$4+$D$5),$D52-SUM($E52:U52),0) -> 0 | W52: =IF(W$3=($D$4+$D$5),$D52-SUM($E52:V52),0) -> 0 | X52: =IF(X$3=($D$4+$D$5),$D52-SUM($E52:W52),0) -> 0 | Y52: =IF(Y$3=($D$4+$D$5),$D52-SUM($E52:X52),0) -> 0 | Z52: =IF(Z$3=($D$4+$D$5),$D52-SUM($E52:Y52),0) -> 0 | AA52: =IF(AA$3=($D$4+$D$5),$D52-SUM($E52:Z52),0) -> 0 | AB52: =IF(AB$3=($D$4+$D$5),$D52-SUM($E52:AA52),0) -> 0 | AC52: =IF(AC$3=($D$4+$D$5),$D52-SUM($E52:AB52),0) -> 0 | AE52: =SUM(E52:AC52) -> 0 | AF52: =IF(AE52>D52,"ERROR: Total Amount Drawn Exceeds Total Available","") -> 
C53: =+'Development Costs'!C56 -> Construction Period Taxes | D53: =+'Development Costs'!D56 -> 0 | E53: =+D53 -> 0 | F53: 0 | G53: =IF(G$3=($D$4+$D$5),$D53-SUM($E53:F53),0) -> 0 | H53: =IF(H$3=($D$4+$D$5),$D53-SUM($E53:G53),0) -> 0 | I53: =IF(I$3=($D$4+$D$5),$D53-SUM($E53:H53),0) -> 0 | J53: =IF(J$3=($D$4+$D$5),$D53-SUM($E53:I53),0) -> 0 | K53: =IF(K$3=($D$4+$D$5),$D53-SUM($E53:J53),0) -> 0 | L53: =IF(L$3=($D$4+$D$5),$D53-SUM($E53:K53),0) -> 0 | M53: =IF(M$3=($D$4+$D$5),$D53-SUM($E53:L53),0) -> 0 | N53: =IF(N$3=($D$4+$D$5),$D53-SUM($E53:M53),0) -> 0 | O53: =IF(O$3=($D$4+$D$5),$D53-SUM($E53:N53),0) -> 0 | P53: =IF(P$3=($D$4+$D$5),$D53-SUM($E53:O53),0) -> 0 | Q53: =IF(Q$3=($D$4+$D$5),$D53-SUM($E53:P53),0) -> 0 | R53: =IF(R$3=($D$4+$D$5),$D53-SUM($E53:Q53),0) -> 0 | S53: =IF(S$3=($D$4+$D$5),$D53-SUM($E53:R53),0) -> 0 | T53: =IF(T$3=($D$4+$D$5),$D53-SUM($E53:S53),0) -> 0 | U53: =IF(U$3=($D$4+$D$5),$D53-SUM($E53:T53),0) -> 0 | V53: =IF(V$3=($D$4+$D$5),$D53-SUM($E53:U53),0) -> 0 | W53: =IF(W$3=($D$4+$D$5),$D53-SUM($E53:V53),0) -> 0 | X53: =IF(X$3=($D$4+$D$5),$D53-SUM($E53:W53),0) -> 0 | Y53: =IF(Y$3=($D$4+$D$5),$D53-SUM($E53:X53),0) -> 0 | Z53: =IF(Z$3=($D$4+$D$5),$D53-SUM($E53:Y53),0) -> 0 | AA53: =IF(AA$3=($D$4+$D$5),$D53-SUM($E53:Z53),0) -> 0 | AB53: =IF(AB$3=($D$4+$D$5),$D53-SUM($E53:AA53),0) -> 0 | AC53: =IF(AC$3=($D$4+$D$5),$D53-SUM($E53:AB53),0) -> 0 | AE53: 0
A54: ? | C54: Construction Interest is Calculated Below | AE54: 0
C55: =+'Development Costs'!C58 -> Construction Loan Origination Fee | D55: =+'Development Costs'!D58 -> 0 | E55: =+D55 -> 0 | F55: 0 | G55: =IF(G$3=($D$4+$D$5),$D55-SUM($E55:F55),0) -> 0 | H55: =IF(H$3=($D$4+$D$5),$D55-SUM($E55:G55),0) -> 0 | I55: =IF(I$3=($D$4+$D$5),$D55-SUM($E55:H55),0) -> 0 | J55: =IF(J$3=($D$4+$D$5),$D55-SUM($E55:I55),0) -> 0 | K55: =IF(K$3=($D$4+$D$5),$D55-SUM($E55:J55),0) -> 0 | L55: =IF(L$3=($D$4+$D$5),$D55-SUM($E55:K55),0) -> 0 | M55: =IF(M$3=($D$4+$D$5),$D55-SUM($E55:L55),0) -> 0 | N55: =IF(N$3=($D$4+$D$5),$D55-SUM($E55:M55),0) -> 0 | O55: =IF(O$3=($D$4+$D$5),$D55-SUM($E55:N55),0) -> 0 | P55: =IF(P$3=($D$4+$D$5),$D55-SUM($E55:O55),0) -> 0 | Q55: =IF(Q$3=($D$4+$D$5),$D55-SUM($E55:P55),0) -> 0 | R55: =IF(R$3=($D$4+$D$5),$D55-SUM($E55:Q55),0) -> 0 | S55: =IF(S$3=($D$4+$D$5),$D55-SUM($E55:R55),0) -> 0 | T55: =IF(T$3=($D$4+$D$5),$D55-SUM($E55:S55),0) -> 0 | U55: =IF(U$3=($D$4+$D$5),$D55-SUM($E55:T55),0) -> 0 | V55: =IF(V$3=($D$4+$D$5),$D55-SUM($E55:U55),0) -> 0 | W55: =IF(W$3=($D$4+$D$5),$D55-SUM($E55:V55),0) -> 0 | X55: =IF(X$3=($D$4+$D$5),$D55-SUM($E55:W55),0) -> 0 | Y55: =IF(Y$3=($D$4+$D$5),$D55-SUM($E55:X55),0) -> 0 | Z55: =IF(Z$3=($D$4+$D$5),$D55-SUM($E55:Y55),0) -> 0 | AA55: =IF(AA$3=($D$4+$D$5),$D55-SUM($E55:Z55),0) -> 0 | AB55: =IF(AB$3=($D$4+$D$5),$D55-SUM($E55:AA55),0) -> 0 | AC55: =IF(AC$3=($D$4+$D$5),$D55-SUM($E55:AB55),0) -> 0 | AE55: 0
C56: =+'Development Costs'!C59 -> Construction Loan Legal Fees | D56: =+'Development Costs'!D59 -> 0 | E56: 0 | F56: 0 | G56: =IF(G$3=($D$4+$D$5),$D56-SUM($E56:F56),0) -> 0 | H56: =IF(H$3=($D$4+$D$5),$D56-SUM($E56:G56),0) -> 0 | I56: =IF(I$3=($D$4+$D$5),$D56-SUM($E56:H56),0) -> 0 | J56: =IF(J$3=($D$4+$D$5),$D56-SUM($E56:I56),0) -> 0 | K56: =IF(K$3=($D$4+$D$5),$D56-SUM($E56:J56),0) -> 0 | L56: =IF(L$3=($D$4+$D$5),$D56-SUM($E56:K56),0) -> 0 | M56: =IF(M$3=($D$4+$D$5),$D56-SUM($E56:L56),0) -> 0 | N56: =IF(N$3=($D$4+$D$5),$D56-SUM($E56:M56),0) -> 0 | O56: =IF(O$3=($D$4+$D$5),$D56-SUM($E56:N56),0) -> 0 | P56: =IF(P$3=($D$4+$D$5),$D56-SUM($E56:O56),0) -> 0 | Q56: =IF(Q$3=($D$4+$D$5),$D56-SUM($E56:P56),0) -> 0 | R56: =IF(R$3=($D$4+$D$5),$D56-SUM($E56:Q56),0) -> 0 | S56: =IF(S$3=($D$4+$D$5),$D56-SUM($E56:R56),0) -> 0 | T56: =IF(T$3=($D$4+$D$5),$D56-SUM($E56:S56),0) -> 0 | U56: =IF(U$3=($D$4+$D$5),$D56-SUM($E56:T56),0) -> 0 | V56: =IF(V$3=($D$4+$D$5),$D56-SUM($E56:U56),0) -> 0 | W56: =IF(W$3=($D$4+$D$5),$D56-SUM($E56:V56),0) -> 0 | X56: =IF(X$3=($D$4+$D$5),$D56-SUM($E56:W56),0) -> 0 | Y56: =IF(Y$3=($D$4+$D$5),$D56-SUM($E56:X56),0) -> 0 | Z56: =IF(Z$3=($D$4+$D$5),$D56-SUM($E56:Y56),0) -> 0 | AA56: =IF(AA$3=($D$4+$D$5),$D56-SUM($E56:Z56),0) -> 0 | AB56: =IF(AB$3=($D$4+$D$5),$D56-SUM($E56:AA56),0) -> 0 | AC56: =IF(AC$3=($D$4+$D$5),$D56-SUM($E56:AB56),0) -> 0 | AE56: 0
C57: =+'Development Costs'!C60 -> Other Construction Loan Fees | D57: =+'Development Costs'!D60 -> 0 | E57: 0 | F57: 0 | G57: =IF(G$3=($D$4+$D$5),$D57-SUM($E57:F57),0) -> 0 | H57: =IF(H$3=($D$4+$D$5),$D57-SUM($E57:G57),0) -> 0 | I57: =IF(I$3=($D$4+$D$5),$D57-SUM($E57:H57),0) -> 0 | J57: =IF(J$3=($D$4+$D$5),$D57-SUM($E57:I57),0) -> 0 | K57: =IF(K$3=($D$4+$D$5),$D57-SUM($E57:J57),0) -> 0 | L57: =IF(L$3=($D$4+$D$5),$D57-SUM($E57:K57),0) -> 0 | M57: =IF(M$3=($D$4+$D$5),$D57-SUM($E57:L57),0) -> 0 | N57: =IF(N$3=($D$4+$D$5),$D57-SUM($E57:M57),0) -> 0 | O57: =IF(O$3=($D$4+$D$5),$D57-SUM($E57:N57),0) -> 0 | P57: =IF(P$3=($D$4+$D$5),$D57-SUM($E57:O57),0) -> 0 | Q57: =IF(Q$3=($D$4+$D$5),$D57-SUM($E57:P57),0) -> 0 | R57: =IF(R$3=($D$4+$D$5),$D57-SUM($E57:Q57),0) -> 0 | S57: =IF(S$3=($D$4+$D$5),$D57-SUM($E57:R57),0) -> 0 | T57: =IF(T$3=($D$4+$D$5),$D57-SUM($E57:S57),0) -> 0 | U57: =IF(U$3=($D$4+$D$5),$D57-SUM($E57:T57),0) -> 0 | V57: =IF(V$3=($D$4+$D$5),$D57-SUM($E57:U57),0) -> 0 | W57: =IF(W$3=($D$4+$D$5),$D57-SUM($E57:V57),0) -> 0 | X57: =IF(X$3=($D$4+$D$5),$D57-SUM($E57:W57),0) -> 0 | Y57: =IF(Y$3=($D$4+$D$5),$D57-SUM($E57:X57),0) -> 0 | Z57: =IF(Z$3=($D$4+$D$5),$D57-SUM($E57:Y57),0) -> 0 | AA57: =IF(AA$3=($D$4+$D$5),$D57-SUM($E57:Z57),0) -> 0 | AB57: =IF(AB$3=($D$4+$D$5),$D57-SUM($E57:AA57),0) -> 0 | AC57: =IF(AC$3=($D$4+$D$5),$D57-SUM($E57:AB57),0) -> 0 | AE57: 0
C58: =+'Development Costs'!C61 -> Bond Costs of Issuance | D58: =+'Development Costs'!D61 -> 0 | E58: 0 | F58: 0 | G58: =IF(G$3=($D$4+$D$5),$D58-SUM($E58:F58),0) -> 0 | H58: =IF(H$3=($D$4+$D$5),$D58-SUM($E58:G58),0) -> 0 | I58: =IF(I$3=($D$4+$D$5),$D58-SUM($E58:H58),0) -> 0 | J58: =IF(J$3=($D$4+$D$5),$D58-SUM($E58:I58),0) -> 0 | K58: =IF(K$3=($D$4+$D$5),$D58-SUM($E58:J58),0) -> 0 | L58: =IF(L$3=($D$4+$D$5),$D58-SUM($E58:K58),0) -> 0 | M58: =IF(M$3=($D$4+$D$5),$D58-SUM($E58:L58),0) -> 0 | N58: =IF(N$3=($D$4+$D$5),$D58-SUM($E58:M58),0) -> 0 | O58: =IF(O$3=($D$4+$D$5),$D58-SUM($E58:N58),0) -> 0 | P58: =IF(P$3=($D$4+$D$5),$D58-SUM($E58:O58),0) -> 0 | Q58: =IF(Q$3=($D$4+$D$5),$D58-SUM($E58:P58),0) -> 0 | R58: =IF(R$3=($D$4+$D$5),$D58-SUM($E58:Q58),0) -> 0 | S58: =IF(S$3=($D$4+$D$5),$D58-SUM($E58:R58),0) -> 0 | T58: =IF(T$3=($D$4+$D$5),$D58-SUM($E58:S58),0) -> 0 | U58: =IF(U$3=($D$4+$D$5),$D58-SUM($E58:T58),0) -> 0 | V58: =IF(V$3=($D$4+$D$5),$D58-SUM($E58:U58),0) -> 0 | W58: =IF(W$3=($D$4+$D$5),$D58-SUM($E58:V58),0) -> 0 | X58: =IF(X$3=($D$4+$D$5),$D58-SUM($E58:W58),0) -> 0 | Y58: =IF(Y$3=($D$4+$D$5),$D58-SUM($E58:X58),0) -> 0 | Z58: =IF(Z$3=($D$4+$D$5),$D58-SUM($E58:Y58),0) -> 0 | AA58: =IF(AA$3=($D$4+$D$5),$D58-SUM($E58:Z58),0) -> 0 | AB58: =IF(AB$3=($D$4+$D$5),$D58-SUM($E58:AA58),0) -> 0 | AC58: =IF(AC$3=($D$4+$D$5),$D58-SUM($E58:AB58),0) -> 0 | AE58: 0
C59: =+'Development Costs'!C62 -> Title and Recording Costs (for the construction loan) | D59: =+'Development Costs'!D62 -> 0 | E59: 0 | F59: 0 | G59: =IF(G$3=($D$4+$D$5),$D59-SUM($E59:F59),0) -> 0 | H59: =IF(H$3=($D$4+$D$5),$D59-SUM($E59:G59),0) -> 0 | I59: =IF(I$3=($D$4+$D$5),$D59-SUM($E59:H59),0) -> 0 | J59: =IF(J$3=($D$4+$D$5),$D59-SUM($E59:I59),0) -> 0 | K59: =IF(K$3=($D$4+$D$5),$D59-SUM($E59:J59),0) -> 0 | L59: =IF(L$3=($D$4+$D$5),$D59-SUM($E59:K59),0) -> 0 | M59: =IF(M$3=($D$4+$D$5),$D59-SUM($E59:L59),0) -> 0 | N59: =IF(N$3=($D$4+$D$5),$D59-SUM($E59:M59),0) -> 0 | O59: =IF(O$3=($D$4+$D$5),$D59-SUM($E59:N59),0) -> 0 | P59: =IF(P$3=($D$4+$D$5),$D59-SUM($E59:O59),0) -> 0 | Q59: =IF(Q$3=($D$4+$D$5),$D59-SUM($E59:P59),0) -> 0 | R59: =IF(R$3=($D$4+$D$5),$D59-SUM($E59:Q59),0) -> 0 | S59: =IF(S$3=($D$4+$D$5),$D59-SUM($E59:R59),0) -> 0 | T59: =IF(T$3=($D$4+$D$5),$D59-SUM($E59:S59),0) -> 0 | U59: =IF(U$3=($D$4+$D$5),$D59-SUM($E59:T59),0) -> 0 | V59: =IF(V$3=($D$4+$D$5),$D59-SUM($E59:U59),0) -> 0 | W59: =IF(W$3=($D$4+$D$5),$D59-SUM($E59:V59),0) -> 0 | X59: =IF(X$3=($D$4+$D$5),$D59-SUM($E59:W59),0) -> 0 | Y59: =IF(Y$3=($D$4+$D$5),$D59-SUM($E59:X59),0) -> 0 | Z59: =IF(Z$3=($D$4+$D$5),$D59-SUM($E59:Y59),0) -> 0 | AA59: =IF(AA$3=($D$4+$D$5),$D59-SUM($E59:Z59),0) -> 0 | AB59: =IF(AB$3=($D$4+$D$5),$D59-SUM($E59:AA59),0) -> 0 | AC59: =IF(AC$3=($D$4+$D$5),$D59-SUM($E59:AB59),0) -> 0 | AE59: 0
C60: =+'Development Costs'!C63 -> 0 | D60: =+'Development Costs'!D63 -> 0 | E60: 0 | F60: 0 | G60: =IF(G$3=($D$4+$D$5),$D60-SUM($E60:F60),0) -> 0 | H60: =IF(H$3=($D$4+$D$5),$D60-SUM($E60:G60),0) -> 0 | I60: =IF(I$3=($D$4+$D$5),$D60-SUM($E60:H60),0) -> 0 | J60: =IF(J$3=($D$4+$D$5),$D60-SUM($E60:I60),0) -> 0 | K60: =IF(K$3=($D$4+$D$5),$D60-SUM($E60:J60),0) -> 0 | L60: =IF(L$3=($D$4+$D$5),$D60-SUM($E60:K60),0) -> 0 | M60: =IF(M$3=($D$4+$D$5),$D60-SUM($E60:L60),0) -> 0 | N60: =IF(N$3=($D$4+$D$5),$D60-SUM($E60:M60),0) -> 0 | O60: =IF(O$3=($D$4+$D$5),$D60-SUM($E60:N60),0) -> 0 | P60: =IF(P$3=($D$4+$D$5),$D60-SUM($E60:O60),0) -> 0 | Q60: =IF(Q$3=($D$4+$D$5),$D60-SUM($E60:P60),0) -> 0 | R60: =IF(R$3=($D$4+$D$5),$D60-SUM($E60:Q60),0) -> 0 | S60: =IF(S$3=($D$4+$D$5),$D60-SUM($E60:R60),0) -> 0 | T60: =IF(T$3=($D$4+$D$5),$D60-SUM($E60:S60),0) -> 0 | U60: =IF(U$3=($D$4+$D$5),$D60-SUM($E60:T60),0) -> 0 | V60: =IF(V$3=($D$4+$D$5),$D60-SUM($E60:U60),0) -> 0 | W60: =IF(W$3=($D$4+$D$5),$D60-SUM($E60:V60),0) -> 0 | X60: =IF(X$3=($D$4+$D$5),$D60-SUM($E60:W60),0) -> 0 | Y60: =IF(Y$3=($D$4+$D$5),$D60-SUM($E60:X60),0) -> 0 | Z60: =IF(Z$3=($D$4+$D$5),$D60-SUM($E60:Y60),0) -> 0 | AA60: =IF(AA$3=($D$4+$D$5),$D60-SUM($E60:Z60),0) -> 0 | AB60: =IF(AB$3=($D$4+$D$5),$D60-SUM($E60:AA60),0) -> 0 | AC60: =IF(AC$3=($D$4+$D$5),$D60-SUM($E60:AB60),0) -> 0 | AE60: 0
C61: =+'Development Costs'!C64 -> 0 | D61: =+'Development Costs'!D64 -> 0 | E61: 0 | F61: 0 | G61: =IF(G$3=($D$4+$D$5),$D61-SUM($E61:F61),0) -> 0 | H61: =IF(H$3=($D$4+$D$5),$D61-SUM($E61:G61),0) -> 0 | I61: =IF(I$3=($D$4+$D$5),$D61-SUM($E61:H61),0) -> 0 | J61: =IF(J$3=($D$4+$D$5),$D61-SUM($E61:I61),0) -> 0 | K61: =IF(K$3=($D$4+$D$5),$D61-SUM($E61:J61),0) -> 0 | L61: =IF(L$3=($D$4+$D$5),$D61-SUM($E61:K61),0) -> 0 | M61: =IF(M$3=($D$4+$D$5),$D61-SUM($E61:L61),0) -> 0 | N61: =IF(N$3=($D$4+$D$5),$D61-SUM($E61:M61),0) -> 0 | O61: =IF(O$3=($D$4+$D$5),$D61-SUM($E61:N61),0) -> 0 | P61: =IF(P$3=($D$4+$D$5),$D61-SUM($E61:O61),0) -> 0 | Q61: =IF(Q$3=($D$4+$D$5),$D61-SUM($E61:P61),0) -> 0 | R61: =IF(R$3=($D$4+$D$5),$D61-SUM($E61:Q61),0) -> 0 | S61: =IF(S$3=($D$4+$D$5),$D61-SUM($E61:R61),0) -> 0 | T61: =IF(T$3=($D$4+$D$5),$D61-SUM($E61:S61),0) -> 0 | U61: =IF(U$3=($D$4+$D$5),$D61-SUM($E61:T61),0) -> 0 | V61: =IF(V$3=($D$4+$D$5),$D61-SUM($E61:U61),0) -> 0 | W61: =IF(W$3=($D$4+$D$5),$D61-SUM($E61:V61),0) -> 0 | X61: =IF(X$3=($D$4+$D$5),$D61-SUM($E61:W61),0) -> 0 | Y61: =IF(Y$3=($D$4+$D$5),$D61-SUM($E61:X61),0) -> 0 | Z61: =IF(Z$3=($D$4+$D$5),$D61-SUM($E61:Y61),0) -> 0 | AA61: =IF(AA$3=($D$4+$D$5),$D61-SUM($E61:Z61),0) -> 0 | AB61: =IF(AB$3=($D$4+$D$5),$D61-SUM($E61:AA61),0) -> 0 | AC61: =IF(AC$3=($D$4+$D$5),$D61-SUM($E61:AB61),0) -> 0 | AE61: 0
C62: Permanent Financing Costs
C63: =+'Development Costs'!C66 -> Credit Report | D63: =+'Development Costs'!D66 -> 0 | E63: =+D63 -> 0 | F63: 0 | G63: =IF(G$3=($D$4+$D$5),$D63-SUM($E63:F63),0) -> 0 | H63: =IF(H$3=($D$4+$D$5),$D63-SUM($E63:G63),0) -> 0 | I63: =IF(I$3=($D$4+$D$5),$D63-SUM($E63:H63),0) -> 0 | J63: =IF(J$3=($D$4+$D$5),$D63-SUM($E63:I63),0) -> 0 | K63: =IF(K$3=($D$4+$D$5),$D63-SUM($E63:J63),0) -> 0 | L63: =IF(L$3=($D$4+$D$5),$D63-SUM($E63:K63),0) -> 0 | M63: =IF(M$3=($D$4+$D$5),$D63-SUM($E63:L63),0) -> 0 | N63: =IF(N$3=($D$4+$D$5),$D63-SUM($E63:M63),0) -> 0 | O63: =IF(O$3=($D$4+$D$5),$D63-SUM($E63:N63),0) -> 0 | P63: =IF(P$3=($D$4+$D$5),$D63-SUM($E63:O63),0) -> 0 | Q63: =IF(Q$3=($D$4+$D$5),$D63-SUM($E63:P63),0) -> 0 | R63: =IF(R$3=($D$4+$D$5),$D63-SUM($E63:Q63),0) -> 0 | S63: =IF(S$3=($D$4+$D$5),$D63-SUM($E63:R63),0) -> 0 | T63: =IF(T$3=($D$4+$D$5),$D63-SUM($E63:S63),0) -> 0 | U63: =IF(U$3=($D$4+$D$5),$D63-SUM($E63:T63),0) -> 0 | V63: =IF(V$3=($D$4+$D$5),$D63-SUM($E63:U63),0) -> 0 | W63: =IF(W$3=($D$4+$D$5),$D63-SUM($E63:V63),0) -> 0 | X63: =IF(X$3=($D$4+$D$5),$D63-SUM($E63:W63),0) -> 0 | Y63: =IF(Y$3=($D$4+$D$5),$D63-SUM($E63:X63),0) -> 0 | Z63: =IF(Z$3=($D$4+$D$5),$D63-SUM($E63:Y63),0) -> 0 | AA63: =IF(AA$3=($D$4+$D$5),$D63-SUM($E63:Z63),0) -> 0 | AB63: =IF(AB$3=($D$4+$D$5),$D63-SUM($E63:AA63),0) -> 0 | AC63: =IF(AC$3=($D$4+$D$5),$D63-SUM($E63:AB63),0) -> 0 | AE63: =SUM(E63:AC63) -> 0 | AF63: =IF(AE63>D63,"ERROR: Total Amount Drawn Exceeds Total Available","") -> 
C64: =+'Development Costs'!C67 -> Lender Origination / Financing Fee | D64: =+'Development Costs'!D67 -> 0 | E64: 0 | F64: 0 | G64: =IF(G$3=($D$4+$D$5),$D64-SUM($E64:F64),0) -> 0 | H64: =IF(H$3=($D$4+$D$5),$D64-SUM($E64:G64),0) -> 0 | I64: =IF(I$3=($D$4+$D$5),$D64-SUM($E64:H64),0) -> 0 | J64: =IF(J$3=($D$4+$D$5),$D64-SUM($E64:I64),0) -> 0 | K64: =IF(K$3=($D$4+$D$5),$D64-SUM($E64:J64),0) -> 0 | L64: =IF(L$3=($D$4+$D$5),$D64-SUM($E64:K64),0) -> 0 | M64: =IF(M$3=($D$4+$D$5),$D64-SUM($E64:L64),0) -> 0 | N64: =IF(N$3=($D$4+$D$5),$D64-SUM($E64:M64),0) -> 0 | O64: =IF(O$3=($D$4+$D$5),$D64-SUM($E64:N64),0) -> 0 | P64: =IF(P$3=($D$4+$D$5),$D64-SUM($E64:O64),0) -> 0 | Q64: =IF(Q$3=($D$4+$D$5),$D64-SUM($E64:P64),0) -> 0 | R64: =IF(R$3=($D$4+$D$5),$D64-SUM($E64:Q64),0) -> 0 | S64: =IF(S$3=($D$4+$D$5),$D64-SUM($E64:R64),0) -> 0 | T64: =IF(T$3=($D$4+$D$5),$D64-SUM($E64:S64),0) -> 0 | U64: =IF(U$3=($D$4+$D$5),$D64-SUM($E64:T64),0) -> 0 | V64: =IF(V$3=($D$4+$D$5),$D64-SUM($E64:U64),0) -> 0 | W64: =IF(W$3=($D$4+$D$5),$D64-SUM($E64:V64),0) -> 0 | X64: =IF(X$3=($D$4+$D$5),$D64-SUM($E64:W64),0) -> 0 | Y64: =IF(Y$3=($D$4+$D$5),$D64-SUM($E64:X64),0) -> 0 | Z64: =IF(Z$3=($D$4+$D$5),$D64-SUM($E64:Y64),0) -> 0 | AA64: =IF(AA$3=($D$4+$D$5),$D64-SUM($E64:Z64),0) -> 0 | AB64: =IF(AB$3=($D$4+$D$5),$D64-SUM($E64:AA64),0) -> 0 | AC64: =IF(AC$3=($D$4+$D$5),$D64-SUM($E64:AB64),0) -> 0 | AE64: 0
C65: =+'Development Costs'!C68 -> Lender’s Counsel Fee | D65: =+'Development Costs'!D68 -> 0 | E65: 0 | F65: 0 | G65: =IF(G$3=($D$4+$D$5),$D65-SUM($E65:F65),0) -> 0 | H65: =IF(H$3=($D$4+$D$5),$D65-SUM($E65:G65),0) -> 0 | I65: =IF(I$3=($D$4+$D$5),$D65-SUM($E65:H65),0) -> 0 | J65: =IF(J$3=($D$4+$D$5),$D65-SUM($E65:I65),0) -> 0 | K65: =IF(K$3=($D$4+$D$5),$D65-SUM($E65:J65),0) -> 0 | L65: =IF(L$3=($D$4+$D$5),$D65-SUM($E65:K65),0) -> 0 | M65: =IF(M$3=($D$4+$D$5),$D65-SUM($E65:L65),0) -> 0 | N65: =IF(N$3=($D$4+$D$5),$D65-SUM($E65:M65),0) -> 0 | O65: =IF(O$3=($D$4+$D$5),$D65-SUM($E65:N65),0) -> 0 | P65: =IF(P$3=($D$4+$D$5),$D65-SUM($E65:O65),0) -> 0 | Q65: =IF(Q$3=($D$4+$D$5),$D65-SUM($E65:P65),0) -> 0 | R65: =IF(R$3=($D$4+$D$5),$D65-SUM($E65:Q65),0) -> 0 | S65: =IF(S$3=($D$4+$D$5),$D65-SUM($E65:R65),0) -> 0 | T65: =IF(T$3=($D$4+$D$5),$D65-SUM($E65:S65),0) -> 0 | U65: =IF(U$3=($D$4+$D$5),$D65-SUM($E65:T65),0) -> 0 | V65: =IF(V$3=($D$4+$D$5),$D65-SUM($E65:U65),0) -> 0 | W65: =IF(W$3=($D$4+$D$5),$D65-SUM($E65:V65),0) -> 0 | X65: =IF(X$3=($D$4+$D$5),$D65-SUM($E65:W65),0) -> 0 | Y65: =IF(Y$3=($D$4+$D$5),$D65-SUM($E65:X65),0) -> 0 | Z65: =IF(Z$3=($D$4+$D$5),$D65-SUM($E65:Y65),0) -> 0 | AA65: =IF(AA$3=($D$4+$D$5),$D65-SUM($E65:Z65),0) -> 0 | AB65: =IF(AB$3=($D$4+$D$5),$D65-SUM($E65:AA65),0) -> 0 | AC65: =IF(AC$3=($D$4+$D$5),$D65-SUM($E65:AB65),0) -> 0 | AE65: 0
C66: =+'Development Costs'!C69 -> Other Lender Fees | D66: =+'Development Costs'!D69 -> 0 | E66: 0 | F66: 0 | G66: =IF(G$3=($D$4+$D$5),$D66-SUM($E66:F66),0) -> 0 | H66: =IF(H$3=($D$4+$D$5),$D66-SUM($E66:G66),0) -> 0 | I66: =IF(I$3=($D$4+$D$5),$D66-SUM($E66:H66),0) -> 0 | J66: =IF(J$3=($D$4+$D$5),$D66-SUM($E66:I66),0) -> 0 | K66: =IF(K$3=($D$4+$D$5),$D66-SUM($E66:J66),0) -> 0 | L66: =IF(L$3=($D$4+$D$5),$D66-SUM($E66:K66),0) -> 0 | M66: =IF(M$3=($D$4+$D$5),$D66-SUM($E66:L66),0) -> 0 | N66: =IF(N$3=($D$4+$D$5),$D66-SUM($E66:M66),0) -> 0 | O66: =IF(O$3=($D$4+$D$5),$D66-SUM($E66:N66),0) -> 0 | P66: =IF(P$3=($D$4+$D$5),$D66-SUM($E66:O66),0) -> 0 | Q66: =IF(Q$3=($D$4+$D$5),$D66-SUM($E66:P66),0) -> 0 | R66: =IF(R$3=($D$4+$D$5),$D66-SUM($E66:Q66),0) -> 0 | S66: =IF(S$3=($D$4+$D$5),$D66-SUM($E66:R66),0) -> 0 | T66: =IF(T$3=($D$4+$D$5),$D66-SUM($E66:S66),0) -> 0 | U66: =IF(U$3=($D$4+$D$5),$D66-SUM($E66:T66),0) -> 0 | V66: =IF(V$3=($D$4+$D$5),$D66-SUM($E66:U66),0) -> 0 | W66: =IF(W$3=($D$4+$D$5),$D66-SUM($E66:V66),0) -> 0 | X66: =IF(X$3=($D$4+$D$5),$D66-SUM($E66:W66),0) -> 0 | Y66: =IF(Y$3=($D$4+$D$5),$D66-SUM($E66:X66),0) -> 0 | Z66: =IF(Z$3=($D$4+$D$5),$D66-SUM($E66:Y66),0) -> 0 | AA66: =IF(AA$3=($D$4+$D$5),$D66-SUM($E66:Z66),0) -> 0 | AB66: =IF(AB$3=($D$4+$D$5),$D66-SUM($E66:AA66),0) -> 0 | AC66: =IF(AC$3=($D$4+$D$5),$D66-SUM($E66:AB66),0) -> 0 | AE66: 0
C67: =+'Development Costs'!C70 -> Title and Recording Costs (for permanent financing) | D67: =+'Development Costs'!D70 -> 0 | E67: 0 | F67: 0 | G67: =IF(G$3=($D$4+$D$5),$D67-SUM($E67:F67),0) -> 0 | H67: =IF(H$3=($D$4+$D$5),$D67-SUM($E67:G67),0) -> 0 | I67: =IF(I$3=($D$4+$D$5),$D67-SUM($E67:H67),0) -> 0 | J67: =IF(J$3=($D$4+$D$5),$D67-SUM($E67:I67),0) -> 0 | K67: =IF(K$3=($D$4+$D$5),$D67-SUM($E67:J67),0) -> 0 | L67: =IF(L$3=($D$4+$D$5),$D67-SUM($E67:K67),0) -> 0 | M67: =IF(M$3=($D$4+$D$5),$D67-SUM($E67:L67),0) -> 0 | N67: =IF(N$3=($D$4+$D$5),$D67-SUM($E67:M67),0) -> 0 | O67: =IF(O$3=($D$4+$D$5),$D67-SUM($E67:N67),0) -> 0 | P67: =IF(P$3=($D$4+$D$5),$D67-SUM($E67:O67),0) -> 0 | Q67: =IF(Q$3=($D$4+$D$5),$D67-SUM($E67:P67),0) -> 0 | R67: =IF(R$3=($D$4+$D$5),$D67-SUM($E67:Q67),0) -> 0 | S67: =IF(S$3=($D$4+$D$5),$D67-SUM($E67:R67),0) -> 0 | T67: =IF(T$3=($D$4+$D$5),$D67-SUM($E67:S67),0) -> 0 | U67: =IF(U$3=($D$4+$D$5),$D67-SUM($E67:T67),0) -> 0 | V67: =IF(V$3=($D$4+$D$5),$D67-SUM($E67:U67),0) -> 0 | W67: =IF(W$3=($D$4+$D$5),$D67-SUM($E67:V67),0) -> 0 | X67: =IF(X$3=($D$4+$D$5),$D67-SUM($E67:W67),0) -> 0 | Y67: =IF(Y$3=($D$4+$D$5),$D67-SUM($E67:X67),0) -> 0 | Z67: =IF(Z$3=($D$4+$D$5),$D67-SUM($E67:Y67),0) -> 0 | AA67: =IF(AA$3=($D$4+$D$5),$D67-SUM($E67:Z67),0) -> 0 | AB67: =IF(AB$3=($D$4+$D$5),$D67-SUM($E67:AA67),0) -> 0 | AC67: =IF(AC$3=($D$4+$D$5),$D67-SUM($E67:AB67),0) -> 0 | AE67: 0
C68: =+'Development Costs'!C71 -> Establish Tax and Insurance Escrows | D68: =+'Development Costs'!D71 -> 0 | E68: 0 | F68: 0 | G68: =IF(G$3=($D$4+$D$5),$D68-SUM($E68:F68),0) -> 0 | H68: =IF(H$3=($D$4+$D$5),$D68-SUM($E68:G68),0) -> 0 | I68: =IF(I$3=($D$4+$D$5),$D68-SUM($E68:H68),0) -> 0 | J68: =IF(J$3=($D$4+$D$5),$D68-SUM($E68:I68),0) -> 0 | K68: =IF(K$3=($D$4+$D$5),$D68-SUM($E68:J68),0) -> 0 | L68: =IF(L$3=($D$4+$D$5),$D68-SUM($E68:K68),0) -> 0 | M68: =IF(M$3=($D$4+$D$5),$D68-SUM($E68:L68),0) -> 0 | N68: =IF(N$3=($D$4+$D$5),$D68-SUM($E68:M68),0) -> 0 | O68: =IF(O$3=($D$4+$D$5),$D68-SUM($E68:N68),0) -> 0 | P68: =IF(P$3=($D$4+$D$5),$D68-SUM($E68:O68),0) -> 0 | Q68: =IF(Q$3=($D$4+$D$5),$D68-SUM($E68:P68),0) -> 0 | R68: =IF(R$3=($D$4+$D$5),$D68-SUM($E68:Q68),0) -> 0 | S68: =IF(S$3=($D$4+$D$5),$D68-SUM($E68:R68),0) -> 0 | T68: =IF(T$3=($D$4+$D$5),$D68-SUM($E68:S68),0) -> 0 | U68: =IF(U$3=($D$4+$D$5),$D68-SUM($E68:T68),0) -> 0 | V68: =IF(V$3=($D$4+$D$5),$D68-SUM($E68:U68),0) -> 0 | W68: =IF(W$3=($D$4+$D$5),$D68-SUM($E68:V68),0) -> 0 | X68: =IF(X$3=($D$4+$D$5),$D68-SUM($E68:W68),0) -> 0 | Y68: =IF(Y$3=($D$4+$D$5),$D68-SUM($E68:X68),0) -> 0 | Z68: =IF(Z$3=($D$4+$D$5),$D68-SUM($E68:Y68),0) -> 0 | AA68: =IF(AA$3=($D$4+$D$5),$D68-SUM($E68:Z68),0) -> 0 | AB68: =IF(AB$3=($D$4+$D$5),$D68-SUM($E68:AA68),0) -> 0 | AC68: =IF(AC$3=($D$4+$D$5),$D68-SUM($E68:AB68),0) -> 0 | AE68: 0
C69: =+'Development Costs'!C72 -> 0 | D69: =+'Development Costs'!D72 -> 0 | E69: 0 | F69: 0 | G69: =IF(G$3=($D$4+$D$5),$D69-SUM($E69:F69),0) -> 0 | H69: =IF(H$3=($D$4+$D$5),$D69-SUM($E69:G69),0) -> 0 | I69: =IF(I$3=($D$4+$D$5),$D69-SUM($E69:H69),0) -> 0 | J69: =IF(J$3=($D$4+$D$5),$D69-SUM($E69:I69),0) -> 0 | K69: =IF(K$3=($D$4+$D$5),$D69-SUM($E69:J69),0) -> 0 | L69: =IF(L$3=($D$4+$D$5),$D69-SUM($E69:K69),0) -> 0 | M69: =IF(M$3=($D$4+$D$5),$D69-SUM($E69:L69),0) -> 0 | N69: =IF(N$3=($D$4+$D$5),$D69-SUM($E69:M69),0) -> 0 | O69: =IF(O$3=($D$4+$D$5),$D69-SUM($E69:N69),0) -> 0 | P69: =IF(P$3=($D$4+$D$5),$D69-SUM($E69:O69),0) -> 0 | Q69: =IF(Q$3=($D$4+$D$5),$D69-SUM($E69:P69),0) -> 0 | R69: =IF(R$3=($D$4+$D$5),$D69-SUM($E69:Q69),0) -> 0 | S69: =IF(S$3=($D$4+$D$5),$D69-SUM($E69:R69),0) -> 0 | T69: =IF(T$3=($D$4+$D$5),$D69-SUM($E69:S69),0) -> 0 | U69: =IF(U$3=($D$4+$D$5),$D69-SUM($E69:T69),0) -> 0 | V69: =IF(V$3=($D$4+$D$5),$D69-SUM($E69:U69),0) -> 0 | W69: =IF(W$3=($D$4+$D$5),$D69-SUM($E69:V69),0) -> 0 | X69: =IF(X$3=($D$4+$D$5),$D69-SUM($E69:W69),0) -> 0 | Y69: =IF(Y$3=($D$4+$D$5),$D69-SUM($E69:X69),0) -> 0 | Z69: =IF(Z$3=($D$4+$D$5),$D69-SUM($E69:Y69),0) -> 0 | AA69: =IF(AA$3=($D$4+$D$5),$D69-SUM($E69:Z69),0) -> 0 | AB69: =IF(AB$3=($D$4+$D$5),$D69-SUM($E69:AA69),0) -> 0 | AC69: =IF(AC$3=($D$4+$D$5),$D69-SUM($E69:AB69),0) -> 0 | AE69: 0
C70: =+'Development Costs'!C73 -> 0 | D70: =+'Development Costs'!D73 -> 0 | E70: 0 | F70: 0 | G70: =IF(G$3=($D$4+$D$5),$D70-SUM($E70:F70),0) -> 0 | H70: =IF(H$3=($D$4+$D$5),$D70-SUM($E70:G70),0) -> 0 | I70: =IF(I$3=($D$4+$D$5),$D70-SUM($E70:H70),0) -> 0 | J70: =IF(J$3=($D$4+$D$5),$D70-SUM($E70:I70),0) -> 0 | K70: =IF(K$3=($D$4+$D$5),$D70-SUM($E70:J70),0) -> 0 | L70: =IF(L$3=($D$4+$D$5),$D70-SUM($E70:K70),0) -> 0 | M70: =IF(M$3=($D$4+$D$5),$D70-SUM($E70:L70),0) -> 0 | N70: =IF(N$3=($D$4+$D$5),$D70-SUM($E70:M70),0) -> 0 | O70: =IF(O$3=($D$4+$D$5),$D70-SUM($E70:N70),0) -> 0 | P70: =IF(P$3=($D$4+$D$5),$D70-SUM($E70:O70),0) -> 0 | Q70: =IF(Q$3=($D$4+$D$5),$D70-SUM($E70:P70),0) -> 0 | R70: =IF(R$3=($D$4+$D$5),$D70-SUM($E70:Q70),0) -> 0 | S70: =IF(S$3=($D$4+$D$5),$D70-SUM($E70:R70),0) -> 0 | T70: =IF(T$3=($D$4+$D$5),$D70-SUM($E70:S70),0) -> 0 | U70: =IF(U$3=($D$4+$D$5),$D70-SUM($E70:T70),0) -> 0 | V70: =IF(V$3=($D$4+$D$5),$D70-SUM($E70:U70),0) -> 0 | W70: =IF(W$3=($D$4+$D$5),$D70-SUM($E70:V70),0) -> 0 | X70: =IF(X$3=($D$4+$D$5),$D70-SUM($E70:W70),0) -> 0 | Y70: =IF(Y$3=($D$4+$D$5),$D70-SUM($E70:X70),0) -> 0 | Z70: =IF(Z$3=($D$4+$D$5),$D70-SUM($E70:Y70),0) -> 0 | AA70: =IF(AA$3=($D$4+$D$5),$D70-SUM($E70:Z70),0) -> 0 | AB70: =IF(AB$3=($D$4+$D$5),$D70-SUM($E70:AA70),0) -> 0 | AC70: =IF(AC$3=($D$4+$D$5),$D70-SUM($E70:AB70),0) -> 0 | AE70: 0
A71: ? | C71: =+'Development Costs'!C74 -> Developer's Fee | D71: =+'Development Costs'!D74 -> 0 | E71: 0 | F71: 0 | G71: =IF(G$3=($D$4+$D$5),$D71-SUM($E71:F71),0) -> 0 | H71: =IF(H$3=($D$4+$D$5),$D71-SUM($E71:G71),0) -> 0 | I71: =IF(I$3=($D$4+$D$5),$D71-SUM($E71:H71),0) -> 0 | J71: =IF(J$3=($D$4+$D$5),$D71-SUM($E71:I71),0) -> 0 | K71: =IF(K$3=($D$4+$D$5),$D71-SUM($E71:J71),0) -> 0 | L71: =IF(L$3=($D$4+$D$5),$D71-SUM($E71:K71),0) -> 0 | M71: =IF(M$3=($D$4+$D$5),$D71-SUM($E71:L71),0) -> 0 | N71: =IF(N$3=($D$4+$D$5),$D71-SUM($E71:M71),0) -> 0 | O71: =IF(O$3=($D$4+$D$5),$D71-SUM($E71:N71),0) -> 0 | P71: =IF(P$3=($D$4+$D$5),$D71-SUM($E71:O71),0) -> 0 | Q71: =IF(Q$3=($D$4+$D$5),$D71-SUM($E71:P71),0) -> 0 | R71: =IF(R$3=($D$4+$D$5),$D71-SUM($E71:Q71),0) -> 0 | S71: =IF(S$3=($D$4+$D$5),$D71-SUM($E71:R71),0) -> 0 | T71: =IF(T$3=($D$4+$D$5),$D71-SUM($E71:S71),0) -> 0 | U71: =IF(U$3=($D$4+$D$5),$D71-SUM($E71:T71),0) -> 0 | V71: =IF(V$3=($D$4+$D$5),$D71-SUM($E71:U71),0) -> 0 | W71: =IF(W$3=($D$4+$D$5),$D71-SUM($E71:V71),0) -> 0 | X71: =IF(X$3=($D$4+$D$5),$D71-SUM($E71:W71),0) -> 0 | Y71: =IF(Y$3=($D$4+$D$5),$D71-SUM($E71:X71),0) -> 0 | Z71: =IF(Z$3=($D$4+$D$5),$D71-SUM($E71:Y71),0) -> 0 | AA71: =IF(AA$3=($D$4+$D$5),$D71-SUM($E71:Z71),0) -> 0 | AB71: =IF(AB$3=($D$4+$D$5),$D71-SUM($E71:AA71),0) -> 0 | AC71: =IF(AC$3=($D$4+$D$5),$D71-SUM($E71:AB71),0) -> 0 | AE71: 0
C72: Initial Project Reserves
C73: =+'Development Costs'!C76 -> Initial Rent-Up Reserve (not HOME eligible) | D73: =+'Development Costs'!D76 -> 0 | E73: 0 | F73: 0 | G73: =IF(G$3=$D$4,$D73-SUM($E73:F73),0) -> 0 | H73: =IF(H$3=$D$4,$D73-SUM($E73:G73),0) -> 0 | I73: =IF(I$3=$D$4,$D73-SUM($E73:H73),0) -> 0 | J73: =IF(J$3=$D$4,$D73-SUM($E73:I73),0) -> 0 | K73: =IF(K$3=$D$4,$D73-SUM($E73:J73),0) -> 0 | L73: =IF(L$3=$D$4,$D73-SUM($E73:K73),0) -> 0 | M73: =IF(M$3=$D$4,$D73-SUM($E73:L73),0) -> 0 | N73: =IF(N$3=$D$4,$D73-SUM($E73:M73),0) -> 0 | O73: =IF(O$3=$D$4,$D73-SUM($E73:N73),0) -> 0 | P73: =IF(P$3=$D$4,$D73-SUM($E73:O73),0) -> 0 | Q73: =IF(Q$3=$D$4,$D73-SUM($E73:P73),0) -> 0 | R73: =IF(R$3=$D$4,$D73-SUM($E73:Q73),0) -> 0 | S73: =IF(S$3=$D$4,$D73-SUM($E73:R73),0) -> 0 | T73: =IF(T$3=$D$4,$D73-SUM($E73:S73),0) -> 0 | U73: =IF(U$3=$D$4,$D73-SUM($E73:T73),0) -> 0 | V73: =IF(V$3=$D$4,$D73-SUM($E73:U73),0) -> 0 | W73: =IF(W$3=$D$4,$D73-SUM($E73:V73),0) -> 0 | X73: =IF(X$3=$D$4,$D73-SUM($E73:W73),0) -> 0 | Y73: =IF(Y$3=$D$4,$D73-SUM($E73:X73),0) -> 0 | Z73: =IF(Z$3=$D$4,$D73-SUM($E73:Y73),0) -> 0 | AA73: =IF(AA$3=$D$4,$D73-SUM($E73:Z73),0) -> 0 | AB73: =IF(AB$3=$D$4,$D73-SUM($E73:AA73),0) -> 0 | AC73: =IF(AC$3=$D$4,$D73-SUM($E73:AB73),0) -> 0 | AE73: =SUM(E73:AC73) -> 0 | AF73: =IF(AE73>D73,"ERROR: Total Amount Drawn Exceeds Total Available","") -> 
C74: =+'Development Costs'!C77 -> Initial Operating Reserve (HOME-eligible portion) | D74: =+'Development Costs'!D77 -> 0 | E74: 0 | F74: 0 | G74: =IF(G$3=($D$4+$D$5),$D74-SUM($E74:F74),0) -> 0 | H74: =IF(H$3=($D$4+$D$5),$D74-SUM($E74:G74),0) -> 0 | I74: =IF(I$3=($D$4+$D$5),$D74-SUM($E74:H74),0) -> 0 | J74: =IF(J$3=($D$4+$D$5),$D74-SUM($E74:I74),0) -> 0 | K74: =IF(K$3=($D$4+$D$5),$D74-SUM($E74:J74),0) -> 0 | L74: =IF(L$3=($D$4+$D$5),$D74-SUM($E74:K74),0) -> 0 | M74: =IF(M$3=($D$4+$D$5),$D74-SUM($E74:L74),0) -> 0 | N74: =IF(N$3=($D$4+$D$5),$D74-SUM($E74:M74),0) -> 0 | O74: =IF(O$3=($D$4+$D$5),$D74-SUM($E74:N74),0) -> 0 | P74: =IF(P$3=($D$4+$D$5),$D74-SUM($E74:O74),0) -> 0 | Q74: =IF(Q$3=($D$4+$D$5),$D74-SUM($E74:P74),0) -> 0 | R74: =IF(R$3=($D$4+$D$5),$D74-SUM($E74:Q74),0) -> 0 | S74: =IF(S$3=($D$4+$D$5),$D74-SUM($E74:R74),0) -> 0 | T74: =IF(T$3=($D$4+$D$5),$D74-SUM($E74:S74),0) -> 0 | U74: =IF(U$3=($D$4+$D$5),$D74-SUM($E74:T74),0) -> 0 | V74: =IF(V$3=($D$4+$D$5),$D74-SUM($E74:U74),0) -> 0 | W74: =IF(W$3=($D$4+$D$5),$D74-SUM($E74:V74),0) -> 0 | X74: =IF(X$3=($D$4+$D$5),$D74-SUM($E74:W74),0) -> 0 | Y74: =IF(Y$3=($D$4+$D$5),$D74-SUM($E74:X74),0) -> 0 | Z74: =IF(Z$3=($D$4+$D$5),$D74-SUM($E74:Y74),0) -> 0 | AA74: =IF(AA$3=($D$4+$D$5),$D74-SUM($E74:Z74),0) -> 0 | AB74: =IF(AB$3=($D$4+$D$5),$D74-SUM($E74:AA74),0) -> 0 | AC74: =IF(AC$3=($D$4+$D$5),$D74-SUM($E74:AB74),0) -> 0 | AE74: 0
C75: =+'Development Costs'!C79 -> Initial Debt Service Reserve (not HOME eligible) | D75: =+'Development Costs'!D79 -> 0 | E75: 0 | F75: 0 | G75: =IF(G$3=($D$4+$D$5),$D75-SUM($E75:F75),0) -> 0 | H75: =IF(H$3=($D$4+$D$5),$D75-SUM($E75:G75),0) -> 0 | I75: =IF(I$3=($D$4+$D$5),$D75-SUM($E75:H75),0) -> 0 | J75: =IF(J$3=($D$4+$D$5),$D75-SUM($E75:I75),0) -> 0 | K75: =IF(K$3=($D$4+$D$5),$D75-SUM($E75:J75),0) -> 0 | L75: =IF(L$3=($D$4+$D$5),$D75-SUM($E75:K75),0) -> 0 | M75: =IF(M$3=($D$4+$D$5),$D75-SUM($E75:L75),0) -> 0 | N75: =IF(N$3=($D$4+$D$5),$D75-SUM($E75:M75),0) -> 0 | O75: =IF(O$3=($D$4+$D$5),$D75-SUM($E75:N75),0) -> 0 | P75: =IF(P$3=($D$4+$D$5),$D75-SUM($E75:O75),0) -> 0 | Q75: =IF(Q$3=($D$4+$D$5),$D75-SUM($E75:P75),0) -> 0 | R75: =IF(R$3=($D$4+$D$5),$D75-SUM($E75:Q75),0) -> 0 | S75: =IF(S$3=($D$4+$D$5),$D75-SUM($E75:R75),0) -> 0 | T75: =IF(T$3=($D$4+$D$5),$D75-SUM($E75:S75),0) -> 0 | U75: =IF(U$3=($D$4+$D$5),$D75-SUM($E75:T75),0) -> 0 | V75: =IF(V$3=($D$4+$D$5),$D75-SUM($E75:U75),0) -> 0 | W75: =IF(W$3=($D$4+$D$5),$D75-SUM($E75:V75),0) -> 0 | X75: =IF(X$3=($D$4+$D$5),$D75-SUM($E75:W75),0) -> 0 | Y75: =IF(Y$3=($D$4+$D$5),$D75-SUM($E75:X75),0) -> 0 | Z75: =IF(Z$3=($D$4+$D$5),$D75-SUM($E75:Y75),0) -> 0 | AA75: =IF(AA$3=($D$4+$D$5),$D75-SUM($E75:Z75),0) -> 0 | AB75: =IF(AB$3=($D$4+$D$5),$D75-SUM($E75:AA75),0) -> 0 | AC75: =IF(AC$3=($D$4+$D$5),$D75-SUM($E75:AB75),0) -> 0 | AE75: 0
C76: =+'Development Costs'!C80 -> Initial Replacement Reserve (not HOME eligible) | D76: =+'Development Costs'!D80 -> 0 | E76: 0 | F76: 0 | G76: =IF(G$3=$D$4,$D76-SUM($E76:F76),0) -> 0 | H76: =IF(H$3=$D$4,$D76-SUM($E76:G76),0) -> 0 | I76: =IF(I$3=$D$4,$D76-SUM($E76:H76),0) -> 0 | J76: =IF(J$3=$D$4,$D76-SUM($E76:I76),0) -> 0 | K76: =IF(K$3=$D$4,$D76-SUM($E76:J76),0) -> 0 | L76: =IF(L$3=$D$4,$D76-SUM($E76:K76),0) -> 0 | M76: =IF(M$3=$D$4,$D76-SUM($E76:L76),0) -> 0 | N76: =IF(N$3=$D$4,$D76-SUM($E76:M76),0) -> 0 | O76: =IF(O$3=$D$4,$D76-SUM($E76:N76),0) -> 0 | P76: =IF(P$3=$D$4,$D76-SUM($E76:O76),0) -> 0 | Q76: =IF(Q$3=$D$4,$D76-SUM($E76:P76),0) -> 0 | R76: =IF(R$3=$D$4,$D76-SUM($E76:Q76),0) -> 0 | S76: =IF(S$3=$D$4,$D76-SUM($E76:R76),0) -> 0 | T76: =IF(T$3=$D$4,$D76-SUM($E76:S76),0) -> 0 | U76: =IF(U$3=$D$4,$D76-SUM($E76:T76),0) -> 0 | V76: =IF(V$3=$D$4,$D76-SUM($E76:U76),0) -> 0 | W76: =IF(W$3=$D$4,$D76-SUM($E76:V76),0) -> 0 | X76: =IF(X$3=$D$4,$D76-SUM($E76:W76),0) -> 0 | Y76: =IF(Y$3=$D$4,$D76-SUM($E76:X76),0) -> 0 | Z76: =IF(Z$3=$D$4,$D76-SUM($E76:Y76),0) -> 0 | AA76: =IF(AA$3=$D$4,$D76-SUM($E76:Z76),0) -> 0 | AB76: =IF(AB$3=$D$4,$D76-SUM($E76:AA76),0) -> 0 | AC76: =IF(AC$3=$D$4,$D76-SUM($E76:AB76),0) -> 0 | AE76: 0
C77: =+'Development Costs'!C81 -> 0 | D77: =+'Development Costs'!D81 -> 0 | E77: =+D77 -> 0 | F77: 0 | G77: =IF(G$3=($D$4+$D$5),$D77-SUM($E77:F77),0) -> 0 | H77: =IF(H$3=($D$4+$D$5),$D77-SUM($E77:G77),0) -> 0 | I77: =IF(I$3=($D$4+$D$5),$D77-SUM($E77:H77),0) -> 0 | J77: =IF(J$3=($D$4+$D$5),$D77-SUM($E77:I77),0) -> 0 | K77: =IF(K$3=($D$4+$D$5),$D77-SUM($E77:J77),0) -> 0 | L77: =IF(L$3=($D$4+$D$5),$D77-SUM($E77:K77),0) -> 0 | M77: =IF(M$3=($D$4+$D$5),$D77-SUM($E77:L77),0) -> 0 | N77: =IF(N$3=($D$4+$D$5),$D77-SUM($E77:M77),0) -> 0 | O77: =IF(O$3=($D$4+$D$5),$D77-SUM($E77:N77),0) -> 0 | P77: =IF(P$3=($D$4+$D$5),$D77-SUM($E77:O77),0) -> 0 | Q77: =IF(Q$3=($D$4+$D$5),$D77-SUM($E77:P77),0) -> 0 | R77: =IF(R$3=($D$4+$D$5),$D77-SUM($E77:Q77),0) -> 0 | S77: =IF(S$3=($D$4+$D$5),$D77-SUM($E77:R77),0) -> 0 | T77: =IF(T$3=($D$4+$D$5),$D77-SUM($E77:S77),0) -> 0 | U77: =IF(U$3=($D$4+$D$5),$D77-SUM($E77:T77),0) -> 0 | V77: =IF(V$3=($D$4+$D$5),$D77-SUM($E77:U77),0) -> 0 | W77: =IF(W$3=($D$4+$D$5),$D77-SUM($E77:V77),0) -> 0 | X77: =IF(X$3=($D$4+$D$5),$D77-SUM($E77:W77),0) -> 0 | Y77: =IF(Y$3=($D$4+$D$5),$D77-SUM($E77:X77),0) -> 0 | Z77: =IF(Z$3=($D$4+$D$5),$D77-SUM($E77:Y77),0) -> 0 | AA77: =IF(AA$3=($D$4+$D$5),$D77-SUM($E77:Z77),0) -> 0 | AB77: =IF(AB$3=($D$4+$D$5),$D77-SUM($E77:AA77),0) -> 0 | AC77: =IF(AC$3=($D$4+$D$5),$D77-SUM($E77:AB77),0) -> 0 | AE77: 0
C78: =+'Development Costs'!C82 -> 0 | D78: =+'Development Costs'!D82 -> 0 | E78: =+D78 -> 0 | F78: 0 | G78: =IF(G$3=($D$4+$D$5),$D78-SUM($E78:F78),0) -> 0 | H78: =IF(H$3=($D$4+$D$5),$D78-SUM($E78:G78),0) -> 0 | I78: =IF(I$3=($D$4+$D$5),$D78-SUM($E78:H78),0) -> 0 | J78: =IF(J$3=($D$4+$D$5),$D78-SUM($E78:I78),0) -> 0 | K78: =IF(K$3=($D$4+$D$5),$D78-SUM($E78:J78),0) -> 0 | L78: =IF(L$3=($D$4+$D$5),$D78-SUM($E78:K78),0) -> 0 | M78: =IF(M$3=($D$4+$D$5),$D78-SUM($E78:L78),0) -> 0 | N78: =IF(N$3=($D$4+$D$5),$D78-SUM($E78:M78),0) -> 0 | O78: =IF(O$3=($D$4+$D$5),$D78-SUM($E78:N78),0) -> 0 | P78: =IF(P$3=($D$4+$D$5),$D78-SUM($E78:O78),0) -> 0 | Q78: =IF(Q$3=($D$4+$D$5),$D78-SUM($E78:P78),0) -> 0 | R78: =IF(R$3=($D$4+$D$5),$D78-SUM($E78:Q78),0) -> 0 | S78: =IF(S$3=($D$4+$D$5),$D78-SUM($E78:R78),0) -> 0 | T78: =IF(T$3=($D$4+$D$5),$D78-SUM($E78:S78),0) -> 0 | U78: =IF(U$3=($D$4+$D$5),$D78-SUM($E78:T78),0) -> 0 | V78: =IF(V$3=($D$4+$D$5),$D78-SUM($E78:U78),0) -> 0 | W78: =IF(W$3=($D$4+$D$5),$D78-SUM($E78:V78),0) -> 0 | X78: =IF(X$3=($D$4+$D$5),$D78-SUM($E78:W78),0) -> 0 | Y78: =IF(Y$3=($D$4+$D$5),$D78-SUM($E78:X78),0) -> 0 | Z78: =IF(Z$3=($D$4+$D$5),$D78-SUM($E78:Y78),0) -> 0 | AA78: =IF(AA$3=($D$4+$D$5),$D78-SUM($E78:Z78),0) -> 0 | AB78: =IF(AB$3=($D$4+$D$5),$D78-SUM($E78:AA78),0) -> 0 | AC78: =IF(AC$3=($D$4+$D$5),$D78-SUM($E78:AB78),0) -> 0 | AE78: 0
C79: Project Administration and Management Costs (during construction only)
C80: =+'Development Costs'!C84 -> Marketing/Management | D80: =+'Development Costs'!D84 -> 0 | E80: 0 | F80: 0 | G80: =IF(G$3=$D$4,$D80-SUM($E80:F80),0) -> 0 | H80: =IF(H$3=$D$4,$D80-SUM($E80:G80),0) -> 0 | I80: =IF(I$3=$D$4,$D80-SUM($E80:H80),0) -> 0 | J80: =IF(J$3=$D$4,$D80-SUM($E80:I80),0) -> 0 | K80: =IF(K$3=$D$4,$D80-SUM($E80:J80),0) -> 0 | L80: =IF(L$3=$D$4,$D80-SUM($E80:K80),0) -> 0 | M80: =IF(M$3=$D$4,$D80-SUM($E80:L80),0) -> 0 | N80: =IF(N$3=$D$4,$D80-SUM($E80:M80),0) -> 0 | O80: =IF(O$3=$D$4,$D80-SUM($E80:N80),0) -> 0 | P80: =IF(P$3=$D$4,$D80-SUM($E80:O80),0) -> 0 | Q80: =IF(Q$3=$D$4,$D80-SUM($E80:P80),0) -> 0 | R80: =IF(R$3=$D$4,$D80-SUM($E80:Q80),0) -> 0 | S80: =IF(S$3=$D$4,$D80-SUM($E80:R80),0) -> 0 | T80: =IF(T$3=$D$4,$D80-SUM($E80:S80),0) -> 0 | U80: =IF(U$3=$D$4,$D80-SUM($E80:T80),0) -> 0 | V80: =IF(V$3=$D$4,$D80-SUM($E80:U80),0) -> 0 | W80: =IF(W$3=$D$4,$D80-SUM($E80:V80),0) -> 0 | X80: =IF(X$3=$D$4,$D80-SUM($E80:W80),0) -> 0 | Y80: =IF(Y$3=$D$4,$D80-SUM($E80:X80),0) -> 0 | Z80: =IF(Z$3=$D$4,$D80-SUM($E80:Y80),0) -> 0 | AA80: =IF(AA$3=$D$4,$D80-SUM($E80:Z80),0) -> 0 | AB80: =IF(AB$3=$D$4,$D80-SUM($E80:AA80),0) -> 0 | AC80: =IF(AC$3=$D$4,$D80-SUM($E80:AB80),0) -> 0 | AE80: =SUM(E80:AC80) -> 0 | AF80: =IF(AE80>D80,"ERROR: Total Amount Drawn Exceeds Total Available","") -> 
C81: =+'Development Costs'!C85 -> Operating Expenses | D81: =+'Development Costs'!D85 -> 0 | E81: 0 | F81: 0 | G81: =IF(G$3=$D$4,$D81-SUM($E81:F81),0) -> 0 | H81: =IF(H$3=$D$4,$D81-SUM($E81:G81),0) -> 0 | I81: =IF(I$3=$D$4,$D81-SUM($E81:H81),0) -> 0 | J81: =IF(J$3=$D$4,$D81-SUM($E81:I81),0) -> 0 | K81: =IF(K$3=$D$4,$D81-SUM($E81:J81),0) -> 0 | L81: =IF(L$3=$D$4,$D81-SUM($E81:K81),0) -> 0 | M81: =IF(M$3=$D$4,$D81-SUM($E81:L81),0) -> 0 | N81: =IF(N$3=$D$4,$D81-SUM($E81:M81),0) -> 0 | O81: =IF(O$3=$D$4,$D81-SUM($E81:N81),0) -> 0 | P81: =IF(P$3=$D$4,$D81-SUM($E81:O81),0) -> 0 | Q81: =IF(Q$3=$D$4,$D81-SUM($E81:P81),0) -> 0 | R81: =IF(R$3=$D$4,$D81-SUM($E81:Q81),0) -> 0 | S81: =IF(S$3=$D$4,$D81-SUM($E81:R81),0) -> 0 | T81: =IF(T$3=$D$4,$D81-SUM($E81:S81),0) -> 0 | U81: =IF(U$3=$D$4,$D81-SUM($E81:T81),0) -> 0 | V81: =IF(V$3=$D$4,$D81-SUM($E81:U81),0) -> 0 | W81: =IF(W$3=$D$4,$D81-SUM($E81:V81),0) -> 0 | X81: =IF(X$3=$D$4,$D81-SUM($E81:W81),0) -> 0 | Y81: =IF(Y$3=$D$4,$D81-SUM($E81:X81),0) -> 0 | Z81: =IF(Z$3=$D$4,$D81-SUM($E81:Y81),0) -> 0 | AA81: =IF(AA$3=$D$4,$D81-SUM($E81:Z81),0) -> 0 | AB81: =IF(AB$3=$D$4,$D81-SUM($E81:AA81),0) -> 0 | AC81: =IF(AC$3=$D$4,$D81-SUM($E81:AB81),0) -> 0 | AE81: 0
C82: =+'Development Costs'!C86 -> Furniture, Fixtures & Equipment | D82: =+'Development Costs'!D86 -> 0 | E82: 0 | F82: 0 | G82: =IF(G$3=$D$4,$D82-SUM($E82:F82),0) -> 0 | H82: =IF(H$3=$D$4,$D82-SUM($E82:G82),0) -> 0 | I82: =IF(I$3=$D$4,$D82-SUM($E82:H82),0) -> 0 | J82: =IF(J$3=$D$4,$D82-SUM($E82:I82),0) -> 0 | K82: =IF(K$3=$D$4,$D82-SUM($E82:J82),0) -> 0 | L82: =IF(L$3=$D$4,$D82-SUM($E82:K82),0) -> 0 | M82: =IF(M$3=$D$4,$D82-SUM($E82:L82),0) -> 0 | N82: =IF(N$3=$D$4,$D82-SUM($E82:M82),0) -> 0 | O82: =IF(O$3=$D$4,$D82-SUM($E82:N82),0) -> 0 | P82: =IF(P$3=$D$4,$D82-SUM($E82:O82),0) -> 0 | Q82: =IF(Q$3=$D$4,$D82-SUM($E82:P82),0) -> 0 | R82: =IF(R$3=$D$4,$D82-SUM($E82:Q82),0) -> 0 | S82: =IF(S$3=$D$4,$D82-SUM($E82:R82),0) -> 0 | T82: =IF(T$3=$D$4,$D82-SUM($E82:S82),0) -> 0 | U82: =IF(U$3=$D$4,$D82-SUM($E82:T82),0) -> 0 | V82: =IF(V$3=$D$4,$D82-SUM($E82:U82),0) -> 0 | W82: =IF(W$3=$D$4,$D82-SUM($E82:V82),0) -> 0 | X82: =IF(X$3=$D$4,$D82-SUM($E82:W82),0) -> 0 | Y82: =IF(Y$3=$D$4,$D82-SUM($E82:X82),0) -> 0 | Z82: =IF(Z$3=$D$4,$D82-SUM($E82:Y82),0) -> 0 | AA82: =IF(AA$3=$D$4,$D82-SUM($E82:Z82),0) -> 0 | AB82: =IF(AB$3=$D$4,$D82-SUM($E82:AA82),0) -> 0 | AC82: =IF(AC$3=$D$4,$D82-SUM($E82:AB82),0) -> 0 | AE82: 0
C83: =+'Development Costs'!C87 -> Tenant Relocation Costs | D83: =+'Development Costs'!D87 -> 0 | E83: 0 | F83: =IF($D$4=0,0,ROUND((D83-E83)/$D$4,0)) -> 0 | G83: =IF(G$3<$D$4,F83,IF(G$3=$D$4,$D83-SUM($E83:F83),0)) -> 0 | H83: =IF(H$3<$D$4,G83,IF(H$3=$D$4,$D83-SUM($E83:G83),0)) -> 0 | I83: =IF(I$3<$D$4,H83,IF(I$3=$D$4,$D83-SUM($E83:H83),0)) -> 0 | J83: =IF(J$3<$D$4,I83,IF(J$3=$D$4,$D83-SUM($E83:I83),0)) -> 0 | K83: =IF(K$3<$D$4,J83,IF(K$3=$D$4,$D83-SUM($E83:J83),0)) -> 0 | L83: =IF(L$3<$D$4,K83,IF(L$3=$D$4,$D83-SUM($E83:K83),0)) -> 0 | M83: =IF(M$3<$D$4,L83,IF(M$3=$D$4,$D83-SUM($E83:L83),0)) -> 0 | N83: =IF(N$3<$D$4,M83,IF(N$3=$D$4,$D83-SUM($E83:M83),0)) -> 0 | O83: =IF(O$3<$D$4,N83,IF(O$3=$D$4,$D83-SUM($E83:N83),0)) -> 0 | P83: =IF(P$3<$D$4,O83,IF(P$3=$D$4,$D83-SUM($E83:O83),0)) -> 0 | Q83: =IF(Q$3<$D$4,P83,IF(Q$3=$D$4,$D83-SUM($E83:P83),0)) -> 0 | R83: =IF(R$3<$D$4,Q83,IF(R$3=$D$4,$D83-SUM($E83:Q83),0)) -> 0 | S83: =IF(S$3<$D$4,R83,IF(S$3=$D$4,$D83-SUM($E83:R83),0)) -> 0 | T83: =IF(T$3<$D$4,S83,IF(T$3=$D$4,$D83-SUM($E83:S83),0)) -> 0 | U83: =IF(U$3<$D$4,T83,IF(U$3=$D$4,$D83-SUM($E83:T83),0)) -> 0 | V83: =IF(V$3<$D$4,U83,IF(V$3=$D$4,$D83-SUM($E83:U83),0)) -> 0 | W83: =IF(W$3<$D$4,V83,IF(W$3=$D$4,$D83-SUM($E83:V83),0)) -> 0 | X83: =IF(X$3<$D$4,W83,IF(X$3=$D$4,$D83-SUM($E83:W83),0)) -> 0 | Y83: =IF(Y$3<$D$4,X83,IF(Y$3=$D$4,$D83-SUM($E83:X83),0)) -> 0 | Z83: =IF(Z$3<$D$4,Y83,IF(Z$3=$D$4,$D83-SUM($E83:Y83),0)) -> 0 | AA83: =IF(AA$3<$D$4,Z83,IF(AA$3=$D$4,$D83-SUM($E83:Z83),0)) -> 0 | AB83: =IF(AB$3<$D$4,AA83,IF(AB$3=$D$4,$D83-SUM($E83:AA83),0)) -> 0 | AC83: =IF(AC$3<$D$4,AB83,IF(AC$3=$D$4,$D83-SUM($E83:AB83),0)) -> 0 | AE83: 0
C84: =+'Development Costs'!C88 -> 0 | D84: =+'Development Costs'!D88 -> 0 | E84: =+D84 -> 0 | F84: 0 | G84: =IF(G$3=($D$4+$D$5),$D84-SUM($E84:F84),0) -> 0 | H84: =IF(H$3=($D$4+$D$5),$D84-SUM($E84:G84),0) -> 0 | I84: =IF(I$3=($D$4+$D$5),$D84-SUM($E84:H84),0) -> 0 | J84: =IF(J$3=($D$4+$D$5),$D84-SUM($E84:I84),0) -> 0 | K84: =IF(K$3=($D$4+$D$5),$D84-SUM($E84:J84),0) -> 0 | L84: =IF(L$3=($D$4+$D$5),$D84-SUM($E84:K84),0) -> 0 | M84: =IF(M$3=($D$4+$D$5),$D84-SUM($E84:L84),0) -> 0 | N84: =IF(N$3=($D$4+$D$5),$D84-SUM($E84:M84),0) -> 0 | O84: =IF(O$3=($D$4+$D$5),$D84-SUM($E84:N84),0) -> 0 | P84: =IF(P$3=($D$4+$D$5),$D84-SUM($E84:O84),0) -> 0 | Q84: =IF(Q$3=($D$4+$D$5),$D84-SUM($E84:P84),0) -> 0 | R84: =IF(R$3=($D$4+$D$5),$D84-SUM($E84:Q84),0) -> 0 | S84: =IF(S$3=($D$4+$D$5),$D84-SUM($E84:R84),0) -> 0 | T84: =IF(T$3=($D$4+$D$5),$D84-SUM($E84:S84),0) -> 0 | U84: =IF(U$3=($D$4+$D$5),$D84-SUM($E84:T84),0) -> 0 | V84: =IF(V$3=($D$4+$D$5),$D84-SUM($E84:U84),0) -> 0 | W84: =IF(W$3=($D$4+$D$5),$D84-SUM($E84:V84),0) -> 0 | X84: =IF(X$3=($D$4+$D$5),$D84-SUM($E84:W84),0) -> 0 | Y84: =IF(Y$3=($D$4+$D$5),$D84-SUM($E84:X84),0) -> 0 | Z84: =IF(Z$3=($D$4+$D$5),$D84-SUM($E84:Y84),0) -> 0 | AA84: =IF(AA$3=($D$4+$D$5),$D84-SUM($E84:Z84),0) -> 0 | AB84: =IF(AB$3=($D$4+$D$5),$D84-SUM($E84:AA84),0) -> 0 | AC84: =IF(AC$3=($D$4+$D$5),$D84-SUM($E84:AB84),0) -> 0 | AE84: 0
C85: =+'Development Costs'!C89 -> 0 | D85: =+'Development Costs'!D89 -> 0 | E85: =+D85 -> 0 | F85: 0 | G85: =IF(G$3=($D$4+$D$5),$D85-SUM($E85:F85),0) -> 0 | H85: =IF(H$3=($D$4+$D$5),$D85-SUM($E85:G85),0) -> 0 | I85: =IF(I$3=($D$4+$D$5),$D85-SUM($E85:H85),0) -> 0 | J85: =IF(J$3=($D$4+$D$5),$D85-SUM($E85:I85),0) -> 0 | K85: =IF(K$3=($D$4+$D$5),$D85-SUM($E85:J85),0) -> 0 | L85: =IF(L$3=($D$4+$D$5),$D85-SUM($E85:K85),0) -> 0 | M85: =IF(M$3=($D$4+$D$5),$D85-SUM($E85:L85),0) -> 0 | N85: =IF(N$3=($D$4+$D$5),$D85-SUM($E85:M85),0) -> 0 | O85: =IF(O$3=($D$4+$D$5),$D85-SUM($E85:N85),0) -> 0 | P85: =IF(P$3=($D$4+$D$5),$D85-SUM($E85:O85),0) -> 0 | Q85: =IF(Q$3=($D$4+$D$5),$D85-SUM($E85:P85),0) -> 0 | R85: =IF(R$3=($D$4+$D$5),$D85-SUM($E85:Q85),0) -> 0 | S85: =IF(S$3=($D$4+$D$5),$D85-SUM($E85:R85),0) -> 0 | T85: =IF(T$3=($D$4+$D$5),$D85-SUM($E85:S85),0) -> 0 | U85: =IF(U$3=($D$4+$D$5),$D85-SUM($E85:T85),0) -> 0 | V85: =IF(V$3=($D$4+$D$5),$D85-SUM($E85:U85),0) -> 0 | W85: =IF(W$3=($D$4+$D$5),$D85-SUM($E85:V85),0) -> 0 | X85: =IF(X$3=($D$4+$D$5),$D85-SUM($E85:W85),0) -> 0 | Y85: =IF(Y$3=($D$4+$D$5),$D85-SUM($E85:X85),0) -> 0 | Z85: =IF(Z$3=($D$4+$D$5),$D85-SUM($E85:Y85),0) -> 0 | AA85: =IF(AA$3=($D$4+$D$5),$D85-SUM($E85:Z85),0) -> 0 | AB85: =IF(AB$3=($D$4+$D$5),$D85-SUM($E85:AA85),0) -> 0 | AC85: =IF(AC$3=($D$4+$D$5),$D85-SUM($E85:AB85),0) -> 0 | AE85: 0
C86: Other Development Costs
C87: =+'Development Costs'!C91 -> 0 | D87: =+'Development Costs'!D91 -> 0 | E87: =+D87 -> 0 | F87: =IF($D$4=0,0,ROUND((D87-E87)/$D$4,0)) -> 0 | G87: =IF(G$3=($D$4+$D$5),$D87-SUM($E87:F87),0) -> 0 | H87: =IF(H$3=($D$4+$D$5),$D87-SUM($E87:G87),0) -> 0 | I87: =IF(I$3=($D$4+$D$5),$D87-SUM($E87:H87),0) -> 0 | J87: =IF(J$3=($D$4+$D$5),$D87-SUM($E87:I87),0) -> 0 | K87: =IF(K$3=($D$4+$D$5),$D87-SUM($E87:J87),0) -> 0 | L87: =IF(L$3=($D$4+$D$5),$D87-SUM($E87:K87),0) -> 0 | M87: =IF(M$3=($D$4+$D$5),$D87-SUM($E87:L87),0) -> 0 | N87: =IF(N$3=($D$4+$D$5),$D87-SUM($E87:M87),0) -> 0 | O87: =IF(O$3=($D$4+$D$5),$D87-SUM($E87:N87),0) -> 0 | P87: =IF(P$3=($D$4+$D$5),$D87-SUM($E87:O87),0) -> 0 | Q87: =IF(Q$3=($D$4+$D$5),$D87-SUM($E87:P87),0) -> 0 | R87: =IF(R$3=($D$4+$D$5),$D87-SUM($E87:Q87),0) -> 0 | S87: =IF(S$3=($D$4+$D$5),$D87-SUM($E87:R87),0) -> 0 | T87: =IF(T$3=($D$4+$D$5),$D87-SUM($E87:S87),0) -> 0 | U87: =IF(U$3=($D$4+$D$5),$D87-SUM($E87:T87),0) -> 0 | V87: =IF(V$3=($D$4+$D$5),$D87-SUM($E87:U87),0) -> 0 | W87: =IF(W$3=($D$4+$D$5),$D87-SUM($E87:V87),0) -> 0 | X87: =IF(X$3=($D$4+$D$5),$D87-SUM($E87:W87),0) -> 0 | Y87: =IF(Y$3=($D$4+$D$5),$D87-SUM($E87:X87),0) -> 0 | Z87: =IF(Z$3=($D$4+$D$5),$D87-SUM($E87:Y87),0) -> 0 | AA87: =IF(AA$3=($D$4+$D$5),$D87-SUM($E87:Z87),0) -> 0 | AB87: =IF(AB$3=($D$4+$D$5),$D87-SUM($E87:AA87),0) -> 0 | AC87: =IF(AC$3=($D$4+$D$5),$D87-SUM($E87:AB87),0) -> 0 | AE87: =SUM(E87:AC87) -> 0 | AF87: =IF(AE87>D87,"ERROR: Total Amount Drawn Exceeds Total Available","") -> 
C88: =+'Development Costs'!C92 -> 0 | D88: =+'Development Costs'!D92 -> 0 | E88: 0 | F88: 0 | G88: =IF(G$3=($D$4+$D$5),$D88-SUM($E88:F88),0) -> 0 | H88: =IF(H$3=($D$4+$D$5),$D88-SUM($E88:G88),0) -> 0 | I88: =IF(I$3=($D$4+$D$5),$D88-SUM($E88:H88),0) -> 0 | J88: =IF(J$3=($D$4+$D$5),$D88-SUM($E88:I88),0) -> 0 | K88: =IF(K$3=($D$4+$D$5),$D88-SUM($E88:J88),0) -> 0 | L88: =IF(L$3=($D$4+$D$5),$D88-SUM($E88:K88),0) -> 0 | M88: =IF(M$3=($D$4+$D$5),$D88-SUM($E88:L88),0) -> 0 | N88: =IF(N$3=($D$4+$D$5),$D88-SUM($E88:M88),0) -> 0 | O88: =IF(O$3=($D$4+$D$5),$D88-SUM($E88:N88),0) -> 0 | P88: =IF(P$3=($D$4+$D$5),$D88-SUM($E88:O88),0) -> 0 | Q88: =IF(Q$3=($D$4+$D$5),$D88-SUM($E88:P88),0) -> 0 | R88: =IF(R$3=($D$4+$D$5),$D88-SUM($E88:Q88),0) -> 0 | S88: =IF(S$3=($D$4+$D$5),$D88-SUM($E88:R88),0) -> 0 | T88: =IF(T$3=($D$4+$D$5),$D88-SUM($E88:S88),0) -> 0 | U88: =IF(U$3=($D$4+$D$5),$D88-SUM($E88:T88),0) -> 0 | V88: =IF(V$3=($D$4+$D$5),$D88-SUM($E88:U88),0) -> 0 | W88: =IF(W$3=($D$4+$D$5),$D88-SUM($E88:V88),0) -> 0 | X88: =IF(X$3=($D$4+$D$5),$D88-SUM($E88:W88),0) -> 0 | Y88: =IF(Y$3=($D$4+$D$5),$D88-SUM($E88:X88),0) -> 0 | Z88: =IF(Z$3=($D$4+$D$5),$D88-SUM($E88:Y88),0) -> 0 | AA88: =IF(AA$3=($D$4+$D$5),$D88-SUM($E88:Z88),0) -> 0 | AB88: =IF(AB$3=($D$4+$D$5),$D88-SUM($E88:AA88),0) -> 0 | AC88: =IF(AC$3=($D$4+$D$5),$D88-SUM($E88:AB88),0) -> 0 | AE88: 0
C89: =+'Development Costs'!C93 -> 0 | D89: =+'Development Costs'!D93 -> 0 | E89: 0 | F89: 0 | G89: =IF(G$3=($D$4+$D$5),$D89-SUM($E89:F89),0) -> 0 | H89: =IF(H$3=($D$4+$D$5),$D89-SUM($E89:G89),0) -> 0 | I89: =IF(I$3=($D$4+$D$5),$D89-SUM($E89:H89),0) -> 0 | J89: =IF(J$3=($D$4+$D$5),$D89-SUM($E89:I89),0) -> 0 | K89: =IF(K$3=($D$4+$D$5),$D89-SUM($E89:J89),0) -> 0 | L89: =IF(L$3=($D$4+$D$5),$D89-SUM($E89:K89),0) -> 0 | M89: =IF(M$3=($D$4+$D$5),$D89-SUM($E89:L89),0) -> 0 | N89: =IF(N$3=($D$4+$D$5),$D89-SUM($E89:M89),0) -> 0 | O89: =IF(O$3=($D$4+$D$5),$D89-SUM($E89:N89),0) -> 0 | P89: =IF(P$3=($D$4+$D$5),$D89-SUM($E89:O89),0) -> 0 | Q89: =IF(Q$3=($D$4+$D$5),$D89-SUM($E89:P89),0) -> 0 | R89: =IF(R$3=($D$4+$D$5),$D89-SUM($E89:Q89),0) -> 0 | S89: =IF(S$3=($D$4+$D$5),$D89-SUM($E89:R89),0) -> 0 | T89: =IF(T$3=($D$4+$D$5),$D89-SUM($E89:S89),0) -> 0 | U89: =IF(U$3=($D$4+$D$5),$D89-SUM($E89:T89),0) -> 0 | V89: =IF(V$3=($D$4+$D$5),$D89-SUM($E89:U89),0) -> 0 | W89: =IF(W$3=($D$4+$D$5),$D89-SUM($E89:V89),0) -> 0 | X89: =IF(X$3=($D$4+$D$5),$D89-SUM($E89:W89),0) -> 0 | Y89: =IF(Y$3=($D$4+$D$5),$D89-SUM($E89:X89),0) -> 0 | Z89: =IF(Z$3=($D$4+$D$5),$D89-SUM($E89:Y89),0) -> 0 | AA89: =IF(AA$3=($D$4+$D$5),$D89-SUM($E89:Z89),0) -> 0 | AB89: =IF(AB$3=($D$4+$D$5),$D89-SUM($E89:AA89),0) -> 0 | AC89: =IF(AC$3=($D$4+$D$5),$D89-SUM($E89:AB89),0) -> 0 | AE89: 0
C90: =+'Development Costs'!C94 -> 0 | D90: =+'Development Costs'!D94 -> 0 | E90: 0 | F90: 0 | G90: =IF(G$3=($D$4+$D$5),$D90-SUM($E90:F90),0) -> 0 | H90: =IF(H$3=($D$4+$D$5),$D90-SUM($E90:G90),0) -> 0 | I90: =IF(I$3=($D$4+$D$5),$D90-SUM($E90:H90),0) -> 0 | J90: =IF(J$3=($D$4+$D$5),$D90-SUM($E90:I90),0) -> 0 | K90: =IF(K$3=($D$4+$D$5),$D90-SUM($E90:J90),0) -> 0 | L90: =IF(L$3=($D$4+$D$5),$D90-SUM($E90:K90),0) -> 0 | M90: =IF(M$3=($D$4+$D$5),$D90-SUM($E90:L90),0) -> 0 | N90: =IF(N$3=($D$4+$D$5),$D90-SUM($E90:M90),0) -> 0 | O90: =IF(O$3=($D$4+$D$5),$D90-SUM($E90:N90),0) -> 0 | P90: =IF(P$3=($D$4+$D$5),$D90-SUM($E90:O90),0) -> 0 | Q90: =IF(Q$3=($D$4+$D$5),$D90-SUM($E90:P90),0) -> 0 | R90: =IF(R$3=($D$4+$D$5),$D90-SUM($E90:Q90),0) -> 0 | S90: =IF(S$3=($D$4+$D$5),$D90-SUM($E90:R90),0) -> 0 | T90: =IF(T$3=($D$4+$D$5),$D90-SUM($E90:S90),0) -> 0 | U90: =IF(U$3=($D$4+$D$5),$D90-SUM($E90:T90),0) -> 0 | V90: =IF(V$3=($D$4+$D$5),$D90-SUM($E90:U90),0) -> 0 | W90: =IF(W$3=($D$4+$D$5),$D90-SUM($E90:V90),0) -> 0 | X90: =IF(X$3=($D$4+$D$5),$D90-SUM($E90:W90),0) -> 0 | Y90: =IF(Y$3=($D$4+$D$5),$D90-SUM($E90:X90),0) -> 0 | Z90: =IF(Z$3=($D$4+$D$5),$D90-SUM($E90:Y90),0) -> 0 | AA90: =IF(AA$3=($D$4+$D$5),$D90-SUM($E90:Z90),0) -> 0 | AB90: =IF(AB$3=($D$4+$D$5),$D90-SUM($E90:AA90),0) -> 0 | AC90: =IF(AC$3=($D$4+$D$5),$D90-SUM($E90:AB90),0) -> 0 | AE90: 0
C91: =+'Development Costs'!C95 -> 0 | D91: =+'Development Costs'!D95 -> 0 | E91: 0 | F91: 0 | G91: =IF(G$3=($D$4+$D$5),$D91-SUM($E91:F91),0) -> 0 | H91: =IF(H$3=($D$4+$D$5),$D91-SUM($E91:G91),0) -> 0 | I91: =IF(I$3=($D$4+$D$5),$D91-SUM($E91:H91),0) -> 0 | J91: =IF(J$3=($D$4+$D$5),$D91-SUM($E91:I91),0) -> 0 | K91: =IF(K$3=($D$4+$D$5),$D91-SUM($E91:J91),0) -> 0 | L91: =IF(L$3=($D$4+$D$5),$D91-SUM($E91:K91),0) -> 0 | M91: =IF(M$3=($D$4+$D$5),$D91-SUM($E91:L91),0) -> 0 | N91: =IF(N$3=($D$4+$D$5),$D91-SUM($E91:M91),0) -> 0 | O91: =IF(O$3=($D$4+$D$5),$D91-SUM($E91:N91),0) -> 0 | P91: =IF(P$3=($D$4+$D$5),$D91-SUM($E91:O91),0) -> 0 | Q91: =IF(Q$3=($D$4+$D$5),$D91-SUM($E91:P91),0) -> 0 | R91: =IF(R$3=($D$4+$D$5),$D91-SUM($E91:Q91),0) -> 0 | S91: =IF(S$3=($D$4+$D$5),$D91-SUM($E91:R91),0) -> 0 | T91: =IF(T$3=($D$4+$D$5),$D91-SUM($E91:S91),0) -> 0 | U91: =IF(U$3=($D$4+$D$5),$D91-SUM($E91:T91),0) -> 0 | V91: =IF(V$3=($D$4+$D$5),$D91-SUM($E91:U91),0) -> 0 | W91: =IF(W$3=($D$4+$D$5),$D91-SUM($E91:V91),0) -> 0 | X91: =IF(X$3=($D$4+$D$5),$D91-SUM($E91:W91),0) -> 0 | Y91: =IF(Y$3=($D$4+$D$5),$D91-SUM($E91:X91),0) -> 0 | Z91: =IF(Z$3=($D$4+$D$5),$D91-SUM($E91:Y91),0) -> 0 | AA91: =IF(AA$3=($D$4+$D$5),$D91-SUM($E91:Z91),0) -> 0 | AB91: =IF(AB$3=($D$4+$D$5),$D91-SUM($E91:AA91),0) -> 0 | AC91: =IF(AC$3=($D$4+$D$5),$D91-SUM($E91:AB91),0) -> 0 | AE91: 0
C92: =+'Development Costs'!C96 -> 0 | D92: =+'Development Costs'!D96 -> 0 | E92: 0 | F92: 0 | G92: =IF(G$3=($D$4+$D$5),$D92-SUM($E92:F92),0) -> 0 | H92: =IF(H$3=($D$4+$D$5),$D92-SUM($E92:G92),0) -> 0 | I92: =IF(I$3=($D$4+$D$5),$D92-SUM($E92:H92),0) -> 0 | J92: =IF(J$3=($D$4+$D$5),$D92-SUM($E92:I92),0) -> 0 | K92: =IF(K$3=($D$4+$D$5),$D92-SUM($E92:J92),0) -> 0 | L92: =IF(L$3=($D$4+$D$5),$D92-SUM($E92:K92),0) -> 0 | M92: =IF(M$3=($D$4+$D$5),$D92-SUM($E92:L92),0) -> 0 | N92: =IF(N$3=($D$4+$D$5),$D92-SUM($E92:M92),0) -> 0 | O92: =IF(O$3=($D$4+$D$5),$D92-SUM($E92:N92),0) -> 0 | P92: =IF(P$3=($D$4+$D$5),$D92-SUM($E92:O92),0) -> 0 | Q92: =IF(Q$3=($D$4+$D$5),$D92-SUM($E92:P92),0) -> 0 | R92: =IF(R$3=($D$4+$D$5),$D92-SUM($E92:Q92),0) -> 0 | S92: =IF(S$3=($D$4+$D$5),$D92-SUM($E92:R92),0) -> 0 | T92: =IF(T$3=($D$4+$D$5),$D92-SUM($E92:S92),0) -> 0 | U92: =IF(U$3=($D$4+$D$5),$D92-SUM($E92:T92),0) -> 0 | V92: =IF(V$3=($D$4+$D$5),$D92-SUM($E92:U92),0) -> 0 | W92: =IF(W$3=($D$4+$D$5),$D92-SUM($E92:V92),0) -> 0 | X92: =IF(X$3=($D$4+$D$5),$D92-SUM($E92:W92),0) -> 0 | Y92: =IF(Y$3=($D$4+$D$5),$D92-SUM($E92:X92),0) -> 0 | Z92: =IF(Z$3=($D$4+$D$5),$D92-SUM($E92:Y92),0) -> 0 | AA92: =IF(AA$3=($D$4+$D$5),$D92-SUM($E92:Z92),0) -> 0 | AB92: =IF(AB$3=($D$4+$D$5),$D92-SUM($E92:AA92),0) -> 0 | AC92: =IF(AC$3=($D$4+$D$5),$D92-SUM($E92:AB92),0) -> 0 | AE92: 0
C94: Total Development Costs (TDC) | D94: =SUM(D9:D93) -> 0 | E94: 0 | F94: 0 | G94: 0 | H94: 0 | I94: 0 | J94: 0 | K94: 0 | L94: 0 | M94: 0 | N94: 0 | O94: 0 | P94: 0 | Q94: 0 | R94: 0 | S94: 0 | T94: 0 | U94: 0 | V94: 0 | W94: 0 | X94: 0 | Y94: 0 | Z94: 0 | AA94: 0 | AB94: 0 | AC94: 0 | AE94: =SUM(E94:AC94) -> 0 | AF94: =IF(AE94>D94,"ERROR: Total Amount Drawn Exceeds Total Available","") -> 
C96: TDC Excluding Construction Interest | D96: =+D94-D54 -> 0 | E96: =+E94-E54 -> 0 | F96: 0 | G96: 0 | H96: 0 | I96: 0 | J96: 0 | K96: 0 | L96: 0 | M96: 0 | N96: 0 | O96: 0 | P96: 0 | Q96: 0 | R96: 0 | S96: 0 | T96: 0 | U96: 0 | V96: 0 | W96: 0 | X96: 0 | Y96: 0 | Z96: 0 | AA96: 0 | AB96: 0 | AC96: 0 | AE96: =SUM(E96:AC96) -> 0 | AF96: =IF(AE96>D96,"ERROR: Total Amount Drawn Exceeds Total Available","") -> 
A98: ? | C98: Sources of Funds | D98: Total | E98: Initial Closing / First Draw | F98: ="Month "&F3 -> Month 1 | G98: Month 2 | H98: Month 3 | I98: Month 4 | J98: Month 5 | K98: Month 6 | L98: Month 7 | M98: Month 8 | N98: Month 9 | O98: Month 10 | P98: Month 11 | Q98: Month 12 | R98: Month 13 | S98: Month 14 | T98: Month 15 | U98: Month 16 | V98: Month 17 | W98: Month 18 | X98: Month 19 | Y98: Month 20 | Z98: Month 21 | AA98: Month 22 | AB98: Month 23 | AC98: Month 24 | AE98: Total Drawn to Date
C99: =+'Sources and Uses'!C8 -> First Mortgage Loan (proposed amount) | D99: =+'Sources and Uses'!D8 -> 0 | E99: 0 | F99: =IF(F$3=($D$4+$D$5),$D99,0) -> 0 | G99: =IF(G$3=($D$4+$D$5),$D99,0) -> 0 | H99: 0 | I99: 0 | J99: 0 | K99: 0 | L99: 0 | M99: 0 | N99: 0 | O99: 0 | P99: 0 | Q99: 0 | R99: 0 | S99: 0 | T99: 0 | U99: 0 | V99: 0 | W99: 0 | X99: 0 | Y99: 0 | Z99: 0 | AA99: 0 | AB99: 0 | AC99: 0 | AE99: =SUM(E99:AC99) -> 0 | AF99: =IF(AE99>D99,"ERROR: Total Amount Drawn Exceeds Total Available","") -> 
C100: =+'Sources and Uses'!C9 -> Amortizing Second Mortgage Loan | D100: =+'Sources and Uses'!D9 -> 0 | E100: 0 | F100: 0 | G100: 0 | H100: 0 | I100: 0 | J100: 0 | K100: 0 | L100: 0 | M100: 0 | N100: 0 | O100: 0 | P100: 0 | Q100: 0 | R100: 0 | S100: 0 | T100: 0 | U100: 0 | V100: 0 | W100: 0 | X100: 0 | Y100: 0 | Z100: 0 | AA100: 0 | AB100: 0 | AC100: 0 | AE100: 0
C101: =+'Sources and Uses'!C10 ->  | D101: =+'Sources and Uses'!D10 -> 0 | E101: 0 | F101: 0 | G101: 0 | H101: 0 | I101: 0 | J101: 0 | K101: 0 | L101: 0 | M101: 0 | N101: 0 | O101: 0 | P101: 0 | Q101: 0 | R101: 0 | S101: 0 | T101: 0 | U101: 0 | V101: 0 | W101: 0 | X101: 0 | Y101: 0 | Z101: 0 | AA101: 0 | AB101: 0 | AC101: 0 | AE101: 0
C102: =+'Sources and Uses'!C11 ->  | D102: =+'Sources and Uses'!D11 -> 0 | E102: 0 | F102: 0 | G102: 0 | H102: 0 | I102: 0 | J102: 0 | K102: 0 | L102: 0 | M102: 0 | N102: 0 | O102: 0 | P102: 0 | Q102: 0 | R102: 0 | S102: 0 | T102: 0 | U102: 0 | V102: 0 | W102: 0 | X102: 0 | Y102: 0 | Z102: 0 | AA102: 0 | AB102: 0 | AC102: 0 | AE102: 0
C103: =+'Sources and Uses'!C12 ->  | D103: =+'Sources and Uses'!D12 -> 0 | E103: 0 | F103: 0 | G103: 0 | H103: 0 | I103: 0 | J103: 0 | K103: 0 | L103: 0 | M103: 0 | N103: 0 | O103: 0 | P103: 0 | Q103: 0 | R103: 0 | S103: 0 | T103: 0 | U103: 0 | V103: 0 | W103: 0 | X103: 0 | Y103: 0 | Z103: 0 | AA103: 0 | AB103: 0 | AC103: 0 | AE103: 0
C104: =+'Sources and Uses'!C13 ->  | D104: =+'Sources and Uses'!D13 -> 0 | E104: 0 | F104: 0 | G104: 0 | H104: 0 | I104: 0 | J104: 0 | K104: 0 | L104: 0 | M104: 0 | N104: 0 | O104: 0 | P104: 0 | Q104: 0 | R104: 0 | S104: 0 | T104: 0 | U104: 0 | V104: 0 | W104: 0 | X104: 0 | Y104: 0 | Z104: 0 | AA104: 0 | AB104: 0 | AC104: 0 | AE104: 0
C105: =+'Sources and Uses'!C14 -> Deferred Developer Fee | D105: =+'Sources and Uses'!D16 -> 0 | E105: 0 | F105: 0 | G105: 0 | H105: 0 | I105: 0 | J105: 0 | K105: 0 | L105: 0 | M105: 0 | N105: 0 | O105: 0 | P105: 0 | Q105: 0 | R105: 0 | S105: 0 | T105: 0 | U105: 0 | V105: 0 | W105: 0 | X105: 0 | Y105: 0 | Z105: 0 | AA105: 0 | AB105: 0 | AC105: 0 | AE105: 0
C106: =+'Sources and Uses'!C15 -> Developer Cash Investment | D106: =+'Sources and Uses'!D17 -> 0 | E106: 0 | F106: 0 | G106: 0 | H106: 0 | I106: 0 | J106: 0 | K106: 0 | L106: 0 | M106: 0 | N106: 0 | O106: 0 | P106: 0 | Q106: 0 | R106: 0 | S106: 0 | T106: 0 | U106: 0 | V106: 0 | W106: 0 | X106: 0 | Y106: 0 | Z106: 0 | AA106: 0 | AB106: 0 | AC106: 0 | AE106: 0
C107: =+'Sources and Uses'!C16 -> Tax Credit Equity (proposed amount) | D107: =+'Sources and Uses'!D18 -> 0 | E107: 0 | F107: 0 | G107: 0 | H107: 0 | I107: 0 | J107: 0 | K107: 0 | L107: 0 | M107: 0 | N107: 0 | O107: 0 | P107: 0 | Q107: 0 | R107: 0 | S107: 0 | T107: 0 | U107: 0 | V107: 0 | W107: 0 | X107: 0 | Y107: 0 | Z107: 0 | AA107: 0 | AB107: 0 | AC107: 0 | AE107: 0
C108: =+'Sources and Uses'!C17 -> 0 | D108: =+'Sources and Uses'!#REF! ->  | E108: 0 | F108: 0 | G108: 0 | H108: 0 | I108: 0 | J108: 0 | K108: 0 | L108: 0 | M108: 0 | N108: 0 | O108: 0 | P108: 0 | Q108: 0 | R108: 0 | S108: 0 | T108: 0 | U108: 0 | V108: 0 | W108: 0 | X108: 0 | Y108: 0 | Z108: 0 | AA108: 0 | AB108: 0 | AC108: 0 | AE108: 0
C109: =+'Sources and Uses'!C18 -> 0 | D109: =+'Sources and Uses'!#REF! ->  | E109: 0 | F109: 0 | G109: 0 | H109: 0 | I109: 0 | J109: 0 | K109: 0 | L109: 0 | M109: 0 | N109: 0 | O109: 0 | P109: 0 | Q109: 0 | R109: 0 | S109: 0 | T109: 0 | U109: 0 | V109: 0 | W109: 0 | X109: 0 | Y109: 0 | Z109: 0 | AA109: 0 | AB109: 0 | AC109: 0 | AE109: 0
C110: =+'Sources and Uses'!C19 -> 0 | D110: =+'Sources and Uses'!D19 -> 0 | E110: 0 | F110: 0 | G110: 0 | H110: 0 | I110: =IF(I$3=($D$4+$D$5),$D110,0) -> 0 | J110: 0 | K110: 0 | L110: 0 | M110: 0 | N110: 0 | O110: 0 | P110: 0 | Q110: 0 | R110: 0 | S110: 0 | T110: 0 | U110: 0 | V110: 0 | W110: 0 | X110: 0 | Y110: 0 | Z110: 0 | AA110: 0 | AB110: 0 | AC110: 0 | AE110: 0
C111: =+'Sources and Uses'!C20 -> 0 | D111: =+'Sources and Uses'!D20 -> 0 | E111: 0 | F111: 0 | G111: =IF(G$3=($D$4+$D$5),$D111,0) -> 0 | H111: 0 | I111: 0 | J111: 0 | K111: 0 | L111: 0 | M111: 0 | N111: 0 | O111: 0 | P111: 0 | Q111: 0 | R111: 0 | S111: 0 | T111: 0 | U111: 0 | V111: 0 | W111: 0 | X111: 0 | Y111: 0 | Z111: 0 | AA111: 0 | AB111: 0 | AC111: 0 | AE111: 0
C112: =+'Sources and Uses'!C21 -> 0 | D112: =+'Sources and Uses'!D21 -> 0 | E112: 0 | F112: 0 | G112: 0 | H112: 0 | I112: 0 | J112: 0 | K112: 0 | L112: 0 | M112: 0 | N112: 0 | O112: 0 | P112: 0 | Q112: 0 | R112: 0 | S112: 0 | T112: 0 | U112: 0 | V112: 0 | W112: 0 | X112: 0 | Y112: 0 | Z112: 0 | AA112: 0 | AB112: 0 | AC112: 0 | AE112: 0
C113: =+'Sources and Uses'!C22 -> 0 | D113: =+'Sources and Uses'!D22 -> 0 | E113: 0 | F113: 0 | G113: 0 | H113: 0 | I113: 0 | J113: 0 | K113: 0 | L113: 0 | M113: 0 | N113: 0 | O113: 0 | P113: 0 | Q113: 0 | R113: 0 | S113: 0 | T113: 0 | U113: 0 | V113: 0 | W113: 0 | X113: 0 | Y113: 0 | Z113: 0 | AA113: 0 | AB113: 0 | AC113: 0 | AE113: 0
C115: Total Sources Before Construction Loan | D115: =SUM(D99:D114) ->  | E115: =SUM(E99:E114) -> 0 | F115: 0 | G115: 0 | H115: 0 | I115: 0 | J115: 0 | K115: 0 | L115: 0 | M115: 0 | N115: 0 | O115: 0 | P115: 0 | Q115: 0 | R115: 0 | S115: 0 | T115: 0 | U115: 0 | V115: 0 | W115: 0 | X115: 0 | Y115: 0 | Z115: 0 | AA115: 0 | AB115: 0 | AC115: 0 | AE115: =SUM(E115:AC115) -> 0 | AF115: =IF(AE115>D115,"ERROR: Total Amount Drawn Exceeds Total Available","") -> 
A117: ? | C117: Construction Loan Draw Needed (Before Interest) | E117: =+E96-E115 -> 0 | F117: 0 | G117: 0 | H117: 0 | I117: 0 | J117: 0 | K117: 0 | L117: 0 | M117: 0 | N117: 0 | O117: 0 | P117: 0 | Q117: 0 | R117: 0 | S117: 0 | T117: 0 | U117: 0 | V117: 0 | W117: 0 | X117: 0 | Y117: 0 | Z117: 0 | AA117: 0 | AB117: 0 | AC117: 0
C119: Construction Loan Beginning Balance | E119: =+D122 -> 0 | F119: =IF(F$3>($D$4+$D$5),0,E122) -> 0 | G119: =IF(G$3>($D$4+$D$5),0,F122) -> 0 | H119: 0 | I119: 0 | J119: 0 | K119: 0 | L119: 0 | M119: 0 | N119: 0 | O119: 0 | P119: 0 | Q119: 0 | R119: 0 | S119: 0 | T119: 0 | U119: 0 | V119: 0 | W119: 0 | X119: 0 | Y119: 0 | Z119: 0 | AA119: 0 | AB119: 0 | AC119: 0
C120: Plus This Draw | E120: =+E117 -> 0 | F120: =+F117 -> 0 | G120: 0 | H120: 0 | I120: 0 | J120: 0 | K120: 0 | L120: 0 | M120: 0 | N120: 0 | O120: 0 | P120: 0 | Q120: 0 | R120: 0 | S120: 0 | T120: 0 | U120: 0 | V120: 0 | W120: 0 | X120: 0 | Y120: 0 | Z120: 0 | AA120: 0 | AB120: 0 | AC120: 0
C121: Plus Interest (Total Interest at immediate right) | D121: =SUM(E121:AD121) -> 0 | E121: =ROUND('Development Costs'!$D$102*('S&U By Month'!E119+'S&U By Month'!E120/2)/12,0) -> 0 | F121: =ROUND('Development Costs'!$D$102*('S&U By Month'!F119+'S&U By Month'!F120/2)/12,0) -> 0 | G121: =ROUND('Development Costs'!$D$102*('S&U By Month'!G119+'S&U By Month'!G120/2)/12,0) -> 0 | H121: =ROUND('Development Costs'!$D$102*('S&U By Month'!H119+'S&U By Month'!H120/2)/12,0) -> 0 | I121: =ROUND('Development Costs'!$D$102*('S&U By Month'!I119+'S&U By Month'!I120/2)/12,0) -> 0 | J121: =ROUND('Development Costs'!$D$102*('S&U By Month'!J119+'S&U By Month'!J120/2)/12,0) -> 0 | K121: =ROUND('Development Costs'!$D$102*('S&U By Month'!K119+'S&U By Month'!K120/2)/12,0) -> 0 | L121: =ROUND('Development Costs'!$D$102*('S&U By Month'!L119+'S&U By Month'!L120/2)/12,0) -> 0 | M121: =ROUND('Development Costs'!$D$102*('S&U By Month'!M119+'S&U By Month'!M120/2)/12,0) -> 0 | N121: =ROUND('Development Costs'!$D$102*('S&U By Month'!N119+'S&U By Month'!N120/2)/12,0) -> 0 | O121: =ROUND('Development Costs'!$D$102*('S&U By Month'!O119+'S&U By Month'!O120/2)/12,0) -> 0 | P121: =ROUND('Development Costs'!$D$102*('S&U By Month'!P119+'S&U By Month'!P120/2)/12,0) -> 0 | Q121: =ROUND('Development Costs'!$D$102*('S&U By Month'!Q119+'S&U By Month'!Q120/2)/12,0) -> 0 | R121: =ROUND('Development Costs'!$D$102*('S&U By Month'!R119+'S&U By Month'!R120/2)/12,0) -> 0 | S121: =ROUND('Development Costs'!$D$102*('S&U By Month'!S119+'S&U By Month'!S120/2)/12,0) -> 0 | T121: =ROUND('Development Costs'!$D$102*('S&U By Month'!T119+'S&U By Month'!T120/2)/12,0) -> 0 | U121: =ROUND('Development Costs'!$D$102*('S&U By Month'!U119+'S&U By Month'!U120/2)/12,0) -> 0 | V121: =ROUND('Development Costs'!$D$102*('S&U By Month'!V119+'S&U By Month'!V120/2)/12,0) -> 0 | W121: =ROUND('Development Costs'!$D$102*('S&U By Month'!W119+'S&U By Month'!W120/2)/12,0) -> 0 | X121: =ROUND('Development Costs'!$D$102*('S&U By Month'!X119+'S&U By Month'!X120/2)/12,0) -> 0 | Y121: =ROUND('Development Costs'!$D$102*('S&U By Month'!Y119+'S&U By Month'!Y120/2)/12,0) -> 0 | Z121: =ROUND('Development Costs'!$D$102*('S&U By Month'!Z119+'S&U By Month'!Z120/2)/12,0) -> 0 | AA121: =ROUND('Development Costs'!$D$102*('S&U By Month'!AA119+'S&U By Month'!AA120/2)/12,0) -> 0 | AB121: =ROUND('Development Costs'!$D$102*('S&U By Month'!AB119+'S&U By Month'!AB120/2)/12,0) -> 0 | AC121: =ROUND('Development Costs'!$D$102*('S&U By Month'!AC119+'S&U By Month'!AC120/2)/12,0) -> 0
C122: Equals Ending Balance | E122: =+E119+E120+E121 -> 0 | F122: =+F119+F120+F121 -> 0 | G122: 0 | H122: 0 | I122: 0 | J122: 0 | K122: 0 | L122: 0 | M122: 0 | N122: 0 | O122: 0 | P122: 0 | Q122: 0 | R122: 0 | S122: 0 | T122: 0 | U122: 0 | V122: 0 | W122: 0 | X122: 0 | Y122: 0 | Z122: 0 | AA122: 0 | AB122: 0 | AC122: 0
C124: Construction interest estimate from Development Costs tab | D124: =+'Development Costs'!D111 -> 0 | F124: Construction interest estimate from detailed Sources and Uses By Month | J124: =+D121 -> 0
A126: ? | C126: =IF(D124=0,0,IF(ABS((D121-D124)/D124)>10%,"Construction interest calculated above is "&TEXT((D121/D124),"##.#%")&" of the Construction interest estimate from Development Costs tab. *** NOTE--This variance is in excess of 10%. ***","Construction interest calculated above is "&TEXT((D121/D124),"##.#%")&" of the Construction interest estimate from Development Costs tab.")) -> 0
C130: Upon completing this tab, proceed to Pro Forma Assumptions tab.

Sheet Pro Forma Assumptions
A1: ? | C1: Key Assumptions | E1: Enter data in green cells only
C2: For Operating Pro Forma
C3: =Requirements!C4 -> Project Name - : 0 Units
C5: HOME Affordability Period | D5: =+Requirements!G39 -> 0 | E5: years
C6: Go to the Requirements tab to adjust the HOME affordability period
A7: ? | C7: Switch HOME unit rents to market after: | D7: =+D5 -> 0 | E7: years | F7: =IF(D7<D5,"Cannot be shorter than "&D5&" years","") -> 
C8: For units originally at HOME rents, the Operating Pro Forma uses HOME rents during this period, and market rents thereafter
C10: Other Affordable Housing Affordability Period
A11: ? | C11: Other Affordable Housing Affordability Period | E11: years
A12: ? | C12: Switch 'Other Affordable' unit rents to market after: | E12: years | F12: =IF(D12<D11,"Cannot be shorter than "&D11&" years","") -> 
C13: For units originally at LIHTC / Other Affordable rents, the Operating Pro Forma uses restricted rents during this period, and market rents thereafter
C15: Inflation / Trending Assumptions | D15: Total
A16: ? | C16: Rent increase / rent trending assumptions:
C17: HOME-assisted units | D17: 0.02 | E17: =IF(D17=""," required","") -> 
C18: Market Rate units | D18: 0.02 | E18: =IF(D18=""," required","") -> 
C19: Other affordable units | D19: 0.02 | E19: =IF(D19=""," required","") -> 
A20: ? | C20: Other income trending assumption | D20: 0.02 | E20: =IF(D20=""," required","") -> 
A21: ? | C21: Operating Expense Increase per Year | D21: 0.025 | E21: =IF(D21=""," required","") -> 
C23: Length of Pro Forma
A24: ? | C24: Years to Sale* | E24: years | F24: =IF(D24="","required","") -> required
C25: * Years to Sale is used by the Template to determine the final year of the Pro-Forma.
C27: Use one of the two radio buttons below, to set the number of years in the Operating Pro Forma tab.
C34: Debt Service Coverage Ratio
C35: In year 2 (first stabilized year) | D35: =+'Operating Pro Forma'!E102 -> 100
C36: In year 5 | D36: =+'Operating Pro Forma'!H102 -> 100
C37: In year 10 | D37: =+'Operating Pro Forma'!M102 -> 100
C38: In year 15 | D38: =+'Operating Pro Forma'!R102 -> 100
C39: In year 20 | D39: =+'Operating Pro Forma'!W102 -> 100
C43: Upon completing this tab, proceed to the Operating Pro Forma tab.

Sheet Operating Pro Forma
C1: Operating Pro-Forma | E1: "####" indicates that the columns should be widened. | L1: =Requirements!C4 -> Project Name - : 0 Units
E2: The only data entry cells on this tab are for payments on any 'custom loans' (see rows 31 and 32).
A3: ? | C3: PROJECT TIMELINE
D4: Year 1 | E4: Year 2 | F4: Year 3 | G4: Year 4 | H4: Year 5 | I4: Year 6 | J4: Year 7 | K4: Year 8 | L4: Year 9 | M4: Year 10 | N4: Year 11 | O4: Year 12 | P4: Year 13 | Q4: Year 14 | R4: Year 15 | S4: Year 16 | T4: Year 17 | U4: Year 18 | V4: Year 19 | W4: Year 20 | X4: Year 21 | Y4: Year 22 | Z4: Year 23 | AA4: Year 24 | AB4: Year 25 | AC4: Year 26 | AD4: Year 27 | AE4: Year 28 | AF4: Year 29 | AG4: Year 30
D5: 1 | E5: 2 | F5: 3 | G5: 4 | H5: 5 | I5: 6 | J5: 7 | K5: 8 | L5: 9 | M5: 10 | N5: 11 | O5: 12 | P5: 13 | Q5: 14 | R5: 15 | S5: 16 | T5: 17 | U5: 18 | V5: 19 | W5: 20 | X5: 21 | Y5: 22 | Z5: 23 | AA5: 24 | AB5: 25 | AC5: 26 | AD5: 27 | AE5: 28 | AF5: 29 | AG5: 30
C6: Gross Potential Rent (GPR) Projections
A7: ? | C7: HOME/CDBG/LIHTC Rents | D7: =ROUND(IF('Pro Forma Assumptions'!$D$24<D5,0,D68),0) -> 0 | E7: =ROUND(IF('Pro Forma Assumptions'!$D$24<E5,0,E68),0) -> 0 | F7: =ROUND(IF('Pro Forma Assumptions'!$D$24<F5,0,F68),0) -> 0 | G7: =ROUND(IF('Pro Forma Assumptions'!$D$24<G5,0,G68),0) -> 0 | H7: =ROUND(IF('Pro Forma Assumptions'!$D$24<H5,0,H68),0) -> 0 | I7: =ROUND(IF('Pro Forma Assumptions'!$D$24<I5,0,I68),0) -> 0 | J7: =ROUND(IF('Pro Forma Assumptions'!$D$24<J5,0,J68),0) -> 0 | K7: =ROUND(IF('Pro Forma Assumptions'!$D$24<K5,0,K68),0) -> 0 | L7: =ROUND(IF('Pro Forma Assumptions'!$D$24<L5,0,L68),0) -> 0 | M7: =ROUND(IF('Pro Forma Assumptions'!$D$24<M5,0,M68),0) -> 0 | N7: =ROUND(IF('Pro Forma Assumptions'!$D$24<N5,0,N68),0) -> 0 | O7: =ROUND(IF('Pro Forma Assumptions'!$D$24<O5,0,O68),0) -> 0 | P7: =ROUND(IF('Pro Forma Assumptions'!$D$24<P5,0,P68),0) -> 0 | Q7: =ROUND(IF('Pro Forma Assumptions'!$D$24<Q5,0,Q68),0) -> 0 | R7: =ROUND(IF('Pro Forma Assumptions'!$D$24<R5,0,R68),0) -> 0 | S7: =ROUND(IF('Pro Forma Assumptions'!$D$24<S5,0,S68),0) -> 0 | T7: =ROUND(IF('Pro Forma Assumptions'!$D$24<T5,0,T68),0) -> 0 | U7: =ROUND(IF('Pro Forma Assumptions'!$D$24<U5,0,U68),0) -> 0 | V7: =ROUND(IF('Pro Forma Assumptions'!$D$24<V5,0,V68),0) -> 0 | W7: =ROUND(IF('Pro Forma Assumptions'!$D$24<W5,0,W68),0) -> 0 | X7: =ROUND(IF('Pro Forma Assumptions'!$D$24<X5,0,X68),0) -> 0 | Y7: =ROUND(IF('Pro Forma Assumptions'!$D$24<Y5,0,Y68),0) -> 0 | Z7: =ROUND(IF('Pro Forma Assumptions'!$D$24<Z5,0,Z68),0) -> 0 | AA7: =ROUND(IF('Pro Forma Assumptions'!$D$24<AA5,0,AA68),0) -> 0 | AB7: =ROUND(IF('Pro Forma Assumptions'!$D$24<AB5,0,AB68),0) -> 0 | AC7: =ROUND(IF('Pro Forma Assumptions'!$D$24<AC5,0,AC68),0) -> 0 | AD7: =ROUND(IF('Pro Forma Assumptions'!$D$24<AD5,0,AD68),0) -> 0 | AE7: =ROUND(IF('Pro Forma Assumptions'!$D$24<AE5,0,AE68),0) -> 0 | AF7: =ROUND(IF('Pro Forma Assumptions'!$D$24<AF5,0,AF68),0) -> 0 | AG7: =ROUND(IF('Pro Forma Assumptions'!$D$24<AG5,0,AG68),0) -> 0
A8: ? | C8: Market Rents | D8: =ROUND(IF('Pro Forma Assumptions'!$D$24<D5,0,D69),0) -> 0 | E8: =ROUND(IF('Pro Forma Assumptions'!$D$24<E5,0,E69),0) -> 0 | F8: =ROUND(IF('Pro Forma Assumptions'!$D$24<F5,0,F69),0) -> 0 | G8: =ROUND(IF('Pro Forma Assumptions'!$D$24<G5,0,G69),0) -> 0 | H8: =ROUND(IF('Pro Forma Assumptions'!$D$24<H5,0,H69),0) -> 0 | I8: =ROUND(IF('Pro Forma Assumptions'!$D$24<I5,0,I69),0) -> 0 | J8: =ROUND(IF('Pro Forma Assumptions'!$D$24<J5,0,J69),0) -> 0 | K8: =ROUND(IF('Pro Forma Assumptions'!$D$24<K5,0,K69),0) -> 0 | L8: =ROUND(IF('Pro Forma Assumptions'!$D$24<L5,0,L69),0) -> 0 | M8: =ROUND(IF('Pro Forma Assumptions'!$D$24<M5,0,M69),0) -> 0 | N8: =ROUND(IF('Pro Forma Assumptions'!$D$24<N5,0,N69),0) -> 0 | O8: =ROUND(IF('Pro Forma Assumptions'!$D$24<O5,0,O69),0) -> 0 | P8: =ROUND(IF('Pro Forma Assumptions'!$D$24<P5,0,P69),0) -> 0 | Q8: =ROUND(IF('Pro Forma Assumptions'!$D$24<Q5,0,Q69),0) -> 0 | R8: =ROUND(IF('Pro Forma Assumptions'!$D$24<R5,0,R69),0) -> 0 | S8: =ROUND(IF('Pro Forma Assumptions'!$D$24<S5,0,S69),0) -> 0 | T8: =ROUND(IF('Pro Forma Assumptions'!$D$24<T5,0,T69),0) -> 0 | U8: =ROUND(IF('Pro Forma Assumptions'!$D$24<U5,0,U69),0) -> 0 | V8: =ROUND(IF('Pro Forma Assumptions'!$D$24<V5,0,V69),0) -> 0 | W8: =ROUND(IF('Pro Forma Assumptions'!$D$24<W5,0,W69),0) -> 0 | X8: =ROUND(IF('Pro Forma Assumptions'!$D$24<X5,0,X69),0) -> 0 | Y8: =ROUND(IF('Pro Forma Assumptions'!$D$24<Y5,0,Y69),0) -> 0 | Z8: =ROUND(IF('Pro Forma Assumptions'!$D$24<Z5,0,Z69),0) -> 0 | AA8: =ROUND(IF('Pro Forma Assumptions'!$D$24<AA5,0,AA69),0) -> 0 | AB8: =ROUND(IF('Pro Forma Assumptions'!$D$24<AB5,0,AB69),0) -> 0 | AC8: =ROUND(IF('Pro Forma Assumptions'!$D$24<AC5,0,AC69),0) -> 0 | AD8: =ROUND(IF('Pro Forma Assumptions'!$D$24<AD5,0,AD69),0) -> 0 | AE8: =ROUND(IF('Pro Forma Assumptions'!$D$24<AE5,0,AE69),0) -> 0 | AF8: =ROUND(IF('Pro Forma Assumptions'!$D$24<AF5,0,AF69),0) -> 0 | AG8: =ROUND(IF('Pro Forma Assumptions'!$D$24<AG5,0,AG69),0) -> 0
A9: ? | C9: Other Affordable Rents | D9: =ROUND(IF('Pro Forma Assumptions'!$D$24<D5,0,D72),0) -> 0 | E9: =ROUND(IF('Pro Forma Assumptions'!$D$24<E5,0,E72),0) -> 0 | F9: =ROUND(IF('Pro Forma Assumptions'!$D$24<F5,0,F72),0) -> 0 | G9: =ROUND(IF('Pro Forma Assumptions'!$D$24<G5,0,G72),0) -> 0 | H9: =ROUND(IF('Pro Forma Assumptions'!$D$24<H5,0,H72),0) -> 0 | I9: =ROUND(IF('Pro Forma Assumptions'!$D$24<I5,0,I72),0) -> 0 | J9: =ROUND(IF('Pro Forma Assumptions'!$D$24<J5,0,J72),0) -> 0 | K9: =ROUND(IF('Pro Forma Assumptions'!$D$24<K5,0,K72),0) -> 0 | L9: =ROUND(IF('Pro Forma Assumptions'!$D$24<L5,0,L72),0) -> 0 | M9: =ROUND(IF('Pro Forma Assumptions'!$D$24<M5,0,M72),0) -> 0 | N9: =ROUND(IF('Pro Forma Assumptions'!$D$24<N5,0,N72),0) -> 0 | O9: =ROUND(IF('Pro Forma Assumptions'!$D$24<O5,0,O72),0) -> 0 | P9: =ROUND(IF('Pro Forma Assumptions'!$D$24<P5,0,P72),0) -> 0 | Q9: =ROUND(IF('Pro Forma Assumptions'!$D$24<Q5,0,Q72),0) -> 0 | R9: =ROUND(IF('Pro Forma Assumptions'!$D$24<R5,0,R72),0) -> 0 | S9: =ROUND(IF('Pro Forma Assumptions'!$D$24<S5,0,S72),0) -> 0 | T9: =ROUND(IF('Pro Forma Assumptions'!$D$24<T5,0,T72),0) -> 0 | U9: =ROUND(IF('Pro Forma Assumptions'!$D$24<U5,0,U72),0) -> 0 | V9: =ROUND(IF('Pro Forma Assumptions'!$D$24<V5,0,V72),0) -> 0 | W9: =ROUND(IF('Pro Forma Assumptions'!$D$24<W5,0,W72),0) -> 0 | X9: =ROUND(IF('Pro Forma Assumptions'!$D$24<X5,0,X72),0) -> 0 | Y9: =ROUND(IF('Pro Forma Assumptions'!$D$24<Y5,0,Y72),0) -> 0 | Z9: =ROUND(IF('Pro Forma Assumptions'!$D$24<Z5,0,Z72),0) -> 0 | AA9: =ROUND(IF('Pro Forma Assumptions'!$D$24<AA5,0,AA72),0) -> 0 | AB9: =ROUND(IF('Pro Forma Assumptions'!$D$24<AB5,0,AB72),0) -> 0 | AC9: =ROUND(IF('Pro Forma Assumptions'!$D$24<AC5,0,AC72),0) -> 0 | AD9: =ROUND(IF('Pro Forma Assumptions'!$D$24<AD5,0,AD72),0) -> 0 | AE9: =ROUND(IF('Pro Forma Assumptions'!$D$24<AE5,0,AE72),0) -> 0 | AF9: =ROUND(IF('Pro Forma Assumptions'!$D$24<AF5,0,AF72),0) -> 0 | AG9: =ROUND(IF('Pro Forma Assumptions'!$D$24<AG5,0,AG72),0) -> 0
C10: Gross Potential Rent | D10: =SUM(D7:D9) -> 0 | E10: =IF(E5>'Pro Forma Assumptions'!$D$24,0,SUM(E7:E9)) -> 0 | F10: =IF(F5>'Pro Forma Assumptions'!$D$24,0,SUM(F7:F9)) -> 0 | G10: =IF(G5>'Pro Forma Assumptions'!$D$24,0,SUM(G7:G9)) -> 0 | H10: =IF(H5>'Pro Forma Assumptions'!$D$24,0,SUM(H7:H9)) -> 0 | I10: =IF(I5>'Pro Forma Assumptions'!$D$24,0,SUM(I7:I9)) -> 0 | J10: =IF(J5>'Pro Forma Assumptions'!$D$24,0,SUM(J7:J9)) -> 0 | K10: =IF(K5>'Pro Forma Assumptions'!$D$24,0,SUM(K7:K9)) -> 0 | L10: =IF(L5>'Pro Forma Assumptions'!$D$24,0,SUM(L7:L9)) -> 0 | M10: =IF(M5>'Pro Forma Assumptions'!$D$24,0,SUM(M7:M9)) -> 0 | N10: =IF(N5>'Pro Forma Assumptions'!$D$24,0,SUM(N7:N9)) -> 0 | O10: =IF(O5>'Pro Forma Assumptions'!$D$24,0,SUM(O7:O9)) -> 0 | P10: =IF(P5>'Pro Forma Assumptions'!$D$24,0,SUM(P7:P9)) -> 0 | Q10: =IF(Q5>'Pro Forma Assumptions'!$D$24,0,SUM(Q7:Q9)) -> 0 | R10: =IF(R5>'Pro Forma Assumptions'!$D$24,0,SUM(R7:R9)) -> 0 | S10: =IF(S5>'Pro Forma Assumptions'!$D$24,0,SUM(S7:S9)) -> 0 | T10: =IF(T5>'Pro Forma Assumptions'!$D$24,0,SUM(T7:T9)) -> 0 | U10: =IF(U5>'Pro Forma Assumptions'!$D$24,0,SUM(U7:U9)) -> 0 | V10: =IF(V5>'Pro Forma Assumptions'!$D$24,0,SUM(V7:V9)) -> 0 | W10: =IF(W5>'Pro Forma Assumptions'!$D$24,0,SUM(W7:W9)) -> 0 | X10: =IF(X5>'Pro Forma Assumptions'!$D$24,0,SUM(X7:X9)) -> 0 | Y10: =IF(Y5>'Pro Forma Assumptions'!$D$24,0,SUM(Y7:Y9)) -> 0 | Z10: =IF(Z5>'Pro Forma Assumptions'!$D$24,0,SUM(Z7:Z9)) -> 0 | AA10: =IF(AA5>'Pro Forma Assumptions'!$D$24,0,SUM(AA7:AA9)) -> 0 | AB10: =IF(AB5>'Pro Forma Assumptions'!$D$24,0,SUM(AB7:AB9)) -> 0 | AC10: =IF(AC5>'Pro Forma Assumptions'!$D$24,0,SUM(AC7:AC9)) -> 0 | AD10: =IF(AD5>'Pro Forma Assumptions'!$D$24,0,SUM(AD7:AD9)) -> 0 | AE10: =IF(AE5>'Pro Forma Assumptions'!$D$24,0,SUM(AE7:AE9)) -> 0 | AF10: =IF(AF5>'Pro Forma Assumptions'!$D$24,0,SUM(AF7:AF9)) -> 0 | AG10: =IF(AG5>'Pro Forma Assumptions'!$D$24,0,SUM(AG7:AG9)) -> 0
C12: Effective Gross Income (EGI) Projections
A13: ? | C13: Vacancy Loss | D13: =ROUND(-D79,0) -> 0 | E13: =ROUND(-E79,0) -> 0 | F13: =ROUND(-F79,0) -> 0 | G13: =ROUND(-G79,0) -> 0 | H13: 0 | I13: 0 | J13: 0 | K13: 0 | L13: 0 | M13: 0 | N13: 0 | O13: 0 | P13: 0 | Q13: 0 | R13: 0 | S13: 0 | T13: 0 | U13: 0 | V13: 0 | W13: 0 | X13: 0 | Y13: 0 | Z13: 0 | AA13: 0 | AB13: 0 | AC13: 0 | AD13: 0 | AE13: 0 | AF13: 0 | AG13: 0
A14: ? | C14: Other Revenue | D14: =ROUND(IF('Pro Forma Assumptions'!$D$24<D5,0,D74),0) -> 0 | E14: =ROUND(IF('Pro Forma Assumptions'!$D$24<E5,0,E74),0) -> 0 | F14: =ROUND(IF('Pro Forma Assumptions'!$D$24<F5,0,F74),0) -> 0 | G14: =ROUND(IF('Pro Forma Assumptions'!$D$24<G5,0,G74),0) -> 0 | H14: =ROUND(IF('Pro Forma Assumptions'!$D$24<H5,0,H74),0) -> 0 | I14: =ROUND(IF('Pro Forma Assumptions'!$D$24<I5,0,I74),0) -> 0 | J14: =ROUND(IF('Pro Forma Assumptions'!$D$24<J5,0,J74),0) -> 0 | K14: =ROUND(IF('Pro Forma Assumptions'!$D$24<K5,0,K74),0) -> 0 | L14: =ROUND(IF('Pro Forma Assumptions'!$D$24<L5,0,L74),0) -> 0 | M14: =ROUND(IF('Pro Forma Assumptions'!$D$24<M5,0,M74),0) -> 0 | N14: =ROUND(IF('Pro Forma Assumptions'!$D$24<N5,0,N74),0) -> 0 | O14: =ROUND(IF('Pro Forma Assumptions'!$D$24<O5,0,O74),0) -> 0 | P14: =ROUND(IF('Pro Forma Assumptions'!$D$24<P5,0,P74),0) -> 0 | Q14: =ROUND(IF('Pro Forma Assumptions'!$D$24<Q5,0,Q74),0) -> 0 | R14: =ROUND(IF('Pro Forma Assumptions'!$D$24<R5,0,R74),0) -> 0 | S14: =ROUND(IF('Pro Forma Assumptions'!$D$24<S5,0,S74),0) -> 0 | T14: =ROUND(IF('Pro Forma Assumptions'!$D$24<T5,0,T74),0) -> 0 | U14: =ROUND(IF('Pro Forma Assumptions'!$D$24<U5,0,U74),0) -> 0 | V14: =ROUND(IF('Pro Forma Assumptions'!$D$24<V5,0,V74),0) -> 0 | W14: =ROUND(IF('Pro Forma Assumptions'!$D$24<W5,0,W74),0) -> 0 | X14: =ROUND(IF('Pro Forma Assumptions'!$D$24<X5,0,X74),0) -> 0 | Y14: =ROUND(IF('Pro Forma Assumptions'!$D$24<Y5,0,Y74),0) -> 0 | Z14: =ROUND(IF('Pro Forma Assumptions'!$D$24<Z5,0,Z74),0) -> 0 | AA14: =ROUND(IF('Pro Forma Assumptions'!$D$24<AA5,0,AA74),0) -> 0 | AB14: =ROUND(IF('Pro Forma Assumptions'!$D$24<AB5,0,AB74),0) -> 0 | AC14: =ROUND(IF('Pro Forma Assumptions'!$D$24<AC5,0,AC74),0) -> 0 | AD14: =ROUND(IF('Pro Forma Assumptions'!$D$24<AD5,0,AD74),0) -> 0 | AE14: =ROUND(IF('Pro Forma Assumptions'!$D$24<AE5,0,AE74),0) -> 0 | AF14: =ROUND(IF('Pro Forma Assumptions'!$D$24<AF5,0,AF74),0) -> 0 | AG14: =ROUND(IF('Pro Forma Assumptions'!$D$24<AG5,0,AG74),0) -> 0
C15: Effective Gross Income | D15: =D10+D13+D14 -> 0 | E15: 0 | F15: 0 | G15: 0 | H15: 0 | I15: 0 | J15: 0 | K15: 0 | L15: 0 | M15: 0 | N15: 0 | O15: 0 | P15: 0 | Q15: 0 | R15: 0 | S15: 0 | T15: 0 | U15: 0 | V15: 0 | W15: 0 | X15: 0 | Y15: 0 | Z15: 0 | AA15: 0 | AB15: 0 | AC15: 0 | AD15: 0 | AE15: 0 | AF15: 0 | AG15: 0
A17: ? | C17: Expense and Net Operating Income (NOI) Projections
C18: Management Expenses | D18: =ROUND(SUM('Operating Expenses'!D4:D15),0) -> 0 | E18: =ROUND(IF(E$5>'Pro Forma Assumptions'!$D$24,0,D18*(1+'Pro Forma Assumptions'!$D$21)),0) -> 0 | F18: =ROUND(IF(F$5>'Pro Forma Assumptions'!$D$24,0,E18*(1+'Pro Forma Assumptions'!$D$21)),0) -> 0 | G18: =ROUND(IF(G$5>'Pro Forma Assumptions'!$D$24,0,F18*(1+'Pro Forma Assumptions'!$D$21)),0) -> 0 | H18: =ROUND(IF(H$5>'Pro Forma Assumptions'!$D$24,0,G18*(1+'Pro Forma Assumptions'!$D$21)),0) -> 0 | I18: =ROUND(IF(I$5>'Pro Forma Assumptions'!$D$24,0,H18*(1+'Pro Forma Assumptions'!$D$21)),0) -> 0 | J18: =ROUND(IF(J$5>'Pro Forma Assumptions'!$D$24,0,I18*(1+'Pro Forma Assumptions'!$D$21)),0) -> 0 | K18: =ROUND(IF(K$5>'Pro Forma Assumptions'!$D$24,0,J18*(1+'Pro Forma Assumptions'!$D$21)),0) -> 0 | L18: =ROUND(IF(L$5>'Pro Forma Assumptions'!$D$24,0,K18*(1+'Pro Forma Assumptions'!$D$21)),0) -> 0 | M18: =ROUND(IF(M$5>'Pro Forma Assumptions'!$D$24,0,L18*(1+'Pro Forma Assumptions'!$D$21)),0) -> 0 | N18: =ROUND(IF(N$5>'Pro Forma Assumptions'!$D$24,0,M18*(1+'Pro Forma Assumptions'!$D$21)),0) -> 0 | O18: =ROUND(IF(O$5>'Pro Forma Assumptions'!$D$24,0,N18*(1+'Pro Forma Assumptions'!$D$21)),0) -> 0 | P18: =ROUND(IF(P$5>'Pro Forma Assumptions'!$D$24,0,O18*(1+'Pro Forma Assumptions'!$D$21)),0) -> 0 | Q18: =ROUND(IF(Q$5>'Pro Forma Assumptions'!$D$24,0,P18*(1+'Pro Forma Assumptions'!$D$21)),0) -> 0 | R18: =ROUND(IF(R$5>'Pro Forma Assumptions'!$D$24,0,Q18*(1+'Pro Forma Assumptions'!$D$21)),0) -> 0 | S18: =ROUND(IF(S$5>'Pro Forma Assumptions'!$D$24,0,R18*(1+'Pro Forma Assumptions'!$D$21)),0) -> 0 | T18: =ROUND(IF(T$5>'Pro Forma Assumptions'!$D$24,0,S18*(1+'Pro Forma Assumptions'!$D$21)),0) -> 0 | U18: =ROUND(IF(U$5>'Pro Forma Assumptions'!$D$24,0,T18*(1+'Pro Forma Assumptions'!$D$21)),0) -> 0 | V18: =ROUND(IF(V$5>'Pro Forma Assumptions'!$D$24,0,U18*(1+'Pro Forma Assumptions'!$D$21)),0) -> 0 | W18: =ROUND(IF(W$5>'Pro Forma Assumptions'!$D$24,0,V18*(1+'Pro Forma Assumptions'!$D$21)),0) -> 0 | X18: =ROUND(IF(X$5>'Pro Forma Assumptions'!$D$24,0,W18*(1+'Pro Forma Assumptions'!$D$21)),0) -> 0 | Y18: =ROUND(IF(Y$5>'Pro Forma Assumptions'!$D$24,0,X18*(1+'Pro Forma Assumptions'!$D$21)),0) -> 0 | Z18: =ROUND(IF(Z$5>'Pro Forma Assumptions'!$D$24,0,Y18*(1+'Pro Forma Assumptions'!$D$21)),0) -> 0 | AA18: =ROUND(IF(AA$5>'Pro Forma Assumptions'!$D$24,0,Z18*(1+'Pro Forma Assumptions'!$D$21)),0) -> 0 | AB18: =ROUND(IF(AB$5>'Pro Forma Assumptions'!$D$24,0,AA18*(1+'Pro Forma Assumptions'!$D$21)),0) -> 0 | AC18: =ROUND(IF(AC$5>'Pro Forma Assumptions'!$D$24,0,AB18*(1+'Pro Forma Assumptions'!$D$21)),0) -> 0 | AD18: =ROUND(IF(AD$5>'Pro Forma Assumptions'!$D$24,0,AC18*(1+'Pro Forma Assumptions'!$D$21)),0) -> 0 | AE18: =ROUND(IF(AE$5>'Pro Forma Assumptions'!$D$24,0,AD18*(1+'Pro Forma Assumptions'!$D$21)),0) -> 0 | AF18: =ROUND(IF(AF$5>'Pro Forma Assumptions'!$D$24,0,AE18*(1+'Pro Forma Assumptions'!$D$21)),0) -> 0 | AG18: =ROUND(IF(AG$5>'Pro Forma Assumptions'!$D$24,0,AF18*(1+'Pro Forma Assumptions'!$D$21)),0) -> 0
C19: Operations and Maintenance Expenses | D19: =ROUND(SUM('Operating Expenses'!D15:D30),0) -> 0 | E19: =ROUND(IF(E$5>'Pro Forma Assumptions'!$D$24,0,D19*(1+'Pro Forma Assumptions'!$D$21)),0) -> 0 | F19: =ROUND(IF(F$5>'Pro Forma Assumptions'!$D$24,0,E19*(1+'Pro Forma Assumptions'!$D$21)),0) -> 0 | G19: =ROUND(IF(G$5>'Pro Forma Assumptions'!$D$24,0,F19*(1+'Pro Forma Assumptions'!$D$21)),0) -> 0 | H19: =ROUND(IF(H$5>'Pro Forma Assumptions'!$D$24,0,G19*(1+'Pro Forma Assumptions'!$D$21)),0) -> 0 | I19: =ROUND(IF(I$5>'Pro Forma Assumptions'!$D$24,0,H19*(1+'Pro Forma Assumptions'!$D$21)),0) -> 0 | J19: =ROUND(IF(J$5>'Pro Forma Assumptions'!$D$24,0,I19*(1+'Pro Forma Assumptions'!$D$21)),0) -> 0 | K19: =ROUND(IF(K$5>'Pro Forma Assumptions'!$D$24,0,J19*(1+'Pro Forma Assumptions'!$D$21)),0) -> 0 | L19: =ROUND(IF(L$5>'Pro Forma Assumptions'!$D$24,0,K19*(1+'Pro Forma Assumptions'!$D$21)),0) -> 0 | M19: =ROUND(IF(M$5>'Pro Forma Assumptions'!$D$24,0,L19*(1+'Pro Forma Assumptions'!$D$21)),0) -> 0 | N19: =ROUND(IF(N$5>'Pro Forma Assumptions'!$D$24,0,M19*(1+'Pro Forma Assumptions'!$D$21)),0) -> 0 | O19: =ROUND(IF(O$5>'Pro Forma Assumptions'!$D$24,0,N19*(1+'Pro Forma Assumptions'!$D$21)),0) -> 0 | P19: =ROUND(IF(P$5>'Pro Forma Assumptions'!$D$24,0,O19*(1+'Pro Forma Assumptions'!$D$21)),0) -> 0 | Q19: =ROUND(IF(Q$5>'Pro Forma Assumptions'!$D$24,0,P19*(1+'Pro Forma Assumptions'!$D$21)),0) -> 0 | R19: =ROUND(IF(R$5>'Pro Forma Assumptions'!$D$24,0,Q19*(1+'Pro Forma Assumptions'!$D$21)),0) -> 0 | S19: =ROUND(IF(S$5>'Pro Forma Assumptions'!$D$24,0,R19*(1+'Pro Forma Assumptions'!$D$21)),0) -> 0 | T19: =ROUND(IF(T$5>'Pro Forma Assumptions'!$D$24,0,S19*(1+'Pro Forma Assumptions'!$D$21)),0) -> 0 | U19: =ROUND(IF(U$5>'Pro Forma Assumptions'!$D$24,0,T19*(1+'Pro Forma Assumptions'!$D$21)),0) -> 0 | V19: =ROUND(IF(V$5>'Pro Forma Assumptions'!$D$24,0,U19*(1+'Pro Forma Assumptions'!$D$21)),0) -> 0 | W19: =ROUND(IF(W$5>'Pro Forma Assumptions'!$D$24,0,V19*(1+'Pro Forma Assumptions'!$D$21)),0) -> 0 | X19: =ROUND(IF(X$5>'Pro Forma Assumptions'!$D$24,0,W19*(1+'Pro Forma Assumptions'!$D$21)),0) -> 0 | Y19: =ROUND(IF(Y$5>'Pro Forma Assumptions'!$D$24,0,X19*(1+'Pro Forma Assumptions'!$D$21)),0) -> 0 | Z19: =ROUND(IF(Z$5>'Pro Forma Assumptions'!$D$24,0,Y19*(1+'Pro Forma Assumptions'!$D$21)),0) -> 0 | AA19: =ROUND(IF(AA$5>'Pro Forma Assumptions'!$D$24,0,Z19*(1+'Pro Forma Assumptions'!$D$21)),0) -> 0 | AB19: =ROUND(IF(AB$5>'Pro Forma Assumptions'!$D$24,0,AA19*(1+'Pro Forma Assumptions'!$D$21)),0) -> 0 | AC19: =ROUND(IF(AC$5>'Pro Forma Assumptions'!$D$24,0,AB19*(1+'Pro Forma Assumptions'!$D$21)),0) -> 0 | AD19: =ROUND(IF(AD$5>'Pro Forma Assumptions'!$D$24,0,AC19*(1+'Pro Forma Assumptions'!$D$21)),0) -> 0 | AE19: =ROUND(IF(AE$5>'Pro Forma Assumptions'!$D$24,0,AD19*(1+'Pro Forma Assumptions'!$D$21)),0) -> 0 | AF19: =ROUND(IF(AF$5>'Pro Forma Assumptions'!$D$24,0,AE19*(1+'Pro Forma Assumptions'!$D$21)),0) -> 0 | AG19: =ROUND(IF(AG$5>'Pro Forma Assumptions'!$D$24,0,AF19*(1+'Pro Forma Assumptions'!$D$21)),0) -> 0
C20: Utilities Paid by Property | D20: =ROUND(SUM('Operating Expenses'!D30:D35),0) -> 0 | E20: =ROUND(IF(E$5>'Pro Forma Assumptions'!$D$24,0,D20*(1+'Pro Forma Assumptions'!$D$21)),0) -> 0 | F20: =ROUND(IF(F$5>'Pro Forma Assumptions'!$D$24,0,E20*(1+'Pro Forma Assumptions'!$D$21)),0) -> 0 | G20: =ROUND(IF(G$5>'Pro Forma Assumptions'!$D$24,0,F20*(1+'Pro Forma Assumptions'!$D$21)),0) -> 0 | H20: =ROUND(IF(H$5>'Pro Forma Assumptions'!$D$24,0,G20*(1+'Pro Forma Assumptions'!$D$21)),0) -> 0 | I20: =ROUND(IF(I$5>'Pro Forma Assumptions'!$D$24,0,H20*(1+'Pro Forma Assumptions'!$D$21)),0) -> 0 | J20: =ROUND(IF(J$5>'Pro Forma Assumptions'!$D$24,0,I20*(1+'Pro Forma Assumptions'!$D$21)),0) -> 0 | K20: =ROUND(IF(K$5>'Pro Forma Assumptions'!$D$24,0,J20*(1+'Pro Forma Assumptions'!$D$21)),0) -> 0 | L20: =ROUND(IF(L$5>'Pro Forma Assumptions'!$D$24,0,K20*(1+'Pro Forma Assumptions'!$D$21)),0) -> 0 | M20: =ROUND(IF(M$5>'Pro Forma Assumptions'!$D$24,0,L20*(1+'Pro Forma Assumptions'!$D$21)),0) -> 0 | N20: =ROUND(IF(N$5>'Pro Forma Assumptions'!$D$24,0,M20*(1+'Pro Forma Assumptions'!$D$21)),0) -> 0 | O20: =ROUND(IF(O$5>'Pro Forma Assumptions'!$D$24,0,N20*(1+'Pro Forma Assumptions'!$D$21)),0) -> 0 | P20: =ROUND(IF(P$5>'Pro Forma Assumptions'!$D$24,0,O20*(1+'Pro Forma Assumptions'!$D$21)),0) -> 0 | Q20: =ROUND(IF(Q$5>'Pro Forma Assumptions'!$D$24,0,P20*(1+'Pro Forma Assumptions'!$D$21)),0) -> 0 | R20: =ROUND(IF(R$5>'Pro Forma Assumptions'!$D$24,0,Q20*(1+'Pro Forma Assumptions'!$D$21)),0) -> 0 | S20: =ROUND(IF(S$5>'Pro Forma Assumptions'!$D$24,0,R20*(1+'Pro Forma Assumptions'!$D$21)),0) -> 0 | T20: =ROUND(IF(T$5>'Pro Forma Assumptions'!$D$24,0,S20*(1+'Pro Forma Assumptions'!$D$21)),0) -> 0 | U20: =ROUND(IF(U$5>'Pro Forma Assumptions'!$D$24,0,T20*(1+'Pro Forma Assumptions'!$D$21)),0) -> 0 | V20: =ROUND(IF(V$5>'Pro Forma Assumptions'!$D$24,0,U20*(1+'Pro Forma Assumptions'!$D$21)),0) -> 0 | W20: =ROUND(IF(W$5>'Pro Forma Assumptions'!$D$24,0,V20*(1+'Pro Forma Assumptions'!$D$21)),0) -> 0 | X20: =ROUND(IF(X$5>'Pro Forma Assumptions'!$D$24,0,W20*(1+'Pro Forma Assumptions'!$D$21)),0) -> 0 | Y20: =ROUND(IF(Y$5>'Pro Forma Assumptions'!$D$24,0,X20*(1+'Pro Forma Assumptions'!$D$21)),0) -> 0 | Z20: =ROUND(IF(Z$5>'Pro Forma Assumptions'!$D$24,0,Y20*(1+'Pro Forma Assumptions'!$D$21)),0) -> 0 | AA20: =ROUND(IF(AA$5>'Pro Forma Assumptions'!$D$24,0,Z20*(1+'Pro Forma Assumptions'!$D$21)),0) -> 0 | AB20: =ROUND(IF(AB$5>'Pro Forma Assumptions'!$D$24,0,AA20*(1+'Pro Forma Assumptions'!$D$21)),0) -> 0 | AC20: =ROUND(IF(AC$5>'Pro Forma Assumptions'!$D$24,0,AB20*(1+'Pro Forma Assumptions'!$D$21)),0) -> 0 | AD20: =ROUND(IF(AD$5>'Pro Forma Assumptions'!$D$24,0,AC20*(1+'Pro Forma Assumptions'!$D$21)),0) -> 0 | AE20: =ROUND(IF(AE$5>'Pro Forma Assumptions'!$D$24,0,AD20*(1+'Pro Forma Assumptions'!$D$21)),0) -> 0 | AF20: =ROUND(IF(AF$5>'Pro Forma Assumptions'!$D$24,0,AE20*(1+'Pro Forma Assumptions'!$D$21)),0) -> 0 | AG20: =ROUND(IF(AG$5>'Pro Forma Assumptions'!$D$24,0,AF20*(1+'Pro Forma Assumptions'!$D$21)),0) -> 0
C21: Taxes/Insurance/Reserves/Other Expenses | D21: =ROUND(SUM('Operating Expenses'!D35:D44),0) -> 0 | E21: =ROUND(IF(E$5>'Pro Forma Assumptions'!$D$24,0,D21*(1+'Pro Forma Assumptions'!$D$21)),0) -> 0 | F21: =ROUND(IF(F$5>'Pro Forma Assumptions'!$D$24,0,E21*(1+'Pro Forma Assumptions'!$D$21)),0) -> 0 | G21: =ROUND(IF(G$5>'Pro Forma Assumptions'!$D$24,0,F21*(1+'Pro Forma Assumptions'!$D$21)),0) -> 0 | H21: =ROUND(IF(H$5>'Pro Forma Assumptions'!$D$24,0,G21*(1+'Pro Forma Assumptions'!$D$21)),0) -> 0 | I21: =ROUND(IF(I$5>'Pro Forma Assumptions'!$D$24,0,H21*(1+'Pro Forma Assumptions'!$D$21)),0) -> 0 | J21: =ROUND(IF(J$5>'Pro Forma Assumptions'!$D$24,0,I21*(1+'Pro Forma Assumptions'!$D$21)),0) -> 0 | K21: =ROUND(IF(K$5>'Pro Forma Assumptions'!$D$24,0,J21*(1+'Pro Forma Assumptions'!$D$21)),0) -> 0 | L21: =ROUND(IF(L$5>'Pro Forma Assumptions'!$D$24,0,K21*(1+'Pro Forma Assumptions'!$D$21)),0) -> 0 | M21: =ROUND(IF(M$5>'Pro Forma Assumptions'!$D$24,0,L21*(1+'Pro Forma Assumptions'!$D$21)),0) -> 0 | N21: =ROUND(IF(N$5>'Pro Forma Assumptions'!$D$24,0,M21*(1+'Pro Forma Assumptions'!$D$21)),0) -> 0 | O21: =ROUND(IF(O$5>'Pro Forma Assumptions'!$D$24,0,N21*(1+'Pro Forma Assumptions'!$D$21)),0) -> 0 | P21: =ROUND(IF(P$5>'Pro Forma Assumptions'!$D$24,0,O21*(1+'Pro Forma Assumptions'!$D$21)),0) -> 0 | Q21: =ROUND(IF(Q$5>'Pro Forma Assumptions'!$D$24,0,P21*(1+'Pro Forma Assumptions'!$D$21)),0) -> 0 | R21: =ROUND(IF(R$5>'Pro Forma Assumptions'!$D$24,0,Q21*(1+'Pro Forma Assumptions'!$D$21)),0) -> 0 | S21: =ROUND(IF(S$5>'Pro Forma Assumptions'!$D$24,0,R21*(1+'Pro Forma Assumptions'!$D$21)),0) -> 0 | T21: =ROUND(IF(T$5>'Pro Forma Assumptions'!$D$24,0,S21*(1+'Pro Forma Assumptions'!$D$21)),0) -> 0 | U21: =ROUND(IF(U$5>'Pro Forma Assumptions'!$D$24,0,T21*(1+'Pro Forma Assumptions'!$D$21)),0) -> 0 | V21: =ROUND(IF(V$5>'Pro Forma Assumptions'!$D$24,0,U21*(1+'Pro Forma Assumptions'!$D$21)),0) -> 0 | W21: =ROUND(IF(W$5>'Pro Forma Assumptions'!$D$24,0,V21*(1+'Pro Forma Assumptions'!$D$21)),0) -> 0 | X21: =ROUND(IF(X$5>'Pro Forma Assumptions'!$D$24,0,W21*(1+'Pro Forma Assumptions'!$D$21)),0) -> 0 | Y21: =ROUND(IF(Y$5>'Pro Forma Assumptions'!$D$24,0,X21*(1+'Pro Forma Assumptions'!$D$21)),0) -> 0 | Z21: =ROUND(IF(Z$5>'Pro Forma Assumptions'!$D$24,0,Y21*(1+'Pro Forma Assumptions'!$D$21)),0) -> 0 | AA21: =ROUND(IF(AA$5>'Pro Forma Assumptions'!$D$24,0,Z21*(1+'Pro Forma Assumptions'!$D$21)),0) -> 0 | AB21: =ROUND(IF(AB$5>'Pro Forma Assumptions'!$D$24,0,AA21*(1+'Pro Forma Assumptions'!$D$21)),0) -> 0 | AC21: =ROUND(IF(AC$5>'Pro Forma Assumptions'!$D$24,0,AB21*(1+'Pro Forma Assumptions'!$D$21)),0) -> 0 | AD21: =ROUND(IF(AD$5>'Pro Forma Assumptions'!$D$24,0,AC21*(1+'Pro Forma Assumptions'!$D$21)),0) -> 0 | AE21: =ROUND(IF(AE$5>'Pro Forma Assumptions'!$D$24,0,AD21*(1+'Pro Forma Assumptions'!$D$21)),0) -> 0 | AF21: =ROUND(IF(AF$5>'Pro Forma Assumptions'!$D$24,0,AE21*(1+'Pro Forma Assumptions'!$D$21)),0) -> 0 | AG21: =ROUND(IF(AG$5>'Pro Forma Assumptions'!$D$24,0,AF21*(1+'Pro Forma Assumptions'!$D$21)),0) -> 0
C22: Total Expenses | D22: =-SUM(D18:D21) -> 0 | E22: 0 | F22: 0 | G22: 0 | H22: 0 | I22: 0 | J22: 0 | K22: 0 | L22: 0 | M22: 0 | N22: 0 | O22: 0 | P22: 0 | Q22: 0 | R22: 0 | S22: 0 | T22: 0 | U22: 0 | V22: 0 | W22: 0 | X22: 0 | Y22: 0 | Z22: 0 | AA22: 0 | AB22: 0 | AC22: 0 | AD22: 0 | AE22: 0 | AF22: 0 | AG22: 0
C23: Replacement Reserve Deposit | D23: =-'Operating Expenses'!D47 -> 0 | E23: =ROUND(IF(E$5>'Pro Forma Assumptions'!$D$24,0,D23*(1+'Pro Forma Assumptions'!$D$21)),0) -> 0 | F23: =ROUND(IF(F$5>'Pro Forma Assumptions'!$D$24,0,E23*(1+'Pro Forma Assumptions'!$D$21)),0) -> 0 | G23: =ROUND(IF(G$5>'Pro Forma Assumptions'!$D$24,0,F23*(1+'Pro Forma Assumptions'!$D$21)),0) -> 0 | H23: =ROUND(IF(H$5>'Pro Forma Assumptions'!$D$24,0,G23*(1+'Pro Forma Assumptions'!$D$21)),0) -> 0 | I23: =ROUND(IF(I$5>'Pro Forma Assumptions'!$D$24,0,H23*(1+'Pro Forma Assumptions'!$D$21)),0) -> 0 | J23: =ROUND(IF(J$5>'Pro Forma Assumptions'!$D$24,0,I23*(1+'Pro Forma Assumptions'!$D$21)),0) -> 0 | K23: =ROUND(IF(K$5>'Pro Forma Assumptions'!$D$24,0,J23*(1+'Pro Forma Assumptions'!$D$21)),0) -> 0 | L23: =ROUND(IF(L$5>'Pro Forma Assumptions'!$D$24,0,K23*(1+'Pro Forma Assumptions'!$D$21)),0) -> 0 | M23: =ROUND(IF(M$5>'Pro Forma Assumptions'!$D$24,0,L23*(1+'Pro Forma Assumptions'!$D$21)),0) -> 0 | N23: =ROUND(IF(N$5>'Pro Forma Assumptions'!$D$24,0,M23*(1+'Pro Forma Assumptions'!$D$21)),0) -> 0 | O23: =ROUND(IF(O$5>'Pro Forma Assumptions'!$D$24,0,N23*(1+'Pro Forma Assumptions'!$D$21)),0) -> 0 | P23: =ROUND(IF(P$5>'Pro Forma Assumptions'!$D$24,0,O23*(1+'Pro Forma Assumptions'!$D$21)),0) -> 0 | Q23: =ROUND(IF(Q$5>'Pro Forma Assumptions'!$D$24,0,P23*(1+'Pro Forma Assumptions'!$D$21)),0) -> 0 | R23: =ROUND(IF(R$5>'Pro Forma Assumptions'!$D$24,0,Q23*(1+'Pro Forma Assumptions'!$D$21)),0) -> 0 | S23: =ROUND(IF(S$5>'Pro Forma Assumptions'!$D$24,0,R23*(1+'Pro Forma Assumptions'!$D$21)),0) -> 0 | T23: =ROUND(IF(T$5>'Pro Forma Assumptions'!$D$24,0,S23*(1+'Pro Forma Assumptions'!$D$21)),0) -> 0 | U23: =ROUND(IF(U$5>'Pro Forma Assumptions'!$D$24,0,T23*(1+'Pro Forma Assumptions'!$D$21)),0) -> 0 | V23: =ROUND(IF(V$5>'Pro Forma Assumptions'!$D$24,0,U23*(1+'Pro Forma Assumptions'!$D$21)),0) -> 0 | W23: =ROUND(IF(W$5>'Pro Forma Assumptions'!$D$24,0,V23*(1+'Pro Forma Assumptions'!$D$21)),0) -> 0 | X23: =ROUND(IF(X$5>'Pro Forma Assumptions'!$D$24,0,W23*(1+'Pro Forma Assumptions'!$D$21)),0) -> 0 | Y23: =ROUND(IF(Y$5>'Pro Forma Assumptions'!$D$24,0,X23*(1+'Pro Forma Assumptions'!$D$21)),0) -> 0 | Z23: =ROUND(IF(Z$5>'Pro Forma Assumptions'!$D$24,0,Y23*(1+'Pro Forma Assumptions'!$D$21)),0) -> 0 | AA23: =ROUND(IF(AA$5>'Pro Forma Assumptions'!$D$24,0,Z23*(1+'Pro Forma Assumptions'!$D$21)),0) -> 0 | AB23: =ROUND(IF(AB$5>'Pro Forma Assumptions'!$D$24,0,AA23*(1+'Pro Forma Assumptions'!$D$21)),0) -> 0 | AC23: =ROUND(IF(AC$5>'Pro Forma Assumptions'!$D$24,0,AB23*(1+'Pro Forma Assumptions'!$D$21)),0) -> 0 | AD23: =ROUND(IF(AD$5>'Pro Forma Assumptions'!$D$24,0,AC23*(1+'Pro Forma Assumptions'!$D$21)),0) -> 0 | AE23: =ROUND(IF(AE$5>'Pro Forma Assumptions'!$D$24,0,AD23*(1+'Pro Forma Assumptions'!$D$21)),0) -> 0 | AF23: =ROUND(IF(AF$5>'Pro Forma Assumptions'!$D$24,0,AE23*(1+'Pro Forma Assumptions'!$D$21)),0) -> 0 | AG23: =ROUND(IF(AG$5>'Pro Forma Assumptions'!$D$24,0,AF23*(1+'Pro Forma Assumptions'!$D$21)),0) -> 0
C24: Net Operating Income | D24: =D15+D22+D23 -> 0 | E24: =E15+E22+E23 -> 0 | F24: 0 | G24: 0 | H24: 0 | I24: 0 | J24: 0 | K24: 0 | L24: 0 | M24: 0 | N24: 0 | O24: 0 | P24: 0 | Q24: 0 | R24: 0 | S24: 0 | T24: 0 | U24: 0 | V24: 0 | W24: 0 | X24: 0 | Y24: 0 | Z24: 0 | AA24: 0 | AB24: 0 | AC24: 0 | AD24: 0 | AE24: 0 | AF24: 0 | AG24: 0
C26: Debt Service
A27: ? | C27: First Mortgage Debt Service | D27: =+-'First Mortgage Sizing'!D46*12 -> 0 | E27: =ROUND(IF(E$5>(MIN('First Mortgage Sizing'!$D$33,'Pro Forma Assumptions'!$D$24)),0,IF(E$5='Pro Forma Assumptions'!$D$24,-'Operating Pro Forma'!D49*(1+'First Mortgage Sizing'!$D$31),D27)),0) -> 0 | F27: =ROUND(IF(F$5>(MIN('First Mortgage Sizing'!$D$33,'Pro Forma Assumptions'!$D$24)),0,IF(F$5='Pro Forma Assumptions'!$D$24,-'Operating Pro Forma'!E49*(1+'First Mortgage Sizing'!$D$31),E27)),0) -> 0 | G27: =ROUND(IF(G$5>(MIN('First Mortgage Sizing'!$D$33,'Pro Forma Assumptions'!$D$24)),0,IF(G$5='Pro Forma Assumptions'!$D$24,-'Operating Pro Forma'!F49*(1+'First Mortgage Sizing'!$D$31),F27)),0) -> 0 | H27: =ROUND(IF(H$5>(MIN('First Mortgage Sizing'!$D$33,'Pro Forma Assumptions'!$D$24)),0,IF(H$5='Pro Forma Assumptions'!$D$24,-'Operating Pro Forma'!G49*(1+'First Mortgage Sizing'!$D$31),G27)),0) -> 0 | I27: =ROUND(IF(I$5>(MIN('First Mortgage Sizing'!$D$33,'Pro Forma Assumptions'!$D$24)),0,IF(I$5='Pro Forma Assumptions'!$D$24,-'Operating Pro Forma'!H49*(1+'First Mortgage Sizing'!$D$31),H27)),0) -> 0 | J27: =ROUND(IF(J$5>(MIN('First Mortgage Sizing'!$D$33,'Pro Forma Assumptions'!$D$24)),0,IF(J$5='Pro Forma Assumptions'!$D$24,-'Operating Pro Forma'!I49*(1+'First Mortgage Sizing'!$D$31),I27)),0) -> 0 | K27: =ROUND(IF(K$5>(MIN('First Mortgage Sizing'!$D$33,'Pro Forma Assumptions'!$D$24)),0,IF(K$5='Pro Forma Assumptions'!$D$24,-'Operating Pro Forma'!J49*(1+'First Mortgage Sizing'!$D$31),J27)),0) -> 0 | L27: =ROUND(IF(L$5>(MIN('First Mortgage Sizing'!$D$33,'Pro Forma Assumptions'!$D$24)),0,IF(L$5='Pro Forma Assumptions'!$D$24,-'Operating Pro Forma'!K49*(1+'First Mortgage Sizing'!$D$31),K27)),0) -> 0 | M27: =ROUND(IF(M$5>(MIN('First Mortgage Sizing'!$D$33,'Pro Forma Assumptions'!$D$24)),0,IF(M$5='Pro Forma Assumptions'!$D$24,-'Operating Pro Forma'!L49*(1+'First Mortgage Sizing'!$D$31),L27)),0) -> 0 | N27: =ROUND(IF(N$5>(MIN('First Mortgage Sizing'!$D$33,'Pro Forma Assumptions'!$D$24)),0,IF(N$5='Pro Forma Assumptions'!$D$24,-'Operating Pro Forma'!M49*(1+'First Mortgage Sizing'!$D$31),M27)),0) -> 0 | O27: =ROUND(IF(O$5>(MIN('First Mortgage Sizing'!$D$33,'Pro Forma Assumptions'!$D$24)),0,IF(O$5='Pro Forma Assumptions'!$D$24,-'Operating Pro Forma'!N49*(1+'First Mortgage Sizing'!$D$31),N27)),0) -> 0 | P27: =ROUND(IF(P$5>(MIN('First Mortgage Sizing'!$D$33,'Pro Forma Assumptions'!$D$24)),0,IF(P$5='Pro Forma Assumptions'!$D$24,-'Operating Pro Forma'!O49*(1+'First Mortgage Sizing'!$D$31),O27)),0) -> 0 | Q27: =ROUND(IF(Q$5>(MIN('First Mortgage Sizing'!$D$33,'Pro Forma Assumptions'!$D$24)),0,IF(Q$5='Pro Forma Assumptions'!$D$24,-'Operating Pro Forma'!P49*(1+'First Mortgage Sizing'!$D$31),P27)),0) -> 0 | R27: =ROUND(IF(R$5>(MIN('First Mortgage Sizing'!$D$33,'Pro Forma Assumptions'!$D$24)),0,IF(R$5='Pro Forma Assumptions'!$D$24,-'Operating Pro Forma'!Q49*(1+'First Mortgage Sizing'!$D$31),Q27)),0) -> 0 | S27: =ROUND(IF(S$5>(MIN('First Mortgage Sizing'!$D$33,'Pro Forma Assumptions'!$D$24)),0,IF(S$5='Pro Forma Assumptions'!$D$24,-'Operating Pro Forma'!R49*(1+'First Mortgage Sizing'!$D$31),R27)),0) -> 0 | T27: =ROUND(IF(T$5>(MIN('First Mortgage Sizing'!$D$33,'Pro Forma Assumptions'!$D$24)),0,IF(T$5='Pro Forma Assumptions'!$D$24,-'Operating Pro Forma'!S49*(1+'First Mortgage Sizing'!$D$31),S27)),0) -> 0 | U27: =ROUND(IF(U$5>(MIN('First Mortgage Sizing'!$D$33,'Pro Forma Assumptions'!$D$24)),0,IF(U$5='Pro Forma Assumptions'!$D$24,-'Operating Pro Forma'!T49*(1+'First Mortgage Sizing'!$D$31),T27)),0) -> 0 | V27: =ROUND(IF(V$5>(MIN('First Mortgage Sizing'!$D$33,'Pro Forma Assumptions'!$D$24)),0,IF(V$5='Pro Forma Assumptions'!$D$24,-'Operating Pro Forma'!U49*(1+'First Mortgage Sizing'!$D$31),U27)),0) -> 0 | W27: =ROUND(IF(W$5>(MIN('First Mortgage Sizing'!$D$33,'Pro Forma Assumptions'!$D$24)),0,IF(W$5='Pro Forma Assumptions'!$D$24,-'Operating Pro Forma'!V49*(1+'First Mortgage Sizing'!$D$31),V27)),0) -> 0 | X27: =ROUND(IF(X$5>(MIN('First Mortgage Sizing'!$D$33,'Pro Forma Assumptions'!$D$24)),0,IF(X$5='Pro Forma Assumptions'!$D$24,-'Operating Pro Forma'!W49*(1+'First Mortgage Sizing'!$D$31),W27)),0) -> 0 | Y27: =ROUND(IF(Y$5>(MIN('First Mortgage Sizing'!$D$33,'Pro Forma Assumptions'!$D$24)),0,IF(Y$5='Pro Forma Assumptions'!$D$24,-'Operating Pro Forma'!X49*(1+'First Mortgage Sizing'!$D$31),X27)),0) -> 0 | Z27: =ROUND(IF(Z$5>(MIN('First Mortgage Sizing'!$D$33,'Pro Forma Assumptions'!$D$24)),0,IF(Z$5='Pro Forma Assumptions'!$D$24,-'Operating Pro Forma'!Y49*(1+'First Mortgage Sizing'!$D$31),Y27)),0) -> 0 | AA27: =ROUND(IF(AA$5>(MIN('First Mortgage Sizing'!$D$33,'Pro Forma Assumptions'!$D$24)),0,IF(AA$5='Pro Forma Assumptions'!$D$24,-'Operating Pro Forma'!Z49*(1+'First Mortgage Sizing'!$D$31),Z27)),0) -> 0 | AB27: =ROUND(IF(AB$5>(MIN('First Mortgage Sizing'!$D$33,'Pro Forma Assumptions'!$D$24)),0,IF(AB$5='Pro Forma Assumptions'!$D$24,-'Operating Pro Forma'!AA49*(1+'First Mortgage Sizing'!$D$31),AA27)),0) -> 0 | AC27: =ROUND(IF(AC$5>(MIN('First Mortgage Sizing'!$D$33,'Pro Forma Assumptions'!$D$24)),0,IF(AC$5='Pro Forma Assumptions'!$D$24,-'Operating Pro Forma'!AB49*(1+'First Mortgage Sizing'!$D$31),AB27)),0) -> 0 | AD27: =ROUND(IF(AD$5>(MIN('First Mortgage Sizing'!$D$33,'Pro Forma Assumptions'!$D$24)),0,IF(AD$5='Pro Forma Assumptions'!$D$24,-'Operating Pro Forma'!AC49*(1+'First Mortgage Sizing'!$D$31),AC27)),0) -> 0 | AE27: =ROUND(IF(AE$5>(MIN('First Mortgage Sizing'!$D$33,'Pro Forma Assumptions'!$D$24)),0,IF(AE$5='Pro Forma Assumptions'!$D$24,-'Operating Pro Forma'!AD49*(1+'First Mortgage Sizing'!$D$31),AD27)),0) -> 0 | AF27: =ROUND(IF(AF$5>(MIN('First Mortgage Sizing'!$D$33,'Pro Forma Assumptions'!$D$24)),0,IF(AF$5='Pro Forma Assumptions'!$D$24,-'Operating Pro Forma'!AE49*(1+'First Mortgage Sizing'!$D$31),AE27)),0) -> 0 | AG27: =ROUND(IF(AG$5>(MIN('First Mortgage Sizing'!$D$33,'Pro Forma Assumptions'!$D$24)),0,IF(AG$5='Pro Forma Assumptions'!$D$24,-'Operating Pro Forma'!AF49*(1+'First Mortgage Sizing'!$D$31),AF27)),0) -> 0
A28: ? | C28: Second Mortgage Debt Service | D28: =+-'First Mortgage Sizing'!D63*12 -> 0 | E28: =ROUND(IF(E$5>(MIN('First Mortgage Sizing'!$D$62,'Pro Forma Assumptions'!$D$24)),0,IF(E$5='Pro Forma Assumptions'!$D$24,-'Operating Pro Forma'!D50*(1+'First Mortgage Sizing'!$D$61),D28)),0) -> 0 | F28: =ROUND(IF(F$5>(MIN('First Mortgage Sizing'!$D$62,'Pro Forma Assumptions'!$D$24)),0,IF(F$5='Pro Forma Assumptions'!$D$24,-'Operating Pro Forma'!E50*(1+'First Mortgage Sizing'!$D$61),E28)),0) -> 0 | G28: =ROUND(IF(G$5>(MIN('First Mortgage Sizing'!$D$62,'Pro Forma Assumptions'!$D$24)),0,IF(G$5='Pro Forma Assumptions'!$D$24,-'Operating Pro Forma'!F50*(1+'First Mortgage Sizing'!$D$61),F28)),0) -> 0 | H28: =ROUND(IF(H$5>(MIN('First Mortgage Sizing'!$D$62,'Pro Forma Assumptions'!$D$24)),0,IF(H$5='Pro Forma Assumptions'!$D$24,-'Operating Pro Forma'!G50*(1+'First Mortgage Sizing'!$D$61),G28)),0) -> 0 | I28: =ROUND(IF(I$5>(MIN('First Mortgage Sizing'!$D$62,'Pro Forma Assumptions'!$D$24)),0,IF(I$5='Pro Forma Assumptions'!$D$24,-'Operating Pro Forma'!H50*(1+'First Mortgage Sizing'!$D$61),H28)),0) -> 0 | J28: =ROUND(IF(J$5>(MIN('First Mortgage Sizing'!$D$62,'Pro Forma Assumptions'!$D$24)),0,IF(J$5='Pro Forma Assumptions'!$D$24,-'Operating Pro Forma'!I50*(1+'First Mortgage Sizing'!$D$61),I28)),0) -> 0 | K28: =ROUND(IF(K$5>(MIN('First Mortgage Sizing'!$D$62,'Pro Forma Assumptions'!$D$24)),0,IF(K$5='Pro Forma Assumptions'!$D$24,-'Operating Pro Forma'!J50*(1+'First Mortgage Sizing'!$D$61),J28)),0) -> 0 | L28: =ROUND(IF(L$5>(MIN('First Mortgage Sizing'!$D$62,'Pro Forma Assumptions'!$D$24)),0,IF(L$5='Pro Forma Assumptions'!$D$24,-'Operating Pro Forma'!K50*(1+'First Mortgage Sizing'!$D$61),K28)),0) -> 0 | M28: =ROUND(IF(M$5>(MIN('First Mortgage Sizing'!$D$62,'Pro Forma Assumptions'!$D$24)),0,IF(M$5='Pro Forma Assumptions'!$D$24,-'Operating Pro Forma'!L50*(1+'First Mortgage Sizing'!$D$61),L28)),0) -> 0 | N28: =ROUND(IF(N$5>(MIN('First Mortgage Sizing'!$D$62,'Pro Forma Assumptions'!$D$24)),0,IF(N$5='Pro Forma Assumptions'!$D$24,-'Operating Pro Forma'!M50*(1+'First Mortgage Sizing'!$D$61),M28)),0) -> 0 | O28: =ROUND(IF(O$5>(MIN('First Mortgage Sizing'!$D$62,'Pro Forma Assumptions'!$D$24)),0,IF(O$5='Pro Forma Assumptions'!$D$24,-'Operating Pro Forma'!N50*(1+'First Mortgage Sizing'!$D$61),N28)),0) -> 0 | P28: =ROUND(IF(P$5>(MIN('First Mortgage Sizing'!$D$62,'Pro Forma Assumptions'!$D$24)),0,IF(P$5='Pro Forma Assumptions'!$D$24,-'Operating Pro Forma'!O50*(1+'First Mortgage Sizing'!$D$61),O28)),0) -> 0 | Q28: =ROUND(IF(Q$5>(MIN('First Mortgage Sizing'!$D$62,'Pro Forma Assumptions'!$D$24)),0,IF(Q$5='Pro Forma Assumptions'!$D$24,-'Operating Pro Forma'!P50*(1+'First Mortgage Sizing'!$D$61),P28)),0) -> 0 | R28: =ROUND(IF(R$5>(MIN('First Mortgage Sizing'!$D$62,'Pro Forma Assumptions'!$D$24)),0,IF(R$5='Pro Forma Assumptions'!$D$24,-'Operating Pro Forma'!Q50*(1+'First Mortgage Sizing'!$D$61),Q28)),0) -> 0 | S28: =ROUND(IF(S$5>(MIN('First Mortgage Sizing'!$D$62,'Pro Forma Assumptions'!$D$24)),0,IF(S$5='Pro Forma Assumptions'!$D$24,-'Operating Pro Forma'!R50*(1+'First Mortgage Sizing'!$D$61),R28)),0) -> 0 | T28: =ROUND(IF(T$5>(MIN('First Mortgage Sizing'!$D$62,'Pro Forma Assumptions'!$D$24)),0,IF(T$5='Pro Forma Assumptions'!$D$24,-'Operating Pro Forma'!S50*(1+'First Mortgage Sizing'!$D$61),S28)),0) -> 0 | U28: =ROUND(IF(U$5>(MIN('First Mortgage Sizing'!$D$62,'Pro Forma Assumptions'!$D$24)),0,IF(U$5='Pro Forma Assumptions'!$D$24,-'Operating Pro Forma'!T50*(1+'First Mortgage Sizing'!$D$61),T28)),0) -> 0 | V28: =ROUND(IF(V$5>(MIN('First Mortgage Sizing'!$D$62,'Pro Forma Assumptions'!$D$24)),0,IF(V$5='Pro Forma Assumptions'!$D$24,-'Operating Pro Forma'!U50*(1+'First Mortgage Sizing'!$D$61),U28)),0) -> 0 | W28: =ROUND(IF(W$5>(MIN('First Mortgage Sizing'!$D$62,'Pro Forma Assumptions'!$D$24)),0,IF(W$5='Pro Forma Assumptions'!$D$24,-'Operating Pro Forma'!V50*(1+'First Mortgage Sizing'!$D$61),V28)),0) -> 0 | X28: =ROUND(IF(X$5>(MIN('First Mortgage Sizing'!$D$62,'Pro Forma Assumptions'!$D$24)),0,IF(X$5='Pro Forma Assumptions'!$D$24,-'Operating Pro Forma'!W50*(1+'First Mortgage Sizing'!$D$61),W28)),0) -> 0 | Y28: =ROUND(IF(Y$5>(MIN('First Mortgage Sizing'!$D$62,'Pro Forma Assumptions'!$D$24)),0,IF(Y$5='Pro Forma Assumptions'!$D$24,-'Operating Pro Forma'!X50*(1+'First Mortgage Sizing'!$D$61),X28)),0) -> 0 | Z28: =ROUND(IF(Z$5>(MIN('First Mortgage Sizing'!$D$62,'Pro Forma Assumptions'!$D$24)),0,IF(Z$5='Pro Forma Assumptions'!$D$24,-'Operating Pro Forma'!Y50*(1+'First Mortgage Sizing'!$D$61),Y28)),0) -> 0 | AA28: =ROUND(IF(AA$5>(MIN('First Mortgage Sizing'!$D$62,'Pro Forma Assumptions'!$D$24)),0,IF(AA$5='Pro Forma Assumptions'!$D$24,-'Operating Pro Forma'!Z50*(1+'First Mortgage Sizing'!$D$61),Z28)),0) -> 0 | AB28: =ROUND(IF(AB$5>(MIN('First Mortgage Sizing'!$D$62,'Pro Forma Assumptions'!$D$24)),0,IF(AB$5='Pro Forma Assumptions'!$D$24,-'Operating Pro Forma'!AA50*(1+'First Mortgage Sizing'!$D$61),AA28)),0) -> 0 | AC28: =ROUND(IF(AC$5>(MIN('First Mortgage Sizing'!$D$62,'Pro Forma Assumptions'!$D$24)),0,IF(AC$5='Pro Forma Assumptions'!$D$24,-'Operating Pro Forma'!AB50*(1+'First Mortgage Sizing'!$D$61),AB28)),0) -> 0 | AD28: =ROUND(IF(AD$5>(MIN('First Mortgage Sizing'!$D$62,'Pro Forma Assumptions'!$D$24)),0,IF(AD$5='Pro Forma Assumptions'!$D$24,-'Operating Pro Forma'!AC50*(1+'First Mortgage Sizing'!$D$61),AC28)),0) -> 0 | AE28: =ROUND(IF(AE$5>(MIN('First Mortgage Sizing'!$D$62,'Pro Forma Assumptions'!$D$24)),0,IF(AE$5='Pro Forma Assumptions'!$D$24,-'Operating Pro Forma'!AD50*(1+'First Mortgage Sizing'!$D$61),AD28)),0) -> 0 | AF28: =ROUND(IF(AF$5>(MIN('First Mortgage Sizing'!$D$62,'Pro Forma Assumptions'!$D$24)),0,IF(AF$5='Pro Forma Assumptions'!$D$24,-'Operating Pro Forma'!AE50*(1+'First Mortgage Sizing'!$D$61),AE28)),0) -> 0 | AG28: =ROUND(IF(AG$5>(MIN('First Mortgage Sizing'!$D$62,'Pro Forma Assumptions'!$D$24)),0,IF(AG$5='Pro Forma Assumptions'!$D$24,-'Operating Pro Forma'!AF50*(1+'First Mortgage Sizing'!$D$61),AF28)),0) -> 0
A29: ? | C29: Deferred Payment 1 Loan Payoff | D29: =ROUND(IF('Pro Forma Assumptions'!$D$24<='First Mortgage Sizing'!$D$73,IF('Pro Forma Assumptions'!$D$24='Operating Pro Forma'!D5,'Operating Pro Forma'!D93,0),IF('First Mortgage Sizing'!$D$73='Operating Pro Forma'!D5,'Operating Pro Forma'!D93,0)),0) -> 0 | E29: =ROUND(IF('Pro Forma Assumptions'!$D$24<='First Mortgage Sizing'!$D$73,IF('Pro Forma Assumptions'!$D$24='Operating Pro Forma'!E5,'Operating Pro Forma'!E93,0),IF('First Mortgage Sizing'!$D$73='Operating Pro Forma'!E5,'Operating Pro Forma'!E93,0)),0) -> 0 | F29: =ROUND(IF('Pro Forma Assumptions'!$D$24<='First Mortgage Sizing'!$D$73,IF('Pro Forma Assumptions'!$D$24='Operating Pro Forma'!F5,'Operating Pro Forma'!F93,0),IF('First Mortgage Sizing'!$D$73='Operating Pro Forma'!F5,'Operating Pro Forma'!F93,0)),0) -> 0 | G29: =ROUND(IF('Pro Forma Assumptions'!$D$24<='First Mortgage Sizing'!$D$73,IF('Pro Forma Assumptions'!$D$24='Operating Pro Forma'!G5,'Operating Pro Forma'!G93,0),IF('First Mortgage Sizing'!$D$73='Operating Pro Forma'!G5,'Operating Pro Forma'!G93,0)),0) -> 0 | H29: =ROUND(IF('Pro Forma Assumptions'!$D$24<='First Mortgage Sizing'!$D$73,IF('Pro Forma Assumptions'!$D$24='Operating Pro Forma'!H5,'Operating Pro Forma'!H93,0),IF('First Mortgage Sizing'!$D$73='Operating Pro Forma'!H5,'Operating Pro Forma'!H93,0)),0) -> 0 | I29: =ROUND(IF('Pro Forma Assumptions'!$D$24<='First Mortgage Sizing'!$D$73,IF('Pro Forma Assumptions'!$D$24='Operating Pro Forma'!I5,'Operating Pro Forma'!I93,0),IF('First Mortgage Sizing'!$D$73='Operating Pro Forma'!I5,'Operating Pro Forma'!I93,0)),0) -> 0 | J29: =ROUND(IF('Pro Forma Assumptions'!$D$24<='First Mortgage Sizing'!$D$73,IF('Pro Forma Assumptions'!$D$24='Operating Pro Forma'!J5,'Operating Pro Forma'!J93,0),IF('First Mortgage Sizing'!$D$73='Operating Pro Forma'!J5,'Operating Pro Forma'!J93,0)),0) -> 0 | K29: =ROUND(IF('Pro Forma Assumptions'!$D$24<='First Mortgage Sizing'!$D$73,IF('Pro Forma Assumptions'!$D$24='Operating Pro Forma'!K5,'Operating Pro Forma'!K93,0),IF('First Mortgage Sizing'!$D$73='Operating Pro Forma'!K5,'Operating Pro Forma'!K93,0)),0) -> 0 | L29: =ROUND(IF('Pro Forma Assumptions'!$D$24<='First Mortgage Sizing'!$D$73,IF('Pro Forma Assumptions'!$D$24='Operating Pro Forma'!L5,'Operating Pro Forma'!L93,0),IF('First Mortgage Sizing'!$D$73='Operating Pro Forma'!L5,'Operating Pro Forma'!L93,0)),0) -> 0 | M29: =ROUND(IF('Pro Forma Assumptions'!$D$24<='First Mortgage Sizing'!$D$73,IF('Pro Forma Assumptions'!$D$24='Operating Pro Forma'!M5,'Operating Pro Forma'!M93,0),IF('First Mortgage Sizing'!$D$73='Operating Pro Forma'!M5,'Operating Pro Forma'!M93,0)),0) -> 0 | N29: =ROUND(IF('Pro Forma Assumptions'!$D$24<='First Mortgage Sizing'!$D$73,IF('Pro Forma Assumptions'!$D$24='Operating Pro Forma'!N5,'Operating Pro Forma'!N93,0),IF('First Mortgage Sizing'!$D$73='Operating Pro Forma'!N5,'Operating Pro Forma'!N93,0)),0) -> 0 | O29: =ROUND(IF('Pro Forma Assumptions'!$D$24<='First Mortgage Sizing'!$D$73,IF('Pro Forma Assumptions'!$D$24='Operating Pro Forma'!O5,'Operating Pro Forma'!O93,0),IF('First Mortgage Sizing'!$D$73='Operating Pro Forma'!O5,'Operating Pro Forma'!O93,0)),0) -> 0 | P29: =ROUND(IF('Pro Forma Assumptions'!$D$24<='First Mortgage Sizing'!$D$73,IF('Pro Forma Assumptions'!$D$24='Operating Pro Forma'!P5,'Operating Pro Forma'!P93,0),IF('First Mortgage Sizing'!$D$73='Operating Pro Forma'!P5,'Operating Pro Forma'!P93,0)),0) -> 0 | Q29: =ROUND(IF('Pro Forma Assumptions'!$D$24<='First Mortgage Sizing'!$D$73,IF('Pro Forma Assumptions'!$D$24='Operating Pro Forma'!Q5,'Operating Pro Forma'!Q93,0),IF('First Mortgage Sizing'!$D$73='Operating Pro Forma'!Q5,'Operating Pro Forma'!Q93,0)),0) -> 0 | R29: =ROUND(IF('Pro Forma Assumptions'!$D$24<='First Mortgage Sizing'!$D$73,IF('Pro Forma Assumptions'!$D$24='Operating Pro Forma'!R5,'Operating Pro Forma'!R93,0),IF('First Mortgage Sizing'!$D$73='Operating Pro Forma'!R5,'Operating Pro Forma'!R93,0)),0) -> 0 | S29: =ROUND(IF('Pro Forma Assumptions'!$D$24<='First Mortgage Sizing'!$D$73,IF('Pro Forma Assumptions'!$D$24='Operating Pro Forma'!S5,'Operating Pro Forma'!S93,0),IF('First Mortgage Sizing'!$D$73='Operating Pro Forma'!S5,'Operating Pro Forma'!S93,0)),0) -> 0 | T29: =ROUND(IF('Pro Forma Assumptions'!$D$24<='First Mortgage Sizing'!$D$73,IF('Pro Forma Assumptions'!$D$24='Operating Pro Forma'!T5,'Operating Pro Forma'!T93,0),IF('First Mortgage Sizing'!$D$73='Operating Pro Forma'!T5,'Operating Pro Forma'!T93,0)),0) -> 0 | U29: =ROUND(IF('Pro Forma Assumptions'!$D$24<='First Mortgage Sizing'!$D$73,IF('Pro Forma Assumptions'!$D$24='Operating Pro Forma'!U5,'Operating Pro Forma'!U93,0),IF('First Mortgage Sizing'!$D$73='Operating Pro Forma'!U5,'Operating Pro Forma'!U93,0)),0) -> 0 | V29: =ROUND(IF('Pro Forma Assumptions'!$D$24<='First Mortgage Sizing'!$D$73,IF('Pro Forma Assumptions'!$D$24='Operating Pro Forma'!V5,'Operating Pro Forma'!V93,0),IF('First Mortgage Sizing'!$D$73='Operating Pro Forma'!V5,'Operating Pro Forma'!V93,0)),0) -> 0 | W29: =ROUND(IF('Pro Forma Assumptions'!$D$24<='First Mortgage Sizing'!$D$73,IF('Pro Forma Assumptions'!$D$24='Operating Pro Forma'!W5,'Operating Pro Forma'!W93,0),IF('First Mortgage Sizing'!$D$73='Operating Pro Forma'!W5,'Operating Pro Forma'!W93,0)),0) -> 0 | X29: =ROUND(IF('Pro Forma Assumptions'!$D$24<='First Mortgage Sizing'!$D$73,IF('Pro Forma Assumptions'!$D$24='Operating Pro Forma'!X5,'Operating Pro Forma'!X93,0),IF('First Mortgage Sizing'!$D$73='Operating Pro Forma'!X5,'Operating Pro Forma'!X93,0)),0) -> 0 | Y29: =ROUND(IF('Pro Forma Assumptions'!$D$24<='First Mortgage Sizing'!$D$73,IF('Pro Forma Assumptions'!$D$24='Operating Pro Forma'!Y5,'Operating Pro Forma'!Y93,0),IF('First Mortgage Sizing'!$D$73='Operating Pro Forma'!Y5,'Operating Pro Forma'!Y93,0)),0) -> 0 | Z29: =ROUND(IF('Pro Forma Assumptions'!$D$24<='First Mortgage Sizing'!$D$73,IF('Pro Forma Assumptions'!$D$24='Operating Pro Forma'!Z5,'Operating Pro Forma'!Z93,0),IF('First Mortgage Sizing'!$D$73='Operating Pro Forma'!Z5,'Operating Pro Forma'!Z93,0)),0) -> 0 | AA29: =ROUND(IF('Pro Forma Assumptions'!$D$24<='First Mortgage Sizing'!$D$73,IF('Pro Forma Assumptions'!$D$24='Operating Pro Forma'!AA5,'Operating Pro Forma'!AA93,0),IF('First Mortgage Sizing'!$D$73='Operating Pro Forma'!AA5,'Operating Pro Forma'!AA93,0)),0) -> 0 | AB29: =ROUND(IF('Pro Forma Assumptions'!$D$24<='First Mortgage Sizing'!$D$73,IF('Pro Forma Assumptions'!$D$24='Operating Pro Forma'!AB5,'Operating Pro Forma'!AB93,0),IF('First Mortgage Sizing'!$D$73='Operating Pro Forma'!AB5,'Operating Pro Forma'!AB93,0)),0) -> 0 | AC29: =ROUND(IF('Pro Forma Assumptions'!$D$24<='First Mortgage Sizing'!$D$73,IF('Pro Forma Assumptions'!$D$24='Operating Pro Forma'!AC5,'Operating Pro Forma'!AC93,0),IF('First Mortgage Sizing'!$D$73='Operating Pro Forma'!AC5,'Operating Pro Forma'!AC93,0)),0) -> 0 | AD29: =ROUND(IF('Pro Forma Assumptions'!$D$24<='First Mortgage Sizing'!$D$73,IF('Pro Forma Assumptions'!$D$24='Operating Pro Forma'!AD5,'Operating Pro Forma'!AD93,0),IF('First Mortgage Sizing'!$D$73='Operating Pro Forma'!AD5,'Operating Pro Forma'!AD93,0)),0) -> 0 | AE29: =ROUND(IF('Pro Forma Assumptions'!$D$24<='First Mortgage Sizing'!$D$73,IF('Pro Forma Assumptions'!$D$24='Operating Pro Forma'!AE5,'Operating Pro Forma'!AE93,0),IF('First Mortgage Sizing'!$D$73='Operating Pro Forma'!AE5,'Operating Pro Forma'!AE93,0)),0) -> 0 | AF29: =ROUND(IF('Pro Forma Assumptions'!$D$24<='First Mortgage Sizing'!$D$73,IF('Pro Forma Assumptions'!$D$24='Operating Pro Forma'!AF5,'Operating Pro Forma'!AF93,0),IF('First Mortgage Sizing'!$D$73='Operating Pro Forma'!AF5,'Operating Pro Forma'!AF93,0)),0) -> 0 | AG29: =ROUND(IF('Pro Forma Assumptions'!$D$24<='First Mortgage Sizing'!$D$73,IF('Pro Forma Assumptions'!$D$24='Operating Pro Forma'!AG5,'Operating Pro Forma'!AG93,0),IF('First Mortgage Sizing'!$D$73='Operating Pro Forma'!AG5,'Operating Pro Forma'!AG93,0)),0) -> 0
A30: ? | C30: Deferred Payment 2 Loan Payoff | D30: =ROUND(IF('Pro Forma Assumptions'!$D$24<='First Mortgage Sizing'!$D$83,IF('Pro Forma Assumptions'!$D$24='Operating Pro Forma'!D5,'Operating Pro Forma'!D94,0),IF('First Mortgage Sizing'!$D$83='Operating Pro Forma'!D5,'Operating Pro Forma'!D94,0)),0) -> 0 | E30: =ROUND(IF('Pro Forma Assumptions'!$D$24<='First Mortgage Sizing'!$D$83,IF('Pro Forma Assumptions'!$D$24='Operating Pro Forma'!E5,'Operating Pro Forma'!E94,0),IF('First Mortgage Sizing'!$D$83='Operating Pro Forma'!E5,'Operating Pro Forma'!E94,0)),0) -> 0 | F30: =ROUND(IF('Pro Forma Assumptions'!$D$24<='First Mortgage Sizing'!$D$83,IF('Pro Forma Assumptions'!$D$24='Operating Pro Forma'!F5,'Operating Pro Forma'!F94,0),IF('First Mortgage Sizing'!$D$83='Operating Pro Forma'!F5,'Operating Pro Forma'!F94,0)),0) -> 0 | G30: =ROUND(IF('Pro Forma Assumptions'!$D$24<='First Mortgage Sizing'!$D$83,IF('Pro Forma Assumptions'!$D$24='Operating Pro Forma'!G5,'Operating Pro Forma'!G94,0),IF('First Mortgage Sizing'!$D$83='Operating Pro Forma'!G5,'Operating Pro Forma'!G94,0)),0) -> 0 | H30: =ROUND(IF('Pro Forma Assumptions'!$D$24<='First Mortgage Sizing'!$D$83,IF('Pro Forma Assumptions'!$D$24='Operating Pro Forma'!H5,'Operating Pro Forma'!H94,0),IF('First Mortgage Sizing'!$D$83='Operating Pro Forma'!H5,'Operating Pro Forma'!H94,0)),0) -> 0 | I30: =ROUND(IF('Pro Forma Assumptions'!$D$24<='First Mortgage Sizing'!$D$83,IF('Pro Forma Assumptions'!$D$24='Operating Pro Forma'!I5,'Operating Pro Forma'!I94,0),IF('First Mortgage Sizing'!$D$83='Operating Pro Forma'!I5,'Operating Pro Forma'!I94,0)),0) -> 0 | J30: =ROUND(IF('Pro Forma Assumptions'!$D$24<='First Mortgage Sizing'!$D$83,IF('Pro Forma Assumptions'!$D$24='Operating Pro Forma'!J5,'Operating Pro Forma'!J94,0),IF('First Mortgage Sizing'!$D$83='Operating Pro Forma'!J5,'Operating Pro Forma'!J94,0)),0) -> 0 | K30: =ROUND(IF('Pro Forma Assumptions'!$D$24<='First Mortgage Sizing'!$D$83,IF('Pro Forma Assumptions'!$D$24='Operating Pro Forma'!K5,'Operating Pro Forma'!K94,0),IF('First Mortgage Sizing'!$D$83='Operating Pro Forma'!K5,'Operating Pro Forma'!K94,0)),0) -> 0 | L30: =ROUND(IF('Pro Forma Assumptions'!$D$24<='First Mortgage Sizing'!$D$83,IF('Pro Forma Assumptions'!$D$24='Operating Pro Forma'!L5,'Operating Pro Forma'!L94,0),IF('First Mortgage Sizing'!$D$83='Operating Pro Forma'!L5,'Operating Pro Forma'!L94,0)),0) -> 0 | M30: =ROUND(IF('Pro Forma Assumptions'!$D$24<='First Mortgage Sizing'!$D$83,IF('Pro Forma Assumptions'!$D$24='Operating Pro Forma'!M5,'Operating Pro Forma'!M94,0),IF('First Mortgage Sizing'!$D$83='Operating Pro Forma'!M5,'Operating Pro Forma'!M94,0)),0) -> 0 | N30: =ROUND(IF('Pro Forma Assumptions'!$D$24<='First Mortgage Sizing'!$D$83,IF('Pro Forma Assumptions'!$D$24='Operating Pro Forma'!N5,'Operating Pro Forma'!N94,0),IF('First Mortgage Sizing'!$D$83='Operating Pro Forma'!N5,'Operating Pro Forma'!N94,0)),0) -> 0 | O30: =ROUND(IF('Pro Forma Assumptions'!$D$24<='First Mortgage Sizing'!$D$83,IF('Pro Forma Assumptions'!$D$24='Operating Pro Forma'!O5,'Operating Pro Forma'!O94,0),IF('First Mortgage Sizing'!$D$83='Operating Pro Forma'!O5,'Operating Pro Forma'!O94,0)),0) -> 0 | P30: =ROUND(IF('Pro Forma Assumptions'!$D$24<='First Mortgage Sizing'!$D$83,IF('Pro Forma Assumptions'!$D$24='Operating Pro Forma'!P5,'Operating Pro Forma'!P94,0),IF('First Mortgage Sizing'!$D$83='Operating Pro Forma'!P5,'Operating Pro Forma'!P94,0)),0) -> 0 | Q30: =ROUND(IF('Pro Forma Assumptions'!$D$24<='First Mortgage Sizing'!$D$83,IF('Pro Forma Assumptions'!$D$24='Operating Pro Forma'!Q5,'Operating Pro Forma'!Q94,0),IF('First Mortgage Sizing'!$D$83='Operating Pro Forma'!Q5,'Operating Pro Forma'!Q94,0)),0) -> 0 | R30: =ROUND(IF('Pro Forma Assumptions'!$D$24<='First Mortgage Sizing'!$D$83,IF('Pro Forma Assumptions'!$D$24='Operating Pro Forma'!R5,'Operating Pro Forma'!R94,0),IF('First Mortgage Sizing'!$D$83='Operating Pro Forma'!R5,'Operating Pro Forma'!R94,0)),0) -> 0 | S30: =ROUND(IF('Pro Forma Assumptions'!$D$24<='First Mortgage Sizing'!$D$83,IF('Pro Forma Assumptions'!$D$24='Operating Pro Forma'!S5,'Operating Pro Forma'!S94,0),IF('First Mortgage Sizing'!$D$83='Operating Pro Forma'!S5,'Operating Pro Forma'!S94,0)),0) -> 0 | T30: =ROUND(IF('Pro Forma Assumptions'!$D$24<='First Mortgage Sizing'!$D$83,IF('Pro Forma Assumptions'!$D$24='Operating Pro Forma'!T5,'Operating Pro Forma'!T94,0),IF('First Mortgage Sizing'!$D$83='Operating Pro Forma'!T5,'Operating Pro Forma'!T94,0)),0) -> 0 | U30: =ROUND(IF('Pro Forma Assumptions'!$D$24<='First Mortgage Sizing'!$D$83,IF('Pro Forma Assumptions'!$D$24='Operating Pro Forma'!U5,'Operating Pro Forma'!U94,0),IF('First Mortgage Sizing'!$D$83='Operating Pro Forma'!U5,'Operating Pro Forma'!U94,0)),0) -> 0 | V30: =ROUND(IF('Pro Forma Assumptions'!$D$24<='First Mortgage Sizing'!$D$83,IF('Pro Forma Assumptions'!$D$24='Operating Pro Forma'!V5,'Operating Pro Forma'!V94,0),IF('First Mortgage Sizing'!$D$83='Operating Pro Forma'!V5,'Operating Pro Forma'!V94,0)),0) -> 0 | W30: =ROUND(IF('Pro Forma Assumptions'!$D$24<='First Mortgage Sizing'!$D$83,IF('Pro Forma Assumptions'!$D$24='Operating Pro Forma'!W5,'Operating Pro Forma'!W94,0),IF('First Mortgage Sizing'!$D$83='Operating Pro Forma'!W5,'Operating Pro Forma'!W94,0)),0) -> 0 | X30: =ROUND(IF('Pro Forma Assumptions'!$D$24<='First Mortgage Sizing'!$D$83,IF('Pro Forma Assumptions'!$D$24='Operating Pro Forma'!X5,'Operating Pro Forma'!X94,0),IF('First Mortgage Sizing'!$D$83='Operating Pro Forma'!X5,'Operating Pro Forma'!X94,0)),0) -> 0 | Y30: =ROUND(IF('Pro Forma Assumptions'!$D$24<='First Mortgage Sizing'!$D$83,IF('Pro Forma Assumptions'!$D$24='Operating Pro Forma'!Y5,'Operating Pro Forma'!Y94,0),IF('First Mortgage Sizing'!$D$83='Operating Pro Forma'!Y5,'Operating Pro Forma'!Y94,0)),0) -> 0 | Z30: =ROUND(IF('Pro Forma Assumptions'!$D$24<='First Mortgage Sizing'!$D$83,IF('Pro Forma Assumptions'!$D$24='Operating Pro Forma'!Z5,'Operating Pro Forma'!Z94,0),IF('First Mortgage Sizing'!$D$83='Operating Pro Forma'!Z5,'Operating Pro Forma'!Z94,0)),0) -> 0 | AA30: =ROUND(IF('Pro Forma Assumptions'!$D$24<='First Mortgage Sizing'!$D$83,IF('Pro Forma Assumptions'!$D$24='Operating Pro Forma'!AA5,'Operating Pro Forma'!AA94,0),IF('First Mortgage Sizing'!$D$83='Operating Pro Forma'!AA5,'Operating Pro Forma'!AA94,0)),0) -> 0 | AB30: =ROUND(IF('Pro Forma Assumptions'!$D$24<='First Mortgage Sizing'!$D$83,IF('Pro Forma Assumptions'!$D$24='Operating Pro Forma'!AB5,'Operating Pro Forma'!AB94,0),IF('First Mortgage Sizing'!$D$83='Operating Pro Forma'!AB5,'Operating Pro Forma'!AB94,0)),0) -> 0 | AC30: =ROUND(IF('Pro Forma Assumptions'!$D$24<='First Mortgage Sizing'!$D$83,IF('Pro Forma Assumptions'!$D$24='Operating Pro Forma'!AC5,'Operating Pro Forma'!AC94,0),IF('First Mortgage Sizing'!$D$83='Operating Pro Forma'!AC5,'Operating Pro Forma'!AC94,0)),0) -> 0 | AD30: =ROUND(IF('Pro Forma Assumptions'!$D$24<='First Mortgage Sizing'!$D$83,IF('Pro Forma Assumptions'!$D$24='Operating Pro Forma'!AD5,'Operating Pro Forma'!AD94,0),IF('First Mortgage Sizing'!$D$83='Operating Pro Forma'!AD5,'Operating Pro Forma'!AD94,0)),0) -> 0 | AE30: =ROUND(IF('Pro Forma Assumptions'!$D$24<='First Mortgage Sizing'!$D$83,IF('Pro Forma Assumptions'!$D$24='Operating Pro Forma'!AE5,'Operating Pro Forma'!AE94,0),IF('First Mortgage Sizing'!$D$83='Operating Pro Forma'!AE5,'Operating Pro Forma'!AE94,0)),0) -> 0 | AF30: =ROUND(IF('Pro Forma Assumptions'!$D$24<='First Mortgage Sizing'!$D$83,IF('Pro Forma Assumptions'!$D$24='Operating Pro Forma'!AF5,'Operating Pro Forma'!AF94,0),IF('First Mortgage Sizing'!$D$83='Operating Pro Forma'!AF5,'Operating Pro Forma'!AF94,0)),0) -> 0 | AG30: =ROUND(IF('Pro Forma Assumptions'!$D$24<='First Mortgage Sizing'!$D$83,IF('Pro Forma Assumptions'!$D$24='Operating Pro Forma'!AG5,'Operating Pro Forma'!AG94,0),IF('First Mortgage Sizing'!$D$83='Operating Pro Forma'!AG5,'Operating Pro Forma'!AG94,0)),0) -> 0
A31: ? | C31: =CONCATENATE('First Mortgage Sizing'!D88," Debt Service") -> Debt Service | D31: 0 | E31: 0 | F31: 0 | G31: 0 | H31: 0 | I31: 0 | J31: 0 | K31: 0 | L31: 0 | M31: 0 | N31: 0 | O31: 0 | P31: 0 | Q31: 0 | R31: 0 | S31: 0 | T31: 0 | U31: 0 | V31: 0 | W31: 0 | X31: 0 | Y31: 0 | Z31: 0 | AA31: 0 | AB31: 0 | AC31: 0 | AD31: 0 | AE31: 0 | AF31: 0 | AG31: 0
A32: ? | C32: =CONCATENATE('First Mortgage Sizing'!D99," Debt Service") -> Debt Service | D32: 0 | E32: 0 | F32: 0 | G32: 0 | H32: 0 | I32: 0 | J32: 0 | K32: 0 | L32: 0 | M32: 0 | N32: 0 | O32: 0 | P32: 0 | Q32: 0 | R32: 0 | S32: 0 | T32: 0 | U32: 0 | V32: 0 | W32: 0 | X32: 0 | Y32: 0 | Z32: 0 | AA32: 0 | AB32: 0 | AC32: 0 | AD32: 0 | AE32: 0 | AF32: 0 | AG32: 0
C34: Cash Flow (After Debt Service)
C35: Cash Flow | D35: =IF('Pro Forma Assumptions'!$D$24<D5,0,SUM(D24:D32)) -> 0 | E35: =IF('Pro Forma Assumptions'!$D$24<E5,0,SUM(E24:E32)) -> 0 | F35: =IF('Pro Forma Assumptions'!$D$24<F5,0,SUM(F24:F32)) -> 0 | G35: =IF('Pro Forma Assumptions'!$D$24<G5,0,SUM(G24:G32)) -> 0 | H35: =IF('Pro Forma Assumptions'!$D$24<H5,0,SUM(H24:H32)) -> 0 | I35: =IF('Pro Forma Assumptions'!$D$24<I5,0,SUM(I24:I32)) -> 0 | J35: =IF('Pro Forma Assumptions'!$D$24<J5,0,SUM(J24:J32)) -> 0 | K35: =IF('Pro Forma Assumptions'!$D$24<K5,0,SUM(K24:K32)) -> 0 | L35: =IF('Pro Forma Assumptions'!$D$24<L5,0,SUM(L24:L32)) -> 0 | M35: =IF('Pro Forma Assumptions'!$D$24<M5,0,SUM(M24:M32)) -> 0 | N35: =IF('Pro Forma Assumptions'!$D$24<N5,0,SUM(N24:N32)) -> 0 | O35: =IF('Pro Forma Assumptions'!$D$24<O5,0,SUM(O24:O32)) -> 0 | P35: =IF('Pro Forma Assumptions'!$D$24<P5,0,SUM(P24:P32)) -> 0 | Q35: =IF('Pro Forma Assumptions'!$D$24<Q5,0,SUM(Q24:Q32)) -> 0 | R35: =IF('Pro Forma Assumptions'!$D$24<R5,0,SUM(R24:R32)) -> 0 | S35: =IF('Pro Forma Assumptions'!$D$24<S5,0,SUM(S24:S32)) -> 0 | T35: =IF('Pro Forma Assumptions'!$D$24<T5,0,SUM(T24:T32)) -> 0 | U35: =IF('Pro Forma Assumptions'!$D$24<U5,0,SUM(U24:U32)) -> 0 | V35: =IF('Pro Forma Assumptions'!$D$24<V5,0,SUM(V24:V32)) -> 0 | W35: =IF('Pro Forma Assumptions'!$D$24<W5,0,SUM(W24:W32)) -> 0 | X35: =IF('Pro Forma Assumptions'!$D$24<X5,0,SUM(X24:X32)) -> 0 | Y35: =IF('Pro Forma Assumptions'!$D$24<Y5,0,SUM(Y24:Y32)) -> 0 | Z35: =IF('Pro Forma Assumptions'!$D$24<Z5,0,SUM(Z24:Z32)) -> 0 | AA35: =IF('Pro Forma Assumptions'!$D$24<AA5,0,SUM(AA24:AA32)) -> 0 | AB35: =IF('Pro Forma Assumptions'!$D$24<AB5,0,SUM(AB24:AB32)) -> 0 | AC35: =IF('Pro Forma Assumptions'!$D$24<AC5,0,SUM(AC24:AC32)) -> 0 | AD35: =IF('Pro Forma Assumptions'!$D$24<AD5,0,SUM(AD24:AD32)) -> 0 | AE35: =IF('Pro Forma Assumptions'!$D$24<AE5,0,SUM(AE24:AE32)) -> 0 | AF35: =IF('Pro Forma Assumptions'!$D$24<AF5,0,SUM(AF24:AF32)) -> 0 | AG35: =IF('Pro Forma Assumptions'!$D$24<AG5,0,SUM(AG24:AG32)) -> 0
